Workbook

Sheet ورقة1
Q2: =SUM(Q4:Q341) -> 565858.4203 | R2: =SUM(R4:R341) -> 0 | S2: 763908.83 | T2: 84878.82 | U2: 1083.033424 | V2: 0 | W2: 0 | X2: 314.43 | Y2: 79901.26306 | Z2: 101100 | AA2: 236.8 | AB2: 100 | AC2: 0 | AD2: 0 | AE2: 0 | AF2: 181552.54 | AG2: 10230.80619 | AH2: 11394.76915 | AI2: 14930.12202 | AJ2: 51969.13 | AK2: 52010 | AL2: 10616.56908 | AM2: 17155.0993 | AN2: 21856.73744 | AO2: 31120.3509 | AP2: 33376.03401 | AQ2: 37387.61259 | AR2: 0 | AS2: 26294.37885 | AT2: 193200 | AU2: 3058 | AV2: 514599.65 | AW2: 3380 | AX2: 0 | AY2: 102651.181 | AZ2: 3999.44 | BA2: 0 | BB2: 4290 | BC2: 2217912.5 | BD2: 391399.55 | BE2: 2617701.49 | BF2: 0 | BG2: 0 | BH2: 0 | BI2: 0 | BJ2: 219666.9144 | BK2: 7630.29 | BL2: 0 | BM2: =SUM(BM4:BM341) -> 0 | BN2: 0 | BO2: 0 | BP2: 0 | BQ2: 679.76 | BR2: 246.24 | BS2: 750 | BT2: 1014 | BU2: 16134.04 | BV2: 0 | BW2: =SUM(BW4:BW341) -> 60 | BX2: 0 | BY2: 0 | BZ2: 375 | CA2: 500 | CB2: 1571.68 | CC2: 0 | CD2: 0 | CE2: 0 | CF2: 0 | CG2: 1033.37 | CH2: 1249.84 | CI2: 1000 | CJ2: 0 | CK2: 0 | CL2: 0 | CM2: 998.34 | CN2: 0 | CO2: 0 | CP2: 102651.181 | CQ2: 0 | CR2: =SUM(CR4:CR341) -> 10414.84 | CS2: 35334.51 | CT2: 0 | CU2: 6794.08 | CV2: 408103.94 | CW2: 2209597.55
B3: كود الشركة | C3: كود البيرول | D3: التعامل المالي | E3: اسم الموظف | F3: الموظف المختص | G3: حالة العمل | H3: التصنيف الادارى | I3: الدرجة | J3: ترقية 7/2025 | K3: الوظيفة | L3: مكان العمل | M3: الرقم القومي | N3: مرجع بحث | O3: استعلام ترقية | P3: الأجر الأساسي | Q3: أساسي 7/2025 | R3: أجر مقطوع | S3: الحافز | T3: حافز أداء 15% | U3: حافز موانى | V3: عمولة انتاج | W3: أومر الشغل للملاكي | X3: بدل مخاطر مواني 30% | Y3: بدل مخاطر | Z3: بدل انتقال | AA3: بدل اقامة | AB3: بدل تمثيل | AC3: بدل ضيافة | AD3: بدل تفرغ | AE3: بدل تباع | AF3: إجمالي بدلات | AG3: علاوة 2014 | AH3: علاوة 2015 | AI3: علاوة 2016 | AJ3: ع م من 14 حتى 18 | AK3: علاوة استثنائية2018 | AL3: علاوة 2019 | AM3: علاوة 2020 | AN3: علاوة 2021 | AO3: علاوة 2022 | AP3: علاوة 2023 | AQ3: علاوة 2024 | AR3: إ.ع من14:24 أعمال | AS3: علاوة 2025 | AT3: علاوة غلاء معيشة | AU3: علاوة اجتماعية | AV3: إجمالي علاوات | AW3: م. عيد العمال | AX3: عمود2 | AY3: متوسط المنحة | AZ3: رد مستحقات | BA3: بدل سهر | BB3: الإضافي | BC3: الإجمالي | BD3: مكمل الأجر | BE3: إجمالي المستحق | BF3: عدد أيام الأجازات | BG3: أيام أجازات بعد السنوية | BH3: أيام الغياب | BI3: أيام جزاء | BJ3: تامينات 2025 | BK3: ضريبة 2026 | BL3: خصم غياب عام | BM3: جزاءات | BN3: خصم غياب من الحافز | BO3: خصم حافز | BP3: خصم حافز بعد السنوية | BQ3: اشتراكات اجازات خاصة | BR3: مدة سابقة | BS3: إيجار سكن | BT3: نقابة | BU3: خصم نفقات | BV3: أجر بالزيادة | BW3: اشتراك سيارة | BX3: سولار | BY3: عهد | BZ3: تلفيات | CA3: عجز | CB3: تعويضات | CC3: سلفة | CD3: نقليات | CE3: مخالفات مرور | CF3: تنفيذ أحكام | CG3: الشهداء | CH3: دعم ذوى الاعاقة | CI3: تسويات مدينة | CJ3: حج وعمرة | CK3: قسط تأمينات | CL3: صندوق تكافل | CM3: تأمين صحي بورسعيد | CN3: أخرى | CO3: نصف وقت | CP3: متوسط منح | CQ3: خصم 5% تأمين من العمولة | CR3: إيقاف | CS3: مرضي | CT3: أجازة | CU3: إعارة | CV3: إجمالي المستقطع | CW3: صافي الأجر
B4: 109007 | C4: 21704 | D4: بنك مصر 1 | E4: شحاتة موسى محمد خليل | F4: 0 | G4: إيقاف | H4: ادارى | I4: الثالثة | J4: الثالثة | K4: حرفى لحام إطارات | L4: الاميرية | M4: 27212212701016 | N4: 109007شحاتة موسى محمد خليلالثالثةالثالثةحرفى لحام إطاراتالاميرية | O4: نعم | P4: 2060.52 | Q4: 2410.8084 | R4: 0 | S4: =ROUND(Q4*135%,2) -> 3254.59 | T4: =ROUND(Q4*15%,2) -> 361.62 | U4: 0 | V4: 0 | W4: 0 | Y4: 0 | Z4: 300 | AB4: 0 | AC4: 0 | AD4: 0 | AE4: 0 | AF4: =ROUND(SUM(X4:AA4,AC4:AE4),2) -> 300 | AG4: 72.95 | AH4: 81.44 | AI4: 97.23 | AJ4: 0 | AK4: 200 | AL4: 41.19 | AM4: 73.46 | AN4: 94.32 | AO4: 134.56 | AP4: 143.97 | AQ4: 154.06 | AS4: 103.026 | AT4: 600 | AU4: 10 | AV4: =ROUND(SUM(AG4:AU4),2) -> 1806.21 | AW4: 10 | AX4: 0 | AY4: 433.7937 | AZ4: 0 | BB4: 0 | BC4: =ROUND(SUM(Q4:W4,AF4,AV4,AW4:AY4),2) -> 8577.02 | BD4: =IF(BC4<7000,7000-BC4,0) -> 0 | BE4: =ROUND(SUM(AB4,AZ4:BD4),2) -> 8577.02 | BF4: 0 | BG4: 0 | BJ4: 792 | BK4: 0 | BL4: =(BE4-SUM($S4,AY4:BB4))/30*BH4 -> 0 | BM4: =(BE4-SUM($S4,AY4:BB4))/30*BI4 -> 0 | BN4: =IF(data.f2026[[#This Row],[أيام الغياب]]=1,data.f2026[[#This Row],[الحافز]]*20%,IF(data.f2026[[#This Row],[أيام الغياب]]=2,data.f2026[[#This Row],[الحافز]]*100%,IF(data.f2026[[#This Row],[أيام الغياب]]>2,data.f2026[[#This Row],[الحافز]]*100%,""))) ->  | BO4: =IF(data.f2026[[#This Row],[عدد أيام الأجازات]]<=4,data.f2026[[#This Row],[الحافز]]*0,IF(data.f2026[[#This Row],[عدد أيام الأجازات]]=5,data.f2026[[#This Row],[الحافز]]*20%,IF(data.f2026[[#This Row],[عدد أيام الأجازات]]=6,data.f2026[[#This Row],[الحافز]]*40%,IF(data.f2026[[#This Row],[عدد أيام الأجازات]]=7,data.f2026[[#This Row],[الحافز]]*50%,IF(data.f2026[[#This Row],[عدد أيام الأجازات]]>7,data.f2026[[#This Row],[الحافز]]*100%,""))))) -> 0 | BP4: =IF(data.f2026[[#This Row],[أيام أجازات بعد السنوية]]<=2,data.f2026[[#This Row],[الحافز]]*0,IF(data.f2026[[#This Row],[أيام أجازات بعد السنوية]]=3,data.f2026[[#This Row],[الحافز]]*30%,IF(data.f2026[[#This Row],[أيام أجازات بعد السنوية]]=4,data.f2026[[#This Row],[الحافز]]*40%,IF(data.f2026[[#This Row],[أيام أجازات بعد السنوية]]=5,data.f2026[[#This Row],[الحافز]]*50%,IF(data.f2026[[#This Row],[أيام أجازات بعد السنوية]]>5,data.f2026[[#This Row],[الحافز]]*100%,""))))) -> 0 | BQ4: 0 | BR4: 0 | BS4: 0 | BT4: 3 | BU4: 0 | BV4: 0 | BW4: 0 | BX4: 0 | BY4: 0 | BZ4: 0 | CA4: 0 | CC4: 0 | CD4: 0 | CE4: 0 | CF4: 0 | CG4: 3.49 | CH4: 3 | CI4: 0 | CK4: 0 | CL4: 0 | CN4: 0 | CO4: =ROUND(IF(G4=$CO$3,(BE4-AY4)*40%,0),2) -> 0 | CP4: =AY4 -> 433.7937 | CQ4: 0 | CS4: =ROUND(IF($D4=CS$3,$BE4-SUM(BJ4:CQ4,0),0),2) -> 0 | CT4: =ROUND(IF($D4=CT$3,$BE4-SUM(BJ4:CQ4,0),0),2) -> 0 | CU4: =ROUND(IF($G4=CU$3,$BE4-SUM(BK4:CR4,0),0),2) -> 0 | CV4: =ROUND(SUM(BJ4:CU4),2) -> 1235.28 | CW4: =BE4-CV4 -> 7341.74
B5: 201014 | C5: 14085 | D5: البنك الاهلى | E5: احمد سعد محمد على | F5: 0 | G5: أجازة سنة | H5: فنى | I5: الاولى | J5: الأولى | K5: فنى براد | L5: قطاع شئون الفنية | M5: 27303270103558 | N5: 201014احمد سعد محمد علىالاولىالأولىفنى برادقطاع شئون الفنية | O5: نعم | P5: 2090.04 | Q5: 2445.3468 | R5: 0 | S5: =ROUND(Q5*135%,2) -> 3301.22 | T5: =ROUND(Q5*15%,2) -> 366.8 | U5: 0 | V5: 0 | W5: 0 | Y5: 366.80202 | Z5: 300 | AB5: 0 | AD5: 0 | AE5: 0 | AF5: =ROUND(SUM(X5:AA5,AC5:AE5),2) -> 666.8 | AG5: 0 | AH5: 0 | AI5: 0 | AJ5: 427.7 | AK5: 0 | AL5: 41.78 | AM5: 74.51 | AN5: 95.67 | AO5: 136.55 | AP5: 146.04 | AQ5: 156.26 | AS5: 104.502 | AT5: 600 | AU5: 10 | AV5: =ROUND(SUM(AG5:AU5),2) -> 1793.01 | AW5: 10 | AX5: 0 | AY5: 440.0084 | AZ5: 0 | BB5: 0 | BC5: 9023.19 | BD5: =IF(BC5<7000,7000-BC5,0) -> 0 | BE5: =ROUND(SUM(AB5,AZ5:BD5),2) -> 9023.19 | BF5: 0 | BG5: 0 | BJ5: 797.6264893 | BK5: 34.5 | BL5: =(BE5-SUM($S5,AY5:BB5))/30*BH5 -> 0 | BM5: =(BE5-SUM($S5,AY5:BB5))/30*BI5 -> 0 | BN5: =IF(data.f2026[[#This Row],[أيام الغياب]]=1,data.f2026[[#This Row],[الحافز]]*20%,IF(data.f2026[[#This Row],[أيام الغياب]]=2,data.f2026[[#This Row],[الحافز]]*100%,IF(data.f2026[[#This Row],[أيام الغياب]]>2,data.f2026[[#This Row],[الحافز]]*100%,""))) ->  | BO5: =IF(data.f2026[[#This Row],[عدد أيام الأجازات]]<=4,data.f2026[[#This Row],[الحافز]]*0,IF(data.f2026[[#This Row],[عدد أيام الأجازات]]=5,data.f2026[[#This Row],[الحافز]]*20%,IF(data.f2026[[#This Row],[عدد أيام الأجازات]]=6,data.f2026[[#This Row],[الحافز]]*40%,IF(data.f2026[[#This Row],[عدد أيام الأجازات]]=7,data.f2026[[#This Row],[الحافز]]*50%,IF(data.f2026[[#This Row],[عدد أيام الأجازات]]>7,data.f2026[[#This Row],[الحافز]]*100%,""))))) -> 0 | BP5: =IF(data.f2026[[#This Row],[أيام أجازات بعد السنوية]]<=2,data.f2026[[#This Row],[الحافز]]*0,IF(data.f2026[[#This Row],[أيام أجازات بعد السنوية]]=3,data.f2026[[#This Row],[الحافز]]*30%,IF(data.f2026[[#This Row],[أيام أجازات بعد السنوية]]=4,data.f2026[[#This Row],[الحافز]]*40%,IF(data.f2026[[#This Row],[أيام أجازات بعد السنوية]]=5,data.f2026[[#This Row],[الحافز]]*50%,IF(data.f2026[[#This Row],[أيام أجازات بعد السنوية]]>5,data.f2026[[#This Row],[الحافز]]*100%,""))))) -> 0 | BQ5: 0 | BR5: 0 | BT5: 3 | BU5: 0 | BX5: 0 | CC5: 0 | CE5: 0 | CG5: 3.72 | CH5: 5 | CI5: 0 | CL5: 0 | CN5: 0 | CO5: =ROUND(IF(G5=$CO$3,(BE5-AY5)*40%,0),2) -> 0 | CP5: 440.0084 | CQ5: 0 | CS5: =ROUND(IF($D5=CS$3,$BE5-SUM(BJ5:CQ5,0),0),2) -> 0 | CT5: =ROUND(IF($D5=CT$3,$BE5-SUM(BJ5:CQ5,0),0),2) -> 0 | CU5: 0 | CV5: 1280.13 | CW5: 7743.06
B6: 201015 | C6: 11034 | D6: البنك الاهلى | E6: احمد محمد عبد الله حسن | F6: 0 | G6: دوام كامل | H6: فنى | I6: الثانية | J6: الثانية | K6: ميكانيكى | L6: الادارة العامة بالورش المركزية | M6: 26605180103896 | N6: 201015احمد محمد عبد الله حسنالثانيةالثانيةميكانيكى الادارة العامة بالورش المركزية | O6: نعم | P6: 2164.44 | Q6: 2532.3948 | R6: 0 | S6: 3418.73 | T6: 379.86 | U6: 0 | V6: 0 | W6: 0 | Y6: 379.85922 | Z6: 300 | AB6: 0 | AD6: 0 | AE6: 0 | AF6: 679.86 | AG6: 0 | AH6: 0 | AI6: 0 | AJ6: 1736.59 | AK6: 0 | AL6: 0 | AM6: 0 | AN6: 0 | AO6: 0 | AP6: 0 | AQ6: 0 | AS6: 108.222 | AT6: 0 | AU6: 0 | AV6: 1844.81 | AW6: 10 | AX6: 0 | AY6: 455.6716 | AZ6: 0 | BB6: 0 | BC6: 9321.33 | BD6: 0 | BE6: 9321.33 | BF6: 0 | BG6: 0 | BJ6: 824.6832129 | BK6: 17 | BL6: 0 | BM6: 0 | BN6: =IF(data.f2026[[#This Row],[أيام الغياب]]=1,data.f2026[[#This Row],[الحافز]]*20%,IF(data.f2026[[#This Row],[أيام الغياب]]=2,data.f2026[[#This Row],[الحافز]]*100%,IF(data.f2026[[#This Row],[أيام الغياب]]>2,data.f2026[[#This Row],[الحافز]]*100%,""))) ->  | BO6: =IF(data.f2026[[#This Row],[عدد أيام الأجازات]]<=4,data.f2026[[#This Row],[الحافز]]*0,IF(data.f2026[[#This Row],[عدد أيام الأجازات]]=5,data.f2026[[#This Row],[الحافز]]*20%,IF(data.f2026[[#This Row],[عدد أيام الأجازات]]=6,data.f2026[[#This Row],[الحافز]]*40%,IF(data.f2026[[#This Row],[عدد أيام الأجازات]]=7,data.f2026[[#This Row],[الحافز]]*50%,IF(data.f2026[[#This Row],[عدد أيام الأجازات]]>7,data.f2026[[#This Row],[الحافز]]*100%,""))))) -> 0 | BP6: =IF(data.f2026[[#This Row],[أيام أجازات بعد السنوية]]<=2,data.f2026[[#This Row],[الحافز]]*0,IF(data.f2026[[#This Row],[أيام أجازات بعد السنوية]]=3,data.f2026[[#This Row],[الحافز]]*30%,IF(data.f2026[[#This Row],[أيام أجازات بعد السنوية]]=4,data.f2026[[#This Row],[الحافز]]*40%,IF(data.f2026[[#This Row],[أيام أجازات بعد السنوية]]=5,data.f2026[[#This Row],[الحافز]]*50%,IF(data.f2026[[#This Row],[أيام أجازات بعد السنوية]]>5,data.f2026[[#This Row],[الحافز]]*100%,""))))) -> 0 | BQ6: 0 | BR6: 0 | BT6: 3 | BU6: 0 | BX6: 0 | CC6: 0 | CE6: 0 | CG6: 3.68 | CH6: 3 | CI6: 0 | CL6: 0 | CN6: 0 | CO6: 0 | CP6: 455.6716 | CQ6: 0 | CS6: 0 | CT6: 0 | CU6: 0 | CV6: 1307.03 | CW6: 8014.3
B7: 201016 | C7: 29999 | D7: مرضي | E7: حسام صادق عبدالعزيز | F7: مروه | G7: مرضى | H7: فنى | I7: الثالثة | J7: الثالثة | K7: فنى لحام | L7: الاميرية | M7: 28111180101596 | N7: 201016حسام صادق عبدالعزيزمروهالثالثةالثالثةفنى لحام الاميرية | O7: نعم | P7: 642.66 | Q7: 751.9122 | R7: 0 | S7: 1015.08 | T7: 112.79 | U7: 0 | V7: 0 | W7: 0 | Y7: 112.78683 | Z7: 300 | AB7: 0 | AD7: 0 | AE7: 0 | AF7: 412.79 | AG7: 0 | AH7: 0 | AI7: 0 | AJ7: 1323.85 | AK7: 0 | AL7: 0 | AM7: 0 | AN7: 0 | AO7: 0 | AP7: 0 | AQ7: 0 | AS7: 85.734 | AT7: 0 | AU7: 6 | AV7: 1415.58 | AW7: 10 | AX7: 0 | AY7: 135.2968 | AZ7: 0 | BB7: 0 | BC7: 3853.45 | BD7: 3146.55 | BE7: 7000 | BF7: 0 | BG7: 0 | BJ7: 513.1632129 | BL7: 0 | BM7: 0 | BN7: =IF(data.f2026[[#This Row],[أيام الغياب]]=1,data.f2026[[#This Row],[الحافز]]*20%,IF(data.f2026[[#This Row],[أيام الغياب]]=2,data.f2026[[#This Row],[الحافز]]*100%,IF(data.f2026[[#This Row],[أيام الغياب]]>2,data.f2026[[#This Row],[الحافز]]*100%,""))) ->  | BO7: =IF(data.f2026[[#This Row],[عدد أيام الأجازات]]<=4,data.f2026[[#This Row],[الحافز]]*0,IF(data.f2026[[#This Row],[عدد أيام الأجازات]]=5,data.f2026[[#This Row],[الحافز]]*20%,IF(data.f2026[[#This Row],[عدد أيام الأجازات]]=6,data.f2026[[#This Row],[الحافز]]*40%,IF(data.f2026[[#This Row],[عدد أيام الأجازات]]=7,data.f2026[[#This Row],[الحافز]]*50%,IF(data.f2026[[#This Row],[عدد أيام الأجازات]]>7,data.f2026[[#This Row],[الحافز]]*100%,""))))) -> 0 | BP7: =IF(data.f2026[[#This Row],[أيام أجازات بعد السنوية]]<=2,data.f2026[[#This Row],[الحافز]]*0,IF(data.f2026[[#This Row],[أيام أجازات بعد السنوية]]=3,data.f2026[[#This Row],[الحافز]]*30%,IF(data.f2026[[#This Row],[أيام أجازات بعد السنوية]]=4,data.f2026[[#This Row],[الحافز]]*40%,IF(data.f2026[[#This Row],[أيام أجازات بعد السنوية]]=5,data.f2026[[#This Row],[الحافز]]*50%,IF(data.f2026[[#This Row],[أيام أجازات بعد السنوية]]>5,data.f2026[[#This Row],[الحافز]]*100%,""))))) -> 0 | BQ7: 0 | BR7: 0 | BT7: 3 | BU7: 0 | BX7: 0 | CC7: 0 | CE7: 0 | CG7: 0 | CH7: 3 | CI7: 0 | CL7: 0 | CN7: 0 | CO7: 0 | CP7: 135.2968 | CQ7: 0 | CS7: 6345.54 | CT7: 0 | CU7: 0 | CV7: 7000 | CW7: 0
B8: 201017 | C8: 11070 | D8: البنك الاهلى | E8: رضا حنفى ابو سريع | F8: 0 | G8: دوام كامل | H8: فنى | I8: الخامسة | J8: الخامسة | K8: حرفى سمكرى | L8: الورش المركزية | M8: 28706070101276 | N8: 201017رضا حنفى ابو سريع الخامسةالخامسةحرفى سمكرىالورش المركزية | O8: نعم | P8: 919.47 | Q8: 1075.7799 | R8: 0 | S8: 1452.3 | T8: 161.37 | U8: 0 | V8: 0 | W8: 0 | Y8: 161.366985 | Z8: 300 | AB8: 0 | AD8: 0 | AE8: 0 | AF8: 461.37 | AG8: 0 | AH8: 0 | AI8: 0 | AJ8: 362.62 | AK8: 0 | AL8: 32.11 | AM8: 32.78 | AN8: 42.09 | AO8: 60.04 | AP8: 68.78 | AQ8: 89.85 | AS8: 58.053 | AT8: 600 | AU8: 10 | AV8: 1356.32 | AW8: 10 | AX8: 0 | AY8: 193.5726 | AZ8: 0 | BB8: 0 | BC8: 4710.71 | BD8: 2289.29 | BE8: 7000 | BF8: 0 | BG8: 0 | BJ8: 523.1842236 | BK8: 0 | BL8: 0 | BM8: 0 | BN8: =IF(data.f2026[[#This Row],[أيام الغياب]]=1,data.f2026[[#This Row],[الحافز]]*20%,IF(data.f2026[[#This Row],[أيام الغياب]]=2,data.f2026[[#This Row],[الحافز]]*100%,IF(data.f2026[[#This Row],[أيام الغياب]]>2,data.f2026[[#This Row],[الحافز]]*100%,""))) ->  | BO8: =IF(data.f2026[[#This Row],[عدد أيام الأجازات]]<=4,data.f2026[[#This Row],[الحافز]]*0,IF(data.f2026[[#This Row],[عدد أيام الأجازات]]=5,data.f2026[[#This Row],[الحافز]]*20%,IF(data.f2026[[#This Row],[عدد أيام الأجازات]]=6,data.f2026[[#This Row],[الحافز]]*40%,IF(data.f2026[[#This Row],[عدد أيام الأجازات]]=7,data.f2026[[#This Row],[الحافز]]*50%,IF(data.f2026[[#This Row],[عدد أيام الأجازات]]>7,data.f2026[[#This Row],[الحافز]]*100%,""))))) -> 0 | BP8: =IF(data.f2026[[#This Row],[أيام أجازات بعد السنوية]]<=2,data.f2026[[#This Row],[الحافز]]*0,IF(data.f2026[[#This Row],[أيام أجازات بعد السنوية]]=3,data.f2026[[#This Row],[الحافز]]*30%,IF(data.f2026[[#This Row],[أيام أجازات بعد السنوية]]=4,data.f2026[[#This Row],[الحافز]]*40%,IF(data.f2026[[#This Row],[أيام أجازات بعد السنوية]]=5,data.f2026[[#This Row],[الحافز]]*50%,IF(data.f2026[[#This Row],[أيام أجازات بعد السنوية]]>5,data.f2026[[#This Row],[الحافز]]*100%,""))))) -> 0 | BQ8: 0 | BR8: 0 | BT8: 3 | BU8: 0 | BX8: 0 | CC8: 0 | CE8: 0 | CG8: 2.63 | CH8: 3 | CI8: 0 | CL8: 0 | CN8: 0 | CO8: 0 | CP8: 193.5726 | CQ8: 0 | CS8: 0 | CT8: 0 | CU8: 0 | CV8: 725.39 | CW8: 6274.61
B9: 201018 | C9: 4416 | D9: بنك مصر 1 | E9: هانى على على على حجازى | F9: 0 | G9: دوام كامل | H9: فنى | I9: الخامسة | J9: الخامسة | K9: حرفى سمكرى | L9: الورش المركزية | M9: 27803170100775 | N9: 201018هانى على على على حجازىالخامسةالخامسةحرفى سمكرىالورش المركزية | O9: نعم | P9: 735.53 | Q9: 860.5701 | R9: 0 | S9: 1161.77 | T9: 129.09 | U9: 0 | V9: 0 | W9: 0 | Y9: 129.085515 | Z9: 300 | AB9: 0 | AD9: 0 | AE9: 0 | AF9: 429.09 | AG9: 0 | AH9: 0 | AI9: 0 | AJ9: 1287.4 | AK9: 0 | AL9: 0 | AM9: 0 | AN9: 0 | AO9: 0 | AP9: 0 | AQ9: 0 | AS9: 76.447 | AT9: 0 | AU9: 10 | AV9: 1373.85 | AW9: 10 | AX9: 0 | AY9: 154.8484 | AZ9: 0 | BB9: 0 | BC9: 4119.22 | BD9: 2880.78 | BE9: 7000 | BF9: 0 | BG9: 0 | BJ9: 516.6425 | BK9: 0 | BL9: 0 | BM9: 0 | BN9: =IF(data.f2026[[#This Row],[أيام الغياب]]=1,data.f2026[[#This Row],[الحافز]]*20%,IF(data.f2026[[#This Row],[أيام الغياب]]=2,data.f2026[[#This Row],[الحافز]]*100%,IF(data.f2026[[#This Row],[أيام الغياب]]>2,data.f2026[[#This Row],[الحافز]]*100%,""))) ->  | BO9: =IF(data.f2026[[#This Row],[عدد أيام الأجازات]]<=4,data.f2026[[#This Row],[الحافز]]*0,IF(data.f2026[[#This Row],[عدد أيام الأجازات]]=5,data.f2026[[#This Row],[الحافز]]*20%,IF(data.f2026[[#This Row],[عدد أيام الأجازات]]=6,data.f2026[[#This Row],[الحافز]]*40%,IF(data.f2026[[#This Row],[عدد أيام الأجازات]]=7,data.f2026[[#This Row],[الحافز]]*50%,IF(data.f2026[[#This Row],[عدد أيام الأجازات]]>7,data.f2026[[#This Row],[الحافز]]*100%,""))))) -> 0 | BP9: =IF(data.f2026[[#This Row],[أيام أجازات بعد السنوية]]<=2,data.f2026[[#This Row],[الحافز]]*0,IF(data.f2026[[#This Row],[أيام أجازات بعد السنوية]]=3,data.f2026[[#This Row],[الحافز]]*30%,IF(data.f2026[[#This Row],[أيام أجازات بعد السنوية]]=4,data.f2026[[#This Row],[الحافز]]*40%,IF(data.f2026[[#This Row],[أيام أجازات بعد السنوية]]=5,data.f2026[[#This Row],[الحافز]]*50%,IF(data.f2026[[#This Row],[أيام أجازات بعد السنوية]]>5,data.f2026[[#This Row],[الحافز]]*100%,""))))) -> 0 | BQ9: 0 | BR9: 0 | BT9: 3 | BU9: 0 | BX9: 0 | CC9: 0 | CE9: 0 | CG9: 2.68 | CH9: 3 | CI9: 0 | CL9: 0 | CN9: 0 | CO9: 0 | CP9: 154.8484 | CQ9: 0 | CS9: 0 | CT9: 0 | CU9: 0 | CV9: 680.17 | CW9: 6319.83
B10: 201019 | C10: 3556 | D10: بنك مصر 1 | E10: عاطف سيد عباس عبده | F10: 0 | G10: دوام كامل | H10: فنى | I10: الرابعة | M10: 27401250100694 | N10: 201019عاطف سيد عباس عبدهالرابعة | P10: 1312.46 | Q10: 1535.58 | R10: 0 | S10: 2073.03 | T10: 230.34 | U10: 0 | V10: 0 | W10: 0 | Y10: 230.337 | Z10: 300 | AB10: 0 | AD10: 0 | AE10: 0 | AF10: 530.34 | AG10: 0 | AH10: 0 | AI10: 0 | AJ10: 360.28 | AK10: 0 | AL10: 26.24 | AM10: 46.79 | AN10: 60.08 | AO10: 85.71 | AP10: 91.71 | AQ10: 98.13 | AS10: 65.623 | AT10: 600 | AU10: 10 | AV10: 1444.56 | AW10: 10 | AX10: 0 | AY10: 276.3074 | AZ10: 0 | BB10: 0 | BC10: 6100.16 | BD10: 899.84 | BE10: 7000 | BF10: 0 | BG10: 0 | BJ10: 538.9977979 | BK10: 0 | BL10: 0 | BM10: 0 | BN10: =IF(data.f2026[[#This Row],[أيام الغياب]]=1,data.f2026[[#This Row],[الحافز]]*20%,IF(data.f2026[[#This Row],[أيام الغياب]]=2,data.f2026[[#This Row],[الحافز]]*100%,IF(data.f2026[[#This Row],[أيام الغياب]]>2,data.f2026[[#This Row],[الحافز]]*100%,""))) ->  | BO10: =IF(data.f2026[[#This Row],[عدد أيام الأجازات]]<=4,data.f2026[[#This Row],[الحافز]]*0,IF(data.f2026[[#This Row],[عدد أيام الأجازات]]=5,data.f2026[[#This Row],[الحافز]]*20%,IF(data.f2026[[#This Row],[عدد أيام الأجازات]]=6,data.f2026[[#This Row],[الحافز]]*40%,IF(data.f2026[[#This Row],[عدد أيام الأجازات]]=7,data.f2026[[#This Row],[الحافز]]*50%,IF(data.f2026[[#This Row],[عدد أيام الأجازات]]>7,data.f2026[[#This Row],[الحافز]]*100%,""))))) -> 0 | BP10: =IF(data.f2026[[#This Row],[أيام أجازات بعد السنوية]]<=2,data.f2026[[#This Row],[الحافز]]*0,IF(data.f2026[[#This Row],[أيام أجازات بعد السنوية]]=3,data.f2026[[#This Row],[الحافز]]*30%,IF(data.f2026[[#This Row],[أيام أجازات بعد السنوية]]=4,data.f2026[[#This Row],[الحافز]]*40%,IF(data.f2026[[#This Row],[أيام أجازات بعد السنوية]]=5,data.f2026[[#This Row],[الحافز]]*50%,IF(data.f2026[[#This Row],[أيام أجازات بعد السنوية]]>5,data.f2026[[#This Row],[الحافز]]*100%,""))))) -> 0 | BQ10: 0 | BR10: 0 | BT10: 3 | BU10: 0 | BX10: 0 | CC10: 0 | CE10: 0 | CG10: 2.31 | CH10: 3 | CI10: 0 | CL10: 0 | CN10: 0 | CO10: 0 | CP10: 276.3074 | CQ10: 0 | CS10: 0 | CT10: 0 | CU10: 0 | CV10: 823.62 | CW10: 6176.38
B11: 201020 | C11: 29132 | D11: البنك الاهلى | E11: صابر حسان على حسان | F11: 0 | G11: دوام كامل | H11: فنى | I11: الخامسة | J11: الخامسة | K11: حرفى براد | L11: الورش المركزية | M11: 27903041401071 | N11: 201020صابر حسان على حسانالخامسةالخامسةحرفى برادالورش المركزية | O11: نعم | P11: 919.47 | Q11: 1075.7799 | R11: 0 | S11: 1452.3 | T11: 161.37 | U11: 0 | V11: 0 | W11: 0 | Y11: 161.366985 | Z11: 300 | AB11: 0 | AD11: 0 | AE11: 0 | AF11: 461.37 | AG11: 0 | AH11: 0 | AI11: 0 | AJ11: 332.32 | AK11: 0 | AL11: 32.11 | AM11: 32.78 | AN11: 42.09 | AO11: 60.04 | AP11: 68.78 | AQ11: 107.91 | AS11: 58.053 | AT11: 600 | AU11: 10 | AV11: 1344.08 | AW11: 10 | AX11: 0 | AY11: 193.5726 | AZ11: 0 | BB11: 0 | BC11: 4698.47 | BD11: 2301.53 | BE11: 7000 | BF11: 0 | BG11: 0 | BJ11: 523.4020215 | BK11: 0 | BL11: 0 | BM11: 0 | BN11: =IF(data.f2026[[#This Row],[أيام الغياب]]=1,data.f2026[[#This Row],[الحافز]]*20%,IF(data.f2026[[#This Row],[أيام الغياب]]=2,data.f2026[[#This Row],[الحافز]]*100%,IF(data.f2026[[#This Row],[أيام الغياب]]>2,data.f2026[[#This Row],[الحافز]]*100%,""))) ->  | BO11: =IF(data.f2026[[#This Row],[عدد أيام الأجازات]]<=4,data.f2026[[#This Row],[الحافز]]*0,IF(data.f2026[[#This Row],[عدد أيام الأجازات]]=5,data.f2026[[#This Row],[الحافز]]*20%,IF(data.f2026[[#This Row],[عدد أيام الأجازات]]=6,data.f2026[[#This Row],[الحافز]]*40%,IF(data.f2026[[#This Row],[عدد أيام الأجازات]]=7,data.f2026[[#This Row],[الحافز]]*50%,IF(data.f2026[[#This Row],[عدد أيام الأجازات]]>7,data.f2026[[#This Row],[الحافز]]*100%,""))))) -> 0 | BP11: =IF(data.f2026[[#This Row],[أيام أجازات بعد السنوية]]<=2,data.f2026[[#This Row],[الحافز]]*0,IF(data.f2026[[#This Row],[أيام أجازات بعد السنوية]]=3,data.f2026[[#This Row],[الحافز]]*30%,IF(data.f2026[[#This Row],[أيام أجازات بعد السنوية]]=4,data.f2026[[#This Row],[الحافز]]*40%,IF(data.f2026[[#This Row],[أيام أجازات بعد السنوية]]=5,data.f2026[[#This Row],[الحافز]]*50%,IF(data.f2026[[#This Row],[أيام أجازات بعد السنوية]]>5,data.f2026[[#This Row],[الحافز]]*100%,""))))) -> 0 | BQ11: 0 | BR11: 0 | BT11: 3 | BU11: 0 | BX11: 0 | CC11: 0 | CE11: 0 | CG11: 2.63 | CH11: 3 | CI11: 0 | CL11: 0 | CN11: 0 | CO11: 0 | CP11: 193.5726 | CQ11: 0 | CS11: 0 | CT11: 0 | CU11: 0 | CV11: 725.6 | CW11: 6274.4
B12: 201021 | C12: 1161 | D12: بنك مصر 2 | E12: مجدي السيد حميدة عبد المجيد | F12: 0 | G12: دوام كامل | H12: ادارى | I12: الثالثة | J12: الثالثة | K12: حرفى ميكانيكى | L12: فرع الزقازيق | M12: 27006050104079 | N12: 201021مجدي السيد حميدة عبد المجيدالثالثةالثالثةحرفى ميكانيكى فرع الزقازيق | O12: نعم | P12: 1053.89 | Q12: 1233.0513 | R12: 0 | S12: 1664.62 | T12: 184.96 | U12: 0 | V12: 0 | W12: 0 | Y12: 0 | Z12: 300 | AB12: 0 | AD12: 0 | AE12: 0 | AF12: 300 | AG12: 37.42 | AH12: 41.54 | AI12: 65 | AJ12: 0 | AK12: 200 | AL12: 25.84 | AM12: 37.57 | AN12: 48.24 | AO12: 68.82 | AP12: 73.64 | AQ12: 81.05 | AS12: 52.6945 | AT12: 600 | AU12: 8 | AV12: 1339.81 | AW12: 10 | AX12: 0 | AY12: 222.48 | AZ12: 0 | BB12: 0 | BC12: 4954.92 | BD12: 2045.08 | BE12: 7000 | BF12: 0 | BG12: 0 | BJ12: 570.5975 | BK12: 0 | BL12: 0 | BM12: 0 | BN12: =IF(data.f2026[[#This Row],[أيام الغياب]]=1,data.f2026[[#This Row],[الحافز]]*20%,IF(data.f2026[[#This Row],[أيام الغياب]]=2,data.f2026[[#This Row],[الحافز]]*100%,IF(data.f2026[[#This Row],[أيام الغياب]]>2,data.f2026[[#This Row],[الحافز]]*100%,""))) ->  | BO12: =IF(data.f2026[[#This Row],[عدد أيام الأجازات]]<=4,data.f2026[[#This Row],[الحافز]]*0,IF(data.f2026[[#This Row],[عدد أيام الأجازات]]=5,data.f2026[[#This Row],[الحافز]]*20%,IF(data.f2026[[#This Row],[عدد أيام الأجازات]]=6,data.f2026[[#This Row],[الحافز]]*40%,IF(data.f2026[[#This Row],[عدد أيام الأجازات]]=7,data.f2026[[#This Row],[الحافز]]*50%,IF(data.f2026[[#This Row],[عدد أيام الأجازات]]>7,data.f2026[[#This Row],[الحافز]]*100%,""))))) -> 0 | BP12: =IF(data.f2026[[#This Row],[أيام أجازات بعد السنوية]]<=2,data.f2026[[#This Row],[الحافز]]*0,IF(data.f2026[[#This Row],[أيام أجازات بعد السنوية]]=3,data.f2026[[#This Row],[الحافز]]*30%,IF(data.f2026[[#This Row],[أيام أجازات بعد السنوية]]=4,data.f2026[[#This Row],[الحافز]]*40%,IF(data.f2026[[#This Row],[أيام أجازات بعد السنوية]]=5,data.f2026[[#This Row],[الحافز]]*50%,IF(data.f2026[[#This Row],[أيام أجازات بعد السنوية]]>5,data.f2026[[#This Row],[الحافز]]*100%,""))))) -> 0 | BQ12: 0 | BR12: 0 | BT12: 3 | BU12: 0 | BX12: 0 | CC12: 0 | CE12: 0 | CG12: 2.66 | CH12: 3 | CI12: 0 | CL12: 0 | CN12: 0 | CO12: 0 | CP12: 222.48 | CQ12: 0 | CS12: 0 | CT12: 0 | CU12: 0 | CV12: 801.74 | CW12: 6198.26
B13: 201031 | C13: 22251 | D13: بنك مصر 1 | E13: احمد جابر اسماعيل حسن | F13: 0 | G13: دوام كامل | H13: فنى | I13: الرابعة | J13: الرابعة | K13: حرفى نجار | L13: الإدارة العامة | M13: 27301220104879 | N13: 201031احمد جابر اسماعيل حسنالرابعةالرابعةحرفى نجارالإدارة العامة | O13: نعم | P13: 1301.289 | Q13: 1522.50813 | R13: 0 | S13: 2055.39 | T13: 228.38 | U13: 0 | V13: 0 | W13: 0 | Y13: 228.3762195 | Z13: 300 | AB13: 0 | AD13: 0 | AE13: 0 | AF13: 528.38 | AG13: 45.56962 | AH13: 50.86204 | AI13: 65 | AJ13: 0 | AK13: 200 | AL13: 26.01311 | AM13: 46.39005 | AN13: 59.56483 | AO13: 84.97916 | AP13: 90.9277 | AQ13: 97.29265 | AS13: 65.06446 | AT13: 600 | AU13: 8 | AV13: 1439.66 | AW13: 10 | AX13: 0 | AY13: 273.9556 | AZ13: 0 | BB13: 0 | BC13: 6058.27 | BD13: 941.73 | BE13: 7000 | BF13: 0 | BG13: 0 | BJ13: 542.0667871 | BK13: 0 | BL13: 0 | BM13: 0 | BN13: =IF(data.f2026[[#This Row],[أيام الغياب]]=1,data.f2026[[#This Row],[الحافز]]*20%,IF(data.f2026[[#This Row],[أيام الغياب]]=2,data.f2026[[#This Row],[الحافز]]*100%,IF(data.f2026[[#This Row],[أيام الغياب]]>2,data.f2026[[#This Row],[الحافز]]*100%,""))) ->  | BO13: =IF(data.f2026[[#This Row],[عدد أيام الأجازات]]<=4,data.f2026[[#This Row],[الحافز]]*0,IF(data.f2026[[#This Row],[عدد أيام الأجازات]]=5,data.f2026[[#This Row],[الحافز]]*20%,IF(data.f2026[[#This Row],[عدد أيام الأجازات]]=6,data.f2026[[#This Row],[الحافز]]*40%,IF(data.f2026[[#This Row],[عدد أيام الأجازات]]=7,data.f2026[[#This Row],[الحافز]]*50%,IF(data.f2026[[#This Row],[عدد أيام الأجازات]]>7,data.f2026[[#This Row],[الحافز]]*100%,""))))) -> 0 | BP13: =IF(data.f2026[[#This Row],[أيام أجازات بعد السنوية]]<=2,data.f2026[[#This Row],[الحافز]]*0,IF(data.f2026[[#This Row],[أيام أجازات بعد السنوية]]=3,data.f2026[[#This Row],[الحافز]]*30%,IF(data.f2026[[#This Row],[أيام أجازات بعد السنوية]]=4,data.f2026[[#This Row],[الحافز]]*40%,IF(data.f2026[[#This Row],[أيام أجازات بعد السنوية]]=5,data.f2026[[#This Row],[الحافز]]*50%,IF(data.f2026[[#This Row],[أيام أجازات بعد السنوية]]>5,data.f2026[[#This Row],[الحافز]]*100%,""))))) -> 0 | BQ13: 0 | BR13: 7.5 | BT13: 3 | BU13: 0 | BX13: 0 | CC13: 0 | CE13: 0 | CG13: 3.22 | CH13: 5 | CI13: 0 | CL13: 0 | CN13: 0 | CO13: 0 | CP13: 273.9556 | CQ13: 0 | CS13: 0 | CT13: 0 | CU13: 0 | CV13: 834.74 | CW13: 6165.26
B14: 201040 | C14: 44063 | D14: بنك مصر 1 | E14: حمدى صبحى عبد القادر | F14: 0 | G14: دوام كامل | H14: فنى | I14: عقد مؤقت | M14: 28409170104839 | N14: 201040حمدى صبحى عبد القادرعقد مؤقت | P14: 410.26 | Q14: 410.26 | R14: 0 | S14: 553.85 | T14: 61.54 | U14: 0 | V14: 0 | W14: 0 | Y14: 61.539 | Z14: 300 | AB14: 0 | AD14: 0 | AE14: 0 | AF14: 361.54 | AG14: 0 | AH14: 0 | AI14: 0 | AJ14: 934.08 | AK14: 0 | AL14: 0 | AM14: 0 | AN14: 0 | AO14: 0 | AP14: 0 | AQ14: 0 | AS14: 108.974 | AT14: 0 | AU14: 0 | AV14: 1043.05 | AW14: 10 | AX14: 0 | AY14: 86.37053 | AZ14: 0 | BB14: 0 | BC14: 2526.61 | BD14: 4473.39 | BE14: 7000 | BF14: 0 | BG14: 0 | BJ14: 500.4076172 | BK14: 0 | BL14: 0 | BM14: 0 | BN14: =IF(data.f2026[[#This Row],[أيام الغياب]]=1,data.f2026[[#This Row],[الحافز]]*20%,IF(data.f2026[[#This Row],[أيام الغياب]]=2,data.f2026[[#This Row],[الحافز]]*100%,IF(data.f2026[[#This Row],[أيام الغياب]]>2,data.f2026[[#This Row],[الحافز]]*100%,""))) ->  | BO14: =IF(data.f2026[[#This Row],[عدد أيام الأجازات]]<=4,data.f2026[[#This Row],[الحافز]]*0,IF(data.f2026[[#This Row],[عدد أيام الأجازات]]=5,data.f2026[[#This Row],[الحافز]]*20%,IF(data.f2026[[#This Row],[عدد أيام الأجازات]]=6,data.f2026[[#This Row],[الحافز]]*40%,IF(data.f2026[[#This Row],[عدد أيام الأجازات]]=7,data.f2026[[#This Row],[الحافز]]*50%,IF(data.f2026[[#This Row],[عدد أيام الأجازات]]>7,data.f2026[[#This Row],[الحافز]]*100%,""))))) -> 0 | BP14: =IF(data.f2026[[#This Row],[أيام أجازات بعد السنوية]]<=2,data.f2026[[#This Row],[الحافز]]*0,IF(data.f2026[[#This Row],[أيام أجازات بعد السنوية]]=3,data.f2026[[#This Row],[الحافز]]*30%,IF(data.f2026[[#This Row],[أيام أجازات بعد السنوية]]=4,data.f2026[[#This Row],[الحافز]]*40%,IF(data.f2026[[#This Row],[أيام أجازات بعد السنوية]]=5,data.f2026[[#This Row],[الحافز]]*50%,IF(data.f2026[[#This Row],[أيام أجازات بعد السنوية]]>5,data.f2026[[#This Row],[الحافز]]*100%,""))))) -> 0 | BQ14: 0 | BR14: 0 | BT14: 3 | BU14: 1700 | BX14: 0 | CC14: 0 | CE14: 0 | CG14: 1.95 | CH14: 3 | CI14: 0 | CL14: 0 | CN14: 0 | CO14: 0 | CP14: 86.37053 | CQ14: 0 | CS14: 0 | CT14: 0 | CU14: 0 | CV14: 2294.73 | CW14: 4705.27
B15: 201041 | C15: 3939 | D15: بنك مصر 1 | E15: هاشم محمود عبدالله منصور | F15: 0 | G15: دوام كامل | H15: فنى | I15: الخامسة | M15: 27203140103896 | N15: 201041هاشم محمود عبدالله منصورالخامسة | P15: 735.53 | Q15: 860.57 | R15: 0 | S15: 1161.77 | T15: 129.09 | U15: 0 | V15: 0 | W15: 0 | Y15: 129.0855 | Z15: 300 | AB15: 0 | AD15: 0 | AE15: 0 | AF15: 429.09 | AG15: 0 | AH15: 0 | AI15: 0 | AJ15: 1281.41 | AK15: 0 | AL15: 0 | AM15: 0 | AN15: 0 | AO15: 0 | AP15: 0 | AQ15: 0 | AS15: 76.447 | AT15: 0 | AU15: 0 | AV15: 1357.86 | AW15: 10 | AX15: 0 | AY15: 154.8484 | AZ15: 0 | BB15: 0 | BC15: 4103.23 | BD15: 2896.77 | BE15: 7000 | BF15: 0 | BG15: 0 | BJ15: 516.5688086 | BK15: 0 | BL15: 0 | BM15: 0 | BN15: =IF(data.f2026[[#This Row],[أيام الغياب]]=1,data.f2026[[#This Row],[الحافز]]*20%,IF(data.f2026[[#This Row],[أيام الغياب]]=2,data.f2026[[#This Row],[الحافز]]*100%,IF(data.f2026[[#This Row],[أيام الغياب]]>2,data.f2026[[#This Row],[الحافز]]*100%,""))) ->  | BO15: =IF(data.f2026[[#This Row],[عدد أيام الأجازات]]<=4,data.f2026[[#This Row],[الحافز]]*0,IF(data.f2026[[#This Row],[عدد أيام الأجازات]]=5,data.f2026[[#This Row],[الحافز]]*20%,IF(data.f2026[[#This Row],[عدد أيام الأجازات]]=6,data.f2026[[#This Row],[الحافز]]*40%,IF(data.f2026[[#This Row],[عدد أيام الأجازات]]=7,data.f2026[[#This Row],[الحافز]]*50%,IF(data.f2026[[#This Row],[عدد أيام الأجازات]]>7,data.f2026[[#This Row],[الحافز]]*100%,""))))) -> 0 | BP15: =IF(data.f2026[[#This Row],[أيام أجازات بعد السنوية]]<=2,data.f2026[[#This Row],[الحافز]]*0,IF(data.f2026[[#This Row],[أيام أجازات بعد السنوية]]=3,data.f2026[[#This Row],[الحافز]]*30%,IF(data.f2026[[#This Row],[أيام أجازات بعد السنوية]]=4,data.f2026[[#This Row],[الحافز]]*40%,IF(data.f2026[[#This Row],[أيام أجازات بعد السنوية]]=5,data.f2026[[#This Row],[الحافز]]*50%,IF(data.f2026[[#This Row],[أيام أجازات بعد السنوية]]>5,data.f2026[[#This Row],[الحافز]]*100%,""))))) -> 0 | BQ15: 0 | BR15: 0 | BT15: 3 | BU15: 0 | BX15: 0 | BY15: 0 | CC15: 0 | CE15: 0 | CG15: 2.67 | CH15: 3 | CI15: 0 | CL15: 0 | CN15: 0 | CO15: 0 | CP15: 154.8484 | CQ15: 0 | CS15: 0 | CT15: 0 | CU15: 0 | CV15: 680.09 | CW15: 6319.91
B16: 201042 | C16: 1109 | D16: مرضي | E16: هشام إبراهيم عبد الفتاح | F16: مروه | G16: مرضي | H16: فنى | I16: الثانية | J16: الثانية | K16: نقاش دوكو | L16: الامن | M16: 27205070100552 | N16: 201042هشام إبراهيم عبد الفتاحمروهالثانيةالثانيةنقاش دوكوالامن | O16: نعم | P16: 1879.01 | Q16: 2198.4417 | R16: 0 | S16: 2967.9 | T16: 329.77 | U16: 0 | V16: 0 | W16: 0 | Y16: 329.766255 | Z16: 300 | AB16: 0 | AD16: 0 | AE16: 0 | AF16: 629.77 | AG16: 62.21 | AH16: 69.28 | AI16: 83.14 | AJ16: 0 | AK16: 190 | AL16: 37.56 | AM16: 66.99 | AN16: 86.01 | AO16: 122.71 | AP16: 131.3 | AQ16: 140.49 | AS16: 93.9505 | AT16: 600 | AU16: 10 | AV16: 1693.64 | AW16: 10 | AX16: 0 | AY16: 395.5811 | AZ16: 0 | BB16: 0 | BC16: 8225.1 | BD16: 0 | BE16: 8225.1 | BF16: 0 | BG16: 0 | BJ16: 718.752085 | BK16: 0 | BL16: 0 | BM16: 0 | BN16: =IF(data.f2026[[#This Row],[أيام الغياب]]=1,data.f2026[[#This Row],[الحافز]]*20%,IF(data.f2026[[#This Row],[أيام الغياب]]=2,data.f2026[[#This Row],[الحافز]]*100%,IF(data.f2026[[#This Row],[أيام الغياب]]>2,data.f2026[[#This Row],[الحافز]]*100%,""))) ->  | BO16: =IF(data.f2026[[#This Row],[عدد أيام الأجازات]]<=4,data.f2026[[#This Row],[الحافز]]*0,IF(data.f2026[[#This Row],[عدد أيام الأجازات]]=5,data.f2026[[#This Row],[الحافز]]*20%,IF(data.f2026[[#This Row],[عدد أيام الأجازات]]=6,data.f2026[[#This Row],[الحافز]]*40%,IF(data.f2026[[#This Row],[عدد أيام الأجازات]]=7,data.f2026[[#This Row],[الحافز]]*50%,IF(data.f2026[[#This Row],[عدد أيام الأجازات]]>7,data.f2026[[#This Row],[الحافز]]*100%,""))))) -> 0 | BP16: =IF(data.f2026[[#This Row],[أيام أجازات بعد السنوية]]<=2,data.f2026[[#This Row],[الحافز]]*0,IF(data.f2026[[#This Row],[أيام أجازات بعد السنوية]]=3,data.f2026[[#This Row],[الحافز]]*30%,IF(data.f2026[[#This Row],[أيام أجازات بعد السنوية]]=4,data.f2026[[#This Row],[الحافز]]*40%,IF(data.f2026[[#This Row],[أيام أجازات بعد السنوية]]=5,data.f2026[[#This Row],[الحافز]]*50%,IF(data.f2026[[#This Row],[أيام أجازات بعد السنوية]]>5,data.f2026[[#This Row],[الحافز]]*100%,""))))) -> 0 | BQ16: 0 | BR16: 0 | BT16: 3 | BU16: 0 | BX16: 0 | CC16: 0 | CE16: 0 | CG16: 3.14 | CH16: 3 | CI16: 0 | CL16: 0 | CN16: 0 | CO16: 0 | CP16: 395.5811 | CQ16: 0 | CS16: 7101.63 | CT16: 0 | CU16: 0 | CV16: 8225.1 | CW16: 0
B17: 202001 | C17: 25178 | D17: بنك مصر 1 | E17: مرسي محرم محمد عثمان | F17: 0 | G17: دوام كامل | H17: فنى | I17: الاولى | J17: الأولى | K17: حرفى لحام | L17: فرع الاميرية | M17: 26605282400054 | N17: 202001مرسي محرم محمد عثمانالاولىالأولىحرفى لحام فرع الاميرية | O17: نعم | P17: 2380.719 | Q17: 2785.44123 | R17: 0 | S17: 3760.35 | T17: 417.82 | U17: 0 | V17: 0 | W17: 0 | Y17: 417.8161845 | Z17: 300 | AB17: 0 | AD17: 0 | AE17: 0 | AF17: 717.82 | AG17: 83.04 | AH17: 92.73 | AI17: 110.85 | AJ17: 0 | AK17: 190 | AL17: 47.59121 | AM17: 84.87099 | AN17: 108.9744 | AO17: 155.4701 | AP17: 166.353 | AQ17: 177.9977 | AS17: 119.036 | AT17: 600 | AU17: 10 | AV17: 1946.91 | AW17: 10 | AX17: 0 | AY17: 501.204 | AZ17: 0 | BB17: 0 | BC17: 10139.55 | BD17: 0 | BE17: 10139.55 | BF17: 0 | BG17: 0 | BJ17: 884.5320215 | BK17: 148.58 | BL17: 0 | BM17: 0 | BN17: =IF(data.f2026[[#This Row],[أيام الغياب]]=1,data.f2026[[#This Row],[الحافز]]*20%,IF(data.f2026[[#This Row],[أيام الغياب]]=2,data.f2026[[#This Row],[الحافز]]*100%,IF(data.f2026[[#This Row],[أيام الغياب]]>2,data.f2026[[#This Row],[الحافز]]*100%,""))) ->  | BO17: =IF(data.f2026[[#This Row],[عدد أيام الأجازات]]<=4,data.f2026[[#This Row],[الحافز]]*0,IF(data.f2026[[#This Row],[عدد أيام الأجازات]]=5,data.f2026[[#This Row],[الحافز]]*20%,IF(data.f2026[[#This Row],[عدد أيام الأجازات]]=6,data.f2026[[#This Row],[الحافز]]*40%,IF(data.f2026[[#This Row],[عدد أيام الأجازات]]=7,data.f2026[[#This Row],[الحافز]]*50%,IF(data.f2026[[#This Row],[عدد أيام الأجازات]]>7,data.f2026[[#This Row],[الحافز]]*100%,""))))) -> 0 | BP17: =IF(data.f2026[[#This Row],[أيام أجازات بعد السنوية]]<=2,data.f2026[[#This Row],[الحافز]]*0,IF(data.f2026[[#This Row],[أيام أجازات بعد السنوية]]=3,data.f2026[[#This Row],[الحافز]]*30%,IF(data.f2026[[#This Row],[أيام أجازات بعد السنوية]]=4,data.f2026[[#This Row],[الحافز]]*40%,IF(data.f2026[[#This Row],[أيام أجازات بعد السنوية]]=5,data.f2026[[#This Row],[الحافز]]*50%,IF(data.f2026[[#This Row],[أيام أجازات بعد السنوية]]>5,data.f2026[[#This Row],[الحافز]]*100%,""))))) -> 0 | BQ17: 0 | BR17: 0 | BT17: 3 | BU17: 0 | BX17: 0 | CC17: 0 | CE17: 0 | CG17: 4.17 | CH17: 5 | CI17: 0 | CL17: 0 | CN17: 0 | CO17: 0 | CP17: 501.204 | CQ17: 0 | CS17: 0 | CT17: 0 | CU17: 0 | CV17: 1546.49 | CW17: 8593.06
B18: 202002 | C18: 22259 | D18: بنك مصر 1 | E18: عادل عبدالبر امين عبدالفتاح | F18: 0 | G18: دوام كامل | H18: فنى | I18: الثانية | J18: الثانية | K18: سروجى | L18: الاميرية | M18: 27010061700711 | N18: 202002عادل عبدالبر امين عبدالفتاحالثانيةالثانيةسروجى الاميرية | O18: نعم | P18: 1397.438 | Q18: 1635.00246 | R18: 0 | S18: 2207.25 | T18: 245.25 | U18: 0 | V18: 0 | W18: 0 | Y18: 245.250369 | Z18: 300 | AB18: 0 | AD18: 0 | AE18: 0 | AF18: 545.25 | AG18: 48.99363 | AH18: 54.58533 | AI18: 65 | AJ18: 0 | AK18: 190 | AL18: 27.93515 | AM18: 49.81769 | AN18: 63.96592 | AO18: 91.25805 | AP18: 97.64611 | AQ18: 104.4813 | AS18: 69.87189 | AT18: 600 | AU18: 10 | AV18: 1473.56 | AW18: 10 | AX18: 0 | AY18: 294.1974 | AZ18: 0 | BB18: 0 | BC18: 6410.51 | BD18: 589.49 | BE18: 7000 | BF18: 0 | BG18: 0 | BJ18: 531.6432129 | BK18: 0 | BL18: 0 | BM18: 0 | BN18: =IF(data.f2026[[#This Row],[أيام الغياب]]=1,data.f2026[[#This Row],[الحافز]]*20%,IF(data.f2026[[#This Row],[أيام الغياب]]=2,data.f2026[[#This Row],[الحافز]]*100%,IF(data.f2026[[#This Row],[أيام الغياب]]>2,data.f2026[[#This Row],[الحافز]]*100%,""))) ->  | BO18: =IF(data.f2026[[#This Row],[عدد أيام الأجازات]]<=4,data.f2026[[#This Row],[الحافز]]*0,IF(data.f2026[[#This Row],[عدد أيام الأجازات]]=5,data.f2026[[#This Row],[الحافز]]*20%,IF(data.f2026[[#This Row],[عدد أيام الأجازات]]=6,data.f2026[[#This Row],[الحافز]]*40%,IF(data.f2026[[#This Row],[عدد أيام الأجازات]]=7,data.f2026[[#This Row],[الحافز]]*50%,IF(data.f2026[[#This Row],[عدد أيام الأجازات]]>7,data.f2026[[#This Row],[الحافز]]*100%,""))))) -> 0 | BP18: =IF(data.f2026[[#This Row],[أيام أجازات بعد السنوية]]<=2,data.f2026[[#This Row],[الحافز]]*0,IF(data.f2026[[#This Row],[أيام أجازات بعد السنوية]]=3,data.f2026[[#This Row],[الحافز]]*30%,IF(data.f2026[[#This Row],[أيام أجازات بعد السنوية]]=4,data.f2026[[#This Row],[الحافز]]*40%,IF(data.f2026[[#This Row],[أيام أجازات بعد السنوية]]=5,data.f2026[[#This Row],[الحافز]]*50%,IF(data.f2026[[#This Row],[أيام أجازات بعد السنوية]]>5,data.f2026[[#This Row],[الحافز]]*100%,""))))) -> 0 | BQ18: 0 | BR18: 0 | BT18: 3 | BU18: 0 | BX18: 0 | CC18: 0 | CE18: 0 | CG18: 3.25 | CH18: 5 | CI18: 0 | CL18: 0 | CN18: 0 | CO18: 0 | CP18: 294.1974 | CQ18: 0 | CS18: 0 | CT18: 0 | CU18: 0 | CV18: 837.09 | CW18: 6162.91
B19: 202003 | C19: 22280 | D19: بنك مصر 1 | E19: محمد عبد الفتاح على البربرى | F19: 0 | G19: دوام كامل | H19: فنى | I19: الثالثة | J19: الثالثة | K19: حرفي كهربائي | L19: فرع الزقازيق | M19: 27710110100379 | N19: 202003محمد عبد الفتاح على البربرىالثالثةالثالثةحرفي كهربائي فرع الزقازيق | O19: نعم | P19: 1365.973 | Q19: 1598.18841 | R19: 0 | S19: 2157.55 | T19: 239.73 | U19: 0 | V19: 0 | W19: 0 | Y19: 239.7282615 | Z19: 300 | AB19: 0 | AD19: 0 | AE19: 0 | AF19: 539.73 | AG19: 47.60303 | AH19: 53.03779 | AI19: 65 | AJ19: 0 | AK19: 200 | AL19: 27.30617 | AM19: 48.696 | AN19: 62.52566 | AO19: 89.20328 | AP19: 95.44751 | AQ19: 102.1288 | AS19: 68.29866 | AT19: 600 | AU19: 10 | AV19: 1469.25 | AW19: 10 | AX19: 0 | AY19: 287.5733 | AZ19: 0 | BB19: 0 | BC19: 6302.02 | BD19: 697.98 | BE19: 7000 | BF19: 0 | BG19: 0 | BJ19: 546.1951172 | BK19: 0 | BL19: 0 | BM19: 0 | BN19: =IF(data.f2026[[#This Row],[أيام الغياب]]=1,data.f2026[[#This Row],[الحافز]]*20%,IF(data.f2026[[#This Row],[أيام الغياب]]=2,data.f2026[[#This Row],[الحافز]]*100%,IF(data.f2026[[#This Row],[أيام الغياب]]>2,data.f2026[[#This Row],[الحافز]]*100%,""))) ->  | BO19: =IF(data.f2026[[#This Row],[عدد أيام الأجازات]]<=4,data.f2026[[#This Row],[الحافز]]*0,IF(data.f2026[[#This Row],[عدد أيام الأجازات]]=5,data.f2026[[#This Row],[الحافز]]*20%,IF(data.f2026[[#This Row],[عدد أيام الأجازات]]=6,data.f2026[[#This Row],[الحافز]]*40%,IF(data.f2026[[#This Row],[عدد أيام الأجازات]]=7,data.f2026[[#This Row],[الحافز]]*50%,IF(data.f2026[[#This Row],[عدد أيام الأجازات]]>7,data.f2026[[#This Row],[الحافز]]*100%,""))))) -> 0 | BP19: =IF(data.f2026[[#This Row],[أيام أجازات بعد السنوية]]<=2,data.f2026[[#This Row],[الحافز]]*0,IF(data.f2026[[#This Row],[أيام أجازات بعد السنوية]]=3,data.f2026[[#This Row],[الحافز]]*30%,IF(data.f2026[[#This Row],[أيام أجازات بعد السنوية]]=4,data.f2026[[#This Row],[الحافز]]*40%,IF(data.f2026[[#This Row],[أيام أجازات بعد السنوية]]=5,data.f2026[[#This Row],[الحافز]]*50%,IF(data.f2026[[#This Row],[أيام أجازات بعد السنوية]]>5,data.f2026[[#This Row],[الحافز]]*100%,""))))) -> 0 | BQ19: 0 | BR19: 0 | BT19: 3 | BU19: 0 | BX19: 0 | BZ19: 187.5 | CC19: 0 | CE19: 0 | CG19: 3.23 | CH19: 5 | CI19: 0 | CL19: 0 | CN19: 0 | CO19: 0 | CP19: 287.5733 | CQ19: 0 | CS19: 0 | CT19: 0 | CU19: 0 | CV19: 1032.5 | CW19: 5967.5
B20: 202004 | C20: 23294 | D20: بنك مصر 1 | E20: سيد صابر محمد امام | F20: 0 | G20: دوام كامل | H20: فنى | I20: الثانية | J20: الثانية | K20: فنى كهرباء | L20: الاميرية | M20: 28410150103214 | N20: 202004سيد صابر محمد امامالثانيةالثانيةفنى كهرباء الاميرية | O20: نعم | P20: 985.1828 | Q20: 1152.663876 | R20: 0 | S20: 1556.1 | T20: 172.9 | U20: 0 | V20: 0 | W20: 0 | Y20: 172.8995814 | Z20: 300 | AB20: 0 | AD20: 0 | AE20: 0 | AF20: 472.9 | AG20: 34.04168 | AH20: 38.11584 | AI20: 65 | AJ20: 0 | AK20: 190 | AL20: 29.04718 | AM20: 35.12109 | AN20: 45.09547 | AO20: 64.3362 | AP20: 68.83974 | AQ20: 85.55 | AS20: 51.48172 | AT20: 600 | AU20: 10 | AV20: 1316.63 | AW20: 10 | AX20: 0 | AY20: 207.4069 | AZ20: 0 | BB20: 0 | BC20: 4888.6 | BD20: 2111.4 | BE20: 7000 | BF20: 0 | BG20: 0 | BJ20: 530.3473828 | BK20: 0 | BL20: 0 | BM20: 0 | BN20: =IF(data.f2026[[#This Row],[أيام الغياب]]=1,data.f2026[[#This Row],[الحافز]]*20%,IF(data.f2026[[#This Row],[أيام الغياب]]=2,data.f2026[[#This Row],[الحافز]]*100%,IF(data.f2026[[#This Row],[أيام الغياب]]>2,data.f2026[[#This Row],[الحافز]]*100%,""))) ->  | BO20: =IF(data.f2026[[#This Row],[عدد أيام الأجازات]]<=4,data.f2026[[#This Row],[الحافز]]*0,IF(data.f2026[[#This Row],[عدد أيام الأجازات]]=5,data.f2026[[#This Row],[الحافز]]*20%,IF(data.f2026[[#This Row],[عدد أيام الأجازات]]=6,data.f2026[[#This Row],[الحافز]]*40%,IF(data.f2026[[#This Row],[عدد أيام الأجازات]]=7,data.f2026[[#This Row],[الحافز]]*50%,IF(data.f2026[[#This Row],[عدد أيام الأجازات]]>7,data.f2026[[#This Row],[الحافز]]*100%,""))))) -> 0 | BP20: =IF(data.f2026[[#This Row],[أيام أجازات بعد السنوية]]<=2,data.f2026[[#This Row],[الحافز]]*0,IF(data.f2026[[#This Row],[أيام أجازات بعد السنوية]]=3,data.f2026[[#This Row],[الحافز]]*30%,IF(data.f2026[[#This Row],[أيام أجازات بعد السنوية]]=4,data.f2026[[#This Row],[الحافز]]*40%,IF(data.f2026[[#This Row],[أيام أجازات بعد السنوية]]=5,data.f2026[[#This Row],[الحافز]]*50%,IF(data.f2026[[#This Row],[أيام أجازات بعد السنوية]]>5,data.f2026[[#This Row],[الحافز]]*100%,""))))) -> 0 | BQ20: 0 | BR20: 0 | BT20: 3 | BU20: 0 | BX20: 0 | CC20: 0 | CE20: 0 | CG20: 3.19 | CH20: 5 | CI20: 0 | CL20: 0 | CN20: 0 | CO20: 0 | CP20: 207.4069 | CQ20: 0 | CS20: 0 | CT20: 0 | CU20: 0 | CV20: 748.94 | CW20: 6251.06
B21: 202005 | C21: 23295 | D21: بنك مصر 1 | E21: عطية عبده عطية محمدين | F21: مروه | G21: دوام كامل | H21: فنى | I21: الخامسة | J21: الخامسة | K21: حرفى ميكانيكى | L21: الاميرية | M21: 26804250102151 | N21: 202005عطية عبده عطية محمدينمروهالخامسةالخامسة حرفى ميكانيكىالاميرية | O21: نعم | P21: 1040.884 | Q21: 1217.83428 | R21: 0 | S21: 1644.08 | T21: 182.68 | U21: 0 | V21: 0 | W21: 0 | Y21: 182.675142 | Z21: 300 | AB21: 0 | AD21: 0 | AE21: 0 | AF21: 482.68 | AG21: 36.75438 | AH21: 40.88482 | AI21: 65 | AJ21: 0 | AK21: 200 | AL21: 26.44905 | AM21: 37.1068 | AN21: 47.64513 | AO21: 67.97372 | AP21: 72.73188 | AQ21: 81.9 | AS21: 52.04421 | AT21: 600 | AU21: 10 | AV21: 1338.49 | AW21: 10 | AX21: 0 | AY21: 219.1335 | AZ21: 0 | BB21: 0 | BC21: 5094.9 | BD21: 1905.1 | BE21: 7000 | BF21: 0 | BG21: 0 | BJ21: 529.8194043 | BK21: 0 | BL21: 0 | BM21: 0 | BN21: =IF(data.f2026[[#This Row],[أيام الغياب]]=1,data.f2026[[#This Row],[الحافز]]*20%,IF(data.f2026[[#This Row],[أيام الغياب]]=2,data.f2026[[#This Row],[الحافز]]*100%,IF(data.f2026[[#This Row],[أيام الغياب]]>2,data.f2026[[#This Row],[الحافز]]*100%,""))) ->  | BO21: =IF(data.f2026[[#This Row],[عدد أيام الأجازات]]<=4,data.f2026[[#This Row],[الحافز]]*0,IF(data.f2026[[#This Row],[عدد أيام الأجازات]]=5,data.f2026[[#This Row],[الحافز]]*20%,IF(data.f2026[[#This Row],[عدد أيام الأجازات]]=6,data.f2026[[#This Row],[الحافز]]*40%,IF(data.f2026[[#This Row],[عدد أيام الأجازات]]=7,data.f2026[[#This Row],[الحافز]]*50%,IF(data.f2026[[#This Row],[عدد أيام الأجازات]]>7,data.f2026[[#This Row],[الحافز]]*100%,""))))) -> 0 | BP21: =IF(data.f2026[[#This Row],[أيام أجازات بعد السنوية]]<=2,data.f2026[[#This Row],[الحافز]]*0,IF(data.f2026[[#This Row],[أيام أجازات بعد السنوية]]=3,data.f2026[[#This Row],[الحافز]]*30%,IF(data.f2026[[#This Row],[أيام أجازات بعد السنوية]]=4,data.f2026[[#This Row],[الحافز]]*40%,IF(data.f2026[[#This Row],[أيام أجازات بعد السنوية]]=5,data.f2026[[#This Row],[الحافز]]*50%,IF(data.f2026[[#This Row],[أيام أجازات بعد السنوية]]>5,data.f2026[[#This Row],[الحافز]]*100%,""))))) -> 0 | BQ21: 0 | BR21: 0 | BT21: 3 | BU21: 0 | BX21: 0 | CC21: 0 | CE21: 0 | CG21: 3.2 | CH21: 5 | CI21: 0 | CL21: 0 | CN21: 0 | CO21: 0 | CP21: 219.1335 | CQ21: 0 | CS21: 0 | CT21: 0 | CU21: 0 | CV21: 760.15 | CW21: 6239.85
B22: 202007 | C22: 23321 | D22: بنك مصر 1 | E22: على عباس عبد الخالق احمد | F22: 0 | G22: دوام كامل | H22: فنى | I22: الثانية | J22: الثانية | K22: ميكانيكى | L22: الاميرية | M22: 26609292101671 | N22: 202007على عباس عبد الخالق احمدالثانيةالثانيةميكانيكى الاميرية | O22: نعم | P22: 2464.195 | Q22: 2883.10815 | R22: 0 | S22: 3892.2 | T22: 432.47 | U22: 0 | V22: 0 | W22: 0 | Y22: 432.4662225 | Z22: 300 | AB22: 0 | AD22: 0 | AE22: 0 | AF22: 732.47 | AG22: 85.38567 | AH22: 95.37196 | AI22: 114.8779 | AJ22: 0 | AK22: 190 | AL22: 49.25991 | AM22: 87.84685 | AN22: 112.7953 | AO22: 160.9214 | AP22: 172.1859 | AQ22: 184.2389 | AS22: 123.2097 | AT22: 600 | AU22: 8 | AV22: 1984.09 | AW22: 10 | AX22: 0 | AY22: 518.7778 | AZ22: 0 | BB22: 0 | BC22: 10453.12 | BD22: 0 | BE22: 10453.12 | BF22: 0 | BG22: 0 | BJ22: 912.1277344 | BK22: 191.62 | BL22: 0 | BM22: 0 | BN22: =IF(data.f2026[[#This Row],[أيام الغياب]]=1,data.f2026[[#This Row],[الحافز]]*20%,IF(data.f2026[[#This Row],[أيام الغياب]]=2,data.f2026[[#This Row],[الحافز]]*100%,IF(data.f2026[[#This Row],[أيام الغياب]]>2,data.f2026[[#This Row],[الحافز]]*100%,""))) ->  | BO22: =IF(data.f2026[[#This Row],[عدد أيام الأجازات]]<=4,data.f2026[[#This Row],[الحافز]]*0,IF(data.f2026[[#This Row],[عدد أيام الأجازات]]=5,data.f2026[[#This Row],[الحافز]]*20%,IF(data.f2026[[#This Row],[عدد أيام الأجازات]]=6,data.f2026[[#This Row],[الحافز]]*40%,IF(data.f2026[[#This Row],[عدد أيام الأجازات]]=7,data.f2026[[#This Row],[الحافز]]*50%,IF(data.f2026[[#This Row],[عدد أيام الأجازات]]>7,data.f2026[[#This Row],[الحافز]]*100%,""))))) -> 0 | BP22: =IF(data.f2026[[#This Row],[أيام أجازات بعد السنوية]]<=2,data.f2026[[#This Row],[الحافز]]*0,IF(data.f2026[[#This Row],[أيام أجازات بعد السنوية]]=3,data.f2026[[#This Row],[الحافز]]*30%,IF(data.f2026[[#This Row],[أيام أجازات بعد السنوية]]=4,data.f2026[[#This Row],[الحافز]]*40%,IF(data.f2026[[#This Row],[أيام أجازات بعد السنوية]]=5,data.f2026[[#This Row],[الحافز]]*50%,IF(data.f2026[[#This Row],[أيام أجازات بعد السنوية]]>5,data.f2026[[#This Row],[الحافز]]*100%,""))))) -> 0 | BQ22: 0 | BR22: 0 | BT22: 3 | BU22: 0 | BX22: 0 | CC22: 0 | CE22: 0 | CG22: 4.29 | CH22: 5 | CI22: 0 | CL22: 0 | CN22: 0 | CO22: 0 | CP22: 518.7778 | CQ22: 0 | CS22: 0 | CT22: 0 | CU22: 0 | CV22: 1634.82 | CW22: 8818.3
B23: 202008 | C23: 23327 | D23: بنك مصر 1 | E23: صبحى محمد سيد احمد | F23: 0 | G23: دوام كامل | H23: فنى | I23: الاولى | J23: الأولى | K23: حرفى ميكانيكى سيارات | L23: فرع الاميرية | M23: 26603230103318 | N23: 202008صبحى محمد سيد احمدالاولىالأولىحرفى ميكانيكى سياراتفرع الاميرية | O23: نعم | P23: 2390.469 | Q23: 2796.84873 | R23: 0 | S23: 3775.75 | T23: 419.53 | U23: 0 | V23: 0 | W23: 0 | Y23: 419.5273095 | Z23: 300 | AB23: 0 | AD23: 0 | AE23: 0 | AF23: 719.53 | AG23: 83.3969 | AH23: 93.12494 | AI23: 111.3261 | AJ23: 0 | AK23: 190 | AL23: 47.78612 | AM23: 85.21858 | AN23: 109.4207 | AO23: 156.1068 | AP23: 167.0343 | AQ23: 178.7267 | AS23: 119.5235 | AT23: 600 | AU23: 6 | AV23: 1947.66 | AW23: 10 | AX23: 0 | AY23: 503.2567 | AZ23: 0 | BB23: 0 | BC23: 10172.58 | BD23: 0 | BE23: 10172.58 | BF23: 0 | BG23: 0 | BJ23: 887.327085 | BK23: 150.42 | BL23: 0 | BM23: 0 | BN23: =IF(data.f2026[[#This Row],[أيام الغياب]]=1,data.f2026[[#This Row],[الحافز]]*20%,IF(data.f2026[[#This Row],[أيام الغياب]]=2,data.f2026[[#This Row],[الحافز]]*100%,IF(data.f2026[[#This Row],[أيام الغياب]]>2,data.f2026[[#This Row],[الحافز]]*100%,""))) ->  | BO23: =IF(data.f2026[[#This Row],[عدد أيام الأجازات]]<=4,data.f2026[[#This Row],[الحافز]]*0,IF(data.f2026[[#This Row],[عدد أيام الأجازات]]=5,data.f2026[[#This Row],[الحافز]]*20%,IF(data.f2026[[#This Row],[عدد أيام الأجازات]]=6,data.f2026[[#This Row],[الحافز]]*40%,IF(data.f2026[[#This Row],[عدد أيام الأجازات]]=7,data.f2026[[#This Row],[الحافز]]*50%,IF(data.f2026[[#This Row],[عدد أيام الأجازات]]>7,data.f2026[[#This Row],[الحافز]]*100%,""))))) -> 0 | BP23: =IF(data.f2026[[#This Row],[أيام أجازات بعد السنوية]]<=2,data.f2026[[#This Row],[الحافز]]*0,IF(data.f2026[[#This Row],[أيام أجازات بعد السنوية]]=3,data.f2026[[#This Row],[الحافز]]*30%,IF(data.f2026[[#This Row],[أيام أجازات بعد السنوية]]=4,data.f2026[[#This Row],[الحافز]]*40%,IF(data.f2026[[#This Row],[أيام أجازات بعد السنوية]]=5,data.f2026[[#This Row],[الحافز]]*50%,IF(data.f2026[[#This Row],[أيام أجازات بعد السنوية]]>5,data.f2026[[#This Row],[الحافز]]*100%,""))))) -> 0 | BQ23: 0 | BR23: 0 | BT23: 3 | BU23: 0 | BX23: 0 | CC23: 0 | CE23: 0 | CG23: 4.18 | CH23: 5 | CI23: 0 | CL23: 0 | CN23: 0 | CO23: 0 | CP23: 503.2567 | CQ23: 0 | CS23: 0 | CT23: 0 | CU23: 0 | CV23: 1553.18 | CW23: 8619.4
B24: 202010 | C24: 23354 | D24: بنك مصر 1 | E24: اشرف احمد عبد الحميد موافى | F24: 0 | G24: دوام كامل | H24: فنى | I24: الاولى | J24: الأولى | K24: حرفى ميكانيكى سيارات | L24: فرع الاميرية | M24: 26805310101091 | N24: 202010اشرف احمد عبد الحميد موافىالاولىالأولىحرفى ميكانيكى سياراتفرع الاميرية | O24: نعم | P24: 2235.182 | Q24: 2615.16294 | R24: 0 | S24: 3530.47 | T24: 392.27 | U24: 0 | V24: 0 | W24: 0 | Y24: 392.274441 | Z24: 300 | AB24: 0 | AD24: 0 | AE24: 0 | AF24: 692.27 | AG24: 78.01244 | AH24: 87.0984 | AI24: 104.0814 | AJ24: 0 | AK24: 190 | AL24: 44.68188 | AM24: 79.68269 | AN24: 102.3126 | AO24: 145.9659 | AP24: 156.1835 | AQ24: 167.1164 | AS24: 111.7591 | AT24: 600 | AU24: 4 | AV24: 1870.89 | AW24: 10 | AX24: 0 | AY24: 470.5646 | AZ24: 0 | BB24: 0 | BC24: 9581.63 | BD24: 0 | BE24: 9581.63 | BF24: 0 | BG24: 0 | BJ24: 835.1892871 | BK24: 113.25 | BL24: 0 | BM24: 0 | BN24: =IF(data.f2026[[#This Row],[أيام الغياب]]=1,data.f2026[[#This Row],[الحافز]]*20%,IF(data.f2026[[#This Row],[أيام الغياب]]=2,data.f2026[[#This Row],[الحافز]]*100%,IF(data.f2026[[#This Row],[أيام الغياب]]>2,data.f2026[[#This Row],[الحافز]]*100%,""))) ->  | BO24: =IF(data.f2026[[#This Row],[عدد أيام الأجازات]]<=4,data.f2026[[#This Row],[الحافز]]*0,IF(data.f2026[[#This Row],[عدد أيام الأجازات]]=5,data.f2026[[#This Row],[الحافز]]*20%,IF(data.f2026[[#This Row],[عدد أيام الأجازات]]=6,data.f2026[[#This Row],[الحافز]]*40%,IF(data.f2026[[#This Row],[عدد أيام الأجازات]]=7,data.f2026[[#This Row],[الحافز]]*50%,IF(data.f2026[[#This Row],[عدد أيام الأجازات]]>7,data.f2026[[#This Row],[الحافز]]*100%,""))))) -> 0 | BP24: =IF(data.f2026[[#This Row],[أيام أجازات بعد السنوية]]<=2,data.f2026[[#This Row],[الحافز]]*0,IF(data.f2026[[#This Row],[أيام أجازات بعد السنوية]]=3,data.f2026[[#This Row],[الحافز]]*30%,IF(data.f2026[[#This Row],[أيام أجازات بعد السنوية]]=4,data.f2026[[#This Row],[الحافز]]*40%,IF(data.f2026[[#This Row],[أيام أجازات بعد السنوية]]=5,data.f2026[[#This Row],[الحافز]]*50%,IF(data.f2026[[#This Row],[أيام أجازات بعد السنوية]]>5,data.f2026[[#This Row],[الحافز]]*100%,""))))) -> 0 | BQ24: 0 | BR24: 0 | BT24: 3 | BU24: 0 | BX24: 0 | CC24: 0 | CE24: 0 | CG24: 3.94 | CH24: 5 | CI24: 0 | CL24: 0 | CN24: 0 | CO24: 0 | CP24: 470.5646 | CQ24: 0 | CS24: 0 | CT24: 0 | CU24: 0 | CV24: 1430.94 | CW24: 8150.69
B25: 202011 | C25: 23364 | D25: مرضي | E25: محمد احمد عبد الرحيم حسن | F25: مروه | G25: مرضي | H25: فنى | I25: الاولى | J25: الأولى | K25: حرفى كهربائى | L25: فرع الاميرية | M25: 26709060101571 | N25: 202011محمد احمد عبد الرحيم حسنمروهالاولىالأولىحرفى كهربائى فرع الاميرية | O25: نعم | P25: 2171.555 | Q25: 2540.71935 | R25: 0 | S25: 3429.97 | T25: 381.11 | U25: 0 | V25: 0 | W25: 0 | Y25: 381.1079025 | Z25: 300 | AB25: 0 | AD25: 0 | AE25: 0 | AF25: 681.11 | AG25: 75.30946 | AH25: 84.09178 | AI25: 101.2115 | AJ25: 0 | AK25: 190 | AL25: 43.40996 | AM25: 77.41443 | AN25: 99.40013 | AO25: 141.8109 | AP25: 151.7376 | AQ25: 162.3592 | AS25: 108.5777 | AT25: 600 | AU25: 10 | AV25: 1845.32 | AW25: 10 | AX25: 0 | AY25: 457.1694 | AZ25: 0 | BB25: 0 | BC25: 9345.4 | BD25: 0 | BE25: 9345.4 | BF25: 0 | BG25: 0 | BJ25: 814.4586914 | BK25: 0 | BL25: 0 | BM25: 0 | BN25: =IF(data.f2026[[#This Row],[أيام الغياب]]=1,data.f2026[[#This Row],[الحافز]]*20%,IF(data.f2026[[#This Row],[أيام الغياب]]=2,data.f2026[[#This Row],[الحافز]]*100%,IF(data.f2026[[#This Row],[أيام الغياب]]>2,data.f2026[[#This Row],[الحافز]]*100%,""))) ->  | BO25: =IF(data.f2026[[#This Row],[عدد أيام الأجازات]]<=4,data.f2026[[#This Row],[الحافز]]*0,IF(data.f2026[[#This Row],[عدد أيام الأجازات]]=5,data.f2026[[#This Row],[الحافز]]*20%,IF(data.f2026[[#This Row],[عدد أيام الأجازات]]=6,data.f2026[[#This Row],[الحافز]]*40%,IF(data.f2026[[#This Row],[عدد أيام الأجازات]]=7,data.f2026[[#This Row],[الحافز]]*50%,IF(data.f2026[[#This Row],[عدد أيام الأجازات]]>7,data.f2026[[#This Row],[الحافز]]*100%,""))))) -> 0 | BP25: =IF(data.f2026[[#This Row],[أيام أجازات بعد السنوية]]<=2,data.f2026[[#This Row],[الحافز]]*0,IF(data.f2026[[#This Row],[أيام أجازات بعد السنوية]]=3,data.f2026[[#This Row],[الحافز]]*30%,IF(data.f2026[[#This Row],[أيام أجازات بعد السنوية]]=4,data.f2026[[#This Row],[الحافز]]*40%,IF(data.f2026[[#This Row],[أيام أجازات بعد السنوية]]=5,data.f2026[[#This Row],[الحافز]]*50%,IF(data.f2026[[#This Row],[أيام أجازات بعد السنوية]]>5,data.f2026[[#This Row],[الحافز]]*100%,""))))) -> 0 | BQ25: 0 | BR25: 5.1 | BT25: 3 | BU25: 0 | BX25: 0 | CC25: 0 | CE25: 0 | CG25: 3.84 | CH25: 5 | CI25: 0 | CL25: 0 | CN25: 0 | CO25: 0 | CP25: 457.1694 | CQ25: 0 | CS25: 8056.83 | CT25: 0 | CU25: 0 | CV25: 9345.4 | CW25: 0
B26: 202012 | C26: 23388 | D26: بنك مصر 1 | E26: جمال محمد عامر مسعود | F26: 0 | G26: دوام كامل | H26: فنى | I26: الاولى | J26: الأولى | K26: حرفى عامل كاوتش | L26: فرع الاميرية | M26: 26610171700613 | N26: 202012جمال محمد عامر مسعودالاولىالأولىحرفى عامل كاوتشفرع الاميرية | O26: نعم | P26: 2219.658 | Q26: 2596.99986 | R26: 0 | S26: 3505.95 | T26: 389.55 | U26: 0 | V26: 0 | W26: 0 | Y26: 389.549979 | Z26: 300 | AB26: 0 | AD26: 0 | AE26: 0 | AF26: 689.55 | AG26: 76.96461 | AH26: 85.94413 | AI26: 103.4571 | AJ26: 0 | AK26: 190 | AL26: 44.37156 | AM26: 79.12929 | AN26: 101.602 | AO26: 144.9522 | AP26: 155.0988 | AQ26: 165.9558 | AS26: 110.9829 | AT26: 600 | AU26: 10 | AV26: 1868.46 | AW26: 10 | AX26: 0 | AY26: 467.2965 | AZ26: 0 | BB26: 0 | BC26: 9527.81 | BD26: 0 | BE26: 9527.81 | BF26: 0 | BG26: 0 | BJ26: 830.5495215 | BK26: 109.25 | BL26: 0 | BM26: 0 | BN26: =IF(data.f2026[[#This Row],[أيام الغياب]]=1,data.f2026[[#This Row],[الحافز]]*20%,IF(data.f2026[[#This Row],[أيام الغياب]]=2,data.f2026[[#This Row],[الحافز]]*100%,IF(data.f2026[[#This Row],[أيام الغياب]]>2,data.f2026[[#This Row],[الحافز]]*100%,""))) ->  | BO26: =IF(data.f2026[[#This Row],[عدد أيام الأجازات]]<=4,data.f2026[[#This Row],[الحافز]]*0,IF(data.f2026[[#This Row],[عدد أيام الأجازات]]=5,data.f2026[[#This Row],[الحافز]]*20%,IF(data.f2026[[#This Row],[عدد أيام الأجازات]]=6,data.f2026[[#This Row],[الحافز]]*40%,IF(data.f2026[[#This Row],[عدد أيام الأجازات]]=7,data.f2026[[#This Row],[الحافز]]*50%,IF(data.f2026[[#This Row],[عدد أيام الأجازات]]>7,data.f2026[[#This Row],[الحافز]]*100%,""))))) -> 0 | BP26: =IF(data.f2026[[#This Row],[أيام أجازات بعد السنوية]]<=2,data.f2026[[#This Row],[الحافز]]*0,IF(data.f2026[[#This Row],[أيام أجازات بعد السنوية]]=3,data.f2026[[#This Row],[الحافز]]*30%,IF(data.f2026[[#This Row],[أيام أجازات بعد السنوية]]=4,data.f2026[[#This Row],[الحافز]]*40%,IF(data.f2026[[#This Row],[أيام أجازات بعد السنوية]]=5,data.f2026[[#This Row],[الحافز]]*50%,IF(data.f2026[[#This Row],[أيام أجازات بعد السنوية]]>5,data.f2026[[#This Row],[الحافز]]*100%,""))))) -> 0 | BQ26: 0 | BR26: 0 | BT26: 3 | BU26: 0 | BX26: 0 | CC26: 0 | CE26: 0 | CG26: 3.92 | CH26: 5 | CI26: 0 | CL26: 0 | CN26: 0 | CO26: 0 | CP26: 467.2965 | CQ26: 0 | CS26: 0 | CT26: 0 | CU26: 0 | CV26: 1419.02 | CW26: 8108.79
B27: 202013 | C27: 23404 | D27: بنك مصر 1 | E27: عادل شوقي عبده محمد | F27: 0 | G27: دوام كامل | H27: فنى | I27: الثالثة | J27: الثالثة | K27: حرفى عامل كاوتش | L27: فرع المنيا | M27: 27012241400654 | N27: 202013عادل شوقي عبده محمدالثالثةالثالثةحرفى عامل كاوتش فرع المنيا | O27: نعم | P27: 1999.766 | Q27: 2339.72622 | R27: 0 | S27: 3158.63 | T27: 350.96 | U27: 0 | V27: 0 | W27: 0 | Y27: 350.958933 | Z27: 300 | AB27: 0 | AD27: 0 | AE27: 0 | AF27: 650.96 | AG27: 69.93859 | AH27: 78.02959 | AI27: 93.11887 | AJ27: 0 | AK27: 200 | AL27: 39.97585 | AM27: 71.29026 | AN27: 91.5367 | AO27: 130.5923 | AP27: 139.7338 | AQ27: 149.5152 | AS27: 99.98828 | AT27: 600 | AU27: 10 | AV27: 1773.72 | AW27: 10 | AX27: 0 | AY27: 421.0033 | AZ27: 0 | BB27: 0 | BC27: 8705 | BD27: 0 | BE27: 8705 | BF27: 0 | BG27: 0 | BJ27: 758.2101807 | BK27: 58.33 | BL27: 0 | BM27: 0 | BN27: =IF(data.f2026[[#This Row],[أيام الغياب]]=1,data.f2026[[#This Row],[الحافز]]*20%,IF(data.f2026[[#This Row],[أيام الغياب]]=2,data.f2026[[#This Row],[الحافز]]*100%,IF(data.f2026[[#This Row],[أيام الغياب]]>2,data.f2026[[#This Row],[الحافز]]*100%,""))) ->  | BO27: =IF(data.f2026[[#This Row],[عدد أيام الأجازات]]<=4,data.f2026[[#This Row],[الحافز]]*0,IF(data.f2026[[#This Row],[عدد أيام الأجازات]]=5,data.f2026[[#This Row],[الحافز]]*20%,IF(data.f2026[[#This Row],[عدد أيام الأجازات]]=6,data.f2026[[#This Row],[الحافز]]*40%,IF(data.f2026[[#This Row],[عدد أيام الأجازات]]=7,data.f2026[[#This Row],[الحافز]]*50%,IF(data.f2026[[#This Row],[عدد أيام الأجازات]]>7,data.f2026[[#This Row],[الحافز]]*100%,""))))) -> 0 | BP27: =IF(data.f2026[[#This Row],[أيام أجازات بعد السنوية]]<=2,data.f2026[[#This Row],[الحافز]]*0,IF(data.f2026[[#This Row],[أيام أجازات بعد السنوية]]=3,data.f2026[[#This Row],[الحافز]]*30%,IF(data.f2026[[#This Row],[أيام أجازات بعد السنوية]]=4,data.f2026[[#This Row],[الحافز]]*40%,IF(data.f2026[[#This Row],[أيام أجازات بعد السنوية]]=5,data.f2026[[#This Row],[الحافز]]*50%,IF(data.f2026[[#This Row],[أيام أجازات بعد السنوية]]>5,data.f2026[[#This Row],[الحافز]]*100%,""))))) -> 0 | BQ27: 0 | BR27: 0 | BT27: 3 | BU27: 0 | BX27: 0 | CC27: 0 | CE27: 0 | CG27: 3.59 | CH27: 5 | CI27: 0 | CL27: 0 | CN27: 0 | CO27: 0 | CP27: 421.0033 | CQ27: 0 | CS27: 0 | CT27: 0 | CU27: 0 | CV27: 1249.13 | CW27: 7455.87
B28: 202014 | C28: 23429 | D28: بنك مصر 1 | E28: صالح السيد احمد محمد | F28: 0 | G28: دوام كامل | H28: فنى | I28: الاولى | J28: الأولى | K28: حرفى نقاش | L28: فرع الاميرية | M28: 27108051301355 | N28: 202014صالح السيد احمد محمدالاولىالأولىحرفى نقاشفرع الاميرية | O28: نعم | P28: 2106.559 | Q28: 2464.67403 | R28: 0 | S28: 3327.31 | T28: 369.7 | U28: 0 | V28: 0 | W28: 0 | Y28: 369.7011045 | Z28: 300 | AB28: 0 | AD28: 0 | AE28: 0 | AF28: 669.7 | AG28: 73.56142 | AH28: 82.11095 | AI28: 98.08092 | AJ28: 0 | AK28: 190 | AL28: 42.11068 | AM28: 75.09739 | AN28: 96.42505 | AO28: 137.5664 | AP28: 147.196 | AQ28: 157.4998 | AS28: 105.328 | AT28: 600 | AU28: 10 | AV28: 1814.98 | AW28: 10 | AX28: 0 | AY28: 443.4862 | AZ28: 0 | BB28: 0 | BC28: 9099.85 | BD28: 0 | BE28: 9099.85 | BF28: 0 | BG28: 0 | BJ28: 792.8205957 | BK28: 82.42 | BL28: 0 | BM28: 0 | BN28: =IF(data.f2026[[#This Row],[أيام الغياب]]=1,data.f2026[[#This Row],[الحافز]]*20%,IF(data.f2026[[#This Row],[أيام الغياب]]=2,data.f2026[[#This Row],[الحافز]]*100%,IF(data.f2026[[#This Row],[أيام الغياب]]>2,data.f2026[[#This Row],[الحافز]]*100%,""))) ->  | BO28: =IF(data.f2026[[#This Row],[عدد أيام الأجازات]]<=4,data.f2026[[#This Row],[الحافز]]*0,IF(data.f2026[[#This Row],[عدد أيام الأجازات]]=5,data.f2026[[#This Row],[الحافز]]*20%,IF(data.f2026[[#This Row],[عدد أيام الأجازات]]=6,data.f2026[[#This Row],[الحافز]]*40%,IF(data.f2026[[#This Row],[عدد أيام الأجازات]]=7,data.f2026[[#This Row],[الحافز]]*50%,IF(data.f2026[[#This Row],[عدد أيام الأجازات]]>7,data.f2026[[#This Row],[الحافز]]*100%,""))))) -> 0 | BP28: =IF(data.f2026[[#This Row],[أيام أجازات بعد السنوية]]<=2,data.f2026[[#This Row],[الحافز]]*0,IF(data.f2026[[#This Row],[أيام أجازات بعد السنوية]]=3,data.f2026[[#This Row],[الحافز]]*30%,IF(data.f2026[[#This Row],[أيام أجازات بعد السنوية]]=4,data.f2026[[#This Row],[الحافز]]*40%,IF(data.f2026[[#This Row],[أيام أجازات بعد السنوية]]=5,data.f2026[[#This Row],[الحافز]]*50%,IF(data.f2026[[#This Row],[أيام أجازات بعد السنوية]]>5,data.f2026[[#This Row],[الحافز]]*100%,""))))) -> 0 | BQ28: 0 | BR28: 0 | BT28: 3 | BU28: 0 | BX28: 0 | CC28: 0 | CE28: 0 | CG28: 3.75 | CH28: 5 | CI28: 0 | CL28: 0 | CN28: 0 | CO28: 0 | CP28: 443.4862 | CQ28: 0 | CS28: 0 | CT28: 0 | CU28: 0 | CV28: 1330.48 | CW28: 7769.37
B29: 202015 | C29: 23756 | D29: بنك مصر 1 | E29: محمد عبد العزيز حسن غنيم | F29: 0 | G29: دوام كامل | H29: فنى | I29: الرابعة | J29: الرابعة | K29: حرفى حداد | L29: الاميرية | M29: 27612090101916 | N29: 202015محمد عبد العزيز حسن غنيمالرابعةالرابعةحرفى حدادالاميرية | O29: نعم | P29: 1011.144 | Q29: 1183.03848 | R29: 0 | S29: 1597.1 | T29: 177.46 | U29: 0 | V29: 0 | W29: 0 | Y29: 177.455772 | Z29: 300 | AB29: 0 | AD29: 0 | AE29: 0 | AF29: 477.46 | AG29: 35.32604 | AH29: 39.35678 | AI29: 65 | AJ29: 0 | AK29: 200 | AL29: 27.83623 | AM29: 36.04659 | AN29: 46.28382 | AO29: 66.03159 | AP29: 70.6538 | AQ29: 83.85 | AS29: 50.55721 | AT29: 600 | AU29: 8 | AV29: 1328.94 | AW29: 10 | AX29: 0 | AY29: 212.8725 | AZ29: 0 | BB29: 0 | BC29: 4986.87 | BD29: 2013.13 | BE29: 7000 | BF29: 0 | BG29: 0 | BJ29: 530.0492871 | BK29: 0 | BL29: 0 | BM29: 0 | BN29: =IF(data.f2026[[#This Row],[أيام الغياب]]=1,data.f2026[[#This Row],[الحافز]]*20%,IF(data.f2026[[#This Row],[أيام الغياب]]=2,data.f2026[[#This Row],[الحافز]]*100%,IF(data.f2026[[#This Row],[أيام الغياب]]>2,data.f2026[[#This Row],[الحافز]]*100%,""))) ->  | BO29: =IF(data.f2026[[#This Row],[عدد أيام الأجازات]]<=4,data.f2026[[#This Row],[الحافز]]*0,IF(data.f2026[[#This Row],[عدد أيام الأجازات]]=5,data.f2026[[#This Row],[الحافز]]*20%,IF(data.f2026[[#This Row],[عدد أيام الأجازات]]=6,data.f2026[[#This Row],[الحافز]]*40%,IF(data.f2026[[#This Row],[عدد أيام الأجازات]]=7,data.f2026[[#This Row],[الحافز]]*50%,IF(data.f2026[[#This Row],[عدد أيام الأجازات]]>7,data.f2026[[#This Row],[الحافز]]*100%,""))))) -> 0 | BP29: =IF(data.f2026[[#This Row],[أيام أجازات بعد السنوية]]<=2,data.f2026[[#This Row],[الحافز]]*0,IF(data.f2026[[#This Row],[أيام أجازات بعد السنوية]]=3,data.f2026[[#This Row],[الحافز]]*30%,IF(data.f2026[[#This Row],[أيام أجازات بعد السنوية]]=4,data.f2026[[#This Row],[الحافز]]*40%,IF(data.f2026[[#This Row],[أيام أجازات بعد السنوية]]=5,data.f2026[[#This Row],[الحافز]]*50%,IF(data.f2026[[#This Row],[أيام أجازات بعد السنوية]]>5,data.f2026[[#This Row],[الحافز]]*100%,""))))) -> 0 | BQ29: 0 | BR29: 0 | BT29: 3 | BU29: 0 | BX29: 0 | CC29: 0 | CE29: 0 | CG29: 2.69 | CH29: 5 | CI29: 0 | CL29: 0 | CN29: 0 | CO29: 0 | CP29: 212.8725 | CQ29: 0 | CS29: 0 | CT29: 0 | CU29: 0 | CV29: 753.61 | CW29: 6246.39
B30: 202016 | C30: 23759 | D30: بنك مصر 1 | E30: عبد الواحد على عبد الواحد طلبه | F30: 0 | G30: دوام كامل | H30: فنى | I30: الثالثة | J30: الثالثة | K30: فنى ميكانيكى | L30: فرع الاسكندرية | M30: 27005240101835 | N30: 202016عبد الواحد على عبد الواحد طلبهالثالثةالثالثةفنى ميكانيكى فرع الاسكندرية | O30: نعم | P30: 1019.221 | Q30: 1192.48857 | R30: 0 | S30: 1609.86 | T30: 178.87 | U30: 0 | V30: 0 | W30: 0 | Y30: 178.8732855 | Z30: 300 | AB30: 0 | AD30: 0 | AE30: 0 | AF30: 478.87 | AG30: 33.73 | AH30: 40.28387 | AI30: 65 | AJ30: 0 | AK30: 200 | AL30: 27.45951 | AM30: 36.33451 | AN30: 46.65352 | AO30: 66.55902 | AP30: 71.21815 | AQ30: 83.32 | AS30: 50.96104 | AT30: 600 | AU30: 10 | AV30: 1331.52 | AW30: 10 | AX30: 0 | AY30: 214.5728 | AZ30: 0 | BB30: 30 | BC30: 5016.18 | BD30: 1983.82 | BE30: 7030 | BF30: 0 | BG30: 0 | BJ30: 529.9657129 | BK30: 0 | BL30: 0 | BM30: 0 | BN30: =IF(data.f2026[[#This Row],[أيام الغياب]]=1,data.f2026[[#This Row],[الحافز]]*20%,IF(data.f2026[[#This Row],[أيام الغياب]]=2,data.f2026[[#This Row],[الحافز]]*100%,IF(data.f2026[[#This Row],[أيام الغياب]]>2,data.f2026[[#This Row],[الحافز]]*100%,""))) ->  | BO30: =IF(data.f2026[[#This Row],[عدد أيام الأجازات]]<=4,data.f2026[[#This Row],[الحافز]]*0,IF(data.f2026[[#This Row],[عدد أيام الأجازات]]=5,data.f2026[[#This Row],[الحافز]]*20%,IF(data.f2026[[#This Row],[عدد أيام الأجازات]]=6,data.f2026[[#This Row],[الحافز]]*40%,IF(data.f2026[[#This Row],[عدد أيام الأجازات]]=7,data.f2026[[#This Row],[الحافز]]*50%,IF(data.f2026[[#This Row],[عدد أيام الأجازات]]>7,data.f2026[[#This Row],[الحافز]]*100%,""))))) -> 0 | BP30: =IF(data.f2026[[#This Row],[أيام أجازات بعد السنوية]]<=2,data.f2026[[#This Row],[الحافز]]*0,IF(data.f2026[[#This Row],[أيام أجازات بعد السنوية]]=3,data.f2026[[#This Row],[الحافز]]*30%,IF(data.f2026[[#This Row],[أيام أجازات بعد السنوية]]=4,data.f2026[[#This Row],[الحافز]]*40%,IF(data.f2026[[#This Row],[أيام أجازات بعد السنوية]]=5,data.f2026[[#This Row],[الحافز]]*50%,IF(data.f2026[[#This Row],[أيام أجازات بعد السنوية]]>5,data.f2026[[#This Row],[الحافز]]*100%,""))))) -> 0 | BQ30: 0 | BR30: 13.41 | BT30: 3 | BU30: 0 | BX30: 0 | CC30: 0 | CE30: 0 | CG30: 2.69 | CH30: 5 | CI30: 0 | CL30: 0 | CN30: 0 | CO30: 0 | CP30: 214.5728 | CQ30: 0 | CS30: 0 | CT30: 0 | CU30: 0 | CV30: 768.64 | CW30: 6261.36
B31: 202017 | C31: 29330 | D31: البنك الاهلى | E31: اسماعيل احمد محمد مصطفي | F31: 0 | G31: دوام كامل | H31: فنى | I31: الثالثة | J31: الثالثة | K31: ميكانيكي | L31: الادارة العامة | M31: 27510300103456 | N31: 202017اسماعيل احمد محمد مصطفيالثالثةالثالثةميكانيكيالادارة العامة | O31: نعم | P31: 740.21 | Q31: 866.0457 | R31: 0 | S31: 1169.16 | T31: 129.91 | U31: 0 | V31: 0 | W31: 0 | Y31: 129.906855 | Z31: 300 | AB31: 0 | AD31: 0 | AE31: 0 | AF31: 429.91 | AG31: 0 | AH31: 0 | AI31: 0 | AJ31: 1289.66 | AK31: 0 | AL31: 0 | AM31: 0 | AN31: 0 | AO31: 0 | AP31: 0 | AQ31: 0 | AS31: 75.979 | AT31: 0 | AU31: 10 | AV31: 1375.64 | AW31: 10 | AX31: 0 | AY31: 155.8337 | AZ31: 0 | BB31: 180 | BC31: 4136.5 | BD31: 2863.5 | BE31: 7180 | BF31: 0 | BG31: 0 | BJ31: 516.8404785 | BL31: 0 | BM31: 0 | BN31: =IF(data.f2026[[#This Row],[أيام الغياب]]=1,data.f2026[[#This Row],[الحافز]]*20%,IF(data.f2026[[#This Row],[أيام الغياب]]=2,data.f2026[[#This Row],[الحافز]]*100%,IF(data.f2026[[#This Row],[أيام الغياب]]>2,data.f2026[[#This Row],[الحافز]]*100%,""))) ->  | BO31: =IF(data.f2026[[#This Row],[عدد أيام الأجازات]]<=4,data.f2026[[#This Row],[الحافز]]*0,IF(data.f2026[[#This Row],[عدد أيام الأجازات]]=5,data.f2026[[#This Row],[الحافز]]*20%,IF(data.f2026[[#This Row],[عدد أيام الأجازات]]=6,data.f2026[[#This Row],[الحافز]]*40%,IF(data.f2026[[#This Row],[عدد أيام الأجازات]]=7,data.f2026[[#This Row],[الحافز]]*50%,IF(data.f2026[[#This Row],[عدد أيام الأجازات]]>7,data.f2026[[#This Row],[الحافز]]*100%,""))))) -> 0 | BP31: =IF(data.f2026[[#This Row],[أيام أجازات بعد السنوية]]<=2,data.f2026[[#This Row],[الحافز]]*0,IF(data.f2026[[#This Row],[أيام أجازات بعد السنوية]]=3,data.f2026[[#This Row],[الحافز]]*30%,IF(data.f2026[[#This Row],[أيام أجازات بعد السنوية]]=4,data.f2026[[#This Row],[الحافز]]*40%,IF(data.f2026[[#This Row],[أيام أجازات بعد السنوية]]=5,data.f2026[[#This Row],[الحافز]]*50%,IF(data.f2026[[#This Row],[أيام أجازات بعد السنوية]]>5,data.f2026[[#This Row],[الحافز]]*100%,""))))) -> 0 | BQ31: 0 | BR31: 0 | BT31: 3 | BU31: 0 | BX31: 0 | CC31: 0 | CE31: 0 | CG31: 0 | CH31: 3 | CI31: 0 | CL31: 0 | CN31: 0 | CO31: 0 | CP31: 155.8337 | CQ31: 0 | CS31: 0 | CT31: 0 | CU31: 0 | CV31: 678.67 | CW31: 6501.33
B32: 202018 | C32: 4367 | D32: بنك مصر 1 | E32: عبدالعزيز محمد عبدالعزيز فرج | F32: 0 | G32: دوام كامل | H32: فنى | I32: الثالثة | J32: الثالثة | K32: حرفى عامل دوكو | L32: فرع بنى سويف | M32: 27012251300976 | N32: 202018عبدالعزيز محمد عبدالعزيز فرجالثالثةالثالثةحرفى عامل دوكوفرع بنى سويف | O32: نعم | P32: 1395.3 | Q32: 1632.501 | R32: 0 | S32: 2203.88 | T32: 244.88 | U32: 0 | V32: 0 | W32: 0 | Y32: 244.87515 | Z32: 300 | AB32: 0 | AD32: 0 | AE32: 0 | AF32: 544.88 | AG32: 0 | AH32: 0 | AI32: 0 | AJ32: 362.5 | AK32: 0 | AL32: 27.89 | AM32: 49.74 | AN32: 63.87 | AO32: 91.12 | AP32: 97.5 | AQ32: 104.32 | AS32: 69.765 | AT32: 600 | AU32: 10 | AV32: 1476.71 | AW32: 10 | AX32: 0 | AY32: 293.7474 | AZ32: 0 | BB32: 300 | BC32: 6406.6 | BD32: 593.4 | BE32: 7300 | BF32: 0 | BG32: 0 | BJ32: 563.2638086 | BK32: 0 | BL32: 0 | BM32: 0 | BN32: =IF(data.f2026[[#This Row],[أيام الغياب]]=1,data.f2026[[#This Row],[الحافز]]*20%,IF(data.f2026[[#This Row],[أيام الغياب]]=2,data.f2026[[#This Row],[الحافز]]*100%,IF(data.f2026[[#This Row],[أيام الغياب]]>2,data.f2026[[#This Row],[الحافز]]*100%,""))) ->  | BO32: =IF(data.f2026[[#This Row],[عدد أيام الأجازات]]<=4,data.f2026[[#This Row],[الحافز]]*0,IF(data.f2026[[#This Row],[عدد أيام الأجازات]]=5,data.f2026[[#This Row],[الحافز]]*20%,IF(data.f2026[[#This Row],[عدد أيام الأجازات]]=6,data.f2026[[#This Row],[الحافز]]*40%,IF(data.f2026[[#This Row],[عدد أيام الأجازات]]=7,data.f2026[[#This Row],[الحافز]]*50%,IF(data.f2026[[#This Row],[عدد أيام الأجازات]]>7,data.f2026[[#This Row],[الحافز]]*100%,""))))) -> 0 | BP32: =IF(data.f2026[[#This Row],[أيام أجازات بعد السنوية]]<=2,data.f2026[[#This Row],[الحافز]]*0,IF(data.f2026[[#This Row],[أيام أجازات بعد السنوية]]=3,data.f2026[[#This Row],[الحافز]]*30%,IF(data.f2026[[#This Row],[أيام أجازات بعد السنوية]]=4,data.f2026[[#This Row],[الحافز]]*40%,IF(data.f2026[[#This Row],[أيام أجازات بعد السنوية]]=5,data.f2026[[#This Row],[الحافز]]*50%,IF(data.f2026[[#This Row],[أيام أجازات بعد السنوية]]>5,data.f2026[[#This Row],[الحافز]]*100%,""))))) -> 0 | BQ32: 0 | BR32: 0 | BT32: 3 | BU32: 0 | BX32: 0 | CC32: 0 | CE32: 0 | CG32: 2.67 | CH32: 3 | CI32: 0 | CL32: 0 | CN32: 0 | CO32: 0 | CP32: 293.7474 | CQ32: 0 | CS32: 0 | CT32: 0 | CU32: 0 | CV32: 865.68 | CW32: 6434.32
B33: 202019 | C33: 29119 | D33: البنك الاهلى | E33: محمد فتحي عيد | F33: 0 | G33: دوام كامل | H33: فنى | I33: الثالثة | J33: الثالثة | K33: كهربائي | L33: فرع الاسكندرية | M33: 28505211400935 | N33: 202019محمد فتحي عيد الثالثةالثالثةكهربائيفرع الاسكندرية | O33: نعم | P33: 974.25 | Q33: 1139.8725 | R33: 0 | S33: 1538.83 | T33: 170.98 | U33: 0 | V33: 0 | W33: 0 | Y33: 170.980875 | Z33: 300 | AB33: 0 | AD33: 0 | AE33: 0 | AF33: 470.98 | AG33: 0 | AH33: 0 | AI33: 0 | AJ33: 336.73 | AK33: 0 | AL33: 29.56 | AM33: 34.73 | AN33: 44.6 | AO33: 63.62 | AP33: 68.08 | AQ33: 86.26 | AS33: 52.575 | AT33: 600 | AU33: 4 | AV33: 1320.16 | AW33: 10 | AX33: 0 | AY33: 205.1053 | AZ33: 0 | BB33: 90 | BC33: 4855.93 | BD33: 2144.07 | BE33: 7090 | BF33: 0 | BG33: 0 | BJ33: 525.1982764 | BK33: 0 | BL33: 0 | BM33: 0 | BN33: =IF(data.f2026[[#This Row],[أيام الغياب]]=1,data.f2026[[#This Row],[الحافز]]*20%,IF(data.f2026[[#This Row],[أيام الغياب]]=2,data.f2026[[#This Row],[الحافز]]*100%,IF(data.f2026[[#This Row],[أيام الغياب]]>2,data.f2026[[#This Row],[الحافز]]*100%,""))) ->  | BO33: =IF(data.f2026[[#This Row],[عدد أيام الأجازات]]<=4,data.f2026[[#This Row],[الحافز]]*0,IF(data.f2026[[#This Row],[عدد أيام الأجازات]]=5,data.f2026[[#This Row],[الحافز]]*20%,IF(data.f2026[[#This Row],[عدد أيام الأجازات]]=6,data.f2026[[#This Row],[الحافز]]*40%,IF(data.f2026[[#This Row],[عدد أيام الأجازات]]=7,data.f2026[[#This Row],[الحافز]]*50%,IF(data.f2026[[#This Row],[عدد أيام الأجازات]]>7,data.f2026[[#This Row],[الحافز]]*100%,""))))) -> 0 | BP33: =IF(data.f2026[[#This Row],[أيام أجازات بعد السنوية]]<=2,data.f2026[[#This Row],[الحافز]]*0,IF(data.f2026[[#This Row],[أيام أجازات بعد السنوية]]=3,data.f2026[[#This Row],[الحافز]]*30%,IF(data.f2026[[#This Row],[أيام أجازات بعد السنوية]]=4,data.f2026[[#This Row],[الحافز]]*40%,IF(data.f2026[[#This Row],[أيام أجازات بعد السنوية]]=5,data.f2026[[#This Row],[الحافز]]*50%,IF(data.f2026[[#This Row],[أيام أجازات بعد السنوية]]>5,data.f2026[[#This Row],[الحافز]]*100%,""))))) -> 0 | BQ33: 0 | BR33: 0 | BT33: 3 | BU33: 0 | BX33: 0 | CC33: 0 | CE33: 0 | CG33: 2.62 | CH33: 3 | CI33: 0 | CL33: 0 | CN33: 0 | CO33: 0 | CP33: 205.1053 | CQ33: 0 | CS33: 0 | CT33: 0 | CU33: 0 | CV33: 738.92 | CW33: 6351.08
B34: 202020 | C34: 30015 | D34: البنك الاهلى | E34: احمد محمد عبدالجواد حسن | F34: 0 | G34: دوام كامل | H34: فنى | I34: الرابعة | M34: 26604200101732 | N34: 202020احمد محمد عبدالجواد حسن الرابعة | P34: 974.25 | Q34: 1139.87 | R34: 0 | S34: 1538.82 | T34: 170.98 | U34: 0 | V34: 0 | W34: 0 | Y34: 170.9805 | Z34: 300 | AB34: 0 | AD34: 0 | AE34: 0 | AF34: 470.98 | AG34: 0 | AH34: 0 | AI34: 0 | AJ34: 332.32 | AK34: 0 | AL34: 29.57 | AM34: 34.72 | AN34: 44.58 | AO34: 63.6 | AP34: 68.05 | AQ34: 86.26 | AS34: 52.575 | AT34: 600 | AU34: 10 | AV34: 1321.68 | AW34: 10 | AX34: 0 | AY34: 205.1053 | AZ34: 0 | BB34: 0 | BC34: 4857.44 | BD34: 2142.56 | BE34: 7000 | BF34: 0 | BG34: 0 | BJ34: 525.2158936 | BK34: 0 | BL34: 0 | BM34: 0 | BN34: =IF(data.f2026[[#This Row],[أيام الغياب]]=1,data.f2026[[#This Row],[الحافز]]*20%,IF(data.f2026[[#This Row],[أيام الغياب]]=2,data.f2026[[#This Row],[الحافز]]*100%,IF(data.f2026[[#This Row],[أيام الغياب]]>2,data.f2026[[#This Row],[الحافز]]*100%,""))) ->  | BO34: =IF(data.f2026[[#This Row],[عدد أيام الأجازات]]<=4,data.f2026[[#This Row],[الحافز]]*0,IF(data.f2026[[#This Row],[عدد أيام الأجازات]]=5,data.f2026[[#This Row],[الحافز]]*20%,IF(data.f2026[[#This Row],[عدد أيام الأجازات]]=6,data.f2026[[#This Row],[الحافز]]*40%,IF(data.f2026[[#This Row],[عدد أيام الأجازات]]=7,data.f2026[[#This Row],[الحافز]]*50%,IF(data.f2026[[#This Row],[عدد أيام الأجازات]]>7,data.f2026[[#This Row],[الحافز]]*100%,""))))) -> 0 | BP34: =IF(data.f2026[[#This Row],[أيام أجازات بعد السنوية]]<=2,data.f2026[[#This Row],[الحافز]]*0,IF(data.f2026[[#This Row],[أيام أجازات بعد السنوية]]=3,data.f2026[[#This Row],[الحافز]]*30%,IF(data.f2026[[#This Row],[أيام أجازات بعد السنوية]]=4,data.f2026[[#This Row],[الحافز]]*40%,IF(data.f2026[[#This Row],[أيام أجازات بعد السنوية]]=5,data.f2026[[#This Row],[الحافز]]*50%,IF(data.f2026[[#This Row],[أيام أجازات بعد السنوية]]>5,data.f2026[[#This Row],[الحافز]]*100%,""))))) -> 0 | BQ34: 0 | BR34: 0 | BT34: 3 | BU34: 0 | BX34: 0 | CC34: 0 | CE34: 0 | CG34: 2.56 | CH34: 3 | CI34: 0 | CL34: 0 | CN34: 0 | CO34: 0 | CP34: 205.1053 | CQ34: 0 | CS34: 0 | CT34: 0 | CU34: 0 | CV34: 738.88 | CW34: 6261.12
B35: 202021 | C35: 29050 | D35: البنك الاهلى | E35: محمد محمد عبيد عبدالله | F35: 0 | G35: دوام كامل | H35: فنى | I35: الرابعة | J35: الرابعة | K35: حرفى عامل كاوتش | L35: الاميرية | M35: 26803160104094 | N35: 202021محمد محمد عبيد عبدالله الرابعةالرابعةحرفى عامل كاوتشالاميرية | O35: نعم | P35: 1209.77 | Q35: 1415.4309 | R35: 0 | S35: 1910.83 | T35: 212.31 | U35: 0 | V35: 0 | W35: 0 | Y35: 212.314635 | Z35: 300 | AB35: 0 | AD35: 0 | AE35: 0 | AF35: 512.31 | AG35: 0 | AH35: 0 | AI35: 0 | AJ35: 355.84 | AK35: 0 | AL35: 24.18 | AM35: 43.13 | AN35: 55.38 | AO35: 79 | AP35: 84.53 | AQ35: 90.45 | AS35: 60.4885 | AT35: 600 | AU35: 10 | AV35: 1403 | AW35: 10 | AX35: 0 | AY35: 254.6884 | AZ35: 0 | BB35: 270 | BC35: 5718.57 | BD35: 1281.43 | BE35: 7270 | BF35: 0 | BG35: 0 | BJ35: 534.777085 | BK35: 0 | BL35: 0 | BM35: 0 | BN35: =IF(data.f2026[[#This Row],[أيام الغياب]]=1,data.f2026[[#This Row],[الحافز]]*20%,IF(data.f2026[[#This Row],[أيام الغياب]]=2,data.f2026[[#This Row],[الحافز]]*100%,IF(data.f2026[[#This Row],[أيام الغياب]]>2,data.f2026[[#This Row],[الحافز]]*100%,""))) ->  | BO35: =IF(data.f2026[[#This Row],[عدد أيام الأجازات]]<=4,data.f2026[[#This Row],[الحافز]]*0,IF(data.f2026[[#This Row],[عدد أيام الأجازات]]=5,data.f2026[[#This Row],[الحافز]]*20%,IF(data.f2026[[#This Row],[عدد أيام الأجازات]]=6,data.f2026[[#This Row],[الحافز]]*40%,IF(data.f2026[[#This Row],[عدد أيام الأجازات]]=7,data.f2026[[#This Row],[الحافز]]*50%,IF(data.f2026[[#This Row],[عدد أيام الأجازات]]>7,data.f2026[[#This Row],[الحافز]]*100%,""))))) -> 0 | BP35: =IF(data.f2026[[#This Row],[أيام أجازات بعد السنوية]]<=2,data.f2026[[#This Row],[الحافز]]*0,IF(data.f2026[[#This Row],[أيام أجازات بعد السنوية]]=3,data.f2026[[#This Row],[الحافز]]*30%,IF(data.f2026[[#This Row],[أيام أجازات بعد السنوية]]=4,data.f2026[[#This Row],[الحافز]]*40%,IF(data.f2026[[#This Row],[أيام أجازات بعد السنوية]]=5,data.f2026[[#This Row],[الحافز]]*50%,IF(data.f2026[[#This Row],[أيام أجازات بعد السنوية]]>5,data.f2026[[#This Row],[الحافز]]*100%,""))))) -> 0 | BQ35: 0 | BR35: 0 | BT35: 3 | BU35: 0 | BX35: 0 | CC35: 0 | CE35: 0 | CG35: 2.56 | CH35: 3 | CI35: 0 | CL35: 0 | CN35: 0 | CO35: 0 | CP35: 254.6884 | CQ35: 0 | CS35: 0 | CT35: 0 | CU35: 0 | CV35: 798.03 | CW35: 6471.97
B36: 202023 | C36: 44005 | D36: بنك مصر 1 | E36: احمد فتحى لاشين محمد | F36: 0 | G36: دوام كامل | H36: فنى | I36: عقد مؤقت | M36: 29211051701917 | N36: 202023احمد فتحى لاشين محمدعقد مؤقت | P36: 518.44 | Q36: 518.44 | R36: 0 | S36: 699.89 | T36: 77.77 | U36: 0 | V36: 0 | W36: 0 | Y36: 77.766 | Z36: 300 | AB36: 0 | AD36: 0 | AE36: 0 | AF36: 377.77 | AG36: 0 | AH36: 0 | AI36: 0 | AJ36: 333.58 | AK36: 0 | AL36: 0 | AM36: 0 | AN36: 0 | AO36: 0 | AP36: 0 | AQ36: 0 | AS36: 98.156 | AT36: 600 | AU36: 4 | AV36: 1035.74 | AW36: 10 | AX36: 0 | AY36: 109.1453 | AZ36: 0 | BB36: 0 | BC36: 2828.76 | BD36: 4171.24 | BE36: 7000 | BF36: 0 | BG36: 0 | BJ36: 504.6161914 | BK36: 0 | BL36: 0 | BM36: 0 | BN36: =IF(data.f2026[[#This Row],[أيام الغياب]]=1,data.f2026[[#This Row],[الحافز]]*20%,IF(data.f2026[[#This Row],[أيام الغياب]]=2,data.f2026[[#This Row],[الحافز]]*100%,IF(data.f2026[[#This Row],[أيام الغياب]]>2,data.f2026[[#This Row],[الحافز]]*100%,""))) ->  | BO36: =IF(data.f2026[[#This Row],[عدد أيام الأجازات]]<=4,data.f2026[[#This Row],[الحافز]]*0,IF(data.f2026[[#This Row],[عدد أيام الأجازات]]=5,data.f2026[[#This Row],[الحافز]]*20%,IF(data.f2026[[#This Row],[عدد أيام الأجازات]]=6,data.f2026[[#This Row],[الحافز]]*40%,IF(data.f2026[[#This Row],[عدد أيام الأجازات]]=7,data.f2026[[#This Row],[الحافز]]*50%,IF(data.f2026[[#This Row],[عدد أيام الأجازات]]>7,data.f2026[[#This Row],[الحافز]]*100%,""))))) -> 0 | BP36: =IF(data.f2026[[#This Row],[أيام أجازات بعد السنوية]]<=2,data.f2026[[#This Row],[الحافز]]*0,IF(data.f2026[[#This Row],[أيام أجازات بعد السنوية]]=3,data.f2026[[#This Row],[الحافز]]*30%,IF(data.f2026[[#This Row],[أيام أجازات بعد السنوية]]=4,data.f2026[[#This Row],[الحافز]]*40%,IF(data.f2026[[#This Row],[أيام أجازات بعد السنوية]]=5,data.f2026[[#This Row],[الحافز]]*50%,IF(data.f2026[[#This Row],[أيام أجازات بعد السنوية]]>5,data.f2026[[#This Row],[الحافز]]*100%,""))))) -> 0 | BQ36: 0 | BR36: 0 | BT36: 3 | BU36: 0 | BX36: 0 | CC36: 0 | CE36: 0 | CG36: 1.99 | CH36: 3 | CI36: 0 | CL36: 0 | CN36: 0 | CO36: 0 | CP36: 109.1453 | CQ36: 0 | CS36: 0 | CT36: 0 | CU36: 0 | CV36: 621.75 | CW36: 6378.25
B37: 202024 | C37: 35375 | D37: البنك الاهلى | E37: اشرف صلاح محمود سعد | F37: 0 | G37: دوام كامل | H37: فنى | I37: الثانية | J37: الثانية | K37: كهربائي سيارات | L37: الاميرية | M37: 27805050101631 | N37: 202024اشرف صلاح محمود سعدالثانيةالثانيةكهربائي سيارات الاميرية | O37: نعم | P37: 1402.84 | Q37: 1641.3228 | R37: 0 | S37: 2215.79 | T37: 246.2 | U37: 0 | V37: 0 | W37: 0 | Y37: 246.19842 | Z37: 300 | AB37: 0 | AD37: 0 | AE37: 0 | AF37: 546.2 | AG37: 0 | AH37: 0 | AI37: 0 | AJ37: 360.36 | AK37: 0 | AL37: 28.04 | AM37: 50.01 | AN37: 64.21 | AO37: 91.61 | AP37: 98.02 | AQ37: 104.89 | AS37: 70.142 | AT37: 600 | AU37: 10 | AV37: 1477.28 | AW37: 10 | AX37: 0 | AY37: 295.3347 | AZ37: 0 | BB37: 60 | BC37: 6432.13 | BD37: 567.87 | BE37: 7060 | BF37: 0 | BG37: 0 | BJ37: 565.4935107 | BK37: 0 | BL37: 0 | BM37: 0 | BN37: =IF(data.f2026[[#This Row],[أيام الغياب]]=1,data.f2026[[#This Row],[الحافز]]*20%,IF(data.f2026[[#This Row],[أيام الغياب]]=2,data.f2026[[#This Row],[الحافز]]*100%,IF(data.f2026[[#This Row],[أيام الغياب]]>2,data.f2026[[#This Row],[الحافز]]*100%,""))) ->  | BO37: =IF(data.f2026[[#This Row],[عدد أيام الأجازات]]<=4,data.f2026[[#This Row],[الحافز]]*0,IF(data.f2026[[#This Row],[عدد أيام الأجازات]]=5,data.f2026[[#This Row],[الحافز]]*20%,IF(data.f2026[[#This Row],[عدد أيام الأجازات]]=6,data.f2026[[#This Row],[الحافز]]*40%,IF(data.f2026[[#This Row],[عدد أيام الأجازات]]=7,data.f2026[[#This Row],[الحافز]]*50%,IF(data.f2026[[#This Row],[عدد أيام الأجازات]]>7,data.f2026[[#This Row],[الحافز]]*100%,""))))) -> 0 | BP37: =IF(data.f2026[[#This Row],[أيام أجازات بعد السنوية]]<=2,data.f2026[[#This Row],[الحافز]]*0,IF(data.f2026[[#This Row],[أيام أجازات بعد السنوية]]=3,data.f2026[[#This Row],[الحافز]]*30%,IF(data.f2026[[#This Row],[أيام أجازات بعد السنوية]]=4,data.f2026[[#This Row],[الحافز]]*40%,IF(data.f2026[[#This Row],[أيام أجازات بعد السنوية]]=5,data.f2026[[#This Row],[الحافز]]*50%,IF(data.f2026[[#This Row],[أيام أجازات بعد السنوية]]>5,data.f2026[[#This Row],[الحافز]]*100%,""))))) -> 0 | BQ37: 0 | BR37: 0 | BT37: 3 | BU37: 0 | BX37: 0 | CC37: 0 | CE37: 0 | CG37: 2.68 | CH37: 3 | CI37: 0 | CL37: 0 | CN37: 0 | CO37: 0 | CP37: 295.3347 | CQ37: 0 | CS37: 0 | CT37: 0 | CU37: 0 | CV37: 869.51 | CW37: 6190.49
B38: 202025 | C38: 29083 | D38: البنك الاهلى | E38: جمال فتحي ابراهيم عبدالله | F38: 0 | G38: دوام كامل | H38: فنى | I38: الثانية | J38: الثانية | K38: فني ميكانيكي | L38: الاميرية | M38: 27012030102576 | N38: 202025جمال فتحي ابراهيم عبدالله الثانيةالثانيةفني ميكانيكيالاميرية | O38: نعم | P38: 1186.23 | Q38: 1387.8891 | R38: 0 | S38: 1873.65 | T38: 208.18 | U38: 0 | V38: 0 | W38: 0 | Y38: 208.183365 | Z38: 300 | AB38: 0 | AD38: 0 | AE38: 0 | AF38: 508.18 | AG38: 0 | AH38: 0 | AI38: 0 | AJ38: 1334.27 | AK38: 0 | AL38: 0 | AM38: 0 | AN38: 0 | AO38: 0 | AP38: 0 | AQ38: 0 | AS38: 59.3115 | AT38: 0 | AU38: 0 | AV38: 1393.58 | AW38: 10 | AX38: 0 | AY38: 249.7326 | AZ38: 0 | BB38: 120 | BC38: 5631.21 | BD38: 1368.79 | BE38: 7120 | BF38: 0 | BG38: 0 | BJ38: 533.8101807 | BK38: 0 | BL38: 0 | BM38: 0 | BN38: =IF(data.f2026[[#This Row],[أيام الغياب]]=1,data.f2026[[#This Row],[الحافز]]*20%,IF(data.f2026[[#This Row],[أيام الغياب]]=2,data.f2026[[#This Row],[الحافز]]*100%,IF(data.f2026[[#This Row],[أيام الغياب]]>2,data.f2026[[#This Row],[الحافز]]*100%,""))) ->  | BO38: =IF(data.f2026[[#This Row],[عدد أيام الأجازات]]<=4,data.f2026[[#This Row],[الحافز]]*0,IF(data.f2026[[#This Row],[عدد أيام الأجازات]]=5,data.f2026[[#This Row],[الحافز]]*20%,IF(data.f2026[[#This Row],[عدد أيام الأجازات]]=6,data.f2026[[#This Row],[الحافز]]*40%,IF(data.f2026[[#This Row],[عدد أيام الأجازات]]=7,data.f2026[[#This Row],[الحافز]]*50%,IF(data.f2026[[#This Row],[عدد أيام الأجازات]]>7,data.f2026[[#This Row],[الحافز]]*100%,""))))) -> 0 | BP38: =IF(data.f2026[[#This Row],[أيام أجازات بعد السنوية]]<=2,data.f2026[[#This Row],[الحافز]]*0,IF(data.f2026[[#This Row],[أيام أجازات بعد السنوية]]=3,data.f2026[[#This Row],[الحافز]]*30%,IF(data.f2026[[#This Row],[أيام أجازات بعد السنوية]]=4,data.f2026[[#This Row],[الحافز]]*40%,IF(data.f2026[[#This Row],[أيام أجازات بعد السنوية]]=5,data.f2026[[#This Row],[الحافز]]*50%,IF(data.f2026[[#This Row],[أيام أجازات بعد السنوية]]>5,data.f2026[[#This Row],[الحافز]]*100%,""))))) -> 0 | BQ38: 0 | BR38: 0 | BT38: 3 | BU38: 0 | BX38: 0 | CC38: 0 | CE38: 0 | CG38: 2.56 | CH38: 3 | CI38: 0 | CL38: 0 | CN38: 0 | CO38: 0 | CP38: 249.7326 | CQ38: 0 | CS38: 0 | CT38: 0 | CU38: 0 | CV38: 792.1 | CW38: 6327.9
B39: 202026 | C39: 2646 | D39: البنك الاهلى | E39: حمدي مصطفي محمد ابو الوفا | F39: 0 | G39: دوام كامل | H39: فنى | I39: الثانية | M39: 26606101200659 | N39: 202026حمدي مصطفي محمد ابو الوفاالثانية | P39: 2115.53 | Q39: 2263.62 | R39: 0 | S39: 3055.89 | T39: 339.54 | U39: 0 | V39: 0 | W39: 0 | Y39: 339.543 | Z39: 300 | AB39: 0 | AD39: 0 | AE39: 0 | AF39: 639.54 | AG39: 0 | AH39: 0 | AI39: 0 | AJ39: 440.57 | AK39: 0 | AL39: 42.29 | AM39: 75.42 | AN39: 96.84 | AO39: 138.15 | AP39: 147.82 | AQ39: 58.17 | AS39: 105.7765 | AT39: 600 | AU39: 10 | AV39: 1715.04 | AW39: 10 | AX39: 0 | AY39: 445.3748 | AZ39: 392.44 | BB39: 600 | BC39: 8469 | BD39: 0 | BE39: 9461.44 | BF39: 0 | BG39: 0 | BJ39: 796.3801807 | BK39: 0 | BL39: 0 | BM39: 0 | BN39: =IF(data.f2026[[#This Row],[أيام الغياب]]=1,data.f2026[[#This Row],[الحافز]]*20%,IF(data.f2026[[#This Row],[أيام الغياب]]=2,data.f2026[[#This Row],[الحافز]]*100%,IF(data.f2026[[#This Row],[أيام الغياب]]>2,data.f2026[[#This Row],[الحافز]]*100%,""))) ->  | BO39: =IF(data.f2026[[#This Row],[عدد أيام الأجازات]]<=4,data.f2026[[#This Row],[الحافز]]*0,IF(data.f2026[[#This Row],[عدد أيام الأجازات]]=5,data.f2026[[#This Row],[الحافز]]*20%,IF(data.f2026[[#This Row],[عدد أيام الأجازات]]=6,data.f2026[[#This Row],[الحافز]]*40%,IF(data.f2026[[#This Row],[عدد أيام الأجازات]]=7,data.f2026[[#This Row],[الحافز]]*50%,IF(data.f2026[[#This Row],[عدد أيام الأجازات]]>7,data.f2026[[#This Row],[الحافز]]*100%,""))))) -> 0 | BP39: =IF(data.f2026[[#This Row],[أيام أجازات بعد السنوية]]<=2,data.f2026[[#This Row],[الحافز]]*0,IF(data.f2026[[#This Row],[أيام أجازات بعد السنوية]]=3,data.f2026[[#This Row],[الحافز]]*30%,IF(data.f2026[[#This Row],[أيام أجازات بعد السنوية]]=4,data.f2026[[#This Row],[الحافز]]*40%,IF(data.f2026[[#This Row],[أيام أجازات بعد السنوية]]=5,data.f2026[[#This Row],[الحافز]]*50%,IF(data.f2026[[#This Row],[أيام أجازات بعد السنوية]]>5,data.f2026[[#This Row],[الحافز]]*100%,""))))) -> 0 | BQ39: 0 | BR39: 0 | BT39: 3 | BU39: 0 | BX39: 0 | CC39: 0 | CE39: 0 | CG39: 3.72 | CH39: 3 | CI39: 0 | CL39: 0 | CN39: 0 | CO39: 0 | CP39: 445.3748 | CQ39: 0 | CS39: 0 | CT39: 0 | CU39: 0 | CV39: 1251.47 | CW39: 8209.97
B40: 202027 | C40: 11041 | D40: البنك الاهلى | E40: سيد علي محمد علي | F40: 0 | G40: دوام كامل | H40: فنى | I40: الثالثة | J40: الثالثة | K40: حرفى حداد | L40: الادارة العامة | M40: 26608080100775 | N40: 202027سيد علي محمد علي الثالثةالثالثةحرفى حدادالادارة العامة | O40: نعم | P40: 1676.1 | Q40: 1961.037 | R40: 0 | S40: 2647.4 | T40: 294.16 | U40: 0 | V40: 0 | W40: 0 | Y40: 294.15555 | Z40: 300 | AB40: 0 | AD40: 0 | AE40: 0 | AF40: 594.16 | AG40: 0 | AH40: 0 | AI40: 0 | AJ40: 395.65 | AK40: 0 | AL40: 33.51 | AM40: 59.75 | AN40: 76.72 | AO40: 109.46 | AP40: 117.12 | AQ40: 125.32 | AS40: 83.805 | AT40: 600 | AU40: 8 | AV40: 1609.34 | AW40: 10 | AX40: 0 | AY40: 352.8632 | AZ40: 0 | BB40: 30 | BC40: 7468.96 | BD40: 0 | BE40: 7498.96 | BF40: 0 | BG40: 0 | BJ40: 659.1794043 | BK40: 0 | BL40: 0 | BM40: 0 | BN40: =IF(data.f2026[[#This Row],[أيام الغياب]]=1,data.f2026[[#This Row],[الحافز]]*20%,IF(data.f2026[[#This Row],[أيام الغياب]]=2,data.f2026[[#This Row],[الحافز]]*100%,IF(data.f2026[[#This Row],[أيام الغياب]]>2,data.f2026[[#This Row],[الحافز]]*100%,""))) ->  | BO40: =IF(data.f2026[[#This Row],[عدد أيام الأجازات]]<=4,data.f2026[[#This Row],[الحافز]]*0,IF(data.f2026[[#This Row],[عدد أيام الأجازات]]=5,data.f2026[[#This Row],[الحافز]]*20%,IF(data.f2026[[#This Row],[عدد أيام الأجازات]]=6,data.f2026[[#This Row],[الحافز]]*40%,IF(data.f2026[[#This Row],[عدد أيام الأجازات]]=7,data.f2026[[#This Row],[الحافز]]*50%,IF(data.f2026[[#This Row],[عدد أيام الأجازات]]>7,data.f2026[[#This Row],[الحافز]]*100%,""))))) -> 0 | BP40: =IF(data.f2026[[#This Row],[أيام أجازات بعد السنوية]]<=2,data.f2026[[#This Row],[الحافز]]*0,IF(data.f2026[[#This Row],[أيام أجازات بعد السنوية]]=3,data.f2026[[#This Row],[الحافز]]*30%,IF(data.f2026[[#This Row],[أيام أجازات بعد السنوية]]=4,data.f2026[[#This Row],[الحافز]]*40%,IF(data.f2026[[#This Row],[أيام أجازات بعد السنوية]]=5,data.f2026[[#This Row],[الحافز]]*50%,IF(data.f2026[[#This Row],[أيام أجازات بعد السنوية]]>5,data.f2026[[#This Row],[الحافز]]*100%,""))))) -> 0 | BQ40: 0 | BR40: 0 | BT40: 3 | BU40: 0 | BX40: 0 | CC40: 0 | CE40: 0 | CG40: 3.09 | CH40: 3 | CI40: 0 | CL40: 0 | CN40: 0 | CO40: 0 | CP40: 352.8632 | CQ40: 0 | CS40: 0 | CT40: 0 | CU40: 0 | CV40: 1021.13 | CW40: 6477.83
B41: 202028 | C41: 29089 | D41: البنك الاهلى | E41: محمد صلاح كمال محمد | F41: 0 | G41: دوام كامل | H41: فنى | I41: الثانية | M41: 28105151402196 | N41: 202028محمد صلاح كمال محمد الثانية | P41: 1142.25 | Q41: 1256.475 | R41: 0 | S41: 1696.24 | T41: 188.47 | U41: 0 | V41: 0 | W41: 0 | Y41: 188.47125 | Z41: 300 | AB41: 0 | AD41: 0 | AE41: 0 | AF41: 488.47 | AG41: 0 | AH41: 0 | AI41: 0 | AJ41: 339.04 | AK41: 0 | AL41: 22.83 | AM41: 40.72 | AN41: 52.29 | AO41: 74.59 | AP41: 79.82 | AQ41: 85.4 | AS41: 57.1125 | AT41: 600 | AU41: 8 | AV41: 1359.8 | AW41: 10 | AX41: 0 | AY41: 240.4737 | AZ41: 0 | BB41: 0 | BC41: 5239.93 | BD41: 1760.07 | BE41: 7000 | BF41: 0 | BG41: 0 | BJ41: 531.810415 | BK41: 0 | BL41: 0 | BM41: 0 | BN41: =IF(data.f2026[[#This Row],[أيام الغياب]]=1,data.f2026[[#This Row],[الحافز]]*20%,IF(data.f2026[[#This Row],[أيام الغياب]]=2,data.f2026[[#This Row],[الحافز]]*100%,IF(data.f2026[[#This Row],[أيام الغياب]]>2,data.f2026[[#This Row],[الحافز]]*100%,""))) ->  | BO41: =IF(data.f2026[[#This Row],[عدد أيام الأجازات]]<=4,data.f2026[[#This Row],[الحافز]]*0,IF(data.f2026[[#This Row],[عدد أيام الأجازات]]=5,data.f2026[[#This Row],[الحافز]]*20%,IF(data.f2026[[#This Row],[عدد أيام الأجازات]]=6,data.f2026[[#This Row],[الحافز]]*40%,IF(data.f2026[[#This Row],[عدد أيام الأجازات]]=7,data.f2026[[#This Row],[الحافز]]*50%,IF(data.f2026[[#This Row],[عدد أيام الأجازات]]>7,data.f2026[[#This Row],[الحافز]]*100%,""))))) -> 0 | BP41: =IF(data.f2026[[#This Row],[أيام أجازات بعد السنوية]]<=2,data.f2026[[#This Row],[الحافز]]*0,IF(data.f2026[[#This Row],[أيام أجازات بعد السنوية]]=3,data.f2026[[#This Row],[الحافز]]*30%,IF(data.f2026[[#This Row],[أيام أجازات بعد السنوية]]=4,data.f2026[[#This Row],[الحافز]]*40%,IF(data.f2026[[#This Row],[أيام أجازات بعد السنوية]]=5,data.f2026[[#This Row],[الحافز]]*50%,IF(data.f2026[[#This Row],[أيام أجازات بعد السنوية]]>5,data.f2026[[#This Row],[الحافز]]*100%,""))))) -> 0 | BQ41: 0 | BR41: 0 | BT41: 3 | BU41: 0 | BX41: 0 | CC41: 0 | CE41: 0 | CG41: 2.17 | CH41: 3 | CI41: 0 | CL41: 0 | CN41: 0 | CO41: 0 | CP41: 240.4737 | CQ41: 0 | CS41: 0 | CT41: 0 | CU41: 0 | CV41: 780.45 | CW41: 6219.55
B42: 202029 | C42: 29105 | D42: البنك الاهلى | E42: ابراهيم بدوي ابراهيم | F42: 0 | G42: دوام كامل | H42: فنى | I42: الثالثة | J42: الثالثة | K42: ميكانيكي | L42: الاميرية | M42: 27102240100559 | N42: 202029ابراهيم بدوي ابراهيم الثالثةالثالثةميكانيكيالاميرية | O42: نعم | P42: 974.25 | Q42: 1139.8725 | R42: 0 | S42: 1538.83 | T42: 170.98 | U42: 0 | V42: 0 | W42: 0 | Y42: 170.980875 | Z42: 300 | AB42: 0 | AD42: 0 | AE42: 0 | AF42: 470.98 | AG42: 0 | AH42: 0 | AI42: 0 | AJ42: 336.32 | AK42: 0 | AL42: 29.56 | AM42: 34.73 | AN42: 44.6 | AO42: 63.62 | AP42: 68.08 | AQ42: 86.26 | AS42: 52.575 | AT42: 600 | AU42: 10 | AV42: 1325.75 | AW42: 10 | AX42: 0 | AY42: 205.1053 | AZ42: 0 | BB42: 0 | BC42: 4861.52 | BD42: 2138.48 | BE42: 7000 | BF42: 0 | BG42: 0 | BJ42: 525.2698193 | BK42: 0 | BL42: 0 | BM42: 0 | BN42: =IF(data.f2026[[#This Row],[أيام الغياب]]=1,data.f2026[[#This Row],[الحافز]]*20%,IF(data.f2026[[#This Row],[أيام الغياب]]=2,data.f2026[[#This Row],[الحافز]]*100%,IF(data.f2026[[#This Row],[أيام الغياب]]>2,data.f2026[[#This Row],[الحافز]]*100%,""))) ->  | BO42: =IF(data.f2026[[#This Row],[عدد أيام الأجازات]]<=4,data.f2026[[#This Row],[الحافز]]*0,IF(data.f2026[[#This Row],[عدد أيام الأجازات]]=5,data.f2026[[#This Row],[الحافز]]*20%,IF(data.f2026[[#This Row],[عدد أيام الأجازات]]=6,data.f2026[[#This Row],[الحافز]]*40%,IF(data.f2026[[#This Row],[عدد أيام الأجازات]]=7,data.f2026[[#This Row],[الحافز]]*50%,IF(data.f2026[[#This Row],[عدد أيام الأجازات]]>7,data.f2026[[#This Row],[الحافز]]*100%,""))))) -> 0 | BP42: =IF(data.f2026[[#This Row],[أيام أجازات بعد السنوية]]<=2,data.f2026[[#This Row],[الحافز]]*0,IF(data.f2026[[#This Row],[أيام أجازات بعد السنوية]]=3,data.f2026[[#This Row],[الحافز]]*30%,IF(data.f2026[[#This Row],[أيام أجازات بعد السنوية]]=4,data.f2026[[#This Row],[الحافز]]*40%,IF(data.f2026[[#This Row],[أيام أجازات بعد السنوية]]=5,data.f2026[[#This Row],[الحافز]]*50%,IF(data.f2026[[#This Row],[أيام أجازات بعد السنوية]]>5,data.f2026[[#This Row],[الحافز]]*100%,""))))) -> 0 | BQ42: 0 | BR42: 0 | BT42: 3 | BU42: 0 | BX42: 0 | CC42: 0 | CE42: 0 | CG42: 2.62 | CH42: 3 | CI42: 0 | CL42: 0 | CN42: 0 | CO42: 0 | CP42: 205.1053 | CQ42: 0 | CS42: 0 | CT42: 0 | CU42: 0 | CV42: 739 | CW42: 6261
B43: 202030 | C43: 4238 | D43: بنك مصر 1 | E43: احمد هاني السيد سالم | F43: 0 | G43: دوام كامل | H43: فنى | I43: الثالثة | J43: الثالثة | K43: حداد | L43: فرع بنى سويف | M43: 29108060104896 | N43: 202030احمد هاني السيد سالمالثالثةالثالثةحدادفرع بنى سويف | O43: نعم | P43: 937.14 | Q43: 1096.4538 | R43: 0 | S43: 1480.21 | T43: 164.47 | U43: 0 | V43: 0 | W43: 0 | Y43: 164.46807 | Z43: 300 | AB43: 0 | AD43: 0 | AE43: 0 | AF43: 464.47 | AG43: 0 | AH43: 0 | AI43: 0 | AJ43: 333.09 | AK43: 0 | AL43: 31.29 | AM43: 33.41 | AN43: 42.9 | AO43: 61.2 | AP43: 67.7 | AQ43: 88.69 | AS43: 56.286 | AT43: 600 | AU43: 8 | AV43: 1322.57 | AW43: 10 | AX43: 0 | AY43: 197.2926 | AZ43: 0 | BB43: 0 | BC43: 4735.47 | BD43: 2264.53 | BE43: 7000 | BF43: 0 | BG43: 0 | BJ43: 523.8145215 | BK43: 0 | BL43: 0 | BM43: 0 | BN43: =IF(data.f2026[[#This Row],[أيام الغياب]]=1,data.f2026[[#This Row],[الحافز]]*20%,IF(data.f2026[[#This Row],[أيام الغياب]]=2,data.f2026[[#This Row],[الحافز]]*100%,IF(data.f2026[[#This Row],[أيام الغياب]]>2,data.f2026[[#This Row],[الحافز]]*100%,""))) ->  | BO43: =IF(data.f2026[[#This Row],[عدد أيام الأجازات]]<=4,data.f2026[[#This Row],[الحافز]]*0,IF(data.f2026[[#This Row],[عدد أيام الأجازات]]=5,data.f2026[[#This Row],[الحافز]]*20%,IF(data.f2026[[#This Row],[عدد أيام الأجازات]]=6,data.f2026[[#This Row],[الحافز]]*40%,IF(data.f2026[[#This Row],[عدد أيام الأجازات]]=7,data.f2026[[#This Row],[الحافز]]*50%,IF(data.f2026[[#This Row],[عدد أيام الأجازات]]>7,data.f2026[[#This Row],[الحافز]]*100%,""))))) -> 0 | BP43: =IF(data.f2026[[#This Row],[أيام أجازات بعد السنوية]]<=2,data.f2026[[#This Row],[الحافز]]*0,IF(data.f2026[[#This Row],[أيام أجازات بعد السنوية]]=3,data.f2026[[#This Row],[الحافز]]*30%,IF(data.f2026[[#This Row],[أيام أجازات بعد السنوية]]=4,data.f2026[[#This Row],[الحافز]]*40%,IF(data.f2026[[#This Row],[أيام أجازات بعد السنوية]]=5,data.f2026[[#This Row],[الحافز]]*50%,IF(data.f2026[[#This Row],[أيام أجازات بعد السنوية]]>5,data.f2026[[#This Row],[الحافز]]*100%,""))))) -> 0 | BQ43: 0 | BR43: 0 | BT43: 3 | BU43: 0 | BX43: 0 | CC43: 0 | CE43: 0 | CG43: 2.66 | CH43: 3 | CI43: 0 | CL43: 0 | CN43: 0 | CO43: 0 | CP43: 197.2926 | CQ43: 0 | CS43: 0 | CT43: 0 | CU43: 0 | CV43: 729.77 | CW43: 6270.23
B44: 202031 | C44: 14087 | D44: البنك الاهلى | E44: ايمن صلاح عبدالرازق | F44: 0 | G44: دوام كامل | H44: فنى | I44: الثالثة | J44: الثالثة | K44: فني تشحيم | L44: فرع بنى سويف | M44: 29201011409258 | N44: 202031ايمن صلاح عبدالرازق الثالثةالثالثةفني تشحيم فرع بنى سويف | O44: نعم | P44: 974.25 | Q44: 1139.8725 | R44: 0 | S44: 1538.83 | T44: 170.98 | U44: 0 | V44: 0 | W44: 0 | Y44: 170.980875 | Z44: 300 | AB44: 0 | AD44: 0 | AE44: 0 | AF44: 470.98 | AG44: 0 | AH44: 0 | AI44: 0 | AJ44: 336.73 | AK44: 0 | AL44: 29.56 | AM44: 34.73 | AN44: 44.6 | AO44: 63.62 | AP44: 68.08 | AQ44: 86.26 | AS44: 52.575 | AT44: 600 | AU44: 8 | AV44: 1324.16 | AW44: 10 | AX44: 0 | AY44: 205.1053 | AZ44: 0 | BB44: 0 | BC44: 4859.93 | BD44: 2140.07 | BE44: 7000 | BF44: 0 | BG44: 0 | BJ44: 525.2455957 | BK44: 0 | BL44: 0 | BM44: 0 | BN44: =IF(data.f2026[[#This Row],[أيام الغياب]]=1,data.f2026[[#This Row],[الحافز]]*20%,IF(data.f2026[[#This Row],[أيام الغياب]]=2,data.f2026[[#This Row],[الحافز]]*100%,IF(data.f2026[[#This Row],[أيام الغياب]]>2,data.f2026[[#This Row],[الحافز]]*100%,""))) ->  | BO44: =IF(data.f2026[[#This Row],[عدد أيام الأجازات]]<=4,data.f2026[[#This Row],[الحافز]]*0,IF(data.f2026[[#This Row],[عدد أيام الأجازات]]=5,data.f2026[[#This Row],[الحافز]]*20%,IF(data.f2026[[#This Row],[عدد أيام الأجازات]]=6,data.f2026[[#This Row],[الحافز]]*40%,IF(data.f2026[[#This Row],[عدد أيام الأجازات]]=7,data.f2026[[#This Row],[الحافز]]*50%,IF(data.f2026[[#This Row],[عدد أيام الأجازات]]>7,data.f2026[[#This Row],[الحافز]]*100%,""))))) -> 0 | BP44: =IF(data.f2026[[#This Row],[أيام أجازات بعد السنوية]]<=2,data.f2026[[#This Row],[الحافز]]*0,IF(data.f2026[[#This Row],[أيام أجازات بعد السنوية]]=3,data.f2026[[#This Row],[الحافز]]*30%,IF(data.f2026[[#This Row],[أيام أجازات بعد السنوية]]=4,data.f2026[[#This Row],[الحافز]]*40%,IF(data.f2026[[#This Row],[أيام أجازات بعد السنوية]]=5,data.f2026[[#This Row],[الحافز]]*50%,IF(data.f2026[[#This Row],[أيام أجازات بعد السنوية]]>5,data.f2026[[#This Row],[الحافز]]*100%,""))))) -> 0 | BQ44: 0 | BR44: 0 | BT44: 3 | BU44: 0 | BX44: 0 | CC44: 0 | CE44: 0 | CG44: 2.62 | CH44: 3 | CI44: 0 | CL44: 0 | CN44: 0 | CO44: 0 | CP44: 205.1053 | CQ44: 0 | CS44: 0 | CT44: 0 | CU44: 0 | CV44: 738.97 | CW44: 6261.03
B45: 202032 | C45: 29186 | D45: البنك الاهلى | E45: خالد وجدي محمدي | F45: ترددي | G45: إعارة | H45: فنى | I45: الثالثة | M45: 28606050101755 | N45: 202032خالد وجدي محمدي مروهالثالثة | P45: 937.14 | Q45: 1096.44 | R45: 0 | S45: 1480.19 | T45: 164.47 | U45: 0 | V45: 0 | W45: 0 | Y45: 164.466 | Z45: 300 | AB45: 0 | AD45: 0 | AE45: 0 | AF45: 464.47 | AG45: 0 | AH45: 0 | AI45: 0 | AJ45: 333.09 | AK45: 0 | AL45: 31.29 | AM45: 33.41 | AN45: 42.9 | AO45: 61.2 | AP45: 67.7 | AQ45: 88.69 | AS45: 56.286 | AT45: 600 | AU45: 10 | AV45: 1324.57 | AW45: 10 | AX45: 0 | AY45: 197.2926 | AZ45: 0 | BB45: 0 | BC45: 4737.43 | BD45: 2262.57 | BE45: 7000 | BF45: 0 | BG45: 0 | BJ45: 523.8386914 | BK45: 0 | BL45: 0 | BM45: 0 | BN45: =IF(data.f2026[[#This Row],[أيام الغياب]]=1,data.f2026[[#This Row],[الحافز]]*20%,IF(data.f2026[[#This Row],[أيام الغياب]]=2,data.f2026[[#This Row],[الحافز]]*100%,IF(data.f2026[[#This Row],[أيام الغياب]]>2,data.f2026[[#This Row],[الحافز]]*100%,""))) ->  | BO45: =IF(data.f2026[[#This Row],[عدد أيام الأجازات]]<=4,data.f2026[[#This Row],[الحافز]]*0,IF(data.f2026[[#This Row],[عدد أيام الأجازات]]=5,data.f2026[[#This Row],[الحافز]]*20%,IF(data.f2026[[#This Row],[عدد أيام الأجازات]]=6,data.f2026[[#This Row],[الحافز]]*40%,IF(data.f2026[[#This Row],[عدد أيام الأجازات]]=7,data.f2026[[#This Row],[الحافز]]*50%,IF(data.f2026[[#This Row],[عدد أيام الأجازات]]>7,data.f2026[[#This Row],[الحافز]]*100%,""))))) -> 0 | BP45: =IF(data.f2026[[#This Row],[أيام أجازات بعد السنوية]]<=2,data.f2026[[#This Row],[الحافز]]*0,IF(data.f2026[[#This Row],[أيام أجازات بعد السنوية]]=3,data.f2026[[#This Row],[الحافز]]*30%,IF(data.f2026[[#This Row],[أيام أجازات بعد السنوية]]=4,data.f2026[[#This Row],[الحافز]]*40%,IF(data.f2026[[#This Row],[أيام أجازات بعد السنوية]]=5,data.f2026[[#This Row],[الحافز]]*50%,IF(data.f2026[[#This Row],[أيام أجازات بعد السنوية]]>5,data.f2026[[#This Row],[الحافز]]*100%,""))))) -> 0 | BQ45: 0 | BR45: 0 | BT45: 3 | BU45: 0 | BX45: 0 | CC45: 0 | CE45: 0 | CG45: 2.63 | CH45: 3 | CI45: 0 | CL45: 0 | CN45: 0 | CO45: 0 | CP45: 197.2926 | CQ45: 0 | CS45: 0 | CT45: 0 | CU45: 6794.08 | CV45: 7523.84 | CW45: -523.84
B46: 202033 | C46: 2648 | D46: البنك الاهلى | E46: سيد محمد زينهم رفاعي | F46: 0 | G46: دوام كامل | H46: فنى | I46: الثالثة | J46: الثالثة | K46: حرفى سمكري | L46: الاميرية | M46: 27203142300036 | N46: 202033سيد محمد زينهم رفاعي الثالثةالثالثةحرفى سمكريالاميرية | O46: نعم | P46: 1947.76 | Q46: 2278.8792 | R46: 0 | S46: 3076.49 | T46: 341.83 | U46: 0 | V46: 0 | W46: 0 | Y46: 341.83188 | Z46: 300 | AB46: 0 | AD46: 0 | AE46: 0 | AF46: 641.83 | AG46: 0 | AH46: 0 | AI46: 0 | AJ46: 436.55 | AK46: 0 | AL46: 38.94 | AM46: 69.44 | AN46: 89.16 | AO46: 127.2 | AP46: 136.1 | AQ46: 145.63 | AS46: 97.388 | AT46: 600 | AU46: 8 | AV46: 1748.41 | AW46: 10 | AX46: 0 | AY46: 410.0547 | AZ46: 0 | BB46: 0 | BC46: 8507.49 | BD46: 0 | BE46: 8507.49 | BF46: 0 | BG46: 0 | BJ46: 751.8554785 | BK46: 0 | BL46: 0 | BM46: 0 | BN46: =IF(data.f2026[[#This Row],[أيام الغياب]]=1,data.f2026[[#This Row],[الحافز]]*20%,IF(data.f2026[[#This Row],[أيام الغياب]]=2,data.f2026[[#This Row],[الحافز]]*100%,IF(data.f2026[[#This Row],[أيام الغياب]]>2,data.f2026[[#This Row],[الحافز]]*100%,""))) ->  | BO46: =IF(data.f2026[[#This Row],[عدد أيام الأجازات]]<=4,data.f2026[[#This Row],[الحافز]]*0,IF(data.f2026[[#This Row],[عدد أيام الأجازات]]=5,data.f2026[[#This Row],[الحافز]]*20%,IF(data.f2026[[#This Row],[عدد أيام الأجازات]]=6,data.f2026[[#This Row],[الحافز]]*40%,IF(data.f2026[[#This Row],[عدد أيام الأجازات]]=7,data.f2026[[#This Row],[الحافز]]*50%,IF(data.f2026[[#This Row],[عدد أيام الأجازات]]>7,data.f2026[[#This Row],[الحافز]]*100%,""))))) -> 0 | BP46: =IF(data.f2026[[#This Row],[أيام أجازات بعد السنوية]]<=2,data.f2026[[#This Row],[الحافز]]*0,IF(data.f2026[[#This Row],[أيام أجازات بعد السنوية]]=3,data.f2026[[#This Row],[الحافز]]*30%,IF(data.f2026[[#This Row],[أيام أجازات بعد السنوية]]=4,data.f2026[[#This Row],[الحافز]]*40%,IF(data.f2026[[#This Row],[أيام أجازات بعد السنوية]]=5,data.f2026[[#This Row],[الحافز]]*50%,IF(data.f2026[[#This Row],[أيام أجازات بعد السنوية]]>5,data.f2026[[#This Row],[الحافز]]*100%,""))))) -> 0 | BQ46: 0 | BR46: 0 | BT46: 3 | BU46: 0 | BX46: 0 | CC46: 0 | CE46: 0 | CG46: 3.48 | CH46: 3 | CI46: 0 | CL46: 0 | CN46: 0 | CO46: 0 | CP46: 410.0547 | CQ46: 0 | CS46: 0 | CT46: 0 | CU46: 0 | CV46: 1171.39 | CW46: 7336.1
B47: 202034 | C47: 4115 | D47: بنك مصر 1 | E47: احمد ابراهيم احمد محمد ابراهيم | F47: 0 | G47: دوام كامل | H47: فنى | I47: الرابعة | M47: 28606060105295 | N47: 202034احمد ابراهيم احمد محمد ابراهيمالرابعة | P47: 735.53 | Q47: 860.57 | R47: 0 | S47: 1161.77 | T47: 129.09 | U47: 0 | V47: 0 | W47: 0 | Y47: 129.0855 | Z47: 300 | AB47: 0 | AD47: 0 | AE47: 0 | AF47: 429.09 | AG47: 0 | AH47: 0 | AI47: 0 | AJ47: 322.83 | AK47: 0 | AL47: 40.69 | AM47: 38.29 | AN47: 35.72 | AO47: 57.97 | AP47: 80.03 | AQ47: 101.88 | AS47: 76.447 | AT47: 600 | AU47: 4 | AV47: 1357.86 | AW47: 10 | AX47: 0 | AY47: 154.8484 | AZ47: 0 | BB47: 0 | BC47: 4103.23 | BD47: 2896.77 | BE47: 7000 | BF47: 0 | BG47: 0 | BJ47: 516.5698828 | BK47: 0 | BL47: 0 | BM47: 0 | BN47: =IF(data.f2026[[#This Row],[أيام الغياب]]=1,data.f2026[[#This Row],[الحافز]]*20%,IF(data.f2026[[#This Row],[أيام الغياب]]=2,data.f2026[[#This Row],[الحافز]]*100%,IF(data.f2026[[#This Row],[أيام الغياب]]>2,data.f2026[[#This Row],[الحافز]]*100%,""))) ->  | BO47: =IF(data.f2026[[#This Row],[عدد أيام الأجازات]]<=4,data.f2026[[#This Row],[الحافز]]*0,IF(data.f2026[[#This Row],[عدد أيام الأجازات]]=5,data.f2026[[#This Row],[الحافز]]*20%,IF(data.f2026[[#This Row],[عدد أيام الأجازات]]=6,data.f2026[[#This Row],[الحافز]]*40%,IF(data.f2026[[#This Row],[عدد أيام الأجازات]]=7,data.f2026[[#This Row],[الحافز]]*50%,IF(data.f2026[[#This Row],[عدد أيام الأجازات]]>7,data.f2026[[#This Row],[الحافز]]*100%,""))))) -> 0 | BP47: =IF(data.f2026[[#This Row],[أيام أجازات بعد السنوية]]<=2,data.f2026[[#This Row],[الحافز]]*0,IF(data.f2026[[#This Row],[أيام أجازات بعد السنوية]]=3,data.f2026[[#This Row],[الحافز]]*30%,IF(data.f2026[[#This Row],[أيام أجازات بعد السنوية]]=4,data.f2026[[#This Row],[الحافز]]*40%,IF(data.f2026[[#This Row],[أيام أجازات بعد السنوية]]=5,data.f2026[[#This Row],[الحافز]]*50%,IF(data.f2026[[#This Row],[أيام أجازات بعد السنوية]]>5,data.f2026[[#This Row],[الحافز]]*100%,""))))) -> 0 | BQ47: 0 | BR47: 0 | BT47: 3 | BU47: 0 | BX47: 0 | CC47: 0 | CE47: 0 | CG47: 2.44 | CH47: 3 | CI47: 0 | CL47: 0 | CN47: 0 | CO47: 0 | CP47: 154.8484 | CQ47: 0 | CS47: 0 | CT47: 0 | CU47: 0 | CV47: 679.86 | CW47: 6320.14
B48: 202035 | C48: 30055 | D48: البنك الاهلى | E48: عادل فتحي عيد مجاهد | F48: 0 | G48: دوام كامل | H48: فنى | I48: الخامسة | J48: الخامسة | K48: حرفى ميكانيكى | L48: الاميرية | M48: 294403031400119 | N48: 202035عادل فتحي عيد مجاهدالخامسةالخامسةحرفى ميكانيكىالاميرية | O48: نعم | P48: 735.53 | Q48: 860.5701 | R48: 0 | S48: 1161.77 | T48: 129.09 | U48: 0 | V48: 0 | W48: 0 | Y48: 129.085515 | Z48: 300 | AB48: 0 | AD48: 0 | AE48: 0 | AF48: 429.09 | AG48: 0 | AH48: 0 | AI48: 0 | AJ48: 1285.41 | AK48: 0 | AL48: 0 | AM48: 0 | AN48: 0 | AO48: 0 | AP48: 0 | AQ48: 0 | AS48: 76.447 | AT48: 0 | AU48: 0 | AV48: 1361.86 | AW48: 10 | AX48: 0 | AY48: 154.8484 | AZ48: 0 | BB48: 30 | BC48: 4107.23 | BD48: 2892.77 | BE48: 7030 | BF48: 0 | BG48: 0 | BJ48: 516.6182764 | BL48: 0 | BM48: 0 | BN48: =IF(data.f2026[[#This Row],[أيام الغياب]]=1,data.f2026[[#This Row],[الحافز]]*20%,IF(data.f2026[[#This Row],[أيام الغياب]]=2,data.f2026[[#This Row],[الحافز]]*100%,IF(data.f2026[[#This Row],[أيام الغياب]]>2,data.f2026[[#This Row],[الحافز]]*100%,""))) ->  | BO48: =IF(data.f2026[[#This Row],[عدد أيام الأجازات]]<=4,data.f2026[[#This Row],[الحافز]]*0,IF(data.f2026[[#This Row],[عدد أيام الأجازات]]=5,data.f2026[[#This Row],[الحافز]]*20%,IF(data.f2026[[#This Row],[عدد أيام الأجازات]]=6,data.f2026[[#This Row],[الحافز]]*40%,IF(data.f2026[[#This Row],[عدد أيام الأجازات]]=7,data.f2026[[#This Row],[الحافز]]*50%,IF(data.f2026[[#This Row],[عدد أيام الأجازات]]>7,data.f2026[[#This Row],[الحافز]]*100%,""))))) -> 0 | BP48: =IF(data.f2026[[#This Row],[أيام أجازات بعد السنوية]]<=2,data.f2026[[#This Row],[الحافز]]*0,IF(data.f2026[[#This Row],[أيام أجازات بعد السنوية]]=3,data.f2026[[#This Row],[الحافز]]*30%,IF(data.f2026[[#This Row],[أيام أجازات بعد السنوية]]=4,data.f2026[[#This Row],[الحافز]]*40%,IF(data.f2026[[#This Row],[أيام أجازات بعد السنوية]]=5,data.f2026[[#This Row],[الحافز]]*50%,IF(data.f2026[[#This Row],[أيام أجازات بعد السنوية]]>5,data.f2026[[#This Row],[الحافز]]*100%,""))))) -> 0 | BQ48: 0 | BR48: 0 | BT48: 3 | BU48: 0 | BX48: 0 | CC48: 0 | CE48: 0 | CG48: 0 | CH48: 3 | CI48: 0 | CL48: 0 | CN48: 0 | CO48: 0 | CP48: 154.8484 | CQ48: 0 | CS48: 0 | CT48: 0 | CU48: 0 | CV48: 677.47 | CW48: 6352.53
B49: 202038 | C49: 29033 | D49: البنك الاهلى | E49: احمد محمد احمد حسن | F49: 0 | G49: دوام كامل | H49: فنى | I49: الرابعة | J49: الرابعة | K49: حرفى سمكرى | L49: الاميرية | M49: 276120201101858 | N49: 202038احمد محمد احمد حسن الرابعةالرابعةحرفى سمكرىالاميرية | O49: نعم | P49: 1209.77 | Q49: 1415.4309 | R49: 0 | S49: 1910.83 | T49: 212.31 | U49: 0 | V49: 0 | W49: 0 | Y49: 212.314635 | Z49: 300 | AB49: 0 | AD49: 0 | AE49: 0 | AF49: 512.31 | AG49: 0 | AH49: 0 | AI49: 0 | AJ49: 355.82 | AK49: 0 | AL49: 24.18 | AM49: 43.13 | AN49: 55.38 | AO49: 79 | AP49: 84.53 | AQ49: 90.45 | AS49: 60.4885 | AT49: 600 | AU49: 10 | AV49: 1402.98 | AW49: 10 | AX49: 0 | AY49: 254.6884 | AZ49: 0 | BB49: 30 | BC49: 5718.55 | BD49: 1281.45 | BE49: 7030 | BF49: 0 | BG49: 0 | BJ49: 534.7760107 | BK49: 0 | BL49: 0 | BM49: 0 | BN49: =IF(data.f2026[[#This Row],[أيام الغياب]]=1,data.f2026[[#This Row],[الحافز]]*20%,IF(data.f2026[[#This Row],[أيام الغياب]]=2,data.f2026[[#This Row],[الحافز]]*100%,IF(data.f2026[[#This Row],[أيام الغياب]]>2,data.f2026[[#This Row],[الحافز]]*100%,""))) ->  | BO49: =IF(data.f2026[[#This Row],[عدد أيام الأجازات]]<=4,data.f2026[[#This Row],[الحافز]]*0,IF(data.f2026[[#This Row],[عدد أيام الأجازات]]=5,data.f2026[[#This Row],[الحافز]]*20%,IF(data.f2026[[#This Row],[عدد أيام الأجازات]]=6,data.f2026[[#This Row],[الحافز]]*40%,IF(data.f2026[[#This Row],[عدد أيام الأجازات]]=7,data.f2026[[#This Row],[الحافز]]*50%,IF(data.f2026[[#This Row],[عدد أيام الأجازات]]>7,data.f2026[[#This Row],[الحافز]]*100%,""))))) -> 0 | BP49: =IF(data.f2026[[#This Row],[أيام أجازات بعد السنوية]]<=2,data.f2026[[#This Row],[الحافز]]*0,IF(data.f2026[[#This Row],[أيام أجازات بعد السنوية]]=3,data.f2026[[#This Row],[الحافز]]*30%,IF(data.f2026[[#This Row],[أيام أجازات بعد السنوية]]=4,data.f2026[[#This Row],[الحافز]]*40%,IF(data.f2026[[#This Row],[أيام أجازات بعد السنوية]]=5,data.f2026[[#This Row],[الحافز]]*50%,IF(data.f2026[[#This Row],[أيام أجازات بعد السنوية]]>5,data.f2026[[#This Row],[الحافز]]*100%,""))))) -> 0 | BQ49: 0 | BR49: 0 | BT49: 3 | BU49: 0 | BX49: 0 | CC49: 0 | CE49: 0 | CG49: 2.55 | CH49: 3 | CI49: 0 | CL49: 0 | CN49: 0 | CO49: 0 | CP49: 254.6884 | CQ49: 0 | CS49: 0 | CT49: 0 | CU49: 0 | CV49: 798.01 | CW49: 6231.99
B50: 202039 | C50: 44003 | D50: بنك مصر 1 | E50: احمد اشرف عبد المحسن حسن | F50: 0 | G50: دوام كامل | H50: فنى | I50: عقد مؤقت | M50: 29809010104311 | N50: 202039احمد اشرف عبد المحسن حسنعقد مؤقت | P50: 401.32 | Q50: 401.32 | R50: 0 | S50: 541.78 | T50: 60.2 | U50: 0 | V50: 0 | W50: 0 | Y50: 60.198 | Z50: 300 | AB50: 0 | AD50: 0 | AE50: 0 | AF50: 360.2 | AG50: 0 | AH50: 0 | AI50: 0 | AJ50: 926.82 | AK50: 0 | AL50: 0 | AM50: 0 | AN50: 0 | AO50: 0 | AP50: 0 | AQ50: 0 | AS50: 109.868 | AT50: 600 | AU50: 0 | AV50: 1636.69 | AW50: 10 | AX50: 0 | AY50: 84.48843 | AZ50: 0 | BB50: 0 | BC50: 3094.68 | BD50: 3905.32 | BE50: 7000 | BF50: 0 | BG50: 0 | BJ50: 499.9885107 | BL50: 0 | BM50: 0 | BN50: =IF(data.f2026[[#This Row],[أيام الغياب]]=1,data.f2026[[#This Row],[الحافز]]*20%,IF(data.f2026[[#This Row],[أيام الغياب]]=2,data.f2026[[#This Row],[الحافز]]*100%,IF(data.f2026[[#This Row],[أيام الغياب]]>2,data.f2026[[#This Row],[الحافز]]*100%,""))) ->  | BO50: =IF(data.f2026[[#This Row],[عدد أيام الأجازات]]<=4,data.f2026[[#This Row],[الحافز]]*0,IF(data.f2026[[#This Row],[عدد أيام الأجازات]]=5,data.f2026[[#This Row],[الحافز]]*20%,IF(data.f2026[[#This Row],[عدد أيام الأجازات]]=6,data.f2026[[#This Row],[الحافز]]*40%,IF(data.f2026[[#This Row],[عدد أيام الأجازات]]=7,data.f2026[[#This Row],[الحافز]]*50%,IF(data.f2026[[#This Row],[عدد أيام الأجازات]]>7,data.f2026[[#This Row],[الحافز]]*100%,""))))) -> 0 | BP50: =IF(data.f2026[[#This Row],[أيام أجازات بعد السنوية]]<=2,data.f2026[[#This Row],[الحافز]]*0,IF(data.f2026[[#This Row],[أيام أجازات بعد السنوية]]=3,data.f2026[[#This Row],[الحافز]]*30%,IF(data.f2026[[#This Row],[أيام أجازات بعد السنوية]]=4,data.f2026[[#This Row],[الحافز]]*40%,IF(data.f2026[[#This Row],[أيام أجازات بعد السنوية]]=5,data.f2026[[#This Row],[الحافز]]*50%,IF(data.f2026[[#This Row],[أيام أجازات بعد السنوية]]>5,data.f2026[[#This Row],[الحافز]]*100%,""))))) -> 0 | BQ50: 0 | BR50: 0 | BT50: 3 | BU50: 0 | BX50: 0 | CC50: 0 | CE50: 0 | CG50: 3 | CH50: 3 | CI50: 0 | CL50: 0 | CN50: 0 | CO50: 0 | CP50: 84.48843 | CQ50: 0 | CS50: 0 | CT50: 0 | CU50: 0 | CV50: 593.48 | CW50: 6406.52
B51: 202040 | C51: 22152 | D51: بنك مصر 1 | E51: رمضان امين محمد عبد الله | F51: 0 | G51: دوام كامل | H51: فنى | I51: الرابعة | J51: الرابعة | K51: حرفى نقاش | L51: الاميرية | M51: 27417150102733 | N51: 202040رمضان امين محمد عبد اللهالرابعةالرابعةحرفى نقاشالاميرية | O51: نعم | P51: 1090.62 | Q51: 1276.0254 | R51: 0 | S51: 1722.63 | T51: 191.4 | U51: 0 | V51: 0 | W51: 0 | Y51: 191.40381 | Z51: 300 | AB51: 0 | AC51: 0 | AD51: 0 | AE51: 0 | AF51: 491.4 | AG51: 36.27 | AH51: 40.47 | AI51: 65 | AJ51: 0 | AK51: 200 | AL51: 24.13 | AM51: 38.88 | AN51: 49.92 | AO51: 71.22 | AP51: 76.21 | AQ51: 81.54 | AS51: 54.531 | AT51: 600 | AU51: 10 | AV51: 1348.17 | AW51: 10 | AX51: 0 | AY51: 229.6042 | AZ51: 0 | BB51: 0 | BC51: 5269.23 | BD51: 1730.77 | BE51: 7000 | BF51: 0 | BG51: 0 | BJ51: 550 | BK51: 0 | BL51: 0 | BM51: 0 | BN51: =IF(data.f2026[[#This Row],[أيام الغياب]]=1,data.f2026[[#This Row],[الحافز]]*20%,IF(data.f2026[[#This Row],[أيام الغياب]]=2,data.f2026[[#This Row],[الحافز]]*100%,IF(data.f2026[[#This Row],[أيام الغياب]]>2,data.f2026[[#This Row],[الحافز]]*100%,""))) ->  | BO51: =IF(data.f2026[[#This Row],[عدد أيام الأجازات]]<=4,data.f2026[[#This Row],[الحافز]]*0,IF(data.f2026[[#This Row],[عدد أيام الأجازات]]=5,data.f2026[[#This Row],[الحافز]]*20%,IF(data.f2026[[#This Row],[عدد أيام الأجازات]]=6,data.f2026[[#This Row],[الحافز]]*40%,IF(data.f2026[[#This Row],[عدد أيام الأجازات]]=7,data.f2026[[#This Row],[الحافز]]*50%,IF(data.f2026[[#This Row],[عدد أيام الأجازات]]>7,data.f2026[[#This Row],[الحافز]]*100%,""))))) -> 0 | BP51: =IF(data.f2026[[#This Row],[أيام أجازات بعد السنوية]]<=2,data.f2026[[#This Row],[الحافز]]*0,IF(data.f2026[[#This Row],[أيام أجازات بعد السنوية]]=3,data.f2026[[#This Row],[الحافز]]*30%,IF(data.f2026[[#This Row],[أيام أجازات بعد السنوية]]=4,data.f2026[[#This Row],[الحافز]]*40%,IF(data.f2026[[#This Row],[أيام أجازات بعد السنوية]]=5,data.f2026[[#This Row],[الحافز]]*50%,IF(data.f2026[[#This Row],[أيام أجازات بعد السنوية]]>5,data.f2026[[#This Row],[الحافز]]*100%,""))))) -> 0 | BQ51: 0 | BR51: 0 | BS51: 0 | BT51: 3 | BU51: 0 | BV51: 0 | BW51: 0 | BX51: 0 | BY51: 0 | BZ51: 0 | CA51: 0 | CC51: 0 | CD51: 0 | CE51: 0 | CF51: 0 | CG51: 2.99 | CH51: 3 | CI51: 0 | CK51: 0 | CL51: 0 | CN51: 0 | CO51: 0 | CP51: 229.6042 | CQ51: 0 | CS51: 0 | CT51: 0 | CU51: 0 | CV51: 788.59 | CW51: 6211.41
B52: 202041 | C52: 21890 | D52: بنك مصر 1 | E52: وليد احمد عبده ابراهيم | F52: 0 | G52: دوام كامل | H52: فنى | I52: الاولى | J52: الأولى | K52: فنى كهربائى سيارات | L52: قطاع شئون الفنية | M52: 27211020101311 | N52: 202041وليد احمد عبده ابراهيمالاولىالأولىفنى كهربائى سياراتقطاع شئون الفنية | O52: نعم | P52: 2267.84 | Q52: 2653.3728 | R52: 0 | S52: 3582.05 | T52: 398.01 | U52: 0 | V52: 0 | W52: 0 | Y52: 398.00592 | Z52: 300 | AB52: 0 | AC52: 0 | AD52: 0 | AE52: 0 | AF52: 698.01 | AG52: 74.27 | AH52: 83.17 | AI52: 100.05 | AJ52: 0 | AK52: 190 | AL52: 45.33 | AM52: 80.84 | AN52: 103.81 | AO52: 148.1 | AP52: 158.47 | AQ52: 169.56 | AS52: 113.392 | AT52: 600 | AU52: 10 | AV52: 1876.99 | AW52: 10 | AX52: 0 | AY52: 477.44 | AZ52: 0 | BB52: 0 | BC52: 9695.87 | BD52: 0 | BE52: 9695.87 | BF52: 0 | BG52: 0 | BJ52: 858 | BK52: 96 | BL52: 0 | BM52: 0 | BN52: =IF(data.f2026[[#This Row],[أيام الغياب]]=1,data.f2026[[#This Row],[الحافز]]*20%,IF(data.f2026[[#This Row],[أيام الغياب]]=2,data.f2026[[#This Row],[الحافز]]*100%,IF(data.f2026[[#This Row],[أيام الغياب]]>2,data.f2026[[#This Row],[الحافز]]*100%,""))) ->  | BO52: =IF(data.f2026[[#This Row],[عدد أيام الأجازات]]<=4,data.f2026[[#This Row],[الحافز]]*0,IF(data.f2026[[#This Row],[عدد أيام الأجازات]]=5,data.f2026[[#This Row],[الحافز]]*20%,IF(data.f2026[[#This Row],[عدد أيام الأجازات]]=6,data.f2026[[#This Row],[الحافز]]*40%,IF(data.f2026[[#This Row],[عدد أيام الأجازات]]=7,data.f2026[[#This Row],[الحافز]]*50%,IF(data.f2026[[#This Row],[عدد أيام الأجازات]]>7,data.f2026[[#This Row],[الحافز]]*100%,""))))) -> 0 | BP52: =IF(data.f2026[[#This Row],[أيام أجازات بعد السنوية]]<=2,data.f2026[[#This Row],[الحافز]]*0,IF(data.f2026[[#This Row],[أيام أجازات بعد السنوية]]=3,data.f2026[[#This Row],[الحافز]]*30%,IF(data.f2026[[#This Row],[أيام أجازات بعد السنوية]]=4,data.f2026[[#This Row],[الحافز]]*40%,IF(data.f2026[[#This Row],[أيام أجازات بعد السنوية]]=5,data.f2026[[#This Row],[الحافز]]*50%,IF(data.f2026[[#This Row],[أيام أجازات بعد السنوية]]>5,data.f2026[[#This Row],[الحافز]]*100%,""))))) -> 0 | BQ52: 4.12 | BR52: 0 | BS52: 0 | BT52: 3 | BU52: 0 | BV52: 0 | BW52: 0 | BX52: 0 | BY52: 0 | BZ52: 0 | CA52: 0 | CC52: 0 | CD52: 0 | CE52: 0 | CF52: 0 | CG52: 3.76 | CH52: 5 | CI52: 0 | CK52: 0 | CL52: 0 | CN52: 0 | CO52: 0 | CP52: 477.44 | CQ52: 0 | CS52: 0 | CT52: 0 | CU52: 0 | CV52: 1447.32 | CW52: 8248.55
B53: 202042 | C53: 21730 | D53: بنك مصر 1 | E53: عصام الدين عفيفي محمود عفيفى | F53: 0 | G53: دوام كامل | H53: ادارى | I53: الثانية | M53: 26610291000772 | N53: 202042عصام الدين عفيفي محمود عفيفىالثانية | P53: 2254.16 | Q53: 2637.37 | R53: 0 | S53: 3560.45 | T53: 395.61 | U53: 0 | V53: 0 | W53: 0 | Y53: 0 | Z53: 300 | AB53: 0 | AC53: 0 | AD53: 0 | AE53: 0 | AF53: 300 | AG53: 79.09 | AH53: 88.3 | AI53: 106 | AJ53: 0 | AK53: 190 | AL53: 45.06 | AM53: 80.36 | AN53: 103.18 | AO53: 147.2 | AP53: 157.51 | AQ53: 168.54 | AS53: 112.708 | AT53: 600 | AU53: 6 | AV53: 1883.95 | AW53: 10 | AX53: 0 | AY53: 474.56 | AZ53: 0 | BB53: 0 | BC53: 9261.94 | BD53: 0 | BE53: 9261.94 | BF53: 0 | BG53: 0 | BJ53: 847 | BK53: 29 | BL53: 0 | BM53: 0 | BN53: =IF(data.f2026[[#This Row],[أيام الغياب]]=1,data.f2026[[#This Row],[الحافز]]*20%,IF(data.f2026[[#This Row],[أيام الغياب]]=2,data.f2026[[#This Row],[الحافز]]*100%,IF(data.f2026[[#This Row],[أيام الغياب]]>2,data.f2026[[#This Row],[الحافز]]*100%,""))) ->  | BO53: =IF(data.f2026[[#This Row],[عدد أيام الأجازات]]<=4,data.f2026[[#This Row],[الحافز]]*0,IF(data.f2026[[#This Row],[عدد أيام الأجازات]]=5,data.f2026[[#This Row],[الحافز]]*20%,IF(data.f2026[[#This Row],[عدد أيام الأجازات]]=6,data.f2026[[#This Row],[الحافز]]*40%,IF(data.f2026[[#This Row],[عدد أيام الأجازات]]=7,data.f2026[[#This Row],[الحافز]]*50%,IF(data.f2026[[#This Row],[عدد أيام الأجازات]]>7,data.f2026[[#This Row],[الحافز]]*100%,""))))) -> 0 | BP53: =IF(data.f2026[[#This Row],[أيام أجازات بعد السنوية]]<=2,data.f2026[[#This Row],[الحافز]]*0,IF(data.f2026[[#This Row],[أيام أجازات بعد السنوية]]=3,data.f2026[[#This Row],[الحافز]]*30%,IF(data.f2026[[#This Row],[أيام أجازات بعد السنوية]]=4,data.f2026[[#This Row],[الحافز]]*40%,IF(data.f2026[[#This Row],[أيام أجازات بعد السنوية]]=5,data.f2026[[#This Row],[الحافز]]*50%,IF(data.f2026[[#This Row],[أيام أجازات بعد السنوية]]>5,data.f2026[[#This Row],[الحافز]]*100%,""))))) -> 0 | BQ53: 172.82 | BR53: 0 | BS53: 0 | BT53: 3 | BU53: 750 | BV53: 0 | BW53: 0 | BX53: 0 | BY53: 0 | BZ53: 0 | CA53: 0 | CC53: 0 | CD53: 0 | CE53: 0 | CF53: 0 | CG53: 3.45 | CH53: 3 | CI53: 0 | CK53: 0 | CL53: 0 | CN53: 0 | CO53: 0 | CP53: 474.56 | CQ53: 0 | CS53: 0 | CT53: 0 | CU53: 0 | CV53: 2282.83 | CW53: 6979.11
B54: 202043 | C54: 21813 | D54: بنك مصر 1 | E54: محرم فكرى جلال عبد الباقى | F54: 0 | G54: دوام كامل | H54: فنى | I54: الثالثة | J54: الثالثة | K54: حرفى ميكانيكى | L54: الاميرية | M54: 27503162101777 | N54: 202043محرم فكرى جلال عبد الباقىالثالثةالثالثةحرفى ميكانيكى الاميرية | O54: نعم | P54: 1998.07 | Q54: 2337.7419 | R54: 0 | S54: 3155.95 | T54: 350.66 | U54: 0 | V54: 0 | W54: 0 | Y54: 350.661285 | Z54: 300 | AB54: 0 | AC54: 0 | AD54: 0 | AE54: 0 | AF54: 650.66 | AG54: 70.76 | AH54: 78.98 | AI54: 94.28 | AJ54: 0 | AK54: 200 | AL54: 39.94 | AM54: 71.23 | AN54: 91.46 | AO54: 130.48 | AP54: 139.62 | AQ54: 149.39 | AS54: 99.9035 | AT54: 600 | AU54: 10 | AV54: 1776.04 | AW54: 10 | AX54: 0 | AY54: 420.6463 | AZ54: 0 | BB54: 0 | BC54: 8701.7 | BD54: 0 | BE54: 8701.7 | BF54: 0 | BG54: 0 | BJ54: 770 | BK54: 0 | BL54: 0 | BM54: 0 | BN54: =IF(data.f2026[[#This Row],[أيام الغياب]]=1,data.f2026[[#This Row],[الحافز]]*20%,IF(data.f2026[[#This Row],[أيام الغياب]]=2,data.f2026[[#This Row],[الحافز]]*100%,IF(data.f2026[[#This Row],[أيام الغياب]]>2,data.f2026[[#This Row],[الحافز]]*100%,""))) ->  | BO54: =IF(data.f2026[[#This Row],[عدد أيام الأجازات]]<=4,data.f2026[[#This Row],[الحافز]]*0,IF(data.f2026[[#This Row],[عدد أيام الأجازات]]=5,data.f2026[[#This Row],[الحافز]]*20%,IF(data.f2026[[#This Row],[عدد أيام الأجازات]]=6,data.f2026[[#This Row],[الحافز]]*40%,IF(data.f2026[[#This Row],[عدد أيام الأجازات]]=7,data.f2026[[#This Row],[الحافز]]*50%,IF(data.f2026[[#This Row],[عدد أيام الأجازات]]>7,data.f2026[[#This Row],[الحافز]]*100%,""))))) -> 0 | BP54: =IF(data.f2026[[#This Row],[أيام أجازات بعد السنوية]]<=2,data.f2026[[#This Row],[الحافز]]*0,IF(data.f2026[[#This Row],[أيام أجازات بعد السنوية]]=3,data.f2026[[#This Row],[الحافز]]*30%,IF(data.f2026[[#This Row],[أيام أجازات بعد السنوية]]=4,data.f2026[[#This Row],[الحافز]]*40%,IF(data.f2026[[#This Row],[أيام أجازات بعد السنوية]]=5,data.f2026[[#This Row],[الحافز]]*50%,IF(data.f2026[[#This Row],[أيام أجازات بعد السنوية]]>5,data.f2026[[#This Row],[الحافز]]*100%,""))))) -> 0 | BQ54: 0 | BR54: 0 | BS54: 0 | BT54: 3 | BU54: 0 | BV54: 0 | BW54: 0 | BX54: 0 | BY54: 0 | BZ54: 0 | CA54: 0 | CC54: 0 | CD54: 0 | CE54: 0 | CF54: 0 | CG54: 3.35 | CH54: 3 | CI54: 0 | CK54: 0 | CL54: 0 | CN54: 0 | CO54: 0 | CP54: 420.6463 | CQ54: 0 | CS54: 0 | CT54: 0 | CU54: 0 | CV54: 1200 | CW54: 7501.7
B55: 202044 | C55: 22120 | D55: بنك مصر 1 | E55: علاء الدين عبد الغنى عبد الرحمن | F55: 0 | G55: دوام كامل | H55: فنى | I55: الثالثة | J55: الثالثة | K55: حرفى ميكانيكى | L55: الاميرية | M55: 27809282102272 | N55: 202044علاء الدين عبد الغنى عبد الرحمن الثالثةالثالثةحرفى ميكانيكى الاميرية | O55: نعم | P55: 1660.9 | Q55: 1943.253 | R55: 0 | S55: 2623.39 | T55: 291.49 | U55: 0 | V55: 0 | W55: 0 | Y55: 291.48795 | Z55: 300 | AB55: 0 | AC55: 0 | AD55: 0 | AE55: 0 | AF55: 591.49 | AG55: 59.01 | AH55: 65.8 | AI55: 78.36 | AJ55: 0 | AK55: 200 | AL55: 33.2 | AM55: 59.21 | AN55: 76.03 | AO55: 108.46 | AP55: 116.06 | AQ55: 124.18 | AS55: 83.045 | AT55: 600 | AU55: 10 | AV55: 1613.36 | AW55: 10 | AX55: 0 | AY55: 349.6632 | AZ55: 0 | BB55: 0 | BC55: 7422.65 | BD55: 0 | BE55: 7422.65 | BF55: 0 | BG55: 0 | BJ55: 649 | BK55: 0 | BL55: 0 | BM55: 0 | BN55: =IF(data.f2026[[#This Row],[أيام الغياب]]=1,data.f2026[[#This Row],[الحافز]]*20%,IF(data.f2026[[#This Row],[أيام الغياب]]=2,data.f2026[[#This Row],[الحافز]]*100%,IF(data.f2026[[#This Row],[أيام الغياب]]>2,data.f2026[[#This Row],[الحافز]]*100%,""))) ->  | BO55: =IF(data.f2026[[#This Row],[عدد أيام الأجازات]]<=4,data.f2026[[#This Row],[الحافز]]*0,IF(data.f2026[[#This Row],[عدد أيام الأجازات]]=5,data.f2026[[#This Row],[الحافز]]*20%,IF(data.f2026[[#This Row],[عدد أيام الأجازات]]=6,data.f2026[[#This Row],[الحافز]]*40%,IF(data.f2026[[#This Row],[عدد أيام الأجازات]]=7,data.f2026[[#This Row],[الحافز]]*50%,IF(data.f2026[[#This Row],[عدد أيام الأجازات]]>7,data.f2026[[#This Row],[الحافز]]*100%,""))))) -> 0 | BP55: =IF(data.f2026[[#This Row],[أيام أجازات بعد السنوية]]<=2,data.f2026[[#This Row],[الحافز]]*0,IF(data.f2026[[#This Row],[أيام أجازات بعد السنوية]]=3,data.f2026[[#This Row],[الحافز]]*30%,IF(data.f2026[[#This Row],[أيام أجازات بعد السنوية]]=4,data.f2026[[#This Row],[الحافز]]*40%,IF(data.f2026[[#This Row],[أيام أجازات بعد السنوية]]=5,data.f2026[[#This Row],[الحافز]]*50%,IF(data.f2026[[#This Row],[أيام أجازات بعد السنوية]]>5,data.f2026[[#This Row],[الحافز]]*100%,""))))) -> 0 | BQ55: 0 | BR55: 0 | BS55: 0 | BT55: 3 | BU55: 0 | BV55: 0 | BW55: 0 | BX55: 0 | BY55: 0 | BZ55: 0 | CA55: 0 | CC55: 0 | CD55: 0 | CE55: 0 | CF55: 0 | CG55: 2.92 | CH55: 3 | CI55: 0 | CK55: 0 | CL55: 0 | CN55: 0 | CO55: 0 | CP55: 349.6632 | CQ55: 0 | CS55: 0 | CT55: 0 | CU55: 0 | CV55: 1007.58 | CW55: 6415.07
B56: 202045 | C56: 21983 | D56: بنك مصر 1 | E56: محمد عبد المقصود محمد عفيفى | F56: 0 | G56: دوام كامل | H56: فنى | I56: الثالثة | J56: الثالثة | K56: حرفى خراط | L56: الاميرية | M56: 27505230100418 | N56: 202045محمد عبد المقصود محمد عفيفىالثالثةالثالثةحرفى خراطالاميرية | O56: نعم | P56: 1893.84 | Q56: 2215.7928 | R56: 0 | S56: 2991.32 | T56: 332.37 | U56: 0 | V56: 0 | W56: 0 | Y56: 332.36892 | Z56: 300 | AB56: 0 | AC56: 0 | AD56: 0 | AE56: 0 | AF56: 632.37 | AG56: 67.21 | AH56: 74.98 | AI56: 89.38 | AJ56: 0 | AK56: 200 | AL56: 37.86 | AM56: 67.51 | AN56: 86.69 | AO56: 123.67 | AP56: 132.33 | AQ56: 141.6 | AS56: 94.692 | AT56: 600 | AU56: 8 | AV56: 1723.92 | AW56: 10 | AX56: 0 | AY56: 398.7032 | AZ56: 0 | BB56: 0 | BC56: 8304.48 | BD56: 0 | BE56: 8304.48 | BF56: 0 | BG56: 0 | BJ56: 737 | BK56: 0 | BL56: 0 | BM56: 0 | BN56: =IF(data.f2026[[#This Row],[أيام الغياب]]=1,data.f2026[[#This Row],[الحافز]]*20%,IF(data.f2026[[#This Row],[أيام الغياب]]=2,data.f2026[[#This Row],[الحافز]]*100%,IF(data.f2026[[#This Row],[أيام الغياب]]>2,data.f2026[[#This Row],[الحافز]]*100%,""))) ->  | BO56: =IF(data.f2026[[#This Row],[عدد أيام الأجازات]]<=4,data.f2026[[#This Row],[الحافز]]*0,IF(data.f2026[[#This Row],[عدد أيام الأجازات]]=5,data.f2026[[#This Row],[الحافز]]*20%,IF(data.f2026[[#This Row],[عدد أيام الأجازات]]=6,data.f2026[[#This Row],[الحافز]]*40%,IF(data.f2026[[#This Row],[عدد أيام الأجازات]]=7,data.f2026[[#This Row],[الحافز]]*50%,IF(data.f2026[[#This Row],[عدد أيام الأجازات]]>7,data.f2026[[#This Row],[الحافز]]*100%,""))))) -> 0 | BP56: =IF(data.f2026[[#This Row],[أيام أجازات بعد السنوية]]<=2,data.f2026[[#This Row],[الحافز]]*0,IF(data.f2026[[#This Row],[أيام أجازات بعد السنوية]]=3,data.f2026[[#This Row],[الحافز]]*30%,IF(data.f2026[[#This Row],[أيام أجازات بعد السنوية]]=4,data.f2026[[#This Row],[الحافز]]*40%,IF(data.f2026[[#This Row],[أيام أجازات بعد السنوية]]=5,data.f2026[[#This Row],[الحافز]]*50%,IF(data.f2026[[#This Row],[أيام أجازات بعد السنوية]]>5,data.f2026[[#This Row],[الحافز]]*100%,""))))) -> 0 | BQ56: 0 | BR56: 0 | BS56: 0 | BT56: 3 | BU56: 0 | BV56: 0 | BW56: 0 | BX56: 0 | BY56: 0 | BZ56: 0 | CA56: 0 | CC56: 0 | CD56: 0 | CE56: 0 | CF56: 0 | CG56: 3.25 | CH56: 3 | CI56: 0 | CK56: 0 | CL56: 0 | CN56: 0 | CO56: 0 | CP56: 398.7032 | CQ56: 0 | CS56: 0 | CT56: 0 | CU56: 0 | CV56: 1144.95 | CW56: 7159.53
B57: 202046 | C57: 21833 | D57: بنك مصر 1 | E57: دياب على محمد ابراهيم | F57: 0 | G57: دوام كامل | H57: فنى | I57: الثالثة | J57: الثالثة | K57: حرفى ميكانيكى | L57: الاميرية | M57: 27506290100758 | N57: 202046دياب على محمد ابراهيم الثالثةالثالثةحرفى ميكانيكى الاميرية | O57: نعم | P57: 1979.69 | Q57: 2316.2373 | R57: 0 | S57: 3126.92 | T57: 347.44 | U57: 0 | V57: 0 | W57: 0 | Y57: 347.435595 | Z57: 300 | AB57: 0 | AC57: 0 | AD57: 0 | AE57: 0 | AF57: 647.44 | AG57: 70.23 | AH57: 78.36 | AI57: 93.44 | AJ57: 0 | AK57: 200 | AL57: 39.57 | AM57: 70.57 | AN57: 90.62 | AO57: 129.28 | AP57: 138.33 | AQ57: 148.01 | AS57: 98.9845 | AT57: 600 | AU57: 10 | AV57: 1767.39 | AW57: 10 | AX57: 0 | AY57: 416.7768 | AZ57: 0 | BB57: 0 | BC57: 8632.2 | BD57: 0 | BE57: 8632.2 | BF57: 0 | BG57: 0 | BJ57: 759 | BK57: 0 | BL57: 0 | BM57: 0 | BN57: =IF(data.f2026[[#This Row],[أيام الغياب]]=1,data.f2026[[#This Row],[الحافز]]*20%,IF(data.f2026[[#This Row],[أيام الغياب]]=2,data.f2026[[#This Row],[الحافز]]*100%,IF(data.f2026[[#This Row],[أيام الغياب]]>2,data.f2026[[#This Row],[الحافز]]*100%,""))) ->  | BO57: =IF(data.f2026[[#This Row],[عدد أيام الأجازات]]<=4,data.f2026[[#This Row],[الحافز]]*0,IF(data.f2026[[#This Row],[عدد أيام الأجازات]]=5,data.f2026[[#This Row],[الحافز]]*20%,IF(data.f2026[[#This Row],[عدد أيام الأجازات]]=6,data.f2026[[#This Row],[الحافز]]*40%,IF(data.f2026[[#This Row],[عدد أيام الأجازات]]=7,data.f2026[[#This Row],[الحافز]]*50%,IF(data.f2026[[#This Row],[عدد أيام الأجازات]]>7,data.f2026[[#This Row],[الحافز]]*100%,""))))) -> 0 | BP57: =IF(data.f2026[[#This Row],[أيام أجازات بعد السنوية]]<=2,data.f2026[[#This Row],[الحافز]]*0,IF(data.f2026[[#This Row],[أيام أجازات بعد السنوية]]=3,data.f2026[[#This Row],[الحافز]]*30%,IF(data.f2026[[#This Row],[أيام أجازات بعد السنوية]]=4,data.f2026[[#This Row],[الحافز]]*40%,IF(data.f2026[[#This Row],[أيام أجازات بعد السنوية]]=5,data.f2026[[#This Row],[الحافز]]*50%,IF(data.f2026[[#This Row],[أيام أجازات بعد السنوية]]>5,data.f2026[[#This Row],[الحافز]]*100%,""))))) -> 0 | BQ57: 0 | BR57: 0 | BS57: 0 | BT57: 3 | BU57: 0 | BV57: 0 | BW57: 0 | BX57: 0 | BY57: 0 | BZ57: 0 | CA57: 0 | CC57: 0 | CD57: 0 | CE57: 0 | CF57: 0 | CG57: 3.37 | CH57: 3 | CI57: 0 | CK57: 0 | CL57: 0 | CN57: 0 | CO57: 0 | CP57: 416.7768 | CQ57: 0 | CS57: 0 | CT57: 0 | CU57: 0 | CV57: 1185.15 | CW57: 7447.05
B58: 202048 | C58: 21306 | D58: مرضي | E58: عماد عبد الرازق سيد على | F58: مروه | G58: مرضي | H58: فنى | I58: الثالثة | J58: الثالثة | K58: حرفى ميكانيكى | L58: السويس | M58: 27110310100911 | N58: 202048عماد عبد الرازق سيد على مروهالثالثةالثالثةحرفى ميكانيكى السويس | O58: نعم | P58: 2041.57 | Q58: 2388.6369 | R58: 0 | S58: 3224.66 | T58: 358.3 | U58: 0 | V58: 0 | W58: 0 | Y58: 358.295535 | Z58: 300 | AB58: 0 | AC58: 0 | AD58: 0 | AE58: 0 | AF58: 658.3 | AG58: 72.29 | AH58: 80.69 | AI58: 96.33 | AJ58: 0 | AK58: 200 | AL58: 40.81 | AM58: 72.78 | AN58: 93.45 | AO58: 133.32 | AP58: 142.66 | AQ58: 152.64 | AS58: 102.0785 | AT58: 600 | AU58: 10 | AV58: 1797.05 | AW58: 10 | AX58: 0 | AY58: 429.8042 | AZ58: 0 | BB58: 0 | BC58: 8866.75 | BD58: 0 | BE58: 8866.75 | BF58: 0 | BG58: 0 | BJ58: 781 | BK58: 0 | BL58: 0 | BM58: 0 | BN58: =IF(data.f2026[[#This Row],[أيام الغياب]]=1,data.f2026[[#This Row],[الحافز]]*20%,IF(data.f2026[[#This Row],[أيام الغياب]]=2,data.f2026[[#This Row],[الحافز]]*100%,IF(data.f2026[[#This Row],[أيام الغياب]]>2,data.f2026[[#This Row],[الحافز]]*100%,""))) ->  | BO58: =IF(data.f2026[[#This Row],[عدد أيام الأجازات]]<=4,data.f2026[[#This Row],[الحافز]]*0,IF(data.f2026[[#This Row],[عدد أيام الأجازات]]=5,data.f2026[[#This Row],[الحافز]]*20%,IF(data.f2026[[#This Row],[عدد أيام الأجازات]]=6,data.f2026[[#This Row],[الحافز]]*40%,IF(data.f2026[[#This Row],[عدد أيام الأجازات]]=7,data.f2026[[#This Row],[الحافز]]*50%,IF(data.f2026[[#This Row],[عدد أيام الأجازات]]>7,data.f2026[[#This Row],[الحافز]]*100%,""))))) -> 0 | BP58: =IF(data.f2026[[#This Row],[أيام أجازات بعد السنوية]]<=2,data.f2026[[#This Row],[الحافز]]*0,IF(data.f2026[[#This Row],[أيام أجازات بعد السنوية]]=3,data.f2026[[#This Row],[الحافز]]*30%,IF(data.f2026[[#This Row],[أيام أجازات بعد السنوية]]=4,data.f2026[[#This Row],[الحافز]]*40%,IF(data.f2026[[#This Row],[أيام أجازات بعد السنوية]]=5,data.f2026[[#This Row],[الحافز]]*50%,IF(data.f2026[[#This Row],[أيام أجازات بعد السنوية]]>5,data.f2026[[#This Row],[الحافز]]*100%,""))))) -> 0 | BQ58: 0 | BR58: 0 | BS58: 0 | BT58: 3 | BU58: 0 | BV58: 0 | BW58: 0 | BX58: 0 | BY58: 0 | BZ58: 0 | CA58: 0 | CC58: 0 | CD58: 0 | CE58: 0 | CF58: 0 | CG58: 3.45 | CH58: 3 | CI58: 0 | CK58: 0 | CL58: 0 | CN58: 0 | CO58: 0 | CP58: 429.8042 | CQ58: 0 | CS58: 7646.5 | CT58: 0 | CU58: 0 | CV58: 8866.75 | CW58: 0
B59: 202049 | C59: 21542 | D59: بنك مصر 1 | E59: رجب فتحى اسماعيل على | F59: 0 | G59: دوام كامل | H59: فنى | I59: الثانية | J59: الثانية | K59: ميكانيكى | L59: الهندسي | M59: 27208261500673 | N59: 202049رجب فتحى اسماعيل علىالثانيةالثانيةميكانيكى الهندسي | O59: نعم | P59: 2148.85 | Q59: 2514.1545 | R59: 0 | S59: 3394.11 | T59: 377.12 | U59: 0 | V59: 0 | W59: 0 | Y59: 377.123175 | Z59: 300 | AB59: 0 | AC59: 0 | AD59: 0 | AE59: 0 | AF59: 677.12 | AG59: 76.06 | AH59: 84.91 | AI59: 101.41 | AJ59: 0 | AK59: 190 | AL59: 42.96 | AM59: 76.6 | AN59: 98.36 | AO59: 140.33 | AP59: 150.15 | AQ59: 160.66 | AS59: 107.4425 | AT59: 600 | AU59: 10 | AV59: 1838.88 | AW59: 10 | AX59: 0 | AY59: 452.3895 | AZ59: 0 | BB59: 0 | BC59: 9263.77 | BD59: 0 | BE59: 9263.77 | BF59: 0 | BG59: 0 | BJ59: 814 | BK59: 124.25 | BL59: 0 | BM59: 0 | BN59: =IF(data.f2026[[#This Row],[أيام الغياب]]=1,data.f2026[[#This Row],[الحافز]]*20%,IF(data.f2026[[#This Row],[أيام الغياب]]=2,data.f2026[[#This Row],[الحافز]]*100%,IF(data.f2026[[#This Row],[أيام الغياب]]>2,data.f2026[[#This Row],[الحافز]]*100%,""))) ->  | BO59: =IF(data.f2026[[#This Row],[عدد أيام الأجازات]]<=4,data.f2026[[#This Row],[الحافز]]*0,IF(data.f2026[[#This Row],[عدد أيام الأجازات]]=5,data.f2026[[#This Row],[الحافز]]*20%,IF(data.f2026[[#This Row],[عدد أيام الأجازات]]=6,data.f2026[[#This Row],[الحافز]]*40%,IF(data.f2026[[#This Row],[عدد أيام الأجازات]]=7,data.f2026[[#This Row],[الحافز]]*50%,IF(data.f2026[[#This Row],[عدد أيام الأجازات]]>7,data.f2026[[#This Row],[الحافز]]*100%,""))))) -> 0 | BP59: =IF(data.f2026[[#This Row],[أيام أجازات بعد السنوية]]<=2,data.f2026[[#This Row],[الحافز]]*0,IF(data.f2026[[#This Row],[أيام أجازات بعد السنوية]]=3,data.f2026[[#This Row],[الحافز]]*30%,IF(data.f2026[[#This Row],[أيام أجازات بعد السنوية]]=4,data.f2026[[#This Row],[الحافز]]*40%,IF(data.f2026[[#This Row],[أيام أجازات بعد السنوية]]=5,data.f2026[[#This Row],[الحافز]]*50%,IF(data.f2026[[#This Row],[أيام أجازات بعد السنوية]]>5,data.f2026[[#This Row],[الحافز]]*100%,""))))) -> 0 | BQ59: 0 | BR59: 0 | BS59: 0 | BT59: 3 | BU59: 0 | BV59: 0 | BW59: 0 | BX59: 0 | BY59: 0 | BZ59: 0 | CA59: 0 | CC59: 0 | CD59: 0 | CE59: 0 | CF59: 0 | CG59: 3.89 | CH59: 3 | CI59: 0 | CK59: 0 | CL59: 0 | CN59: 0 | CO59: 0 | CP59: 452.3895 | CQ59: 0 | CS59: 0 | CT59: 0 | CU59: 0 | CV59: 1400.53 | CW59: 7863.24
B60: 202050 | C60: 22036 | D60: بنك مصر 1 | E60: محمد فؤاد فؤاد السيد | F60: 0 | G60: دوام كامل | H60: فنى | I60: الثالثة | J60: الثالثة | K60: حرفى سمكرى | L60: الاميرية | M60: 27740401004517 | N60: 202050محمد فؤاد فؤاد السيد الثالثةالثالثةحرفى سمكرىالاميرية | O60: نعم | P60: 1824.3 | Q60: 2134.431 | R60: 0 | S60: 2881.48 | T60: 320.16 | U60: 0 | V60: 0 | W60: 0 | Y60: 320.16465 | Z60: 300 | AB60: 0 | AC60: 0 | AD60: 0 | AE60: 0 | AF60: 620.16 | AG60: 64.76 | AH60: 72.24 | AI60: 86.09 | AJ60: 0 | AK60: 200 | AL60: 36.47 | AM60: 65.03 | AN60: 83.5 | AO60: 119.13 | AP60: 127.47 | AQ60: 136.4 | AS60: 91.215 | AT60: 600 | AU60: 8 | AV60: 1690.31 | AW60: 10 | AX60: 0 | AY60: 384.0632 | AZ60: 0 | BB60: 0 | BC60: 8040.6 | BD60: 0 | BE60: 8040.6 | BF60: 0 | BG60: 0 | BJ60: 704 | BK60: 0 | BL60: 0 | BM60: 0 | BN60: =IF(data.f2026[[#This Row],[أيام الغياب]]=1,data.f2026[[#This Row],[الحافز]]*20%,IF(data.f2026[[#This Row],[أيام الغياب]]=2,data.f2026[[#This Row],[الحافز]]*100%,IF(data.f2026[[#This Row],[أيام الغياب]]>2,data.f2026[[#This Row],[الحافز]]*100%,""))) ->  | BO60: =IF(data.f2026[[#This Row],[عدد أيام الأجازات]]<=4,data.f2026[[#This Row],[الحافز]]*0,IF(data.f2026[[#This Row],[عدد أيام الأجازات]]=5,data.f2026[[#This Row],[الحافز]]*20%,IF(data.f2026[[#This Row],[عدد أيام الأجازات]]=6,data.f2026[[#This Row],[الحافز]]*40%,IF(data.f2026[[#This Row],[عدد أيام الأجازات]]=7,data.f2026[[#This Row],[الحافز]]*50%,IF(data.f2026[[#This Row],[عدد أيام الأجازات]]>7,data.f2026[[#This Row],[الحافز]]*100%,""))))) -> 0 | BP60: =IF(data.f2026[[#This Row],[أيام أجازات بعد السنوية]]<=2,data.f2026[[#This Row],[الحافز]]*0,IF(data.f2026[[#This Row],[أيام أجازات بعد السنوية]]=3,data.f2026[[#This Row],[الحافز]]*30%,IF(data.f2026[[#This Row],[أيام أجازات بعد السنوية]]=4,data.f2026[[#This Row],[الحافز]]*40%,IF(data.f2026[[#This Row],[أيام أجازات بعد السنوية]]=5,data.f2026[[#This Row],[الحافز]]*50%,IF(data.f2026[[#This Row],[أيام أجازات بعد السنوية]]>5,data.f2026[[#This Row],[الحافز]]*100%,""))))) -> 0 | BQ60: 0 | BR60: 0 | BS60: 0 | BT60: 3 | BU60: 0 | BV60: 0 | BW60: 0 | BX60: 0 | BY60: 0 | BZ60: 0 | CA60: 0 | CC60: 0 | CD60: 0 | CE60: 0 | CF60: 0 | CG60: 3.15 | CH60: 3 | CI60: 0 | CK60: 0 | CL60: 0 | CN60: 0 | CO60: 0 | CP60: 384.0632 | CQ60: 0 | CS60: 0 | CT60: 0 | CU60: 0 | CV60: 1097.21 | CW60: 6943.39
B61: 202053 | C61: 21897 | D61: البنك الاهلى | E61: صفوت كمال عبد العظيم رفاعى | F61: مروه | G61: دوام كامل | H61: فنى | I61: الثالثة | J61: الثالثة | K61: حرفى ميكانيكى | L61: الاميرية | M61: 27401300102391 | N61: 202053صفوت كمال عبد العظيم رفاعىمروهالثالثةالثالثةحرفى ميكانيكى الاميرية | O61: نعم | P61: 1890.74 | Q61: 2212.1658 | R61: 0 | S61: 2986.42 | T61: 331.82 | U61: 0 | V61: 0 | W61: 0 | Y61: 331.82487 | Z61: 300 | AB61: 0 | AC61: 0 | AD61: 0 | AE61: 0 | AF61: 631.82 | AG61: 62.31 | AH61: 69.52 | AI61: 83.32 | AJ61: 0 | AK61: 200 | AL61: 37.8 | AM61: 67.4 | AN61: 86.55 | AO61: 123.47 | AP61: 132.12 | AQ61: 141.36 | AS61: 94.537 | AT61: 600 | AU61: 10 | AV61: 1708.39 | AW61: 10 | AX61: 0 | AY61: 398.0505 | AZ61: 0 | BB61: 0 | BC61: 8278.67 | BD61: 0 | BE61: 8278.67 | BF61: 0 | BG61: 0 | BJ61: 726 | BK61: 0 | BL61: 0 | BM61: 0 | BN61: =IF(data.f2026[[#This Row],[أيام الغياب]]=1,data.f2026[[#This Row],[الحافز]]*20%,IF(data.f2026[[#This Row],[أيام الغياب]]=2,data.f2026[[#This Row],[الحافز]]*100%,IF(data.f2026[[#This Row],[أيام الغياب]]>2,data.f2026[[#This Row],[الحافز]]*100%,""))) ->  | BO61: =IF(data.f2026[[#This Row],[عدد أيام الأجازات]]<=4,data.f2026[[#This Row],[الحافز]]*0,IF(data.f2026[[#This Row],[عدد أيام الأجازات]]=5,data.f2026[[#This Row],[الحافز]]*20%,IF(data.f2026[[#This Row],[عدد أيام الأجازات]]=6,data.f2026[[#This Row],[الحافز]]*40%,IF(data.f2026[[#This Row],[عدد أيام الأجازات]]=7,data.f2026[[#This Row],[الحافز]]*50%,IF(data.f2026[[#This Row],[عدد أيام الأجازات]]>7,data.f2026[[#This Row],[الحافز]]*100%,""))))) -> 0 | BP61: =IF(data.f2026[[#This Row],[أيام أجازات بعد السنوية]]<=2,data.f2026[[#This Row],[الحافز]]*0,IF(data.f2026[[#This Row],[أيام أجازات بعد السنوية]]=3,data.f2026[[#This Row],[الحافز]]*30%,IF(data.f2026[[#This Row],[أيام أجازات بعد السنوية]]=4,data.f2026[[#This Row],[الحافز]]*40%,IF(data.f2026[[#This Row],[أيام أجازات بعد السنوية]]=5,data.f2026[[#This Row],[الحافز]]*50%,IF(data.f2026[[#This Row],[أيام أجازات بعد السنوية]]>5,data.f2026[[#This Row],[الحافز]]*100%,""))))) -> 0 | BQ61: 58.64 | BR61: 0 | BS61: 0 | BT61: 3 | BU61: 0 | BV61: 0 | BW61: 0 | BX61: 0 | BY61: 0 | BZ61: 0 | CA61: 0 | CC61: 0 | CD61: 0 | CE61: 0 | CF61: 0 | CG61: 3.21 | CH61: 3 | CI61: 0 | CK61: 0 | CL61: 0 | CN61: 0 | CO61: 0 | CP61: 398.0505 | CQ61: 0 | CS61: 0 | CT61: 0 | CU61: 0 | CV61: 1191.9 | CW61: 7086.77
B62: 202054 | C62: 1130 | D62: بنك مصر 2 | E62: عبد النبي محمد عبد الحميد علي | F62: 0 | G62: دوام كامل | H62: فنى | I62: الثانية | J62: الثانية | K62: سمكرى | L62: الامن | M62: 27306251301194 | N62: 202054عبد النبي محمد عبد الحميد عليالثانيةالثانيةسمكرىالامن | O62: نعم | P62: 1879.01 | Q62: 2198.4417 | R62: 0 | S62: 2967.9 | T62: 329.77 | U62: 0 | V62: 0 | W62: 0 | Y62: 329.766255 | Z62: 300 | AB62: 0 | AD62: 0 | AE62: 0 | AF62: 629.77 | AG62: 62.21 | AH62: 69.28 | AI62: 83.14 | AJ62: 0 | AK62: 190 | AL62: 37.56 | AM62: 66.99 | AN62: 86.01 | AO62: 122.71 | AP62: 131.3 | AQ62: 140.49 | AS62: 93.9505 | AT62: 600 | AU62: 10 | AV62: 1693.64 | AW62: 10 | AX62: 0 | AY62: 397.68 | AZ62: 0 | BB62: 0 | BC62: 8227.2 | BD62: 0 | BE62: 8227.2 | BF62: 0 | BG62: 0 | BJ62: 718.752085 | BK62: 0 | BL62: 0 | BM62: 0 | BN62: =IF(data.f2026[[#This Row],[أيام الغياب]]=1,data.f2026[[#This Row],[الحافز]]*20%,IF(data.f2026[[#This Row],[أيام الغياب]]=2,data.f2026[[#This Row],[الحافز]]*100%,IF(data.f2026[[#This Row],[أيام الغياب]]>2,data.f2026[[#This Row],[الحافز]]*100%,""))) ->  | BO62: =IF(data.f2026[[#This Row],[عدد أيام الأجازات]]<=4,data.f2026[[#This Row],[الحافز]]*0,IF(data.f2026[[#This Row],[عدد أيام الأجازات]]=5,data.f2026[[#This Row],[الحافز]]*20%,IF(data.f2026[[#This Row],[عدد أيام الأجازات]]=6,data.f2026[[#This Row],[الحافز]]*40%,IF(data.f2026[[#This Row],[عدد أيام الأجازات]]=7,data.f2026[[#This Row],[الحافز]]*50%,IF(data.f2026[[#This Row],[عدد أيام الأجازات]]>7,data.f2026[[#This Row],[الحافز]]*100%,""))))) -> 0 | BP62: =IF(data.f2026[[#This Row],[أيام أجازات بعد السنوية]]<=2,data.f2026[[#This Row],[الحافز]]*0,IF(data.f2026[[#This Row],[أيام أجازات بعد السنوية]]=3,data.f2026[[#This Row],[الحافز]]*30%,IF(data.f2026[[#This Row],[أيام أجازات بعد السنوية]]=4,data.f2026[[#This Row],[الحافز]]*40%,IF(data.f2026[[#This Row],[أيام أجازات بعد السنوية]]=5,data.f2026[[#This Row],[الحافز]]*50%,IF(data.f2026[[#This Row],[أيام أجازات بعد السنوية]]>5,data.f2026[[#This Row],[الحافز]]*100%,""))))) -> 0 | BQ62: 0 | BR62: 0 | BT62: 3 | BU62: 0 | BX62: 0 | CC62: 0 | CE62: 0 | CG62: 3.14 | CH62: 4 | CI62: 0 | CL62: 0 | CN62: 0 | CO62: 0 | CP62: 397.68 | CQ62: 0 | CS62: 0 | CT62: 0 | CU62: 0 | CV62: 1126.57 | CW62: 7100.63
B63: 202055 | C63: 1151 | D63: بنك مصر 2 | E63: أسامة محمد كمال أحمد | F63: 0 | G63: دوام كامل | H63: فنى | I63: الاولى | M63: 16908080101856 | N63: 202055أسامة محمد كمال أحمدالاولى | P63: 2141.78 | Q63: 2355.958 | R63: 0 | S63: 3180.54 | T63: 353.39 | U63: 0 | V63: 0 | W63: 0 | Y63: 353.3937 | Z63: 300 | AB63: 0 | AD63: 0 | AE63: 0 | AF63: 653.39 | AG63: 70.84 | AH63: 78.92 | AI63: 94.79 | AJ63: 0 | AK63: 190 | AL63: 42.81 | AM63: 76.35 | AN63: 98.04 | AO63: 139.87 | AP63: 149.66 | AQ63: 160.13 | AS63: 107.089 | AT63: 600 | AU63: 10 | AV63: 1818.5 | AW63: 10 | AX63: 0 | AY63: 450.9011 | AZ63: 0 | BB63: 30 | BC63: 8822.68 | BD63: 0 | BE63: 8852.68 | BF63: 0 | BG63: 0 | BJ63: 806.7939258 | BK63: 39.83 | BL63: 0 | BM63: 0 | BN63: =IF(data.f2026[[#This Row],[أيام الغياب]]=1,data.f2026[[#This Row],[الحافز]]*20%,IF(data.f2026[[#This Row],[أيام الغياب]]=2,data.f2026[[#This Row],[الحافز]]*100%,IF(data.f2026[[#This Row],[أيام الغياب]]>2,data.f2026[[#This Row],[الحافز]]*100%,""))) ->  | BO63: =IF(data.f2026[[#This Row],[عدد أيام الأجازات]]<=4,data.f2026[[#This Row],[الحافز]]*0,IF(data.f2026[[#This Row],[عدد أيام الأجازات]]=5,data.f2026[[#This Row],[الحافز]]*20%,IF(data.f2026[[#This Row],[عدد أيام الأجازات]]=6,data.f2026[[#This Row],[الحافز]]*40%,IF(data.f2026[[#This Row],[عدد أيام الأجازات]]=7,data.f2026[[#This Row],[الحافز]]*50%,IF(data.f2026[[#This Row],[عدد أيام الأجازات]]>7,data.f2026[[#This Row],[الحافز]]*100%,""))))) -> 0 | BP63: =IF(data.f2026[[#This Row],[أيام أجازات بعد السنوية]]<=2,data.f2026[[#This Row],[الحافز]]*0,IF(data.f2026[[#This Row],[أيام أجازات بعد السنوية]]=3,data.f2026[[#This Row],[الحافز]]*30%,IF(data.f2026[[#This Row],[أيام أجازات بعد السنوية]]=4,data.f2026[[#This Row],[الحافز]]*40%,IF(data.f2026[[#This Row],[أيام أجازات بعد السنوية]]=5,data.f2026[[#This Row],[الحافز]]*50%,IF(data.f2026[[#This Row],[أيام أجازات بعد السنوية]]>5,data.f2026[[#This Row],[الحافز]]*100%,""))))) -> 0 | BQ63: 0 | BR63: 0 | BT63: 3 | BU63: 0 | BX63: 0 | CC63: 0 | CE63: 0 | CG63: 3.52 | CH63: 5 | CI63: 0 | CL63: 0 | CN63: 0 | CO63: 0 | CP63: 450.9011 | CQ63: 0 | CS63: 0 | CT63: 0 | CU63: 0 | CV63: 1309.05 | CW63: 7543.63
B64: 202056 | C64: 1137 | D64: بنك مصر 2 | E64: ياسر عبد اللطيف النور محمد | F64: 0 | G64: دوام كامل | H64: فنى | I64: الثالثة | J64: الثالثة | K64: فنى حداه | L64: كفر الزيات | M64: 28201012800313 | N64: 202056ياسر عبد اللطيف النور محمد الثالثةالثالثةفنى حداه كفر الزيات | O64: نعم | P64: 895.8 | Q64: 1048.086 | R64: 0 | S64: 1414.92 | T64: 157.21 | U64: 0 | V64: 0 | W64: 0 | Y64: 157.2129 | Z64: 300 | AB64: 0 | AD64: 0 | AE64: 0 | AF64: 457.21 | AG64: 30.03 | AH64: 33.71 | AI64: 65 | AJ64: 0 | AK64: 200 | AL64: 33.93 | AM64: 31.93 | AN64: 41 | AO64: 58.5 | AP64: 70.23 | AQ64: 91.4 | AS64: 60.42 | AT64: 600 | AU64: 8 | AV64: 1324.15 | AW64: 10 | AX64: 0 | AY64: 189.11 | AZ64: 0 | BB64: 0 | BC64: 4600.69 | BD64: 2399.31 | BE64: 7000 | BF64: 0 | BG64: 0 | BJ64: 576.4923828 | BK64: 0 | BL64: 0 | BM64: 0 | BN64: =IF(data.f2026[[#This Row],[أيام الغياب]]=1,data.f2026[[#This Row],[الحافز]]*20%,IF(data.f2026[[#This Row],[أيام الغياب]]=2,data.f2026[[#This Row],[الحافز]]*100%,IF(data.f2026[[#This Row],[أيام الغياب]]>2,data.f2026[[#This Row],[الحافز]]*100%,""))) ->  | BO64: =IF(data.f2026[[#This Row],[عدد أيام الأجازات]]<=4,data.f2026[[#This Row],[الحافز]]*0,IF(data.f2026[[#This Row],[عدد أيام الأجازات]]=5,data.f2026[[#This Row],[الحافز]]*20%,IF(data.f2026[[#This Row],[عدد أيام الأجازات]]=6,data.f2026[[#This Row],[الحافز]]*40%,IF(data.f2026[[#This Row],[عدد أيام الأجازات]]=7,data.f2026[[#This Row],[الحافز]]*50%,IF(data.f2026[[#This Row],[عدد أيام الأجازات]]>7,data.f2026[[#This Row],[الحافز]]*100%,""))))) -> 0 | BP64: =IF(data.f2026[[#This Row],[أيام أجازات بعد السنوية]]<=2,data.f2026[[#This Row],[الحافز]]*0,IF(data.f2026[[#This Row],[أيام أجازات بعد السنوية]]=3,data.f2026[[#This Row],[الحافز]]*30%,IF(data.f2026[[#This Row],[أيام أجازات بعد السنوية]]=4,data.f2026[[#This Row],[الحافز]]*40%,IF(data.f2026[[#This Row],[أيام أجازات بعد السنوية]]=5,data.f2026[[#This Row],[الحافز]]*50%,IF(data.f2026[[#This Row],[أيام أجازات بعد السنوية]]>5,data.f2026[[#This Row],[الحافز]]*100%,""))))) -> 0 | BQ64: 0 | BR64: 0 | BT64: 3 | BU64: 0 | BX64: 0 | CC64: 0 | CE64: 0 | CG64: 2.96 | CH64: 2.84 | CI64: 0 | CL64: 0 | CN64: 0 | CO64: 0 | CP64: 189.11 | CQ64: 0 | CS64: 0 | CT64: 0 | CU64: 0 | CV64: 774.4 | CW64: 6225.6
B65: 202057 | C65: 1166 | D65: بنك مصر 2 | E65: عماد سعيد سيد على | F65: 0 | G65: دوام كامل | H65: فنى | I65: الرابعة | J65: الرابعة | K65: حرفى خراط | L65: الورش | M65: 28206120102551 | N65: 202057عماد سعيد سيد علىالرابعةالرابعةحرفى خراطالورش | O65: نعم | P65: 575.41 | Q65: 673.2297 | R65: 0 | S65: 908.86 | T65: 100.98 | U65: 0 | V65: 0 | W65: 0 | Y65: 100.984455 | Z65: 300 | AB65: 0 | AD65: 0 | AE65: 0 | AF65: 400.98 | AG65: 28.89 | AH65: 30.29 | AI65: 65 | AJ65: 0 | AK65: 200 | AL65: 0 | AM65: 46.28 | AN65: 44.27 | AO65: 67.12 | AP65: 89.82 | AQ65: 112.36 | AS65: 92.459 | AT65: 600 | AU65: 10 | AV65: 1386.49 | AW65: 10 | AX65: 0 | AY65: 121.1389 | AZ65: 0 | BB65: 0 | BC65: 3601.68 | BD65: 3398.32 | BE65: 7000 | BF65: 0 | BG65: 0 | BJ65: 576.3933936 | BK65: 92.92 | BL65: 0 | BM65: 0 | BN65: =IF(data.f2026[[#This Row],[أيام الغياب]]=1,data.f2026[[#This Row],[الحافز]]*20%,IF(data.f2026[[#This Row],[أيام الغياب]]=2,data.f2026[[#This Row],[الحافز]]*100%,IF(data.f2026[[#This Row],[أيام الغياب]]>2,data.f2026[[#This Row],[الحافز]]*100%,""))) ->  | BO65: =IF(data.f2026[[#This Row],[عدد أيام الأجازات]]<=4,data.f2026[[#This Row],[الحافز]]*0,IF(data.f2026[[#This Row],[عدد أيام الأجازات]]=5,data.f2026[[#This Row],[الحافز]]*20%,IF(data.f2026[[#This Row],[عدد أيام الأجازات]]=6,data.f2026[[#This Row],[الحافز]]*40%,IF(data.f2026[[#This Row],[عدد أيام الأجازات]]=7,data.f2026[[#This Row],[الحافز]]*50%,IF(data.f2026[[#This Row],[عدد أيام الأجازات]]>7,data.f2026[[#This Row],[الحافز]]*100%,""))))) -> 0 | BP65: =IF(data.f2026[[#This Row],[أيام أجازات بعد السنوية]]<=2,data.f2026[[#This Row],[الحافز]]*0,IF(data.f2026[[#This Row],[أيام أجازات بعد السنوية]]=3,data.f2026[[#This Row],[الحافز]]*30%,IF(data.f2026[[#This Row],[أيام أجازات بعد السنوية]]=4,data.f2026[[#This Row],[الحافز]]*40%,IF(data.f2026[[#This Row],[أيام أجازات بعد السنوية]]=5,data.f2026[[#This Row],[الحافز]]*50%,IF(data.f2026[[#This Row],[أيام أجازات بعد السنوية]]>5,data.f2026[[#This Row],[الحافز]]*100%,""))))) -> 0 | BQ65: 0 | BR65: 0 | BT65: 3 | BU65: 0 | BX65: 0 | CC65: 0 | CE65: 0 | CG65: 3.46 | CH65: 3 | CI65: 0 | CL65: 0 | CN65: 0 | CO65: 0 | CP65: 121.1389 | CQ65: 0 | CS65: 0 | CT65: 0 | CU65: 0 | CV65: 799.91 | CW65: 6200.09
B66: 202058 | C66: 1139 | D66: بنك مصر 2 | E66: محمود علي محمد احمد محمد | F66: 0 | G66: دوام كامل | H66: فنى | I66: الرابعة | J66: الرابعة | K66: حرفى ميكانيكى | L66: الاميرية | M66: 2880101130077 | N66: 202058محمود علي محمد احمد محمدالرابعةالرابعةحرفى ميكانيكىالاميرية | O66: نعم | P66: 825.24 | Q66: 965.5308 | R66: 0 | S66: 1303.47 | T66: 144.83 | U66: 0 | V66: 0 | W66: 0 | Y66: 144.82962 | Z66: 300 | AB66: 0 | AD66: 0 | AE66: 0 | AF66: 444.83 | AG66: 28.79 | AH66: 30.29 | AI66: 65 | AJ66: 0 | AK66: 200 | AL66: 36.51 | AM66: 33.81 | AN66: 37.77 | AO66: 53.89 | AP66: 74.54 | AQ66: 96.01 | AS66: 67.476 | AT66: 600 | AU66: 4 | AV66: 1328.09 | AW66: 10 | AX66: 0 | AY66: 173.7347 | AZ66: 0 | BB66: 0 | BC66: 4370.49 | BD66: 2629.51 | BE66: 7000 | BF66: 0 | BG66: 0 | BJ66: 583.8382129 | BK66: 0 | BL66: 0 | BM66: 0 | BN66: =IF(data.f2026[[#This Row],[أيام الغياب]]=1,data.f2026[[#This Row],[الحافز]]*20%,IF(data.f2026[[#This Row],[أيام الغياب]]=2,data.f2026[[#This Row],[الحافز]]*100%,IF(data.f2026[[#This Row],[أيام الغياب]]>2,data.f2026[[#This Row],[الحافز]]*100%,""))) ->  | BO66: =IF(data.f2026[[#This Row],[عدد أيام الأجازات]]<=4,data.f2026[[#This Row],[الحافز]]*0,IF(data.f2026[[#This Row],[عدد أيام الأجازات]]=5,data.f2026[[#This Row],[الحافز]]*20%,IF(data.f2026[[#This Row],[عدد أيام الأجازات]]=6,data.f2026[[#This Row],[الحافز]]*40%,IF(data.f2026[[#This Row],[عدد أيام الأجازات]]=7,data.f2026[[#This Row],[الحافز]]*50%,IF(data.f2026[[#This Row],[عدد أيام الأجازات]]>7,data.f2026[[#This Row],[الحافز]]*100%,""))))) -> 0 | BP66: =IF(data.f2026[[#This Row],[أيام أجازات بعد السنوية]]<=2,data.f2026[[#This Row],[الحافز]]*0,IF(data.f2026[[#This Row],[أيام أجازات بعد السنوية]]=3,data.f2026[[#This Row],[الحافز]]*30%,IF(data.f2026[[#This Row],[أيام أجازات بعد السنوية]]=4,data.f2026[[#This Row],[الحافز]]*40%,IF(data.f2026[[#This Row],[أيام أجازات بعد السنوية]]=5,data.f2026[[#This Row],[الحافز]]*50%,IF(data.f2026[[#This Row],[أيام أجازات بعد السنوية]]>5,data.f2026[[#This Row],[الحافز]]*100%,""))))) -> 0 | BQ66: 0 | BR66: 0 | BT66: 3 | BU66: 0 | BX66: 0 | CC66: 0 | CE66: 0 | CG66: 3.07 | CH66: 3 | CI66: 0 | CL66: 0 | CN66: 0 | CO66: 0 | CP66: 173.7347 | CQ66: 0 | CS66: 0 | CT66: 0 | CU66: 0 | CV66: 766.64 | CW66: 6233.36
B67: 202059 | C67: 1261 | D67: بنك مصر 2 | E67: محمد كامل محمد مصطفى | F67: 0 | G67: دوام كامل | H67: فنى | I67: الرابعة | J67: الرابعة | K67: حرفى عامل بطاريات | L67: الورش | M67: 27506031401413 | N67: 202059محمد كامل محمد مصطفىالرابعةالرابعةحرفى عامل بطارياتالورش | O67: نعم | P67: 862.29 | Q67: 1008.8793 | R67: 0 | S67: 1361.99 | T67: 151.33 | U67: 0 | V67: 0 | W67: 0 | Y67: 151.331895 | Z67: 300 | AB67: 0 | AD67: 0 | AE67: 0 | AF67: 451.33 | AG67: 28.74 | AH67: 32.31 | AI67: 65 | AJ67: 0 | AK67: 200 | AL67: 34.78 | AM67: 31.96 | AN67: 39.47 | AO67: 56.31 | AP67: 72.28 | AQ67: 93.59 | AS67: 63.771 | AT67: 600 | AU67: 10 | AV67: 1328.21 | AW67: 10 | AX67: 0 | AY67: 181.5347 | AZ67: 0 | BB67: 0 | BC67: 4493.27 | BD67: 2506.73 | BE67: 7000 | BF67: 0 | BG67: 0 | BJ67: 577.3647021 | BK67: 0 | BL67: 0 | BM67: 0 | BN67: =IF(data.f2026[[#This Row],[أيام الغياب]]=1,data.f2026[[#This Row],[الحافز]]*20%,IF(data.f2026[[#This Row],[أيام الغياب]]=2,data.f2026[[#This Row],[الحافز]]*100%,IF(data.f2026[[#This Row],[أيام الغياب]]>2,data.f2026[[#This Row],[الحافز]]*100%,""))) ->  | BO67: =IF(data.f2026[[#This Row],[عدد أيام الأجازات]]<=4,data.f2026[[#This Row],[الحافز]]*0,IF(data.f2026[[#This Row],[عدد أيام الأجازات]]=5,data.f2026[[#This Row],[الحافز]]*20%,IF(data.f2026[[#This Row],[عدد أيام الأجازات]]=6,data.f2026[[#This Row],[الحافز]]*40%,IF(data.f2026[[#This Row],[عدد أيام الأجازات]]=7,data.f2026[[#This Row],[الحافز]]*50%,IF(data.f2026[[#This Row],[عدد أيام الأجازات]]>7,data.f2026[[#This Row],[الحافز]]*100%,""))))) -> 0 | BP67: =IF(data.f2026[[#This Row],[أيام أجازات بعد السنوية]]<=2,data.f2026[[#This Row],[الحافز]]*0,IF(data.f2026[[#This Row],[أيام أجازات بعد السنوية]]=3,data.f2026[[#This Row],[الحافز]]*30%,IF(data.f2026[[#This Row],[أيام أجازات بعد السنوية]]=4,data.f2026[[#This Row],[الحافز]]*40%,IF(data.f2026[[#This Row],[أيام أجازات بعد السنوية]]=5,data.f2026[[#This Row],[الحافز]]*50%,IF(data.f2026[[#This Row],[أيام أجازات بعد السنوية]]>5,data.f2026[[#This Row],[الحافز]]*100%,""))))) -> 0 | BQ67: 0 | BR67: 0 | BT67: 3 | BU67: 0 | BX67: 0 | CC67: 0 | CE67: 0 | CG67: 3.02 | CH67: 5 | CI67: 0 | CL67: 0 | CN67: 0 | CO67: 0 | CP67: 181.5347 | CQ67: 0 | CS67: 0 | CT67: 0 | CU67: 0 | CV67: 769.92 | CW67: 6230.08
B68: 202060 | C68: 1164 | D68: بنك مصر 2 | E68: رمضان راضى محمود محسب | F68: 0 | G68: دوام كامل | H68: فنى | I68: الرابعة | J68: الرابعة | K68: حرفى حداد | L68: الورش | M68: 28007280104019 | N68: 202060رمضان راضى محمود محسبالرابعةالرابعةحرفى حدادالورش | O68: نعم | P68: 713.26 | Q68: 834.5142 | R68: 0 | S68: 1126.59 | T68: 125.18 | U68: 0 | V68: 0 | W68: 0 | Y68: 125.17713 | Z68: 300 | AB68: 0 | AD68: 0 | AE68: 0 | AF68: 425.18 | AG68: 28.79 | AH68: 30.79 | AI68: 65 | AJ68: 0 | AK68: 200 | AL68: 41.73 | AM68: 39.4 | AN68: 36.91 | AO68: 59.24 | AP68: 81.39 | AQ68: 103.34 | AS68: 78.674 | AT68: 600 | AU68: 10 | AV68: 1375.26 | AW68: 10 | AX68: 0 | AY68: 150.08 | AZ68: 0 | BB68: 0 | BC68: =ROUND(SUM(Q68:W68,AF68,AV68,AW68:AY68),2) -> 4046.8 | BD68: 2953.2 | BE68: 7000 | BF68: 0 | BG68: 0 | BJ68: 574.4980957 | BK68: 45.42 | BL68: 0 | BM68: 0 | BN68: =IF(data.f2026[[#This Row],[أيام الغياب]]=1,data.f2026[[#This Row],[الحافز]]*20%,IF(data.f2026[[#This Row],[أيام الغياب]]=2,data.f2026[[#This Row],[الحافز]]*100%,IF(data.f2026[[#This Row],[أيام الغياب]]>2,data.f2026[[#This Row],[الحافز]]*100%,""))) ->  | BO68: =IF(data.f2026[[#This Row],[عدد أيام الأجازات]]<=4,data.f2026[[#This Row],[الحافز]]*0,IF(data.f2026[[#This Row],[عدد أيام الأجازات]]=5,data.f2026[[#This Row],[الحافز]]*20%,IF(data.f2026[[#This Row],[عدد أيام الأجازات]]=6,data.f2026[[#This Row],[الحافز]]*40%,IF(data.f2026[[#This Row],[عدد أيام الأجازات]]=7,data.f2026[[#This Row],[الحافز]]*50%,IF(data.f2026[[#This Row],[عدد أيام الأجازات]]>7,data.f2026[[#This Row],[الحافز]]*100%,""))))) -> 0 | BP68: =IF(data.f2026[[#This Row],[أيام أجازات بعد السنوية]]<=2,data.f2026[[#This Row],[الحافز]]*0,IF(data.f2026[[#This Row],[أيام أجازات بعد السنوية]]=3,data.f2026[[#This Row],[الحافز]]*30%,IF(data.f2026[[#This Row],[أيام أجازات بعد السنوية]]=4,data.f2026[[#This Row],[الحافز]]*40%,IF(data.f2026[[#This Row],[أيام أجازات بعد السنوية]]=5,data.f2026[[#This Row],[الحافز]]*50%,IF(data.f2026[[#This Row],[أيام أجازات بعد السنوية]]>5,data.f2026[[#This Row],[الحافز]]*100%,""))))) -> 0 | BQ68: 0 | BR68: 0 | BT68: 3 | BU68: 0 | BX68: 0 | CC68: 0 | CE68: 0 | CG68: 3.22 | CH68: 3 | CI68: 0 | CL68: 0 | CN68: 0 | CO68: 0 | CP68: =AY68 -> 150.08 | CQ68: 0 | CS68: 0 | CT68: 0 | CU68: =ROUND(IF($G68=CU$3,$BE68-SUM(BK68:CR68,0),0),2) -> 0 | CV68: =ROUND(SUM(BJ68:CU68),2) -> 779.22 | CW68: =BE68-CV68 -> 6220.78
B69: 202061 | C69: 1169 | D69: بنك مصر 2 | E69: مصطفى أحمد إبراهيم أحمد | F69: مروه | G69: دوام كامل | H69: فنى | I69: الثانية | J69: الثانية | K69: ميكانيكى | L69: الملاكى | M69: 26707231701651 | N69: 202061مصطفى أحمد إبراهيم أحمدمروهالثانيةالثانيةميكانيكىالملاكى | O69: نعم | P69: 1810.9 | Q69: 2118.753 | R69: 0 | S69: =ROUND(Q69*135%,2) -> 2860.32 | T69: =ROUND(Q69*15%,2) -> 317.81 | U69: 0 | V69: 0 | W69: 0 | Y69: 317.81295 | Z69: 300 | AB69: 0 | AD69: 0 | AE69: 0 | AF69: =ROUND(SUM(X69:AA69,AC69:AE69),2) -> 617.81 | AG69: 63.67 | AH69: 70.91 | AI69: 85.11 | AJ69: 0 | AK69: 190 | AL69: 36.2 | AM69: 64.56 | AN69: 82.86 | AO69: 118.26 | AP69: 126.54 | AQ69: 135.39 | AS69: 90.545 | AT69: 600 | AU69: 10 | AV69: =ROUND(SUM(AG69:AU69),2) -> 1674.05 | AW69: 10 | AX69: 0 | AY69: 381.2421 | AZ69: 0 | BB69: 0 | BC69: 7979.99 | BD69: =IF(BC69<7000,7000-BC69,0) -> 0 | BE69: =ROUND(SUM(AB69,AZ69:BD69),2) -> 7979.99 | BF69: 0 | BG69: 0 | BJ69: 697.3702979 | BK69: 0 | BL69: =(BE69-SUM($S69,AY69:BB69))/30*BH69 -> 0 | BM69: =(BE69-SUM($S69,AY69:BB69))/30*BI69 -> 0 | BN69: =IF(data.f2026[[#This Row],[أيام الغياب]]=1,data.f2026[[#This Row],[الحافز]]*20%,IF(data.f2026[[#This Row],[أيام الغياب]]=2,data.f2026[[#This Row],[الحافز]]*100%,IF(data.f2026[[#This Row],[أيام الغياب]]>2,data.f2026[[#This Row],[الحافز]]*100%,""))) ->  | BO69: =IF(data.f2026[[#This Row],[عدد أيام الأجازات]]<=4,data.f2026[[#This Row],[الحافز]]*0,IF(data.f2026[[#This Row],[عدد أيام الأجازات]]=5,data.f2026[[#This Row],[الحافز]]*20%,IF(data.f2026[[#This Row],[عدد أيام الأجازات]]=6,data.f2026[[#This Row],[الحافز]]*40%,IF(data.f2026[[#This Row],[عدد أيام الأجازات]]=7,data.f2026[[#This Row],[الحافز]]*50%,IF(data.f2026[[#This Row],[عدد أيام الأجازات]]>7,data.f2026[[#This Row],[الحافز]]*100%,""))))) -> 0 | BP69: =IF(data.f2026[[#This Row],[أيام أجازات بعد السنوية]]<=2,data.f2026[[#This Row],[الحافز]]*0,IF(data.f2026[[#This Row],[أيام أجازات بعد السنوية]]=3,data.f2026[[#This Row],[الحافز]]*30%,IF(data.f2026[[#This Row],[أيام أجازات بعد السنوية]]=4,data.f2026[[#This Row],[الحافز]]*40%,IF(data.f2026[[#This Row],[أيام أجازات بعد السنوية]]=5,data.f2026[[#This Row],[الحافز]]*50%,IF(data.f2026[[#This Row],[أيام أجازات بعد السنوية]]>5,data.f2026[[#This Row],[الحافز]]*100%,""))))) -> 0 | BQ69: 0 | BR69: 1.25 | BT69: 3 | BU69: 0 | BX69: 0 | CC69: 0 | CE69: 0 | CG69: 3.05 | CH69: 3 | CI69: 0 | CL69: 0 | CN69: 0 | CO69: =ROUND(IF(G69=$CO$3,(BE69-AY69)*40%,0),2) -> 0 | CP69: 381.2421 | CQ69: 0 | CS69: =ROUND(IF($D69=CS$3,$BE69-SUM(BJ69:CQ69,0),0),2) -> 0 | CT69: =ROUND(IF($D69=CT$3,$BE69-SUM(BJ69:CQ69,0),0),2) -> 0 | CU69: 0 | CV69: 1088.91 | CW69: 6891.08
B70: 202062 | C70: 1162 | D70: بنك مصر 2 | E70: هاني سمير خلة غبريال | F70: 0 | G70: دوام كامل | H70: فنى | I70: الرابعة | J70: الرابعة | K70: حرفى كهربائى سيارات | L70: الورش | M70: 27711220105593 | N70: 202062هاني سمير خلة غبريالالرابعةالرابعةحرفى كهربائى سياراتالورش | O70: نعم | P70: 1070.48 | Q70: 1252.4616 | R70: 0 | S70: 1690.82 | T70: 187.87 | U70: 0 | V70: 0 | W70: 0 | Y70: 187.86924 | Z70: 300 | AB70: 0 | AD70: 0 | AE70: 0 | AF70: 487.87 | AG70: 38.27 | AH70: 42.47 | AI70: 65 | AJ70: 0 | AK70: 200 | AL70: 25.07 | AM70: 38.16 | AN70: 49 | AO70: 69.91 | AP70: 74.8 | AQ70: 80 | AS70: 53.524 | AT70: 600 | AU70: 10 | AV70: 1346.2 | AW70: 10 | AX70: 0 | AY70: 225.3642 | AZ70: 0 | BB70: 0 | BC70: 5200.59 | BD70: 1799.41 | BE70: 7000 | BF70: 0 | BG70: 0 | BJ70: 569.0707129 | BK70: 0 | BL70: 0 | BM70: 0 | BN70: =IF(data.f2026[[#This Row],[أيام الغياب]]=1,data.f2026[[#This Row],[الحافز]]*20%,IF(data.f2026[[#This Row],[أيام الغياب]]=2,data.f2026[[#This Row],[الحافز]]*100%,IF(data.f2026[[#This Row],[أيام الغياب]]>2,data.f2026[[#This Row],[الحافز]]*100%,""))) ->  | BO70: =IF(data.f2026[[#This Row],[عدد أيام الأجازات]]<=4,data.f2026[[#This Row],[الحافز]]*0,IF(data.f2026[[#This Row],[عدد أيام الأجازات]]=5,data.f2026[[#This Row],[الحافز]]*20%,IF(data.f2026[[#This Row],[عدد أيام الأجازات]]=6,data.f2026[[#This Row],[الحافز]]*40%,IF(data.f2026[[#This Row],[عدد أيام الأجازات]]=7,data.f2026[[#This Row],[الحافز]]*50%,IF(data.f2026[[#This Row],[عدد أيام الأجازات]]>7,data.f2026[[#This Row],[الحافز]]*100%,""))))) -> 0 | BP70: =IF(data.f2026[[#This Row],[أيام أجازات بعد السنوية]]<=2,data.f2026[[#This Row],[الحافز]]*0,IF(data.f2026[[#This Row],[أيام أجازات بعد السنوية]]=3,data.f2026[[#This Row],[الحافز]]*30%,IF(data.f2026[[#This Row],[أيام أجازات بعد السنوية]]=4,data.f2026[[#This Row],[الحافز]]*40%,IF(data.f2026[[#This Row],[أيام أجازات بعد السنوية]]=5,data.f2026[[#This Row],[الحافز]]*50%,IF(data.f2026[[#This Row],[أيام أجازات بعد السنوية]]>5,data.f2026[[#This Row],[الحافز]]*100%,""))))) -> 0 | BQ70: 0 | BR70: 0 | BT70: 3 | BU70: 0 | BX70: 0 | CC70: 0 | CE70: 0 | CG70: 3.07 | CH70: 3 | CI70: 0 | CL70: 0 | CN70: 0 | CO70: 0 | CP70: 225.3642 | CQ70: 0 | CS70: 0 | CT70: 0 | CU70: 0 | CV70: 803.5 | CW70: 6196.5
B71: 202063 | C71: 1087 | D71: مرضي | E71: عادل سمير بشاي سليمان | F71: مروه | G71: مرضي | H71: فنى | I71: الثانية | J71: الثانية | K71: فنى كهربائى توصيلات | L71: الادارة العامة | M71: 28011090105458 | N71: 202063عادل سمير بشاي سليمانمروهالثانيةالثانيةفنى كهربائى توصيلات الادارة العامة | O71: نعم | P71: 1137.36 | Q71: 1330.7112 | R71: 0 | S71: 1796.46 | T71: 199.61 | U71: 0 | V71: 0 | W71: 0 | Y71: 199.60668 | Z71: 300 | AB71: 0 | AD71: 0 | AE71: 0 | AF71: 499.61 | AG71: 40.59 | AH71: 45.02 | AI71: 65 | AJ71: 0 | AK71: 190 | AL71: 22.74 | AM71: 40.55 | AN71: 52.06 | AO71: 74.27 | AP71: 79.47 | AQ71: 85.04 | AS71: 56.868 | AT71: 600 | AU71: 8 | AV71: 1359.61 | AW71: 10 | AX71: 0 | AY71: 240.1 | AZ71: 0 | BB71: 0 | BC71: 5436.1 | BD71: 1563.9 | BE71: 7000 | BF71: 0 | BG71: 0 | BJ71: 567.2876172 | BK71: 0 | BL71: 0 | BM71: 0 | BN71: =IF(data.f2026[[#This Row],[أيام الغياب]]=1,data.f2026[[#This Row],[الحافز]]*20%,IF(data.f2026[[#This Row],[أيام الغياب]]=2,data.f2026[[#This Row],[الحافز]]*100%,IF(data.f2026[[#This Row],[أيام الغياب]]>2,data.f2026[[#This Row],[الحافز]]*100%,""))) ->  | BO71: =IF(data.f2026[[#This Row],[عدد أيام الأجازات]]<=4,data.f2026[[#This Row],[الحافز]]*0,IF(data.f2026[[#This Row],[عدد أيام الأجازات]]=5,data.f2026[[#This Row],[الحافز]]*20%,IF(data.f2026[[#This Row],[عدد أيام الأجازات]]=6,data.f2026[[#This Row],[الحافز]]*40%,IF(data.f2026[[#This Row],[عدد أيام الأجازات]]=7,data.f2026[[#This Row],[الحافز]]*50%,IF(data.f2026[[#This Row],[عدد أيام الأجازات]]>7,data.f2026[[#This Row],[الحافز]]*100%,""))))) -> 0 | BP71: =IF(data.f2026[[#This Row],[أيام أجازات بعد السنوية]]<=2,data.f2026[[#This Row],[الحافز]]*0,IF(data.f2026[[#This Row],[أيام أجازات بعد السنوية]]=3,data.f2026[[#This Row],[الحافز]]*30%,IF(data.f2026[[#This Row],[أيام أجازات بعد السنوية]]=4,data.f2026[[#This Row],[الحافز]]*40%,IF(data.f2026[[#This Row],[أيام أجازات بعد السنوية]]=5,data.f2026[[#This Row],[الحافز]]*50%,IF(data.f2026[[#This Row],[أيام أجازات بعد السنوية]]>5,data.f2026[[#This Row],[الحافز]]*100%,""))))) -> 0 | BQ71: 0 | BR71: 0 | BT71: 3 | BU71: 0 | BX71: 0 | CC71: 0 | CE71: 0 | CG71: 2.6 | CH71: 3 | CI71: 0 | CL71: 0 | CN71: 0 | CO71: 0 | CP71: 240.1 | CQ71: 0 | CS71: 6184.01 | CT71: 0 | CU71: 0 | CV71: 7000 | CW71: 0
B72: 202064 | C72: 1133 | D72: بنك مصر 2 | E72: محمد ذكر الله السيد ذكر الله | F72: 0 | G72: دوام كامل | H72: فنى | I72: الثانية | J72: الثانية | K72: فني ميكانيكي | L72: الاميرية | M72: 28701170102715 | N72: 202064محمد ذكر الله السيد ذكر الله الثانيةالثانيةفني ميكانيكيالاميرية | O72: نعم | P72: 1095.96 | Q72: 1282.2732 | R72: 0 | S72: 1731.07 | T72: 192.34 | U72: 0 | V72: 0 | W72: 0 | Y72: 192.34098 | Z72: 300 | AB72: 0 | AD72: 0 | AE72: 0 | AF72: 492.34 | AG72: 39.04 | AH72: 43.35 | AI72: 65 | AJ72: 0 | AK72: 190 | AL72: 23.88 | AM72: 39.07 | AN72: 50.17 | AO72: 71.57 | AP72: 76.58 | AQ72: 81.94 | AS72: 54.798 | AT72: 600 | AU72: 6 | AV72: 1341.4 | AW72: 10 | AX72: 0 | AY72: 230.7284 | AZ72: 0 | BB72: 60 | BC72: 5280.15 | BD72: 1719.85 | BE72: 7060 | BF72: 0 | BG72: 0 | BJ72: 568.6725 | BK72: 0 | BL72: 0 | BM72: 0 | BN72: =IF(data.f2026[[#This Row],[أيام الغياب]]=1,data.f2026[[#This Row],[الحافز]]*20%,IF(data.f2026[[#This Row],[أيام الغياب]]=2,data.f2026[[#This Row],[الحافز]]*100%,IF(data.f2026[[#This Row],[أيام الغياب]]>2,data.f2026[[#This Row],[الحافز]]*100%,""))) ->  | BO72: =IF(data.f2026[[#This Row],[عدد أيام الأجازات]]<=4,data.f2026[[#This Row],[الحافز]]*0,IF(data.f2026[[#This Row],[عدد أيام الأجازات]]=5,data.f2026[[#This Row],[الحافز]]*20%,IF(data.f2026[[#This Row],[عدد أيام الأجازات]]=6,data.f2026[[#This Row],[الحافز]]*40%,IF(data.f2026[[#This Row],[عدد أيام الأجازات]]=7,data.f2026[[#This Row],[الحافز]]*50%,IF(data.f2026[[#This Row],[عدد أيام الأجازات]]>7,data.f2026[[#This Row],[الحافز]]*100%,""))))) -> 0 | BP72: =IF(data.f2026[[#This Row],[أيام أجازات بعد السنوية]]<=2,data.f2026[[#This Row],[الحافز]]*0,IF(data.f2026[[#This Row],[أيام أجازات بعد السنوية]]=3,data.f2026[[#This Row],[الحافز]]*30%,IF(data.f2026[[#This Row],[أيام أجازات بعد السنوية]]=4,data.f2026[[#This Row],[الحافز]]*40%,IF(data.f2026[[#This Row],[أيام أجازات بعد السنوية]]=5,data.f2026[[#This Row],[الحافز]]*50%,IF(data.f2026[[#This Row],[أيام أجازات بعد السنوية]]>5,data.f2026[[#This Row],[الحافز]]*100%,""))))) -> 0 | BQ72: 0 | BR72: 0 | BT72: 3 | BU72: 0 | BX72: 0 | CC72: 0 | CE72: 0 | CG72: 2.63 | CH72: 3 | CI72: 0 | CL72: 0 | CN72: 0 | CO72: 0 | CP72: 230.7284 | CQ72: 0 | CS72: 0 | CT72: 0 | CU72: 0 | CV72: 808.03 | CW72: 6251.97
B73: 202065 | C73: 1159 | D73: بنك مصر 2 | E73: حاتم إبراهيم مدبولي سعدون | F73: 0 | G73: دوام كامل | H73: فنى | I73: الثالثة | J73: الثالثة | K73: حرفى لحام | L73: فرع الاسكندرية | M73: 27001030102515 | N73: 202065حاتم إبراهيم مدبولي سعدونالثالثةالثالثةحرفى لحامفرع الاسكندرية | O73: نعم | P73: 1092.43 | Q73: 1278.1431 | R73: 0 | S73: 1725.49 | T73: 191.72 | U73: 0 | V73: 0 | W73: 0 | Y73: 191.721465 | Z73: 300 | AB73: 0 | AD73: 0 | AE73: 0 | AF73: 491.72 | AG73: 38.89 | AH73: 43.11 | AI73: 65 | AJ73: 0 | AK73: 200 | AL73: 24.04 | AM73: 38.94 | AN73: 50 | AO73: 71.34 | AP73: 76.33 | AQ73: 81.68 | AS73: 54.6215 | AT73: 600 | AU73: 10 | AV73: 1353.95 | AW73: 10 | AX73: 0 | AY73: 229.9853 | AZ73: 0 | BB73: 0 | BC73: 5281.01 | BD73: 1718.99 | BE73: 7000 | BF73: 0 | BG73: 0 | BJ73: 568.4822021 | BK73: 0.00 | BL73: 0 | BM73: 0 | BN73: =IF(data.f2026[[#This Row],[أيام الغياب]]=1,data.f2026[[#This Row],[الحافز]]*20%,IF(data.f2026[[#This Row],[أيام الغياب]]=2,data.f2026[[#This Row],[الحافز]]*100%,IF(data.f2026[[#This Row],[أيام الغياب]]>2,data.f2026[[#This Row],[الحافز]]*100%,""))) ->  | BO73: =IF(data.f2026[[#This Row],[عدد أيام الأجازات]]<=4,data.f2026[[#This Row],[الحافز]]*0,IF(data.f2026[[#This Row],[عدد أيام الأجازات]]=5,data.f2026[[#This Row],[الحافز]]*20%,IF(data.f2026[[#This Row],[عدد أيام الأجازات]]=6,data.f2026[[#This Row],[الحافز]]*40%,IF(data.f2026[[#This Row],[عدد أيام الأجازات]]=7,data.f2026[[#This Row],[الحافز]]*50%,IF(data.f2026[[#This Row],[عدد أيام الأجازات]]>7,data.f2026[[#This Row],[الحافز]]*100%,""))))) -> 0 | BP73: =IF(data.f2026[[#This Row],[أيام أجازات بعد السنوية]]<=2,data.f2026[[#This Row],[الحافز]]*0,IF(data.f2026[[#This Row],[أيام أجازات بعد السنوية]]=3,data.f2026[[#This Row],[الحافز]]*30%,IF(data.f2026[[#This Row],[أيام أجازات بعد السنوية]]=4,data.f2026[[#This Row],[الحافز]]*40%,IF(data.f2026[[#This Row],[أيام أجازات بعد السنوية]]=5,data.f2026[[#This Row],[الحافز]]*50%,IF(data.f2026[[#This Row],[أيام أجازات بعد السنوية]]>5,data.f2026[[#This Row],[الحافز]]*100%,""))))) -> 0 | BQ73: 0 | BR73: 0 | BT73: 3 | BU73: 0 | BX73: 0 | CC73: 0 | CE73: 0 | CG73: 2.63 | CH73: 3 | CI73: 0 | CL73: 0 | CN73: 0 | CO73: 0 | CP73: 229.9853 | CQ73: 0 | CS73: 0 | CT73: 0 | CU73: 0 | CV73: 807.1 | CW73: 6192.9
B74: 202066 | C74: 31333 | D74: بنك مصر 1 | E74: عاطف خليل محمود جاد | F74: 0 | G74: دوام كامل | H74: فنى | I74: الثالثة | J74: الثالثة | K74: حرفى كهربائى | L74: الاميرية | M74: 27311230102535 | N74: 202066عاطف خليل محمود جادالثالثةالثالثةحرفى كهربائىالاميرية | O74: نعم | P74: 1092.43 | Q74: 1278.1431 | R74: 0 | S74: 1725.49 | T74: 191.72 | U74: 0 | V74: 0 | W74: 0 | Y74: 191.721465 | Z74: 300 | AB74: 0 | AD74: 0 | AE74: 0 | AF74: 491.72 | AG74: 38.89 | AH74: 43.11 | AI74: 65 | AJ74: 0 | AK74: 200 | AL74: 24.04 | AM74: 38.94 | AN74: 50 | AO74: 71.34 | AP74: 76.33 | AQ74: 81.68 | AS74: 54.6215 | AT74: 600 | AU74: 10 | AV74: 1353.95 | AW74: 10 | AX74: 0 | AY74: 232 | AZ74: 0 | BB74: 0 | BC74: 5283.02 | BD74: 1716.98 | BE74: 7000 | BF74: 0 | BG74: 0 | BJ74: 568.464585 | BK74: 0 | BL74: 0 | BM74: 0 | BN74: =IF(data.f2026[[#This Row],[أيام الغياب]]=1,data.f2026[[#This Row],[الحافز]]*20%,IF(data.f2026[[#This Row],[أيام الغياب]]=2,data.f2026[[#This Row],[الحافز]]*100%,IF(data.f2026[[#This Row],[أيام الغياب]]>2,data.f2026[[#This Row],[الحافز]]*100%,""))) ->  | BO74: =IF(data.f2026[[#This Row],[عدد أيام الأجازات]]<=4,data.f2026[[#This Row],[الحافز]]*0,IF(data.f2026[[#This Row],[عدد أيام الأجازات]]=5,data.f2026[[#This Row],[الحافز]]*20%,IF(data.f2026[[#This Row],[عدد أيام الأجازات]]=6,data.f2026[[#This Row],[الحافز]]*40%,IF(data.f2026[[#This Row],[عدد أيام الأجازات]]=7,data.f2026[[#This Row],[الحافز]]*50%,IF(data.f2026[[#This Row],[عدد أيام الأجازات]]>7,data.f2026[[#This Row],[الحافز]]*100%,""))))) -> 0 | BP74: =IF(data.f2026[[#This Row],[أيام أجازات بعد السنوية]]<=2,data.f2026[[#This Row],[الحافز]]*0,IF(data.f2026[[#This Row],[أيام أجازات بعد السنوية]]=3,data.f2026[[#This Row],[الحافز]]*30%,IF(data.f2026[[#This Row],[أيام أجازات بعد السنوية]]=4,data.f2026[[#This Row],[الحافز]]*40%,IF(data.f2026[[#This Row],[أيام أجازات بعد السنوية]]=5,data.f2026[[#This Row],[الحافز]]*50%,IF(data.f2026[[#This Row],[أيام أجازات بعد السنوية]]>5,data.f2026[[#This Row],[الحافز]]*100%,""))))) -> 0 | BQ74: 0 | BR74: 0 | BT74: 3 | BU74: 0 | BX74: 0 | CC74: 0 | CE74: 0 | CG74: 2.63 | CH74: 4 | CI74: 0 | CL74: 0 | CN74: 0 | CO74: 0 | CP74: 232 | CQ74: 0 | CS74: 0 | CT74: 0 | CU74: 0 | CV74: 810.09 | CW74: 6189.91
B75: 202067 | C75: 1141 | D75: بنك مصر 2 | E75: عبد الرحمن عبد الله عبده أبو العينين | F75: 0 | G75: دوام كامل | H75: فنى | I75: الرابعة | J75: الرابعة | K75: حرفى ميكانيكى | L75: الإدارة العامة | M75: 27804011305591 | N75: 202067عبد الرحمن عبد الله عبده أبو العينينالرابعةالرابعةحرفى ميكانيكىالإدارة العامة | O75: نعم | P75: 1070.48 | Q75: 1252.4616 | R75: 0 | S75: 1690.82 | T75: 187.87 | U75: 0 | V75: 0 | W75: 0 | Y75: 187.86924 | Z75: 300 | AB75: 0 | AD75: 0 | AE75: 0 | AF75: 487.87 | AG75: 38.08 | AH75: 42.17 | AI75: 65 | AJ75: 0 | AK75: 200 | AL75: 25.07 | AM75: 38.16 | AN75: 49 | AO75: 69.91 | AP75: 74.8 | AQ75: 80.04 | AS75: 53.524 | AT75: 600 | AU75: 10 | AV75: 1345.75 | AW75: 10 | AX75: 0 | AY75: 225.3642 | AZ75: 0 | BB75: 0 | BC75: 5200.14 | BD75: 1799.86 | BE75: 7000 | BF75: 0 | BG75: 0 | BJ75: 569.58 | BK75: 0 | BL75: 0 | BM75: 0 | BN75: =IF(data.f2026[[#This Row],[أيام الغياب]]=1,data.f2026[[#This Row],[الحافز]]*20%,IF(data.f2026[[#This Row],[أيام الغياب]]=2,data.f2026[[#This Row],[الحافز]]*100%,IF(data.f2026[[#This Row],[أيام الغياب]]>2,data.f2026[[#This Row],[الحافز]]*100%,""))) ->  | BO75: =IF(data.f2026[[#This Row],[عدد أيام الأجازات]]<=4,data.f2026[[#This Row],[الحافز]]*0,IF(data.f2026[[#This Row],[عدد أيام الأجازات]]=5,data.f2026[[#This Row],[الحافز]]*20%,IF(data.f2026[[#This Row],[عدد أيام الأجازات]]=6,data.f2026[[#This Row],[الحافز]]*40%,IF(data.f2026[[#This Row],[عدد أيام الأجازات]]=7,data.f2026[[#This Row],[الحافز]]*50%,IF(data.f2026[[#This Row],[عدد أيام الأجازات]]>7,data.f2026[[#This Row],[الحافز]]*100%,""))))) -> 0 | BP75: =IF(data.f2026[[#This Row],[أيام أجازات بعد السنوية]]<=2,data.f2026[[#This Row],[الحافز]]*0,IF(data.f2026[[#This Row],[أيام أجازات بعد السنوية]]=3,data.f2026[[#This Row],[الحافز]]*30%,IF(data.f2026[[#This Row],[أيام أجازات بعد السنوية]]=4,data.f2026[[#This Row],[الحافز]]*40%,IF(data.f2026[[#This Row],[أيام أجازات بعد السنوية]]=5,data.f2026[[#This Row],[الحافز]]*50%,IF(data.f2026[[#This Row],[أيام أجازات بعد السنوية]]>5,data.f2026[[#This Row],[الحافز]]*100%,""))))) -> 0 | BQ75: 0 | BR75: 0 | BT75: 3 | BU75: 0 | BX75: 0 | CC75: 0 | CE75: 0 | CG75: 2.64 | CH75: 3 | CI75: 0 | CL75: 0 | CN75: 0 | CO75: 0 | CP75: 225.3642 | CQ75: 0 | CS75: 0 | CT75: 0 | CU75: 0 | CV75: 803.58 | CW75: 6196.42
B76: 202069 | C76: 1147 | D76: بنك مصر 2 | E76: خالد محمد محمد بكير | F76: 0 | G76: دوام كامل | H76: فنى | I76: الاولى | M76: 26602120100457 | N76: 202069خالد محمد محمد بكيرالاولى | P76: 2332.45 | Q76: 2565.695 | R76: 0 | S76: 3463.69 | T76: 384.85 | U76: 0 | V76: 0 | W76: 0 | Y76: 384.85425 | Z76: 300 | AB76: 100 | AD76: 0 | AE76: 0 | AF76: 684.85 | AG76: 77.1 | AH76: 85.91 | AI76: 103.24 | AJ76: 0 | AK76: 190 | AL76: 46.63 | AM76: 83.15 | AN76: 106.76 | AO76: 152.32 | AP76: 162.98 | AQ76: 174.39 | AS76: 116.6225 | AT76: 600 | AU76: 10 | AV76: 1909.1 | AW76: 10 | AX76: 0 | AY76: 491.0421 | AZ76: 0 | BB76: 0 | BC76: 9509.23 | BD76: 0 | BE76: 9609.23 | BF76: 0 | BG76: 0 | BJ76: 870.6785742 | BK76: 81.17 | BL76: 0 | BM76: 0 | BN76: =IF(data.f2026[[#This Row],[أيام الغياب]]=1,data.f2026[[#This Row],[الحافز]]*20%,IF(data.f2026[[#This Row],[أيام الغياب]]=2,data.f2026[[#This Row],[الحافز]]*100%,IF(data.f2026[[#This Row],[أيام الغياب]]>2,data.f2026[[#This Row],[الحافز]]*100%,""))) ->  | BO76: =IF(data.f2026[[#This Row],[عدد أيام الأجازات]]<=4,data.f2026[[#This Row],[الحافز]]*0,IF(data.f2026[[#This Row],[عدد أيام الأجازات]]=5,data.f2026[[#This Row],[الحافز]]*20%,IF(data.f2026[[#This Row],[عدد أيام الأجازات]]=6,data.f2026[[#This Row],[الحافز]]*40%,IF(data.f2026[[#This Row],[عدد أيام الأجازات]]=7,data.f2026[[#This Row],[الحافز]]*50%,IF(data.f2026[[#This Row],[عدد أيام الأجازات]]>7,data.f2026[[#This Row],[الحافز]]*100%,""))))) -> 0 | BP76: =IF(data.f2026[[#This Row],[أيام أجازات بعد السنوية]]<=2,data.f2026[[#This Row],[الحافز]]*0,IF(data.f2026[[#This Row],[أيام أجازات بعد السنوية]]=3,data.f2026[[#This Row],[الحافز]]*30%,IF(data.f2026[[#This Row],[أيام أجازات بعد السنوية]]=4,data.f2026[[#This Row],[الحافز]]*40%,IF(data.f2026[[#This Row],[أيام أجازات بعد السنوية]]=5,data.f2026[[#This Row],[الحافز]]*50%,IF(data.f2026[[#This Row],[أيام أجازات بعد السنوية]]>5,data.f2026[[#This Row],[الحافز]]*100%,""))))) -> 0 | BQ76: 0 | BR76: 0 | BT76: 3 | BU76: 0 | BX76: 0 | CC76: 0 | CE76: 0 | CG76: 3.8 | CH76: 5 | CI76: 0 | CL76: 0 | CN76: 0 | CO76: 0 | CP76: 491.0421 | CQ76: 0 | CS76: 0 | CT76: 0 | CU76: 0 | CV76: 1454.69 | CW76: 8154.54
B77: 202070 | C77: 1168 | D77: بنك مصر 2 | E77: محمود زكريا محمود يونس | F77: 0 | G77: دوام كامل | H77: فنى | I77: الثانية | J77: الثانية | K77: ميكانيكى | L77: محطة الخدمة | M77: 27312100103277 | N77: 202070محمود زكريا محمود يونسالثانيةالثانيةميكانيكىمحطة الخدمة | O77: نعم | P77: 1879.01 | Q77: 2198.4417 | R77: 0 | S77: 2967.9 | T77: 329.77 | U77: 0 | V77: 0 | W77: 0 | Y77: 329.766255 | Z77: 300 | AB77: 0 | AD77: 0 | AE77: 0 | AF77: 629.77 | AG77: 62.21 | AH77: 69.28 | AI77: 83.14 | AJ77: 0 | AK77: 190 | AL77: 37.56 | AM77: 66.99 | AN77: 86.01 | AO77: 122.71 | AP77: 131.3 | AQ77: 140.49 | AS77: 93.9505 | AT77: 600 | AU77: 10 | AV77: 1693.64 | AW77: 10 | AX77: 0 | AY77: 395.5811 | AZ77: 0 | BB77: 0 | BC77: 8225.1 | BD77: 0 | BE77: 8225.1 | BF77: 0 | BG77: 0 | BJ77: 718.752085 | BK77: 0 | BL77: 0 | BM77: 0 | BN77: =IF(data.f2026[[#This Row],[أيام الغياب]]=1,data.f2026[[#This Row],[الحافز]]*20%,IF(data.f2026[[#This Row],[أيام الغياب]]=2,data.f2026[[#This Row],[الحافز]]*100%,IF(data.f2026[[#This Row],[أيام الغياب]]>2,data.f2026[[#This Row],[الحافز]]*100%,""))) ->  | BO77: =IF(data.f2026[[#This Row],[عدد أيام الأجازات]]<=4,data.f2026[[#This Row],[الحافز]]*0,IF(data.f2026[[#This Row],[عدد أيام الأجازات]]=5,data.f2026[[#This Row],[الحافز]]*20%,IF(data.f2026[[#This Row],[عدد أيام الأجازات]]=6,data.f2026[[#This Row],[الحافز]]*40%,IF(data.f2026[[#This Row],[عدد أيام الأجازات]]=7,data.f2026[[#This Row],[الحافز]]*50%,IF(data.f2026[[#This Row],[عدد أيام الأجازات]]>7,data.f2026[[#This Row],[الحافز]]*100%,""))))) -> 0 | BP77: =IF(data.f2026[[#This Row],[أيام أجازات بعد السنوية]]<=2,data.f2026[[#This Row],[الحافز]]*0,IF(data.f2026[[#This Row],[أيام أجازات بعد السنوية]]=3,data.f2026[[#This Row],[الحافز]]*30%,IF(data.f2026[[#This Row],[أيام أجازات بعد السنوية]]=4,data.f2026[[#This Row],[الحافز]]*40%,IF(data.f2026[[#This Row],[أيام أجازات بعد السنوية]]=5,data.f2026[[#This Row],[الحافز]]*50%,IF(data.f2026[[#This Row],[أيام أجازات بعد السنوية]]>5,data.f2026[[#This Row],[الحافز]]*100%,""))))) -> 0 | BQ77: 0 | BR77: 0 | BT77: 3 | BU77: 0 | BX77: 0 | CC77: 0 | CE77: 0 | CG77: 3.14 | CH77: 3 | CI77: 0 | CL77: 0 | CN77: 0 | CO77: 0 | CP77: 395.5811 | CQ77: 0 | CS77: 0 | CT77: 0 | CU77: 0 | CV77: 1123.47 | CW77: 7101.63
B78: 202071 | C78: 1155 | D78: بنك مصر 2 | E78: أشرف هاشم عثمان عبد المغيث | F78: 0 | G78: دوام كامل | H78: فنى | I78: الثالثة | J78: الثالثة | K78: حرفى نقاش دوكو | L78: الادارة العامة | M78: 27003190101755 | N78: 202071أشرف هاشم عثمان عبد المغيثالثالثةالثالثةحرفى نقاش دوكوالادارة العامة | O78: نعم | P78: 1092.43 | Q78: 1278.1431 | R78: 0 | S78: 1725.49 | T78: 191.72 | U78: 0 | V78: 0 | W78: 0 | Y78: 191.721465 | Z78: 300 | AB78: 0 | AD78: 0 | AE78: 0 | AF78: 491.72 | AG78: 38.89 | AH78: 43.11 | AI78: 65 | AJ78: 0 | AK78: 200 | AL78: 24.04 | AM78: 38.94 | AN78: 50 | AO78: 71.34 | AP78: 76.33 | AQ78: 81.67 | AS78: 54.6215 | AT78: 600 | AU78: 10 | AV78: 1353.94 | AW78: 10 | AX78: 0 | AY78: 229.9853 | AZ78: 0 | BB78: 0 | BC78: 5281 | BD78: 1719 | BE78: 7000 | BF78: 0 | BG78: 0 | BJ78: 568.3172021 | BK78: 0 | BL78: 0 | BM78: 0 | BN78: =IF(data.f2026[[#This Row],[أيام الغياب]]=1,data.f2026[[#This Row],[الحافز]]*20%,IF(data.f2026[[#This Row],[أيام الغياب]]=2,data.f2026[[#This Row],[الحافز]]*100%,IF(data.f2026[[#This Row],[أيام الغياب]]>2,data.f2026[[#This Row],[الحافز]]*100%,""))) ->  | BO78: =IF(data.f2026[[#This Row],[عدد أيام الأجازات]]<=4,data.f2026[[#This Row],[الحافز]]*0,IF(data.f2026[[#This Row],[عدد أيام الأجازات]]=5,data.f2026[[#This Row],[الحافز]]*20%,IF(data.f2026[[#This Row],[عدد أيام الأجازات]]=6,data.f2026[[#This Row],[الحافز]]*40%,IF(data.f2026[[#This Row],[عدد أيام الأجازات]]=7,data.f2026[[#This Row],[الحافز]]*50%,IF(data.f2026[[#This Row],[عدد أيام الأجازات]]>7,data.f2026[[#This Row],[الحافز]]*100%,""))))) -> 0 | BP78: =IF(data.f2026[[#This Row],[أيام أجازات بعد السنوية]]<=2,data.f2026[[#This Row],[الحافز]]*0,IF(data.f2026[[#This Row],[أيام أجازات بعد السنوية]]=3,data.f2026[[#This Row],[الحافز]]*30%,IF(data.f2026[[#This Row],[أيام أجازات بعد السنوية]]=4,data.f2026[[#This Row],[الحافز]]*40%,IF(data.f2026[[#This Row],[أيام أجازات بعد السنوية]]=5,data.f2026[[#This Row],[الحافز]]*50%,IF(data.f2026[[#This Row],[أيام أجازات بعد السنوية]]>5,data.f2026[[#This Row],[الحافز]]*100%,""))))) -> 0 | BQ78: 0 | BR78: 0 | BT78: 3 | BU78: 0 | BX78: 0 | CC78: 0 | CE78: 0 | CG78: 2.63 | CH78: 3 | CI78: 0 | CL78: 0 | CN78: 0 | CO78: 0 | CP78: 229.9853 | CQ78: 0 | CS78: 0 | CT78: 0 | CU78: 0 | CV78: 804.3 | CW78: 6195.7
B79: 202072 | C79: 1313 | D79: بنك مصر 2 | E79: محمود رزق إبراهيم هيكل | F79: 0 | G79: دوام كامل | H79: فنى | I79: الثالثة | J79: الثالثة | K79: حرفى سروجى | L79: الادارة العامة بالورش المركزية | M79: 27608010101695 | N79: 202072محمود رزق إبراهيم هيكلالثالثةالثالثةحرفى سروجىالادارة العامة بالورش المركزية | O79: نعم | P79: 1092.43 | Q79: 1278.1431 | R79: 0 | S79: 1725.49 | T79: 191.72 | U79: 0 | V79: 0 | W79: 0 | Y79: 191.721465 | Z79: 300 | AB79: 0 | AD79: 0 | AE79: 0 | AF79: 491.72 | AG79: 38.89 | AH79: 43.11 | AI79: 65 | AJ79: 0 | AK79: 200 | AL79: 24.04 | AM79: 38.94 | AN79: 50 | AO79: 71.34 | AP79: 76.33 | AQ79: 81.68 | AS79: 54.6215 | AT79: 600 | AU79: 10 | AV79: 1353.95 | AW79: 10 | AX79: 0 | AY79: 229.9853 | AZ79: 0 | BB79: 0 | BC79: 5281.01 | BD79: 1718.99 | BE79: 7000 | BF79: 0 | BG79: 0 | BJ79: 569.399585 | BK79: 0 | BL79: 0 | BM79: 0 | BN79: =IF(data.f2026[[#This Row],[أيام الغياب]]=1,data.f2026[[#This Row],[الحافز]]*20%,IF(data.f2026[[#This Row],[أيام الغياب]]=2,data.f2026[[#This Row],[الحافز]]*100%,IF(data.f2026[[#This Row],[أيام الغياب]]>2,data.f2026[[#This Row],[الحافز]]*100%,""))) ->  | BO79: =IF(data.f2026[[#This Row],[عدد أيام الأجازات]]<=4,data.f2026[[#This Row],[الحافز]]*0,IF(data.f2026[[#This Row],[عدد أيام الأجازات]]=5,data.f2026[[#This Row],[الحافز]]*20%,IF(data.f2026[[#This Row],[عدد أيام الأجازات]]=6,data.f2026[[#This Row],[الحافز]]*40%,IF(data.f2026[[#This Row],[عدد أيام الأجازات]]=7,data.f2026[[#This Row],[الحافز]]*50%,IF(data.f2026[[#This Row],[عدد أيام الأجازات]]>7,data.f2026[[#This Row],[الحافز]]*100%,""))))) -> 0 | BP79: =IF(data.f2026[[#This Row],[أيام أجازات بعد السنوية]]<=2,data.f2026[[#This Row],[الحافز]]*0,IF(data.f2026[[#This Row],[أيام أجازات بعد السنوية]]=3,data.f2026[[#This Row],[الحافز]]*30%,IF(data.f2026[[#This Row],[أيام أجازات بعد السنوية]]=4,data.f2026[[#This Row],[الحافز]]*40%,IF(data.f2026[[#This Row],[أيام أجازات بعد السنوية]]=5,data.f2026[[#This Row],[الحافز]]*50%,IF(data.f2026[[#This Row],[أيام أجازات بعد السنوية]]>5,data.f2026[[#This Row],[الحافز]]*100%,""))))) -> 0 | BQ79: 0 | BR79: 0 | BT79: 3 | BU79: 0 | BX79: 0 | CC79: 0 | CE79: 0 | CG79: 2.63 | CH79: 3 | CI79: 0 | CL79: 0 | CN79: 0 | CO79: 0 | CP79: 229.9853 | CQ79: 0 | CS79: 0 | CT79: 0 | CU79: 0 | CV79: 808.01 | CW79: 6191.99
B80: 202073 | C80: 1163 | D80: بنك مصر 2 | E80: عبد اللاه محمد خميس صالح | F80: 0 | G80: دوام كامل | H80: فنى | I80: الثالثة | M80: 27204090101435 | N80: 202073عبد اللاه محمد خميس صالحالثالثة | P80: 989.69 | Q80: 1157.94 | R80: 0 | S80: 1563.22 | T80: 173.69 | U80: 0 | V80: 0 | W80: 0 | Y80: 173.691 | Z80: 300 | AB80: 0 | AD80: 0 | AE80: 0 | AF80: 473.69 | AG80: 32.5 | AH80: 36.38 | AI80: 65 | AJ80: 0 | AK80: 200 | AL80: 28.84 | AM80: 35.28 | AN80: 45.3 | AO80: 64.63 | AP80: 69.15 | AQ80: 85.25 | AS80: 51.031 | AT80: 600 | AU80: 8 | AV80: 1321.36 | AW80: 10 | AX80: 0 | AY80: 208.94 | AZ80: 0 | BB80: 30 | BC80: 4908.84 | BD80: 2091.16 | BE80: 7030 | BF80: 0 | BG80: 0 | BJ80: 574.3814893 | BK80: 0 | BL80: 0 | BM80: 0 | BN80: =IF(data.f2026[[#This Row],[أيام الغياب]]=1,data.f2026[[#This Row],[الحافز]]*20%,IF(data.f2026[[#This Row],[أيام الغياب]]=2,data.f2026[[#This Row],[الحافز]]*100%,IF(data.f2026[[#This Row],[أيام الغياب]]>2,data.f2026[[#This Row],[الحافز]]*100%,""))) ->  | BO80: =IF(data.f2026[[#This Row],[عدد أيام الأجازات]]<=4,data.f2026[[#This Row],[الحافز]]*0,IF(data.f2026[[#This Row],[عدد أيام الأجازات]]=5,data.f2026[[#This Row],[الحافز]]*20%,IF(data.f2026[[#This Row],[عدد أيام الأجازات]]=6,data.f2026[[#This Row],[الحافز]]*40%,IF(data.f2026[[#This Row],[عدد أيام الأجازات]]=7,data.f2026[[#This Row],[الحافز]]*50%,IF(data.f2026[[#This Row],[عدد أيام الأجازات]]>7,data.f2026[[#This Row],[الحافز]]*100%,""))))) -> 0 | BP80: =IF(data.f2026[[#This Row],[أيام أجازات بعد السنوية]]<=2,data.f2026[[#This Row],[الحافز]]*0,IF(data.f2026[[#This Row],[أيام أجازات بعد السنوية]]=3,data.f2026[[#This Row],[الحافز]]*30%,IF(data.f2026[[#This Row],[أيام أجازات بعد السنوية]]=4,data.f2026[[#This Row],[الحافز]]*40%,IF(data.f2026[[#This Row],[أيام أجازات بعد السنوية]]=5,data.f2026[[#This Row],[الحافز]]*50%,IF(data.f2026[[#This Row],[أيام أجازات بعد السنوية]]>5,data.f2026[[#This Row],[الحافز]]*100%,""))))) -> 0 | BQ80: 0 | BR80: 0 | BT80: 3 | BU80: 0 | BX80: 0 | CC80: 0 | CE80: 0 | CG80: 1.96 | CH80: 3 | CI80: 0 | CL80: 0 | CN80: 0 | CO80: 0 | CP80: 208.94 | CQ80: 0 | CS80: 0 | CT80: 0 | CU80: 0 | CV80: 791.28 | CW80: 6238.72
B81: 202074 | C81: 1150 | D81: بنك مصر 2 | E81: سيد نجيب محمد سيد | F81: 0 | G81: دوام كامل | H81: فنى | I81: الاولى | J81: الأولى | K81: حرفى لحام كهربائى | L81: قطاع شئون الفنية | M81: 26709180102733 | N81: 202074سيد نجيب محمد سيدالاولىالأولىحرفى لحام كهربائىقطاع شئون الفنية | O81: نعم | P81: 2029.15 | Q81: 2374.1055 | R81: 0 | S81: 3205.04 | T81: 356.12 | U81: 0 | V81: 0 | W81: 0 | Y81: 356.115825 | Z81: 300 | AB81: 0 | AD81: 0 | AE81: 0 | AF81: 656.12 | AG81: 71.79 | AH81: 79.95 | AI81: 95.3 | AJ81: 0 | AK81: 190 | AL81: 40.56 | AM81: 72.34 | AN81: 92.88 | AO81: 132.51 | AP81: 141.79 | AQ81: 151.71 | AS81: 101.4575 | AT81: 600 | AU81: 10 | AV81: 1780.29 | AW81: 10 | AX81: 0 | AY81: 428.38 | AZ81: 0 | BB81: 0 | BC81: 8810.06 | BD81: 0 | BE81: 8810.06 | BF81: 0 | BG81: 0 | BJ81: 770.7061914 | BK81: 0 | BL81: 0 | BM81: 0 | BN81: =IF(data.f2026[[#This Row],[أيام الغياب]]=1,data.f2026[[#This Row],[الحافز]]*20%,IF(data.f2026[[#This Row],[أيام الغياب]]=2,data.f2026[[#This Row],[الحافز]]*100%,IF(data.f2026[[#This Row],[أيام الغياب]]>2,data.f2026[[#This Row],[الحافز]]*100%,""))) ->  | BO81: =IF(data.f2026[[#This Row],[عدد أيام الأجازات]]<=4,data.f2026[[#This Row],[الحافز]]*0,IF(data.f2026[[#This Row],[عدد أيام الأجازات]]=5,data.f2026[[#This Row],[الحافز]]*20%,IF(data.f2026[[#This Row],[عدد أيام الأجازات]]=6,data.f2026[[#This Row],[الحافز]]*40%,IF(data.f2026[[#This Row],[عدد أيام الأجازات]]=7,data.f2026[[#This Row],[الحافز]]*50%,IF(data.f2026[[#This Row],[عدد أيام الأجازات]]>7,data.f2026[[#This Row],[الحافز]]*100%,""))))) -> 0 | BP81: =IF(data.f2026[[#This Row],[أيام أجازات بعد السنوية]]<=2,data.f2026[[#This Row],[الحافز]]*0,IF(data.f2026[[#This Row],[أيام أجازات بعد السنوية]]=3,data.f2026[[#This Row],[الحافز]]*30%,IF(data.f2026[[#This Row],[أيام أجازات بعد السنوية]]=4,data.f2026[[#This Row],[الحافز]]*40%,IF(data.f2026[[#This Row],[أيام أجازات بعد السنوية]]=5,data.f2026[[#This Row],[الحافز]]*50%,IF(data.f2026[[#This Row],[أيام أجازات بعد السنوية]]>5,data.f2026[[#This Row],[الحافز]]*100%,""))))) -> 0 | BQ81: 0 | BR81: 0 | BT81: 3 | BU81: 0 | BX81: 0 | CC81: 0 | CE81: 0 | CG81: 3.37 | CH81: 5 | CI81: 0 | CL81: 0 | CN81: 0 | CO81: 0 | CP81: 428.38 | CQ81: 0 | CS81: 0 | CT81: 0 | CU81: 0 | CV81: 1210.46 | CW81: 7599.6
B82: 202075 | C82: 1131 | D82: بنك مصر 2 | E82: ميلاد سمير خله غبريال | F82: 0 | G82: دوام كامل | H82: فنى | I82: الثانية | J82: الثانية | K82: فنى كهربائى توصيلات | L82: الاميرية | M82: 28301060104498 | N82: 202075ميلاد سمير خله غبريالالثانيةالثانيةفنى كهربائى توصيلات الاميرية | O82: نعم | P82: 1137.36 | Q82: 1330.7112 | R82: 0 | S82: 1796.46 | T82: 199.61 | U82: 0 | V82: 0 | W82: 0 | Y82: 199.60668 | Z82: 300 | AB82: 0 | AD82: 0 | AE82: 0 | AF82: 499.61 | AG82: 40.59 | AH82: 45.2 | AI82: 65 | AJ82: 0 | AK82: 190 | AL82: 22.74 | AM82: 40.55 | AN82: 52.06 | AO82: 74.27 | AP82: 79.47 | AQ82: 85.04 | AS82: 56.868 | AT82: 600 | AU82: 8 | AV82: 1359.79 | AW82: 10 | AX82: 0 | AY82: 239.4442 | AZ82: 0 | BB82: 0 | BC82: 5435.63 | BD82: 1564.37 | BE82: 7000 | BF82: 0 | BG82: 0 | BJ82: 566.0182129 | BK82: 0 | BL82: 0 | BM82: 0 | BN82: =IF(data.f2026[[#This Row],[أيام الغياب]]=1,data.f2026[[#This Row],[الحافز]]*20%,IF(data.f2026[[#This Row],[أيام الغياب]]=2,data.f2026[[#This Row],[الحافز]]*100%,IF(data.f2026[[#This Row],[أيام الغياب]]>2,data.f2026[[#This Row],[الحافز]]*100%,""))) ->  | BO82: =IF(data.f2026[[#This Row],[عدد أيام الأجازات]]<=4,data.f2026[[#This Row],[الحافز]]*0,IF(data.f2026[[#This Row],[عدد أيام الأجازات]]=5,data.f2026[[#This Row],[الحافز]]*20%,IF(data.f2026[[#This Row],[عدد أيام الأجازات]]=6,data.f2026[[#This Row],[الحافز]]*40%,IF(data.f2026[[#This Row],[عدد أيام الأجازات]]=7,data.f2026[[#This Row],[الحافز]]*50%,IF(data.f2026[[#This Row],[عدد أيام الأجازات]]>7,data.f2026[[#This Row],[الحافز]]*100%,""))))) -> 0 | BP82: =IF(data.f2026[[#This Row],[أيام أجازات بعد السنوية]]<=2,data.f2026[[#This Row],[الحافز]]*0,IF(data.f2026[[#This Row],[أيام أجازات بعد السنوية]]=3,data.f2026[[#This Row],[الحافز]]*30%,IF(data.f2026[[#This Row],[أيام أجازات بعد السنوية]]=4,data.f2026[[#This Row],[الحافز]]*40%,IF(data.f2026[[#This Row],[أيام أجازات بعد السنوية]]=5,data.f2026[[#This Row],[الحافز]]*50%,IF(data.f2026[[#This Row],[أيام أجازات بعد السنوية]]>5,data.f2026[[#This Row],[الحافز]]*100%,""))))) -> 0 | BQ82: 0 | BR82: 0 | BT82: 3 | BU82: 0 | BX82: 0 | CC82: 0 | CE82: 0 | CG82: 2.6 | CH82: 3 | CI82: 0 | CL82: 0 | CN82: 0 | CO82: 0 | CP82: 239.4442 | CQ82: 0 | CS82: 0 | CT82: 0 | CU82: 0 | CV82: 814.06 | CW82: 6185.94
B83: 202076 | C83: 1170 | D83: بنك مصر 2 | E83: هيثم أحمد عبد العظيم محمد | F83: 0 | G83: دوام كامل | H83: فنى | I83: الثانية | J83: الثانية | K83: فنى كهربائى | L83: الاميرية | M83: 8008142100599 | N83: 202076هيثم أحمد عبد العظيم محمد الثانيةالثانيةفنى كهربائىالاميرية | O83: نعم | P83: 1137.36 | Q83: 1330.7112 | R83: 0 | S83: 1796.46 | T83: 199.61 | U83: 0 | V83: 0 | W83: 0 | Y83: 199.60668 | Z83: 300 | AB83: 0 | AD83: 0 | AE83: 0 | AF83: 499.61 | AG83: 40.59 | AH83: 45.2 | AI83: 65 | AJ83: 0 | AK83: 190 | AL83: 22.74 | AM83: 40.55 | AN83: 52.06 | AO83: 74.27 | AP83: 79.47 | AQ83: 85.04 | AS83: 56.868 | AT83: 600 | AU83: 10 | AV83: 1361.79 | AW83: 10 | AX83: 0 | AY83: 239.4442 | AZ83: 0 | BB83: 0 | BC83: 5437.63 | BD83: 1562.37 | BE83: 7000 | BF83: 0 | BG83: 0 | BJ83: 565.9785742 | BK83: 0 | BL83: 0 | BM83: 0 | BN83: =IF(data.f2026[[#This Row],[أيام الغياب]]=1,data.f2026[[#This Row],[الحافز]]*20%,IF(data.f2026[[#This Row],[أيام الغياب]]=2,data.f2026[[#This Row],[الحافز]]*100%,IF(data.f2026[[#This Row],[أيام الغياب]]>2,data.f2026[[#This Row],[الحافز]]*100%,""))) ->  | BO83: =IF(data.f2026[[#This Row],[عدد أيام الأجازات]]<=4,data.f2026[[#This Row],[الحافز]]*0,IF(data.f2026[[#This Row],[عدد أيام الأجازات]]=5,data.f2026[[#This Row],[الحافز]]*20%,IF(data.f2026[[#This Row],[عدد أيام الأجازات]]=6,data.f2026[[#This Row],[الحافز]]*40%,IF(data.f2026[[#This Row],[عدد أيام الأجازات]]=7,data.f2026[[#This Row],[الحافز]]*50%,IF(data.f2026[[#This Row],[عدد أيام الأجازات]]>7,data.f2026[[#This Row],[الحافز]]*100%,""))))) -> 0 | BP83: =IF(data.f2026[[#This Row],[أيام أجازات بعد السنوية]]<=2,data.f2026[[#This Row],[الحافز]]*0,IF(data.f2026[[#This Row],[أيام أجازات بعد السنوية]]=3,data.f2026[[#This Row],[الحافز]]*30%,IF(data.f2026[[#This Row],[أيام أجازات بعد السنوية]]=4,data.f2026[[#This Row],[الحافز]]*40%,IF(data.f2026[[#This Row],[أيام أجازات بعد السنوية]]=5,data.f2026[[#This Row],[الحافز]]*50%,IF(data.f2026[[#This Row],[أيام أجازات بعد السنوية]]>5,data.f2026[[#This Row],[الحافز]]*100%,""))))) -> 0 | BQ83: 0 | BR83: 0 | BT83: 3 | BU83: 0 | BX83: 0 | CC83: 0 | CE83: 0 | CG83: 2.6 | CH83: 3 | CI83: 0 | CL83: 0 | CN83: 0 | CO83: 0 | CP83: 239.4442 | CQ83: 0 | CS83: 0 | CT83: 0 | CU83: 0 | CV83: 814.02 | CW83: 6185.98
B84: 202077 | C84: 1284 | D84: بنك مصر 2 | E84: عبد النبي عطا محمود محمد | F84: 0 | G84: دوام كامل | H84: فنى | I84: الثانية | J84: الثانية | K84: فني كهربائي | L84: الاميرية | M84: 28302051405279 | N84: 202077عبد النبي عطا محمود محمد الثانيةالثانيةفني كهربائي الاميرية | O84: نعم | P84: 1137.36 | Q84: 1330.7112 | R84: 0 | S84: 1796.46 | T84: 199.61 | U84: 0 | V84: 0 | W84: 0 | Y84: 199.60668 | Z84: 300 | AB84: 0 | AD84: 0 | AE84: 0 | AF84: 499.61 | AG84: 40.59 | AH84: 45.02 | AI84: 65 | AJ84: 0 | AK84: 190 | AL84: 22.74 | AM84: 40.55 | AN84: 52.06 | AO84: 74.27 | AP84: 79.47 | AQ84: 85.04 | AS84: 56.868 | AT84: 600 | AU84: 8 | AV84: 1359.61 | AW84: 10 | AX84: 0 | AY84: 239.4442 | AZ84: 0 | BB84: 0 | BC84: 5435.45 | BD84: 1564.55 | BE84: 7000 | BF84: 0 | BG84: 0 | BJ84: 565.9983936 | BK84: 0 | BL84: 0 | BM84: 0 | BN84: =IF(data.f2026[[#This Row],[أيام الغياب]]=1,data.f2026[[#This Row],[الحافز]]*20%,IF(data.f2026[[#This Row],[أيام الغياب]]=2,data.f2026[[#This Row],[الحافز]]*100%,IF(data.f2026[[#This Row],[أيام الغياب]]>2,data.f2026[[#This Row],[الحافز]]*100%,""))) ->  | BO84: =IF(data.f2026[[#This Row],[عدد أيام الأجازات]]<=4,data.f2026[[#This Row],[الحافز]]*0,IF(data.f2026[[#This Row],[عدد أيام الأجازات]]=5,data.f2026[[#This Row],[الحافز]]*20%,IF(data.f2026[[#This Row],[عدد أيام الأجازات]]=6,data.f2026[[#This Row],[الحافز]]*40%,IF(data.f2026[[#This Row],[عدد أيام الأجازات]]=7,data.f2026[[#This Row],[الحافز]]*50%,IF(data.f2026[[#This Row],[عدد أيام الأجازات]]>7,data.f2026[[#This Row],[الحافز]]*100%,""))))) -> 0 | BP84: =IF(data.f2026[[#This Row],[أيام أجازات بعد السنوية]]<=2,data.f2026[[#This Row],[الحافز]]*0,IF(data.f2026[[#This Row],[أيام أجازات بعد السنوية]]=3,data.f2026[[#This Row],[الحافز]]*30%,IF(data.f2026[[#This Row],[أيام أجازات بعد السنوية]]=4,data.f2026[[#This Row],[الحافز]]*40%,IF(data.f2026[[#This Row],[أيام أجازات بعد السنوية]]=5,data.f2026[[#This Row],[الحافز]]*50%,IF(data.f2026[[#This Row],[أيام أجازات بعد السنوية]]>5,data.f2026[[#This Row],[الحافز]]*100%,""))))) -> 0 | BQ84: 0 | BR84: 0 | BT84: 3 | BU84: 0 | BX84: 0 | CC84: 0 | CE84: 0 | CG84: 2.6 | CH84: 3 | CI84: 0 | CL84: 0 | CN84: 0 | CO84: 0 | CP84: 239.4442 | CQ84: 0 | CS84: 0 | CT84: 0 | CU84: 0 | CV84: 814.04 | CW84: 6185.96
B85: 202078 | C85: 31142 | D85: بنك مصر 1 | E85: علي إبراهيـم علـي أحمد | F85: 0 | G85: دوام كامل | H85: فنى | I85: الاولى | J85: الأولى | K85: حرفى ميكانيكى سيارات | L85: فرع القاهرة | M85: 26907180102691 | N85: 202078علي إبراهيـم علـي أحمدالاولىالأولىحرفى ميكانيكى سياراتفرع القاهرة | O85: نعم | P85: 2029.15 | Q85: 2374.1055 | R85: 0 | S85: 3205.04 | T85: 356.12 | U85: 0 | V85: 0 | W85: 0 | Y85: 356.115825 | Z85: 300 | AB85: 0 | AD85: 0 | AE85: 0 | AF85: 656.12 | AG85: 71.79 | AH85: 79.95 | AI85: 95.3 | AJ85: 0 | AK85: 190 | AL85: 40.56 | AM85: 72.34 | AN85: 92.88 | AO85: 132.51 | AP85: 141.79 | AQ85: 151.71 | AS85: 101.4575 | AT85: 600 | AU85: 10 | AV85: 1780.29 | AW85: 10 | AX85: 0 | AY85: 428.38 | AZ85: 0 | BB85: 0 | BC85: 8810.06 | BD85: 0 | BE85: 8810.06 | BF85: 0 | BG85: 0 | BJ85: 770.7414258 | BK85: 20.75 | BL85: 0 | BM85: 0 | BN85: =IF(data.f2026[[#This Row],[أيام الغياب]]=1,data.f2026[[#This Row],[الحافز]]*20%,IF(data.f2026[[#This Row],[أيام الغياب]]=2,data.f2026[[#This Row],[الحافز]]*100%,IF(data.f2026[[#This Row],[أيام الغياب]]>2,data.f2026[[#This Row],[الحافز]]*100%,""))) ->  | BO85: =IF(data.f2026[[#This Row],[عدد أيام الأجازات]]<=4,data.f2026[[#This Row],[الحافز]]*0,IF(data.f2026[[#This Row],[عدد أيام الأجازات]]=5,data.f2026[[#This Row],[الحافز]]*20%,IF(data.f2026[[#This Row],[عدد أيام الأجازات]]=6,data.f2026[[#This Row],[الحافز]]*40%,IF(data.f2026[[#This Row],[عدد أيام الأجازات]]=7,data.f2026[[#This Row],[الحافز]]*50%,IF(data.f2026[[#This Row],[عدد أيام الأجازات]]>7,data.f2026[[#This Row],[الحافز]]*100%,""))))) -> 0 | BP85: =IF(data.f2026[[#This Row],[أيام أجازات بعد السنوية]]<=2,data.f2026[[#This Row],[الحافز]]*0,IF(data.f2026[[#This Row],[أيام أجازات بعد السنوية]]=3,data.f2026[[#This Row],[الحافز]]*30%,IF(data.f2026[[#This Row],[أيام أجازات بعد السنوية]]=4,data.f2026[[#This Row],[الحافز]]*40%,IF(data.f2026[[#This Row],[أيام أجازات بعد السنوية]]=5,data.f2026[[#This Row],[الحافز]]*50%,IF(data.f2026[[#This Row],[أيام أجازات بعد السنوية]]>5,data.f2026[[#This Row],[الحافز]]*100%,""))))) -> 0 | BQ85: 0 | BR85: 0 | BT85: 3 | BU85: 0 | BX85: 0 | CC85: 0 | CE85: 0 | CG85: 3.37 | CH85: 5 | CI85: 0 | CL85: 0 | CN85: 0 | CO85: 0 | CP85: 428.38 | CQ85: 0 | CS85: 0 | CT85: 0 | CU85: 0 | CV85: 1231.24 | CW85: 7578.82
B86: 202079 | C86: 1119 | D86: بنك مصر 2 | E86: مسعـد محمود شعبان علـي | F86: 0 | G86: دوام كامل | H86: فنى | I86: الاولى | J86: الأولى | K86: حرفى ميكانيكى سيارات | L86: قطاع شئون الفنية | M86: 26804191701534 | N86: 202079مسعـد محمود شعبان علـيالاولىالأولىحرفى ميكانيكى سياراتقطاع شئون الفنية | O86: نعم | P86: 2029.15 | Q86: 2374.1055 | R86: 0 | S86: 3205.04 | T86: 356.12 | U86: 0 | V86: 0 | W86: 0 | Y86: 356.115825 | Z86: 300 | AB86: 0 | AD86: 0 | AE86: 0 | AF86: 656.12 | AG86: 71.79 | AH86: 79.95 | AI86: 95.3 | AJ86: 0 | AK86: 190 | AL86: 40.56 | AM86: 72.34 | AN86: 92.88 | AO86: 132.51 | AP86: 141.79 | AQ86: 151.71 | AS86: 101.4575 | AT86: 600 | AU86: 10 | AV86: 1780.29 | AW86: 10 | AX86: 0 | AY86: 428.38 | AZ86: 0 | BB86: 60 | BC86: 8810.06 | BD86: 0 | BE86: 8870.06 | BF86: 0 | BG86: 0 | BJ86: 770.7414258 | BK86: 21 | BL86: 0 | BM86: 0 | BN86: =IF(data.f2026[[#This Row],[أيام الغياب]]=1,data.f2026[[#This Row],[الحافز]]*20%,IF(data.f2026[[#This Row],[أيام الغياب]]=2,data.f2026[[#This Row],[الحافز]]*100%,IF(data.f2026[[#This Row],[أيام الغياب]]>2,data.f2026[[#This Row],[الحافز]]*100%,""))) ->  | BO86: =IF(data.f2026[[#This Row],[عدد أيام الأجازات]]<=4,data.f2026[[#This Row],[الحافز]]*0,IF(data.f2026[[#This Row],[عدد أيام الأجازات]]=5,data.f2026[[#This Row],[الحافز]]*20%,IF(data.f2026[[#This Row],[عدد أيام الأجازات]]=6,data.f2026[[#This Row],[الحافز]]*40%,IF(data.f2026[[#This Row],[عدد أيام الأجازات]]=7,data.f2026[[#This Row],[الحافز]]*50%,IF(data.f2026[[#This Row],[عدد أيام الأجازات]]>7,data.f2026[[#This Row],[الحافز]]*100%,""))))) -> 0 | BP86: =IF(data.f2026[[#This Row],[أيام أجازات بعد السنوية]]<=2,data.f2026[[#This Row],[الحافز]]*0,IF(data.f2026[[#This Row],[أيام أجازات بعد السنوية]]=3,data.f2026[[#This Row],[الحافز]]*30%,IF(data.f2026[[#This Row],[أيام أجازات بعد السنوية]]=4,data.f2026[[#This Row],[الحافز]]*40%,IF(data.f2026[[#This Row],[أيام أجازات بعد السنوية]]=5,data.f2026[[#This Row],[الحافز]]*50%,IF(data.f2026[[#This Row],[أيام أجازات بعد السنوية]]>5,data.f2026[[#This Row],[الحافز]]*100%,""))))) -> 0 | BQ86: 0 | BR86: 0 | BT86: 3 | BU86: 0 | BX86: 0 | CC86: 0 | CE86: 0 | CG86: 3.37 | CH86: 5 | CI86: 0 | CL86: 0 | CN86: 0 | CO86: 0 | CP86: 428.38 | CQ86: 0 | CS86: 0 | CT86: 0 | CU86: 0 | CV86: 1231.49 | CW86: 7638.57
B87: 202080 | C87: 1127 | D87: بنك مصر 2 | E87: رمضـان سعـد طه صالح | F87: 0 | G87: دوام كامل | H87: فنى | I87: الاولى | J87: الأولى | K87: حرفى ميكانيكى سيارات | L87: فرع الاميرية | M87: 27011010103791 | N87: 202080رمضـان سعـد طه صالحالاولىالأولىحرفى ميكانيكى سياراتفرع الاميرية | O87: نعم | P87: 2029.15 | Q87: 2374.1055 | R87: 0 | S87: 3205.04 | T87: 356.12 | U87: 0 | V87: 0 | W87: 0 | Y87: 356.115825 | Z87: 300 | AB87: 0 | AD87: 0 | AE87: 0 | AF87: 656.12 | AG87: 71.79 | AH87: 79.95 | AI87: 95.3 | AJ87: 0 | AK87: 190 | AL87: 40.56 | AM87: 72.34 | AN87: 92.88 | AO87: 132.51 | AP87: 141.79 | AQ87: 151.71 | AS87: 101.4575 | AT87: 600 | AU87: 10 | AV87: 1780.29 | AW87: 10 | AX87: 0 | AY87: 427.1895 | AZ87: 0 | BB87: 0 | BC87: 8808.87 | BD87: 0 | BE87: 8808.87 | BF87: 0 | BG87: 0 | BJ87: 770.7402979 | BK87: 20.75 | BL87: 0 | BM87: 0 | BN87: =IF(data.f2026[[#This Row],[أيام الغياب]]=1,data.f2026[[#This Row],[الحافز]]*20%,IF(data.f2026[[#This Row],[أيام الغياب]]=2,data.f2026[[#This Row],[الحافز]]*100%,IF(data.f2026[[#This Row],[أيام الغياب]]>2,data.f2026[[#This Row],[الحافز]]*100%,""))) ->  | BO87: =IF(data.f2026[[#This Row],[عدد أيام الأجازات]]<=4,data.f2026[[#This Row],[الحافز]]*0,IF(data.f2026[[#This Row],[عدد أيام الأجازات]]=5,data.f2026[[#This Row],[الحافز]]*20%,IF(data.f2026[[#This Row],[عدد أيام الأجازات]]=6,data.f2026[[#This Row],[الحافز]]*40%,IF(data.f2026[[#This Row],[عدد أيام الأجازات]]=7,data.f2026[[#This Row],[الحافز]]*50%,IF(data.f2026[[#This Row],[عدد أيام الأجازات]]>7,data.f2026[[#This Row],[الحافز]]*100%,""))))) -> 0 | BP87: =IF(data.f2026[[#This Row],[أيام أجازات بعد السنوية]]<=2,data.f2026[[#This Row],[الحافز]]*0,IF(data.f2026[[#This Row],[أيام أجازات بعد السنوية]]=3,data.f2026[[#This Row],[الحافز]]*30%,IF(data.f2026[[#This Row],[أيام أجازات بعد السنوية]]=4,data.f2026[[#This Row],[الحافز]]*40%,IF(data.f2026[[#This Row],[أيام أجازات بعد السنوية]]=5,data.f2026[[#This Row],[الحافز]]*50%,IF(data.f2026[[#This Row],[أيام أجازات بعد السنوية]]>5,data.f2026[[#This Row],[الحافز]]*100%,""))))) -> 0 | BQ87: 0 | BR87: 0 | BT87: 3 | BU87: 0 | BX87: 0 | CC87: 0 | CE87: 0 | CG87: 3.37 | CH87: 5 | CI87: 0 | CL87: 0 | CN87: 0 | CO87: 0 | CP87: 427.1895 | CQ87: 0 | CS87: 0 | CT87: 0 | CU87: 0 | CV87: 1230.05 | CW87: 7578.82
B88: 202081 | C88: 1120 | D88: بنك مصر 2 | E88: عبد الجواد عبد الفتاح عبد الجواد منصور | F88: 0 | G88: دوام كامل | H88: فنى | I88: الثانية | J88: الثانية | K88: ميكانيكى | L88: الاميرية | M88: 27312150102816 | N88: 202081عبد الجواد عبد الفتاح عبد الجواد منصورالثانيةالثانيةميكانيكىالاميرية | O88: نعم | P88: 1140.04 | Q88: 1333.8468 | R88: 0 | S88: 1800.69 | T88: 200.08 | U88: 0 | V88: 0 | W88: 0 | Y88: 200.07702 | Z88: 300 | AB88: 0 | AD88: 0 | AE88: 0 | AF88: 500.08 | AG88: 41.08 | AH88: 45.54 | AI88: 65 | AJ88: 0 | AK88: 190 | AL88: 22.79 | AM88: 40.64 | AN88: 52.18 | AO88: 74.45 | AP88: 79.16 | AQ88: 85.24 | AS88: 57.002 | AT88: 600 | AU88: 10 | AV88: 1363.08 | AW88: 10 | AX88: 0 | AY88: 240.0084 | AZ88: 0 | BB88: 0 | BC88: 5447.79 | BD88: 1552.21 | BE88: 7000 | BF88: 0 | BG88: 0 | BJ88: 565.604585 | BK88: 0 | BL88: 0 | BM88: 0 | BN88: =IF(data.f2026[[#This Row],[أيام الغياب]]=1,data.f2026[[#This Row],[الحافز]]*20%,IF(data.f2026[[#This Row],[أيام الغياب]]=2,data.f2026[[#This Row],[الحافز]]*100%,IF(data.f2026[[#This Row],[أيام الغياب]]>2,data.f2026[[#This Row],[الحافز]]*100%,""))) ->  | BO88: =IF(data.f2026[[#This Row],[عدد أيام الأجازات]]<=4,data.f2026[[#This Row],[الحافز]]*0,IF(data.f2026[[#This Row],[عدد أيام الأجازات]]=5,data.f2026[[#This Row],[الحافز]]*20%,IF(data.f2026[[#This Row],[عدد أيام الأجازات]]=6,data.f2026[[#This Row],[الحافز]]*40%,IF(data.f2026[[#This Row],[عدد أيام الأجازات]]=7,data.f2026[[#This Row],[الحافز]]*50%,IF(data.f2026[[#This Row],[عدد أيام الأجازات]]>7,data.f2026[[#This Row],[الحافز]]*100%,""))))) -> 0 | BP88: =IF(data.f2026[[#This Row],[أيام أجازات بعد السنوية]]<=2,data.f2026[[#This Row],[الحافز]]*0,IF(data.f2026[[#This Row],[أيام أجازات بعد السنوية]]=3,data.f2026[[#This Row],[الحافز]]*30%,IF(data.f2026[[#This Row],[أيام أجازات بعد السنوية]]=4,data.f2026[[#This Row],[الحافز]]*40%,IF(data.f2026[[#This Row],[أيام أجازات بعد السنوية]]=5,data.f2026[[#This Row],[الحافز]]*50%,IF(data.f2026[[#This Row],[أيام أجازات بعد السنوية]]>5,data.f2026[[#This Row],[الحافز]]*100%,""))))) -> 0 | BQ88: 0 | BR88: 0 | BT88: 3 | BU88: 0 | BX88: 0 | CC88: 0 | CE88: 0 | CG88: 2.59 | CH88: 3 | CI88: 0 | CL88: 0 | CN88: 0 | CO88: 0 | CP88: 240.0084 | CQ88: 0 | CS88: 0 | CT88: 0 | CU88: 0 | CV88: 814.2 | CW88: 6185.8
B89: 202082 | C89: 1128 | D89: بنك مصر 2 | E89: ابراهيم محمد عبد الحميد علي | F89: 0 | G89: دوام كامل | H89: فنى | I89: الثانية | J89: الثانية | K89: ميكانيكى | L89: القاهرة | M89: 27512250103355 | N89: 202082ابراهيم محمد عبد الحميد عليالثانيةالثانيةميكانيكىالقاهرة | O89: نعم | P89: 1879.01 | Q89: 2198.4417 | R89: 0 | S89: 2967.9 | T89: 329.77 | U89: 0 | V89: 0 | W89: 0 | Y89: 329.766255 | Z89: 300 | AB89: 0 | AD89: 0 | AE89: 0 | AF89: 629.77 | AG89: 62.21 | AH89: 69.28 | AI89: 83.14 | AJ89: 0 | AK89: 190 | AL89: 37.56 | AM89: 66.99 | AN89: 86.01 | AO89: 122.71 | AP89: 131.3 | AQ89: 140.49 | AS89: 93.9505 | AT89: 600 | AU89: 8 | AV89: 1691.64 | AW89: 10 | AX89: 0 | AY89: 395.5811 | AZ89: 0 | BB89: 30 | BC89: 8223.1 | BD89: 0 | BE89: 8253.1 | BF89: 0 | BG89: 0 | BJ89: 732.2766064 | BK89: 0.00 | BL89: 0 | BM89: 0 | BN89: =IF(data.f2026[[#This Row],[أيام الغياب]]=1,data.f2026[[#This Row],[الحافز]]*20%,IF(data.f2026[[#This Row],[أيام الغياب]]=2,data.f2026[[#This Row],[الحافز]]*100%,IF(data.f2026[[#This Row],[أيام الغياب]]>2,data.f2026[[#This Row],[الحافز]]*100%,""))) ->  | BO89: =IF(data.f2026[[#This Row],[عدد أيام الأجازات]]<=4,data.f2026[[#This Row],[الحافز]]*0,IF(data.f2026[[#This Row],[عدد أيام الأجازات]]=5,data.f2026[[#This Row],[الحافز]]*20%,IF(data.f2026[[#This Row],[عدد أيام الأجازات]]=6,data.f2026[[#This Row],[الحافز]]*40%,IF(data.f2026[[#This Row],[عدد أيام الأجازات]]=7,data.f2026[[#This Row],[الحافز]]*50%,IF(data.f2026[[#This Row],[عدد أيام الأجازات]]>7,data.f2026[[#This Row],[الحافز]]*100%,""))))) -> 0 | BP89: =IF(data.f2026[[#This Row],[أيام أجازات بعد السنوية]]<=2,data.f2026[[#This Row],[الحافز]]*0,IF(data.f2026[[#This Row],[أيام أجازات بعد السنوية]]=3,data.f2026[[#This Row],[الحافز]]*30%,IF(data.f2026[[#This Row],[أيام أجازات بعد السنوية]]=4,data.f2026[[#This Row],[الحافز]]*40%,IF(data.f2026[[#This Row],[أيام أجازات بعد السنوية]]=5,data.f2026[[#This Row],[الحافز]]*50%,IF(data.f2026[[#This Row],[أيام أجازات بعد السنوية]]>5,data.f2026[[#This Row],[الحافز]]*100%,""))))) -> 0 | BQ89: 0 | BR89: 0 | BT89: 3 | BU89: 0 | BX89: 0 | CC89: 0 | CE89: 0 | CG89: 3.14 | CH89: 3 | CI89: 0 | CL89: 0 | CN89: 0 | CO89: 0 | CP89: 395.5811 | CQ89: 0 | CS89: 0 | CT89: 0 | CU89: 0 | CV89: 1137 | CW89: 7116.1
B90: 202083 | C90: 1160 | D90: بنك مصر 2 | E90: حلمي محمد عبد المجيد عبد الرحيم | F90: 0 | G90: دوام كامل | H90: فنى | I90: الثانية | J90: الثانية | K90: ميكانيكى | L90: الورش | M90: 27503210102632 | N90: 202083حلمي محمد عبد المجيد عبد الرحيمالثانيةالثانيةميكانيكىالورش | O90: نعم | P90: 1879.01 | Q90: 2198.4417 | R90: 0 | S90: 2967.9 | T90: 329.77 | U90: 0 | V90: 0 | W90: 0 | Y90: 329.766255 | Z90: 300 | AB90: 0 | AD90: 0 | AE90: 0 | AF90: 629.77 | AG90: 62.21 | AH90: 69.25 | AI90: 83.14 | AJ90: 0 | AK90: 190 | AL90: 37.56 | AM90: 66.99 | AN90: 86.01 | AO90: 122.71 | AP90: 131.3 | AQ90: 140.49 | AS90: 93.9505 | AT90: 600 | AU90: 10 | AV90: 1693.61 | AW90: 10 | AX90: 0 | AY90: 395.5811 | AZ90: 0 | BB90: 90 | BC90: 8225.07 | BD90: 0 | BE90: 8315.07 | BF90: 0 | BG90: 0 | BJ90: 732.502085 | BK90: 0 | BL90: 0 | BM90: 0 | BN90: =IF(data.f2026[[#This Row],[أيام الغياب]]=1,data.f2026[[#This Row],[الحافز]]*20%,IF(data.f2026[[#This Row],[أيام الغياب]]=2,data.f2026[[#This Row],[الحافز]]*100%,IF(data.f2026[[#This Row],[أيام الغياب]]>2,data.f2026[[#This Row],[الحافز]]*100%,""))) ->  | BO90: =IF(data.f2026[[#This Row],[عدد أيام الأجازات]]<=4,data.f2026[[#This Row],[الحافز]]*0,IF(data.f2026[[#This Row],[عدد أيام الأجازات]]=5,data.f2026[[#This Row],[الحافز]]*20%,IF(data.f2026[[#This Row],[عدد أيام الأجازات]]=6,data.f2026[[#This Row],[الحافز]]*40%,IF(data.f2026[[#This Row],[عدد أيام الأجازات]]=7,data.f2026[[#This Row],[الحافز]]*50%,IF(data.f2026[[#This Row],[عدد أيام الأجازات]]>7,data.f2026[[#This Row],[الحافز]]*100%,""))))) -> 0 | BP90: =IF(data.f2026[[#This Row],[أيام أجازات بعد السنوية]]<=2,data.f2026[[#This Row],[الحافز]]*0,IF(data.f2026[[#This Row],[أيام أجازات بعد السنوية]]=3,data.f2026[[#This Row],[الحافز]]*30%,IF(data.f2026[[#This Row],[أيام أجازات بعد السنوية]]=4,data.f2026[[#This Row],[الحافز]]*40%,IF(data.f2026[[#This Row],[أيام أجازات بعد السنوية]]=5,data.f2026[[#This Row],[الحافز]]*50%,IF(data.f2026[[#This Row],[أيام أجازات بعد السنوية]]>5,data.f2026[[#This Row],[الحافز]]*100%,""))))) -> 0 | BQ90: 0 | BR90: 0 | BT90: 3 | BU90: 0 | BX90: 0 | CC90: 0 | CE90: 0 | CG90: 3.14 | CH90: 3 | CI90: 0 | CL90: 0 | CN90: 0 | CO90: 0 | CP90: 395.5811 | CQ90: 0 | CS90: 0 | CT90: 0 | CU90: 0 | CV90: 1137.22 | CW90: 7177.85
B91: 202084 | C91: 1157 | D91: بنك مصر 2 | E91: طه حسين حسن محمد | F91: 0 | G91: دوام كامل | H91: فنى | I91: الثالثة | J91: الثالثة | K91: حرفى ميكانيكى | L91: الادارة العامة بالورش المركزية | M91: 27203161401099 | N91: 202084طه حسين حسن محمدالثالثةالثالثةحرفى ميكانيكىالادارة العامة بالورش المركزية | O91: نعم | P91: 1092.43 | Q91: 1278.1431 | R91: 0 | S91: 1725.49 | T91: 191.72 | U91: 0 | V91: 0 | W91: 0 | Y91: 191.721465 | Z91: 300 | AB91: 0 | AD91: 0 | AE91: 0 | AF91: 491.72 | AG91: 38.89 | AH91: 43.11 | AI91: 65 | AJ91: 0 | AK91: 200 | AL91: 24.04 | AM91: 38.94 | AN91: 50 | AO91: 71.34 | AP91: 76.34 | AQ91: 81.68 | AS91: 54.6215 | AT91: 600 | AU91: 10 | AV91: 1353.96 | AW91: 10 | AX91: 0 | AY91: 229.9853 | AZ91: 0 | BB91: 30 | BC91: 5281.02 | BD91: 1718.98 | BE91: 7030 | BF91: 0 | BG91: 0 | BJ91: 568.519585 | BK91: 0 | BL91: 0 | BM91: 0 | BN91: =IF(data.f2026[[#This Row],[أيام الغياب]]=1,data.f2026[[#This Row],[الحافز]]*20%,IF(data.f2026[[#This Row],[أيام الغياب]]=2,data.f2026[[#This Row],[الحافز]]*100%,IF(data.f2026[[#This Row],[أيام الغياب]]>2,data.f2026[[#This Row],[الحافز]]*100%,""))) ->  | BO91: =IF(data.f2026[[#This Row],[عدد أيام الأجازات]]<=4,data.f2026[[#This Row],[الحافز]]*0,IF(data.f2026[[#This Row],[عدد أيام الأجازات]]=5,data.f2026[[#This Row],[الحافز]]*20%,IF(data.f2026[[#This Row],[عدد أيام الأجازات]]=6,data.f2026[[#This Row],[الحافز]]*40%,IF(data.f2026[[#This Row],[عدد أيام الأجازات]]=7,data.f2026[[#This Row],[الحافز]]*50%,IF(data.f2026[[#This Row],[عدد أيام الأجازات]]>7,data.f2026[[#This Row],[الحافز]]*100%,""))))) -> 0 | BP91: =IF(data.f2026[[#This Row],[أيام أجازات بعد السنوية]]<=2,data.f2026[[#This Row],[الحافز]]*0,IF(data.f2026[[#This Row],[أيام أجازات بعد السنوية]]=3,data.f2026[[#This Row],[الحافز]]*30%,IF(data.f2026[[#This Row],[أيام أجازات بعد السنوية]]=4,data.f2026[[#This Row],[الحافز]]*40%,IF(data.f2026[[#This Row],[أيام أجازات بعد السنوية]]=5,data.f2026[[#This Row],[الحافز]]*50%,IF(data.f2026[[#This Row],[أيام أجازات بعد السنوية]]>5,data.f2026[[#This Row],[الحافز]]*100%,""))))) -> 0 | BQ91: 0 | BR91: 0 | BT91: 3 | BU91: 0 | BX91: 0 | CC91: 0 | CE91: 0 | CG91: 2.63 | CH91: 3 | CI91: 0 | CL91: 0 | CN91: 0 | CO91: 0 | CP91: 229.9853 | CQ91: 0 | CS91: 0 | CT91: 0 | CU91: 0 | CV91: 807.13 | CW91: 6222.87
B92: 202085 | C92: 1135 | D92: بنك مصر 2 | E92: شعبان عطية عبده ابو النور | F92: 0 | G92: دوام كامل | H92: فنى | I92: الثالثة | J92: الثالثة | K92: حرفى عامل كاوتش | L92: الادارة العامة بالورش المركزية | M92: 26811041700536 | N92: 202085شعبان عطية عبده ابو النورالثالثةالثالثةحرفى عامل كاوتشالادارة العامة بالورش المركزية | O92: نعم | P92: 1092.43 | Q92: 1278.1431 | R92: 0 | S92: 1725.49 | T92: 191.72 | U92: 0 | V92: 0 | W92: 0 | Y92: 191.721465 | Z92: 300 | AB92: 0 | AD92: 0 | AE92: 0 | AF92: 491.72 | AG92: 38.89 | AH92: 43.11 | AI92: 65 | AJ92: 0 | AK92: 200 | AL92: 24.04 | AM92: 38.94 | AN92: 50 | AO92: 71.34 | AP92: 76.33 | AQ92: 81.68 | AS92: 54.6215 | AT92: 600 | AU92: 10 | AV92: 1353.95 | AW92: 10 | AX92: 0 | AY92: 229.9853 | AZ92: 0 | BB92: 180 | BC92: 5281.01 | BD92: 1718.99 | BE92: 7180 | BF92: 0 | BG92: 0 | BJ92: 568.0092236 | BK92: 0 | BL92: 0 | BM92: 0 | BN92: =IF(data.f2026[[#This Row],[أيام الغياب]]=1,data.f2026[[#This Row],[الحافز]]*20%,IF(data.f2026[[#This Row],[أيام الغياب]]=2,data.f2026[[#This Row],[الحافز]]*100%,IF(data.f2026[[#This Row],[أيام الغياب]]>2,data.f2026[[#This Row],[الحافز]]*100%,""))) ->  | BO92: =IF(data.f2026[[#This Row],[عدد أيام الأجازات]]<=4,data.f2026[[#This Row],[الحافز]]*0,IF(data.f2026[[#This Row],[عدد أيام الأجازات]]=5,data.f2026[[#This Row],[الحافز]]*20%,IF(data.f2026[[#This Row],[عدد أيام الأجازات]]=6,data.f2026[[#This Row],[الحافز]]*40%,IF(data.f2026[[#This Row],[عدد أيام الأجازات]]=7,data.f2026[[#This Row],[الحافز]]*50%,IF(data.f2026[[#This Row],[عدد أيام الأجازات]]>7,data.f2026[[#This Row],[الحافز]]*100%,""))))) -> 0 | BP92: =IF(data.f2026[[#This Row],[أيام أجازات بعد السنوية]]<=2,data.f2026[[#This Row],[الحافز]]*0,IF(data.f2026[[#This Row],[أيام أجازات بعد السنوية]]=3,data.f2026[[#This Row],[الحافز]]*30%,IF(data.f2026[[#This Row],[أيام أجازات بعد السنوية]]=4,data.f2026[[#This Row],[الحافز]]*40%,IF(data.f2026[[#This Row],[أيام أجازات بعد السنوية]]=5,data.f2026[[#This Row],[الحافز]]*50%,IF(data.f2026[[#This Row],[أيام أجازات بعد السنوية]]>5,data.f2026[[#This Row],[الحافز]]*100%,""))))) -> 0 | BQ92: 0 | BR92: 0 | BT92: 3 | BU92: 0 | BX92: 0 | CC92: 0 | CE92: 0 | CG92: 2.63 | CH92: 3 | CI92: 0 | CL92: 0 | CN92: 0 | CO92: 0 | CP92: 229.9853 | CQ92: 0 | CS92: 0 | CT92: 0 | CU92: 0 | CV92: 806.62 | CW92: 6373.38
B93: 202086 | C93: 1122 | D93: بنك مصر 2 | E93: مصطفى حميدة محمد مازن | F93: 0 | G93: دوام كامل | H93: فنى | I93: الثانية | J93: الثانية | K93: فني لحام | L93: الاميرية | M93: 28101011711932 | N93: 202086مصطفى حميدة محمد مازن الثانيةالثانيةفني لحام الاميرية | O93: نعم | P93: 1137.36 | Q93: 1330.7112 | R93: 0 | S93: 1796.46 | T93: 199.61 | U93: 0 | V93: 0 | W93: 0 | Y93: 199.60668 | Z93: 300 | AB93: 0 | AD93: 0 | AE93: 0 | AF93: 499.61 | AG93: 40.02 | AH93: 45.02 | AI93: 65 | AJ93: 0 | AK93: 190 | AL93: 22.74 | AM93: 40.55 | AN93: 52.06 | AO93: 74.27 | AP93: 79.47 | AQ93: 85.04 | AS93: 56.868 | AT93: 600 | AU93: 10 | AV93: 1361.04 | AW93: 10 | AX93: 0 | AY93: 239.4442 | AZ93: 0 | BB93: 30 | BC93: 5436.88 | BD93: 1563.12 | BE93: 7030 | BF93: 0 | BG93: 0 | BJ93: 566.3085742 | BK93: 0 | BL93: 0 | BM93: 0 | BN93: =IF(data.f2026[[#This Row],[أيام الغياب]]=1,data.f2026[[#This Row],[الحافز]]*20%,IF(data.f2026[[#This Row],[أيام الغياب]]=2,data.f2026[[#This Row],[الحافز]]*100%,IF(data.f2026[[#This Row],[أيام الغياب]]>2,data.f2026[[#This Row],[الحافز]]*100%,""))) ->  | BO93: =IF(data.f2026[[#This Row],[عدد أيام الأجازات]]<=4,data.f2026[[#This Row],[الحافز]]*0,IF(data.f2026[[#This Row],[عدد أيام الأجازات]]=5,data.f2026[[#This Row],[الحافز]]*20%,IF(data.f2026[[#This Row],[عدد أيام الأجازات]]=6,data.f2026[[#This Row],[الحافز]]*40%,IF(data.f2026[[#This Row],[عدد أيام الأجازات]]=7,data.f2026[[#This Row],[الحافز]]*50%,IF(data.f2026[[#This Row],[عدد أيام الأجازات]]>7,data.f2026[[#This Row],[الحافز]]*100%,""))))) -> 0 | BP93: =IF(data.f2026[[#This Row],[أيام أجازات بعد السنوية]]<=2,data.f2026[[#This Row],[الحافز]]*0,IF(data.f2026[[#This Row],[أيام أجازات بعد السنوية]]=3,data.f2026[[#This Row],[الحافز]]*30%,IF(data.f2026[[#This Row],[أيام أجازات بعد السنوية]]=4,data.f2026[[#This Row],[الحافز]]*40%,IF(data.f2026[[#This Row],[أيام أجازات بعد السنوية]]=5,data.f2026[[#This Row],[الحافز]]*50%,IF(data.f2026[[#This Row],[أيام أجازات بعد السنوية]]>5,data.f2026[[#This Row],[الحافز]]*100%,""))))) -> 0 | BQ93: 0 | BR93: 0 | BT93: 3 | BU93: 0 | BX93: 0 | CC93: 0 | CE93: 0 | CG93: 2.6 | CH93: 3 | CI93: 0 | CL93: 0 | CN93: 0 | CO93: 0 | CP93: 239.4442 | CQ93: 0 | CS93: 0 | CT93: 0 | CU93: 0 | CV93: 814.35 | CW93: 6215.65
B94: 202088 | C94: 1129 | D94: بنك مصر 2 | E94: احمد حنفي محمود عبد الرازق | F94: 0 | G94: دوام كامل | H94: فنى | I94: الثانية | J94: الثانية | K94: ميكانيكى | L94: الاميرية | M94: 27502161401975 | N94: 202088احمد حنفي محمود عبد الرازقالثانيةالثانيةميكانيكىالاميرية | O94: نعم | P94: 1879.01 | Q94: 2198.4417 | R94: 0 | S94: 2967.9 | T94: 329.77 | U94: 0 | V94: 0 | W94: 0 | Y94: 329.766255 | Z94: 300 | AB94: 0 | AD94: 0 | AE94: 0 | AF94: 629.77 | AG94: 62.21 | AH94: 69.28 | AI94: 83.14 | AJ94: 0 | AK94: 190 | AL94: 37.56 | AM94: 66.99 | AN94: 86.01 | AO94: 122.71 | AP94: 131.3 | AQ94: 140.49 | AS94: 93.9505 | AT94: 600 | AU94: 8 | AV94: 1691.64 | AW94: 10 | AX94: 0 | AY94: 395.5811 | AZ94: 0 | BB94: 0 | BC94: 8223.1 | BD94: 0 | BE94: 8223.1 | BF94: 0 | BG94: 0 | BJ94: 716.057085 | BK94: 0 | BL94: 0 | BM94: 0 | BN94: =IF(data.f2026[[#This Row],[أيام الغياب]]=1,data.f2026[[#This Row],[الحافز]]*20%,IF(data.f2026[[#This Row],[أيام الغياب]]=2,data.f2026[[#This Row],[الحافز]]*100%,IF(data.f2026[[#This Row],[أيام الغياب]]>2,data.f2026[[#This Row],[الحافز]]*100%,""))) ->  | BO94: =IF(data.f2026[[#This Row],[عدد أيام الأجازات]]<=4,data.f2026[[#This Row],[الحافز]]*0,IF(data.f2026[[#This Row],[عدد أيام الأجازات]]=5,data.f2026[[#This Row],[الحافز]]*20%,IF(data.f2026[[#This Row],[عدد أيام الأجازات]]=6,data.f2026[[#This Row],[الحافز]]*40%,IF(data.f2026[[#This Row],[عدد أيام الأجازات]]=7,data.f2026[[#This Row],[الحافز]]*50%,IF(data.f2026[[#This Row],[عدد أيام الأجازات]]>7,data.f2026[[#This Row],[الحافز]]*100%,""))))) -> 0 | BP94: =IF(data.f2026[[#This Row],[أيام أجازات بعد السنوية]]<=2,data.f2026[[#This Row],[الحافز]]*0,IF(data.f2026[[#This Row],[أيام أجازات بعد السنوية]]=3,data.f2026[[#This Row],[الحافز]]*30%,IF(data.f2026[[#This Row],[أيام أجازات بعد السنوية]]=4,data.f2026[[#This Row],[الحافز]]*40%,IF(data.f2026[[#This Row],[أيام أجازات بعد السنوية]]=5,data.f2026[[#This Row],[الحافز]]*50%,IF(data.f2026[[#This Row],[أيام أجازات بعد السنوية]]>5,data.f2026[[#This Row],[الحافز]]*100%,""))))) -> 0 | BQ94: 0 | BR94: 0 | BT94: 3 | BU94: 0 | BX94: 0 | CC94: 0 | CE94: 0 | CG94: 3.14 | CH94: 3 | CI94: 0 | CL94: 0 | CN94: 0 | CO94: 0 | CP94: 395.5811 | CQ94: 0 | CS94: 0 | CT94: 0 | CU94: 0 | CV94: 1120.78 | CW94: 7102.32
B95: 202089 | C95: 31365 | D95: بنك مصر 1 | E95: احمد محمد عبد الفتاح ماجد | F95: 0 | G95: دوام كامل | H95: فنى | I95: عقد مؤقت | M95: 28312131700234 | N95: 202089احمد محمد عبد الفتاح ماجدعقد مؤقت | P95: 410.26 | Q95: 451.29 | R95: 0 | S95: 609.24 | T95: 67.69 | U95: 0 | V95: 0 | W95: 0 | Y95: 67.6935 | Z95: 300 | AB95: 0 | AD95: 0 | AE95: 0 | AF95: 367.69 | AG95: 28.79 | AH95: 30.29 | AI95: 65 | AJ95: 0 | AK95: 200 | AL95: 0 | AM95: 0 | AN95: 0 | AO95: 0 | AP95: 0 | AQ95: 0 | AS95: 0 | AT95: 600 | AU95: 10 | AV95: 934.08 | AW95: 10 | AX95: 0 | AY95: 86.37053 | AZ95: 0 | BB95: 390 | BC95: 2526.36 | BD95: 4473.64 | BE95: 7390 | BF95: 0 | BG95: 0 | BJ95: 581.8548828 | BK95: 0 | BL95: 0 | BM95: 0 | BN95: =IF(data.f2026[[#This Row],[أيام الغياب]]=1,data.f2026[[#This Row],[الحافز]]*20%,IF(data.f2026[[#This Row],[أيام الغياب]]=2,data.f2026[[#This Row],[الحافز]]*100%,IF(data.f2026[[#This Row],[أيام الغياب]]>2,data.f2026[[#This Row],[الحافز]]*100%,""))) ->  | BO95: =IF(data.f2026[[#This Row],[عدد أيام الأجازات]]<=4,data.f2026[[#This Row],[الحافز]]*0,IF(data.f2026[[#This Row],[عدد أيام الأجازات]]=5,data.f2026[[#This Row],[الحافز]]*20%,IF(data.f2026[[#This Row],[عدد أيام الأجازات]]=6,data.f2026[[#This Row],[الحافز]]*40%,IF(data.f2026[[#This Row],[عدد أيام الأجازات]]=7,data.f2026[[#This Row],[الحافز]]*50%,IF(data.f2026[[#This Row],[عدد أيام الأجازات]]>7,data.f2026[[#This Row],[الحافز]]*100%,""))))) -> 0 | BP95: =IF(data.f2026[[#This Row],[أيام أجازات بعد السنوية]]<=2,data.f2026[[#This Row],[الحافز]]*0,IF(data.f2026[[#This Row],[أيام أجازات بعد السنوية]]=3,data.f2026[[#This Row],[الحافز]]*30%,IF(data.f2026[[#This Row],[أيام أجازات بعد السنوية]]=4,data.f2026[[#This Row],[الحافز]]*40%,IF(data.f2026[[#This Row],[أيام أجازات بعد السنوية]]=5,data.f2026[[#This Row],[الحافز]]*50%,IF(data.f2026[[#This Row],[أيام أجازات بعد السنوية]]>5,data.f2026[[#This Row],[الحافز]]*100%,""))))) -> 0 | BQ95: 0 | BR95: 0 | BT95: 3 | BU95: 0 | BX95: 0 | CC95: 0 | CE95: 0 | CG95: 2.52 | CH95: 3 | CI95: 0 | CL95: 0 | CN95: 0 | CO95: 0 | CP95: 86.37053 | CQ95: 0 | CS95: 0 | CT95: 0 | CU95: 0 | CV95: 676.75 | CW95: 6713.25
B96: 202091 | C96: 22150 | D96: بنك مصر 1 | E96: اشرف لطفى يونس محمد | F96: 0 | G96: دوام كامل | H96: فنى | I96: الرابعة | J96: الرابعة | K96: حرفى سمكرى | L96: الاميرية | M96: 27703111401554 | N96: 202091اشرف لطفى يونس محمدالرابعةالرابعةحرفى سمكرىالاميرية | O96: نعم | P96: 1059.88 | Q96: 1240.0596 | R96: 0 | S96: 1674.08 | T96: 186.01 | U96: 0 | V96: 0 | W96: 0 | Y96: 186.00894 | Z96: 300 | AB96: 0 | AC96: 0 | AD96: 0 | AE96: 0 | AF96: 486.01 | AG96: 35.33 | AH96: 39.36 | AI96: 65 | AJ96: 0 | AK96: 200 | AL96: 25.57 | AM96: 37.78 | AN96: 48.51 | AO96: 69.21 | AP96: 74.06 | AQ96: 80.66 | AS96: 52.994 | AT96: 600 | AU96: 10 | AV96: 1338.47 | AW96: 10 | AX96: 0 | AY96: 223.1326 | AZ96: 0 | BB96: 0 | BC96: 5157.76 | BD96: 1842.24 | BE96: 7000 | BF96: 0 | BG96: 0 | BJ96: 550 | BK96: 0 | BL96: 0 | BM96: 0 | BN96: =IF(data.f2026[[#This Row],[أيام الغياب]]=1,data.f2026[[#This Row],[الحافز]]*20%,IF(data.f2026[[#This Row],[أيام الغياب]]=2,data.f2026[[#This Row],[الحافز]]*100%,IF(data.f2026[[#This Row],[أيام الغياب]]>2,data.f2026[[#This Row],[الحافز]]*100%,""))) ->  | BO96: =IF(data.f2026[[#This Row],[عدد أيام الأجازات]]<=4,data.f2026[[#This Row],[الحافز]]*0,IF(data.f2026[[#This Row],[عدد أيام الأجازات]]=5,data.f2026[[#This Row],[الحافز]]*20%,IF(data.f2026[[#This Row],[عدد أيام الأجازات]]=6,data.f2026[[#This Row],[الحافز]]*40%,IF(data.f2026[[#This Row],[عدد أيام الأجازات]]=7,data.f2026[[#This Row],[الحافز]]*50%,IF(data.f2026[[#This Row],[عدد أيام الأجازات]]>7,data.f2026[[#This Row],[الحافز]]*100%,""))))) -> 0 | BP96: =IF(data.f2026[[#This Row],[أيام أجازات بعد السنوية]]<=2,data.f2026[[#This Row],[الحافز]]*0,IF(data.f2026[[#This Row],[أيام أجازات بعد السنوية]]=3,data.f2026[[#This Row],[الحافز]]*30%,IF(data.f2026[[#This Row],[أيام أجازات بعد السنوية]]=4,data.f2026[[#This Row],[الحافز]]*40%,IF(data.f2026[[#This Row],[أيام أجازات بعد السنوية]]=5,data.f2026[[#This Row],[الحافز]]*50%,IF(data.f2026[[#This Row],[أيام أجازات بعد السنوية]]>5,data.f2026[[#This Row],[الحافز]]*100%,""))))) -> 0 | BQ96: 0 | BR96: 0 | BS96: 0 | BT96: 3 | BU96: 0 | BV96: 0 | BW96: 0 | BX96: 0 | BY96: 0 | BZ96: 0 | CA96: 0 | CC96: 0 | CD96: 0 | CE96: 0 | CF96: 0 | CG96: 3.01 | CH96: 3 | CI96: 0 | CK96: 0 | CL96: 0 | CN96: 0 | CO96: 0 | CP96: 223.1326 | CQ96: 0 | CS96: 0 | CT96: 0 | CU96: 0 | CV96: 782.14 | CW96: 6217.86
B97: 202092 | C97: 21734 | D97: بنك مصر 1 | E97: عبد الباقى عبد الموجود عبد الباقي | F97: 0 | G97: دوام كامل | H97: فنى | I97: الثالثة | J97: الثالثة | K97: حرفى سمكرى | L97: الاميرية | M97: 27408120100531 | N97: 202092عبد الباقى عبد الموجود عبد الباقيالثالثةالثالثةحرفى سمكرىالاميرية | O97: نعم | P97: 1900.5 | Q97: 2223.585 | R97: 0 | S97: 3001.84 | T97: 333.54 | U97: 0 | V97: 0 | W97: 0 | Y97: 333.53775 | Z97: 300 | AB97: 0 | AC97: 0 | AD97: 0 | AE97: 0 | AF97: 633.54 | AG97: 67.32 | AH97: 75.14 | AI97: 89.66 | AJ97: 0 | AK97: 200 | AL97: 37.99 | AM97: 67.75 | AN97: 86.99 | AO97: 124.11 | AP97: 132.8 | AQ97: 142.09 | AS97: 95.025 | AT97: 600 | AU97: 10 | AV97: 1728.88 | AW97: 10 | AX97: 0 | AY97: 400.1053 | AZ97: 0 | BB97: 30 | BC97: 8331.49 | BD97: 0 | BE97: 8361.49 | BF97: 0 | BG97: 0 | BJ97: 737 | BK97: 0 | BL97: 0 | BM97: 0 | BN97: =IF(data.f2026[[#This Row],[أيام الغياب]]=1,data.f2026[[#This Row],[الحافز]]*20%,IF(data.f2026[[#This Row],[أيام الغياب]]=2,data.f2026[[#This Row],[الحافز]]*100%,IF(data.f2026[[#This Row],[أيام الغياب]]>2,data.f2026[[#This Row],[الحافز]]*100%,""))) ->  | BO97: =IF(data.f2026[[#This Row],[عدد أيام الأجازات]]<=4,data.f2026[[#This Row],[الحافز]]*0,IF(data.f2026[[#This Row],[عدد أيام الأجازات]]=5,data.f2026[[#This Row],[الحافز]]*20%,IF(data.f2026[[#This Row],[عدد أيام الأجازات]]=6,data.f2026[[#This Row],[الحافز]]*40%,IF(data.f2026[[#This Row],[عدد أيام الأجازات]]=7,data.f2026[[#This Row],[الحافز]]*50%,IF(data.f2026[[#This Row],[عدد أيام الأجازات]]>7,data.f2026[[#This Row],[الحافز]]*100%,""))))) -> 0 | BP97: =IF(data.f2026[[#This Row],[أيام أجازات بعد السنوية]]<=2,data.f2026[[#This Row],[الحافز]]*0,IF(data.f2026[[#This Row],[أيام أجازات بعد السنوية]]=3,data.f2026[[#This Row],[الحافز]]*30%,IF(data.f2026[[#This Row],[أيام أجازات بعد السنوية]]=4,data.f2026[[#This Row],[الحافز]]*40%,IF(data.f2026[[#This Row],[أيام أجازات بعد السنوية]]=5,data.f2026[[#This Row],[الحافز]]*50%,IF(data.f2026[[#This Row],[أيام أجازات بعد السنوية]]>5,data.f2026[[#This Row],[الحافز]]*100%,""))))) -> 0 | BQ97: 0 | BR97: 0 | BS97: 0 | BT97: 3 | BU97: 0 | BV97: 0 | BW97: 0 | BX97: 0 | BY97: 0 | BZ97: 0 | CA97: 0 | CC97: 0 | CD97: 0 | CE97: 0 | CF97: 0 | CG97: 3.26 | CH97: 3 | CI97: 0 | CK97: 0 | CL97: 0 | CN97: 0 | CO97: 0 | CP97: 400.1053 | CQ97: 0 | CS97: 0 | CT97: 0 | CU97: 0 | CV97: 1146.37 | CW97: 7215.12
B98: 202094 | C98: 21266 | D98: بنك مصر 1 | E98: ممدوح عبد العزيز عبد الوهاب | F98: 0 | G98: دوام كامل | H98: فنى | I98: الثانية | J98: الثانية | K98: حداد | L98: الاميرية | M98: 26604020104512 | N98: 202094ممدوح عبد العزيز عبد الوهابالثانيةالثانيةحدادالاميرية | O98: نعم | P98: 2264.1 | Q98: 2648.997 | R98: 0 | S98: 3576.15 | T98: 397.35 | U98: 0 | V98: 0 | W98: 0 | Y98: 397.34955 | Z98: 300 | AB98: 0 | AC98: 0 | AD98: 0 | AE98: 0 | AF98: 697.35 | AG98: 74.91 | AH98: 83.64 | AI98: 107.23 | AJ98: 0 | AK98: 190 | AL98: 45.26 | AM98: 80.71 | AN98: 103.64 | AO98: 147.85 | AP98: 158.2 | AQ98: 169.28 | AS98: 113.205 | AT98: 600 | AU98: 4 | AV98: 1877.93 | AW98: 10 | AX98: 0 | AY98: 476.6526 | AZ98: 0 | BB98: 0 | BC98: 9684.43 | BD98: 0 | BE98: 9684.43 | BF98: 0 | BG98: 0 | BJ98: 858 | BK98: 91.33 | BL98: 0 | BM98: 0 | BN98: =IF(data.f2026[[#This Row],[أيام الغياب]]=1,data.f2026[[#This Row],[الحافز]]*20%,IF(data.f2026[[#This Row],[أيام الغياب]]=2,data.f2026[[#This Row],[الحافز]]*100%,IF(data.f2026[[#This Row],[أيام الغياب]]>2,data.f2026[[#This Row],[الحافز]]*100%,""))) ->  | BO98: =IF(data.f2026[[#This Row],[عدد أيام الأجازات]]<=4,data.f2026[[#This Row],[الحافز]]*0,IF(data.f2026[[#This Row],[عدد أيام الأجازات]]=5,data.f2026[[#This Row],[الحافز]]*20%,IF(data.f2026[[#This Row],[عدد أيام الأجازات]]=6,data.f2026[[#This Row],[الحافز]]*40%,IF(data.f2026[[#This Row],[عدد أيام الأجازات]]=7,data.f2026[[#This Row],[الحافز]]*50%,IF(data.f2026[[#This Row],[عدد أيام الأجازات]]>7,data.f2026[[#This Row],[الحافز]]*100%,""))))) -> 0 | BP98: =IF(data.f2026[[#This Row],[أيام أجازات بعد السنوية]]<=2,data.f2026[[#This Row],[الحافز]]*0,IF(data.f2026[[#This Row],[أيام أجازات بعد السنوية]]=3,data.f2026[[#This Row],[الحافز]]*30%,IF(data.f2026[[#This Row],[أيام أجازات بعد السنوية]]=4,data.f2026[[#This Row],[الحافز]]*40%,IF(data.f2026[[#This Row],[أيام أجازات بعد السنوية]]=5,data.f2026[[#This Row],[الحافز]]*50%,IF(data.f2026[[#This Row],[أيام أجازات بعد السنوية]]>5,data.f2026[[#This Row],[الحافز]]*100%,""))))) -> 0 | BQ98: 0 | BR98: 0 | BS98: 0 | BT98: 3 | BU98: 0 | BV98: 0 | BW98: 0 | BX98: 0 | BY98: 0 | BZ98: 0 | CA98: 0 | CC98: 0 | CD98: 0 | CE98: 0 | CF98: 0 | CG98: 3.75 | CH98: 3 | CI98: 0 | CK98: 0 | CL98: 0 | CN98: 0 | CO98: 0 | CP98: 476.6526 | CQ98: 0 | CS98: 0 | CT98: 0 | CU98: 0 | CV98: 1435.73 | CW98: 8248.7
B99: 202095 | C99: 21572 | D99: بنك مصر 1 | E99: مصطفي ابراهيم طلبة | F99: 0 | G99: دوام كامل | H99: فنى | I99: الثالثة | M99: 27304160102951 | N99: 202095مصطفي ابراهيم طلبةالثالثة | P99: 2063.44 | Q99: 2414.32 | R99: 0 | S99: 3259.33 | T99: 362.15 | U99: 0 | V99: 0 | W99: 0 | Y99: 362.148 | Z99: 300 | AB99: 0 | AC99: 0 | AD99: 0 | AE99: 0 | AF99: 662.15 | AG99: 67.78 | AH99: 75.65 | AI99: 90.99 | AJ99: 0 | AK99: 190 | AL99: 41.24 | AM99: 73.56 | AN99: 94.45 | AO99: 134.75 | AP99: 144.18 | AQ99: 154.28 | AS99: 103.172 | AT99: 600 | AU99: 10 | AV99: 1780.05 | AW99: 10 | AX99: 0 | AY99: 434.4084 | AZ99: 382.77 | BB99: 0 | BC99: 8922.41 | BD99: 0 | BE99: 9305.18 | BF99: 0 | BG99: 0 | BJ99: 781 | BK99: 10 | BL99: 0 | BM99: 0 | BN99: =IF(data.f2026[[#This Row],[أيام الغياب]]=1,data.f2026[[#This Row],[الحافز]]*20%,IF(data.f2026[[#This Row],[أيام الغياب]]=2,data.f2026[[#This Row],[الحافز]]*100%,IF(data.f2026[[#This Row],[أيام الغياب]]>2,data.f2026[[#This Row],[الحافز]]*100%,""))) ->  | BO99: =IF(data.f2026[[#This Row],[عدد أيام الأجازات]]<=4,data.f2026[[#This Row],[الحافز]]*0,IF(data.f2026[[#This Row],[عدد أيام الأجازات]]=5,data.f2026[[#This Row],[الحافز]]*20%,IF(data.f2026[[#This Row],[عدد أيام الأجازات]]=6,data.f2026[[#This Row],[الحافز]]*40%,IF(data.f2026[[#This Row],[عدد أيام الأجازات]]=7,data.f2026[[#This Row],[الحافز]]*50%,IF(data.f2026[[#This Row],[عدد أيام الأجازات]]>7,data.f2026[[#This Row],[الحافز]]*100%,""))))) -> 0 | BP99: =IF(data.f2026[[#This Row],[أيام أجازات بعد السنوية]]<=2,data.f2026[[#This Row],[الحافز]]*0,IF(data.f2026[[#This Row],[أيام أجازات بعد السنوية]]=3,data.f2026[[#This Row],[الحافز]]*30%,IF(data.f2026[[#This Row],[أيام أجازات بعد السنوية]]=4,data.f2026[[#This Row],[الحافز]]*40%,IF(data.f2026[[#This Row],[أيام أجازات بعد السنوية]]=5,data.f2026[[#This Row],[الحافز]]*50%,IF(data.f2026[[#This Row],[أيام أجازات بعد السنوية]]>5,data.f2026[[#This Row],[الحافز]]*100%,""))))) -> 0 | BQ99: 42.28 | BR99: 0 | BS99: 0 | BT99: 3 | BU99: 0 | BV99: 0 | BW99: 0 | BX99: 0 | BY99: 0 | BZ99: 0 | CA99: 0 | CC99: 0 | CD99: 0 | CE99: 0 | CF99: 0 | CG99: 3.47 | CH99: 3 | CI99: 0 | CK99: 0 | CL99: 0 | CN99: 0 | CO99: 0 | CP99: 434.4084 | CQ99: 0 | CS99: 0 | CT99: 0 | CU99: 0 | CV99: 1277.16 | CW99: 8028.02
B100: 202096 | C100: 22117 | D100: بنك مصر 1 | E100: اسماعيل حسين احمد محمود | F100: 0 | G100: دوام كامل | H100: فنى | I100: الثالثة | J100: الثالثة | K100: حرفى كهربائى | L100: الاميرية | M100: 27707200100776 | N100: 202096اسماعيل حسين احمد محمودالثالثةالثالثةحرفى كهربائىالاميرية | O100: نعم | P100: 1755.91 | Q100: 2054.4147 | R100: 0 | S100: 2773.46 | T100: 308.16 | U100: 0 | V100: 0 | W100: 0 | Y100: 308.162205 | Z100: 300 | AB100: 0 | AC100: 0 | AD100: 0 | AE100: 0 | AF100: 608.16 | AG100: 62.35 | AH100: 69.55 | AI100: 82.87 | AJ100: 0 | AK100: 200 | AL100: 35.1 | AM100: 62.6 | AN100: 80.37 | AO100: 114.67 | AP100: 122.69 | AQ100: 131.28 | AS100: 87.7955 | AT100: 600 | AU100: 10 | AV100: 1659.28 | AW100: 10 | AX100: 0 | AY100: 369.6653 | AZ100: 0 | BB100: 0 | BC100: 7783.14 | BD100: 0 | BE100: 7783.14 | BF100: 0 | BG100: 0 | BJ100: 682 | BK100: 0 | BL100: 0 | BM100: 0 | BN100: =IF(data.f2026[[#This Row],[أيام الغياب]]=1,data.f2026[[#This Row],[الحافز]]*20%,IF(data.f2026[[#This Row],[أيام الغياب]]=2,data.f2026[[#This Row],[الحافز]]*100%,IF(data.f2026[[#This Row],[أيام الغياب]]>2,data.f2026[[#This Row],[الحافز]]*100%,""))) ->  | BO100: =IF(data.f2026[[#This Row],[عدد أيام الأجازات]]<=4,data.f2026[[#This Row],[الحافز]]*0,IF(data.f2026[[#This Row],[عدد أيام الأجازات]]=5,data.f2026[[#This Row],[الحافز]]*20%,IF(data.f2026[[#This Row],[عدد أيام الأجازات]]=6,data.f2026[[#This Row],[الحافز]]*40%,IF(data.f2026[[#This Row],[عدد أيام الأجازات]]=7,data.f2026[[#This Row],[الحافز]]*50%,IF(data.f2026[[#This Row],[عدد أيام الأجازات]]>7,data.f2026[[#This Row],[الحافز]]*100%,""))))) -> 0 | BP100: =IF(data.f2026[[#This Row],[أيام أجازات بعد السنوية]]<=2,data.f2026[[#This Row],[الحافز]]*0,IF(data.f2026[[#This Row],[أيام أجازات بعد السنوية]]=3,data.f2026[[#This Row],[الحافز]]*30%,IF(data.f2026[[#This Row],[أيام أجازات بعد السنوية]]=4,data.f2026[[#This Row],[الحافز]]*40%,IF(data.f2026[[#This Row],[أيام أجازات بعد السنوية]]=5,data.f2026[[#This Row],[الحافز]]*50%,IF(data.f2026[[#This Row],[أيام أجازات بعد السنوية]]>5,data.f2026[[#This Row],[الحافز]]*100%,""))))) -> 0 | BQ100: 0 | BR100: 0 | BS100: 0 | BT100: 3 | BU100: 0 | BV100: 0 | BW100: 0 | BX100: 0 | BY100: 0 | BZ100: 0 | CA100: 0 | CC100: 0 | CD100: 0 | CE100: 0 | CF100: 0 | CG100: 3.06 | CH100: 3 | CI100: 0 | CK100: 0 | CL100: 0 | CN100: 0 | CO100: 0 | CP100: 369.6653 | CQ100: 0 | CS100: 0 | CT100: 0 | CU100: 0 | CV100: 1060.73 | CW100: 6722.41
B101: 202097 | C101: 22088 | D101: بنك مصر 1 | E101: محمد فاروق عباس عبد الله | F101: 0 | G101: دوام كامل | H101: فنى | I101: الثالثة | J101: الثالثة | K101: حرفى كهربائى | L101: فرع سفاجا | M101: 27804052101631 | N101: 202097محمد فاروق عباس عبد اللهالثالثةالثالثةحرفى كهربائىفرع سفاجا | O101: نعم | P101: 1821.11 | Q101: 2130.6987 | R101: 0 | S101: 2876.44 | T101: 319.6 | U101: 0 | V101: 0 | W101: 0 | Y101: 319.604805 | Z101: 300 | AB101: 0 | AC101: 0 | AD101: 0 | AE101: 0 | AF101: 619.6 | AG101: 64.62 | AH101: 71.99 | AI101: 85.57 | AJ101: 0 | AK101: 200 | AL101: 36.4 | AM101: 64.92 | AN101: 83.36 | AO101: 118.93 | AP101: 127.25 | AQ101: 136.16 | AS101: 91.0555 | AT101: 600 | AU101: 10 | AV101: 1690.26 | AW101: 10 | AX101: 0 | AY101: 383.3916 | AZ101: 0 | BB101: 0 | BC101: 8029.99 | BD101: 0 | BE101: 8029.99 | BF101: 0 | BG101: 0 | BJ101: 704 | BK101: 0 | BL101: 0 | BM101: 0 | BN101: =IF(data.f2026[[#This Row],[أيام الغياب]]=1,data.f2026[[#This Row],[الحافز]]*20%,IF(data.f2026[[#This Row],[أيام الغياب]]=2,data.f2026[[#This Row],[الحافز]]*100%,IF(data.f2026[[#This Row],[أيام الغياب]]>2,data.f2026[[#This Row],[الحافز]]*100%,""))) ->  | BO101: =IF(data.f2026[[#This Row],[عدد أيام الأجازات]]<=4,data.f2026[[#This Row],[الحافز]]*0,IF(data.f2026[[#This Row],[عدد أيام الأجازات]]=5,data.f2026[[#This Row],[الحافز]]*20%,IF(data.f2026[[#This Row],[عدد أيام الأجازات]]=6,data.f2026[[#This Row],[الحافز]]*40%,IF(data.f2026[[#This Row],[عدد أيام الأجازات]]=7,data.f2026[[#This Row],[الحافز]]*50%,IF(data.f2026[[#This Row],[عدد أيام الأجازات]]>7,data.f2026[[#This Row],[الحافز]]*100%,""))))) -> 0 | BP101: =IF(data.f2026[[#This Row],[أيام أجازات بعد السنوية]]<=2,data.f2026[[#This Row],[الحافز]]*0,IF(data.f2026[[#This Row],[أيام أجازات بعد السنوية]]=3,data.f2026[[#This Row],[الحافز]]*30%,IF(data.f2026[[#This Row],[أيام أجازات بعد السنوية]]=4,data.f2026[[#This Row],[الحافز]]*40%,IF(data.f2026[[#This Row],[أيام أجازات بعد السنوية]]=5,data.f2026[[#This Row],[الحافز]]*50%,IF(data.f2026[[#This Row],[أيام أجازات بعد السنوية]]>5,data.f2026[[#This Row],[الحافز]]*100%,""))))) -> 0 | BQ101: 0 | BR101: 0 | BS101: 0 | BT101: 3 | BU101: 0 | BV101: 0 | BW101: 0 | BX101: 0 | BY101: 0 | BZ101: 0 | CA101: 0 | CC101: 0 | CD101: 0 | CE101: 0 | CF101: 0 | CG101: 3.15 | CH101: 3 | CI101: 0 | CK101: 0 | CL101: 0 | CN101: 0 | CO101: 0 | CP101: 383.3916 | CQ101: 0 | CS101: 0 | CT101: 0 | CU101: 0 | CV101: 1096.54 | CW101: 6933.45
B102: 202099 | C102: 22102 | D102: بنك مصر 1 | E102: محمد محمود مصطفى عبد الله | F102: 0 | G102: دوام كامل | H102: فنى | I102: الاولى | J102: الأولى | K102: فنى حداد | L102: فرع جسر السويس | M102: 26612301700516 | N102: 202099محمد محمود مصطفى عبد الله الاولىالأولىفنى حدادفرع جسر السويس | O102: نعم | P102: 2129.48 | Q102: 2491.4916 | R102: 0 | S102: 3363.51 | T102: 373.72 | U102: 0 | V102: 0 | W102: 0 | Y102: 373.72374 | Z102: 300 | AB102: 0 | AC102: 0 | AD102: 0 | AE102: 0 | AF102: 673.72 | AG102: 69.93 | AH102: 78.06 | AI102: 93.9 | AJ102: 0 | AK102: 190 | AL102: 42.57 | AM102: 75.91 | AN102: 97.47 | AO102: 139.06 | AP102: 148.8 | AQ102: 159.21 | AS102: 106.474 | AT102: 600 | AU102: 10 | AV102: 1811.38 | AW102: 10 | AX102: 0 | AY102: 448.3116 | AZ102: 0 | BB102: 0 | BC102: 9172.13 | BD102: 0 | BE102: 9172.13 | BF102: 0 | BG102: 0 | BJ102: 803 | BK102: 25.75 | BL102: 0 | BM102: 0 | BN102: =IF(data.f2026[[#This Row],[أيام الغياب]]=1,data.f2026[[#This Row],[الحافز]]*20%,IF(data.f2026[[#This Row],[أيام الغياب]]=2,data.f2026[[#This Row],[الحافز]]*100%,IF(data.f2026[[#This Row],[أيام الغياب]]>2,data.f2026[[#This Row],[الحافز]]*100%,""))) ->  | BO102: =IF(data.f2026[[#This Row],[عدد أيام الأجازات]]<=4,data.f2026[[#This Row],[الحافز]]*0,IF(data.f2026[[#This Row],[عدد أيام الأجازات]]=5,data.f2026[[#This Row],[الحافز]]*20%,IF(data.f2026[[#This Row],[عدد أيام الأجازات]]=6,data.f2026[[#This Row],[الحافز]]*40%,IF(data.f2026[[#This Row],[عدد أيام الأجازات]]=7,data.f2026[[#This Row],[الحافز]]*50%,IF(data.f2026[[#This Row],[عدد أيام الأجازات]]>7,data.f2026[[#This Row],[الحافز]]*100%,""))))) -> 0 | BP102: =IF(data.f2026[[#This Row],[أيام أجازات بعد السنوية]]<=2,data.f2026[[#This Row],[الحافز]]*0,IF(data.f2026[[#This Row],[أيام أجازات بعد السنوية]]=3,data.f2026[[#This Row],[الحافز]]*30%,IF(data.f2026[[#This Row],[أيام أجازات بعد السنوية]]=4,data.f2026[[#This Row],[الحافز]]*40%,IF(data.f2026[[#This Row],[أيام أجازات بعد السنوية]]=5,data.f2026[[#This Row],[الحافز]]*50%,IF(data.f2026[[#This Row],[أيام أجازات بعد السنوية]]>5,data.f2026[[#This Row],[الحافز]]*100%,""))))) -> 0 | BQ102: 0 | BR102: 0 | BS102: 0 | BT102: 3 | BU102: 0 | BV102: 0 | BW102: 0 | BX102: 0 | BY102: 0 | BZ102: 0 | CA102: 0 | CC102: 0 | CD102: 0 | CE102: 0 | CF102: 0 | CG102: 3.52 | CH102: 5 | CI102: 0 | CK102: 0 | CL102: 0 | CN102: 0 | CO102: 0 | CP102: 448.3116 | CQ102: 0 | CS102: 0 | CT102: 0 | CU102: 0 | CV102: 1288.58 | CW102: 7883.55
B103: 202100 | C103: 22170 | D103: بنك مصر 1 | E103: عارف كامل عبد الرحمن احمد | F103: 0 | G103: دوام كامل | H103: فنى | I103: الرابعة | J103: الرابعة | K103: حرفى سروجى | L103: الاميرية | M103: 27301011404792 | N103: 202100عارف كامل عبد الرحمن احمدالرابعةالرابعةحرفى سروجىالاميرية | O103: نعم | P103: 1017.69 | Q103: 1190.6973 | R103: 0 | S103: 1607.44 | T103: 178.6 | U103: 0 | V103: 0 | W103: 0 | Y103: 178.604595 | Z103: 300 | AB103: 0 | AC103: 0 | AD103: 0 | AE103: 0 | AF103: 478.6 | AG103: 33.74 | AH103: 37.66 | AI103: 65 | AJ103: 0 | AK103: 200 | AL103: 27.53 | AM103: 36.28 | AN103: 46.58 | AO103: 66.46 | AP103: 71.11 | AQ103: 83.43 | AS103: 50.8845 | AT103: 600 | AU103: 10 | AV103: 1328.67 | AW103: 10 | AX103: 0 | AY103: 214.2505 | AZ103: 0 | BB103: 0 | BC103: 5008.26 | BD103: 1991.74 | BE103: 7000 | BF103: 0 | BG103: 0 | BJ103: 550 | BK103: 0 | BL103: 0 | BM103: 0 | BN103: =IF(data.f2026[[#This Row],[أيام الغياب]]=1,data.f2026[[#This Row],[الحافز]]*20%,IF(data.f2026[[#This Row],[أيام الغياب]]=2,data.f2026[[#This Row],[الحافز]]*100%,IF(data.f2026[[#This Row],[أيام الغياب]]>2,data.f2026[[#This Row],[الحافز]]*100%,""))) ->  | BO103: =IF(data.f2026[[#This Row],[عدد أيام الأجازات]]<=4,data.f2026[[#This Row],[الحافز]]*0,IF(data.f2026[[#This Row],[عدد أيام الأجازات]]=5,data.f2026[[#This Row],[الحافز]]*20%,IF(data.f2026[[#This Row],[عدد أيام الأجازات]]=6,data.f2026[[#This Row],[الحافز]]*40%,IF(data.f2026[[#This Row],[عدد أيام الأجازات]]=7,data.f2026[[#This Row],[الحافز]]*50%,IF(data.f2026[[#This Row],[عدد أيام الأجازات]]>7,data.f2026[[#This Row],[الحافز]]*100%,""))))) -> 0 | BP103: =IF(data.f2026[[#This Row],[أيام أجازات بعد السنوية]]<=2,data.f2026[[#This Row],[الحافز]]*0,IF(data.f2026[[#This Row],[أيام أجازات بعد السنوية]]=3,data.f2026[[#This Row],[الحافز]]*30%,IF(data.f2026[[#This Row],[أيام أجازات بعد السنوية]]=4,data.f2026[[#This Row],[الحافز]]*40%,IF(data.f2026[[#This Row],[أيام أجازات بعد السنوية]]=5,data.f2026[[#This Row],[الحافز]]*50%,IF(data.f2026[[#This Row],[أيام أجازات بعد السنوية]]>5,data.f2026[[#This Row],[الحافز]]*100%,""))))) -> 0 | BQ103: 0 | BR103: 0 | BS103: 0 | BT103: 3 | BU103: 0 | BV103: 0 | BW103: 0 | BX103: 0 | BY103: 0 | BZ103: 0 | CA103: 0 | CC103: 0 | CD103: 0 | CE103: 0 | CF103: 0 | CG103: 3.02 | CH103: 3 | CI103: 0 | CK103: 0 | CL103: 0 | CN103: 0 | CO103: 0 | CP103: 214.2505 | CQ103: 0 | CS103: 0 | CT103: 0 | CU103: 0 | CV103: 773.27 | CW103: 6226.73
B104: 202102 | C104: 22089 | D104: بنك مصر 1 | E104: وائل سعيد عطية خلاف | F104: 0 | G104: دوام كامل | H104: فنى | I104: الثالثة | J104: الثالثة | K104: حرفى ميكانيكى | L104: الاميرية | M104: 27709060102938 | N104: 202102وائل سعيد عطية خلافالثالثةالثالثةحرفى ميكانيكى الاميرية | O104: نعم | P104: 1755.89 | Q104: 2333 | R104: 0 | S104: 3149.55 | T104: 349.95 | U104: 0 | V104: 0 | W104: 0 | Y104: 349.95 | Z104: 300 | AB104: 0 | AC104: 0 | AD104: 0 | AE104: 0 | AF104: 649.95 | AG104: 62.35 | AH104: 69.55 | AI104: 82.86 | AJ104: 0 | AK104: 200 | AL104: 35.1 | AM104: 62.59 | AN104: 80.37 | AO104: 114.67 | AP104: 122.69 | AQ104: 131.28 | AS104: 87.7945 | AT104: 600 | AU104: 10 | AV104: 1659.25 | AW104: 10 | AX104: 0 | AY104: 369.661 | AZ104: 0 | BB104: 0 | BC104: 8521.36 | BD104: 0 | BE104: 8521.36 | BF104: 0 | BG104: 0 | BJ104: 682 | BK104: 0 | BL104: 0 | BM104: 0 | BN104: =IF(data.f2026[[#This Row],[أيام الغياب]]=1,data.f2026[[#This Row],[الحافز]]*20%,IF(data.f2026[[#This Row],[أيام الغياب]]=2,data.f2026[[#This Row],[الحافز]]*100%,IF(data.f2026[[#This Row],[أيام الغياب]]>2,data.f2026[[#This Row],[الحافز]]*100%,""))) ->  | BO104: =IF(data.f2026[[#This Row],[عدد أيام الأجازات]]<=4,data.f2026[[#This Row],[الحافز]]*0,IF(data.f2026[[#This Row],[عدد أيام الأجازات]]=5,data.f2026[[#This Row],[الحافز]]*20%,IF(data.f2026[[#This Row],[عدد أيام الأجازات]]=6,data.f2026[[#This Row],[الحافز]]*40%,IF(data.f2026[[#This Row],[عدد أيام الأجازات]]=7,data.f2026[[#This Row],[الحافز]]*50%,IF(data.f2026[[#This Row],[عدد أيام الأجازات]]>7,data.f2026[[#This Row],[الحافز]]*100%,""))))) -> 0 | BP104: =IF(data.f2026[[#This Row],[أيام أجازات بعد السنوية]]<=2,data.f2026[[#This Row],[الحافز]]*0,IF(data.f2026[[#This Row],[أيام أجازات بعد السنوية]]=3,data.f2026[[#This Row],[الحافز]]*30%,IF(data.f2026[[#This Row],[أيام أجازات بعد السنوية]]=4,data.f2026[[#This Row],[الحافز]]*40%,IF(data.f2026[[#This Row],[أيام أجازات بعد السنوية]]=5,data.f2026[[#This Row],[الحافز]]*50%,IF(data.f2026[[#This Row],[أيام أجازات بعد السنوية]]>5,data.f2026[[#This Row],[الحافز]]*100%,""))))) -> 0 | BQ104: 0 | BR104: 0 | BS104: 0 | BT104: 3 | BU104: 0 | BV104: 0 | BW104: 0 | BX104: 0 | BY104: 0 | BZ104: 0 | CA104: 0 | CC104: 0 | CD104: 0 | CE104: 0 | CF104: 0 | CG104: 3.06 | CH104: 3 | CI104: 0 | CK104: 0 | CL104: 0 | CN104: 0 | CO104: 0 | CP104: 369.661 | CQ104: 0 | CS104: 0 | CT104: 0 | CU104: 0 | CV104: 1060.72 | CW104: 7460.64
B105: 202103 | C105: 21903 | D105: بنك مصر 1 | E105: هانى ابو الفتوح على مصطفى | F105: 0 | G105: دوام كامل | H105: فنى | I105: الثالثة | J105: الثالثة | K105: حرفى ميكانيكى | L105: الاسكندرية | M105: 27312070101118 | N105: 202103هانى ابو الفتوح على مصطفىالثالثةالثالثةحرفى ميكانيكى الاسكندرية | O105: نعم | P105: 1994.02 | Q105: 2333.0034 | R105: 0 | S105: 3149.55 | T105: 349.95 | U105: 0 | V105: 0 | W105: 0 | Y105: 349.95051 | Z105: 300 | AB105: 0 | AC105: 0 | AD105: 0 | AE105: 0 | AF105: 649.95 | AG105: 65.68 | AH105: 73.3 | AI105: 87.88 | AJ105: 0 | AK105: 200 | AL105: 39.86 | AM105: 71.09 | AN105: 91.27 | AO105: 130.22 | AP105: 139.33 | AQ105: 149.09 | AS105: 99.701 | AT105: 600 | AU105: 10 | AV105: 1757.42 | AW105: 10 | AX105: 0 | AY105: 419.7937 | AZ105: 0 | BB105: 0 | BC105: 8669.67 | BD105: 0 | BE105: 8669.67 | BF105: 0 | BG105: 0 | BJ105: 759 | BK105: 0 | BL105: 0 | BM105: 0 | BN105: =IF(data.f2026[[#This Row],[أيام الغياب]]=1,data.f2026[[#This Row],[الحافز]]*20%,IF(data.f2026[[#This Row],[أيام الغياب]]=2,data.f2026[[#This Row],[الحافز]]*100%,IF(data.f2026[[#This Row],[أيام الغياب]]>2,data.f2026[[#This Row],[الحافز]]*100%,""))) ->  | BO105: =IF(data.f2026[[#This Row],[عدد أيام الأجازات]]<=4,data.f2026[[#This Row],[الحافز]]*0,IF(data.f2026[[#This Row],[عدد أيام الأجازات]]=5,data.f2026[[#This Row],[الحافز]]*20%,IF(data.f2026[[#This Row],[عدد أيام الأجازات]]=6,data.f2026[[#This Row],[الحافز]]*40%,IF(data.f2026[[#This Row],[عدد أيام الأجازات]]=7,data.f2026[[#This Row],[الحافز]]*50%,IF(data.f2026[[#This Row],[عدد أيام الأجازات]]>7,data.f2026[[#This Row],[الحافز]]*100%,""))))) -> 0 | BP105: =IF(data.f2026[[#This Row],[أيام أجازات بعد السنوية]]<=2,data.f2026[[#This Row],[الحافز]]*0,IF(data.f2026[[#This Row],[أيام أجازات بعد السنوية]]=3,data.f2026[[#This Row],[الحافز]]*30%,IF(data.f2026[[#This Row],[أيام أجازات بعد السنوية]]=4,data.f2026[[#This Row],[الحافز]]*40%,IF(data.f2026[[#This Row],[أيام أجازات بعد السنوية]]=5,data.f2026[[#This Row],[الحافز]]*50%,IF(data.f2026[[#This Row],[أيام أجازات بعد السنوية]]>5,data.f2026[[#This Row],[الحافز]]*100%,""))))) -> 0 | BQ105: 14.2 | BR105: 0 | BS105: 0 | BT105: 3 | BU105: 0 | BV105: 0 | BW105: 0 | BX105: 0 | BY105: 0 | BZ105: 0 | CA105: 0 | CC105: 0 | CD105: 0 | CE105: 0 | CF105: 0 | CG105: 3.06 | CH105: 3 | CI105: 0 | CK105: 0 | CL105: 0 | CN105: 0 | CO105: 0 | CP105: 419.7937 | CQ105: 0 | CS105: 0 | CT105: 0 | CU105: 0 | CV105: 1202.05 | CW105: 7467.62
B106: 202104 | C106: 21346 | D106: بنك مصر 1 | E106: زينهم محمد زينهم عبد الواحد | F106: 0 | G106: دوام كامل | H106: فنى | I106: الرابعة | J106: الرابعة | K106: حرفى ميكانيكى | L106: الاميرية | M106: 27301011701615 | N106: 202104زينهم محمد زينهم عبد الواحدالرابعةالرابعةحرفى ميكانيكىالاميرية | O106: نعم | P106: 1981.13 | Q106: 2317.9221 | R106: 0 | S106: 3129.19 | T106: 347.69 | U106: 0 | V106: 0 | W106: 0 | Y106: 347.688315 | Z106: 300 | AB106: 0 | AC106: 0 | AD106: 0 | AE106: 0 | AF106: 647.69 | AG106: 70.33 | AH106: 78.44 | AI106: 93.51 | AJ106: 0 | AK106: 200 | AL106: 39.6 | AM106: 70.63 | AN106: 90.68 | AO106: 129.38 | AP106: 138.43 | AQ106: 148.12 | AS106: 99.0565 | AT106: 600 | AU106: 10 | AV106: 1768.18 | AW106: 10 | AX106: 0 | AY106: 417.08 | AZ106: 0 | BB106: 0 | BC106: 8637.75 | BD106: 0 | BE106: 8637.75 | BF106: 0 | BG106: 0 | BJ106: 759 | BK106: 0 | BL106: 0 | BM106: 0 | BN106: =IF(data.f2026[[#This Row],[أيام الغياب]]=1,data.f2026[[#This Row],[الحافز]]*20%,IF(data.f2026[[#This Row],[أيام الغياب]]=2,data.f2026[[#This Row],[الحافز]]*100%,IF(data.f2026[[#This Row],[أيام الغياب]]>2,data.f2026[[#This Row],[الحافز]]*100%,""))) ->  | BO106: =IF(data.f2026[[#This Row],[عدد أيام الأجازات]]<=4,data.f2026[[#This Row],[الحافز]]*0,IF(data.f2026[[#This Row],[عدد أيام الأجازات]]=5,data.f2026[[#This Row],[الحافز]]*20%,IF(data.f2026[[#This Row],[عدد أيام الأجازات]]=6,data.f2026[[#This Row],[الحافز]]*40%,IF(data.f2026[[#This Row],[عدد أيام الأجازات]]=7,data.f2026[[#This Row],[الحافز]]*50%,IF(data.f2026[[#This Row],[عدد أيام الأجازات]]>7,data.f2026[[#This Row],[الحافز]]*100%,""))))) -> 0 | BP106: =IF(data.f2026[[#This Row],[أيام أجازات بعد السنوية]]<=2,data.f2026[[#This Row],[الحافز]]*0,IF(data.f2026[[#This Row],[أيام أجازات بعد السنوية]]=3,data.f2026[[#This Row],[الحافز]]*30%,IF(data.f2026[[#This Row],[أيام أجازات بعد السنوية]]=4,data.f2026[[#This Row],[الحافز]]*40%,IF(data.f2026[[#This Row],[أيام أجازات بعد السنوية]]=5,data.f2026[[#This Row],[الحافز]]*50%,IF(data.f2026[[#This Row],[أيام أجازات بعد السنوية]]>5,data.f2026[[#This Row],[الحافز]]*100%,""))))) -> 0 | BQ106: 77.94 | BR106: 0 | BS106: 0 | BT106: 3 | BU106: 0 | BV106: 0 | BW106: 0 | BX106: 0 | BY106: 0 | BZ106: 0 | CA106: 0 | CC106: 0 | CD106: 0 | CE106: 0 | CF106: 0 | CG106: 3.38 | CH106: 3 | CI106: 0 | CK106: 0 | CL106: 0 | CN106: 0 | CO106: 0 | CP106: 417.08 | CQ106: 0 | CS106: 0 | CT106: 0 | CU106: 0 | CV106: 1263.4 | CW106: 7374.35
B107: 202107 | C107: 21714 | D107: بنك مصر 1 | E107: منصور عبده دوينى سيد احمد | F107: 0 | G107: دوام كامل | H107: فنى | I107: الثالثة | J107: الثالثة | K107: حرفى ميكانيكى | L107: حلون | M107: 27402250104939 | N107: 202107منصور عبده دوينى سيد احمدالثالثةالثالثةحرفى ميكانيكى حلون | O107: نعم | P107: 2005.79 | Q107: 2346.7743 | R107: 0 | S107: 3168.15 | T107: 352.02 | U107: 0 | V107: 0 | W107: 0 | Y107: 352.016145 | Z107: 300 | AB107: 0 | AC107: 0 | AD107: 0 | AE107: 0 | AF107: 652.02 | AG107: 66.43 | AH107: 74.15 | AI107: 94.97 | AJ107: 0 | AK107: 200 | AL107: 40.1 | AM107: 71.51 | AN107: 91.81 | AO107: 130.99 | AP107: 140.15 | AQ107: 149.97 | AS107: 100.2895 | AT107: 600 | AU107: 10 | AV107: 1770.37 | AW107: 10 | AX107: 0 | AY107: 422.2716 | AZ107: 0 | BB107: 0 | BC107: 8721.61 | BD107: 0 | BE107: 8721.61 | BF107: 0 | BG107: 0 | BJ107: 770 | BK107: 0 | BL107: 0 | BM107: 0 | BN107: =IF(data.f2026[[#This Row],[أيام الغياب]]=1,data.f2026[[#This Row],[الحافز]]*20%,IF(data.f2026[[#This Row],[أيام الغياب]]=2,data.f2026[[#This Row],[الحافز]]*100%,IF(data.f2026[[#This Row],[أيام الغياب]]>2,data.f2026[[#This Row],[الحافز]]*100%,""))) ->  | BO107: =IF(data.f2026[[#This Row],[عدد أيام الأجازات]]<=4,data.f2026[[#This Row],[الحافز]]*0,IF(data.f2026[[#This Row],[عدد أيام الأجازات]]=5,data.f2026[[#This Row],[الحافز]]*20%,IF(data.f2026[[#This Row],[عدد أيام الأجازات]]=6,data.f2026[[#This Row],[الحافز]]*40%,IF(data.f2026[[#This Row],[عدد أيام الأجازات]]=7,data.f2026[[#This Row],[الحافز]]*50%,IF(data.f2026[[#This Row],[عدد أيام الأجازات]]>7,data.f2026[[#This Row],[الحافز]]*100%,""))))) -> 0 | BP107: =IF(data.f2026[[#This Row],[أيام أجازات بعد السنوية]]<=2,data.f2026[[#This Row],[الحافز]]*0,IF(data.f2026[[#This Row],[أيام أجازات بعد السنوية]]=3,data.f2026[[#This Row],[الحافز]]*30%,IF(data.f2026[[#This Row],[أيام أجازات بعد السنوية]]=4,data.f2026[[#This Row],[الحافز]]*40%,IF(data.f2026[[#This Row],[أيام أجازات بعد السنوية]]=5,data.f2026[[#This Row],[الحافز]]*50%,IF(data.f2026[[#This Row],[أيام أجازات بعد السنوية]]>5,data.f2026[[#This Row],[الحافز]]*100%,""))))) -> 0 | BQ107: 15.25 | BR107: 0 | BS107: 0 | BT107: 3 | BU107: 0 | BV107: 0 | BW107: 0 | BX107: 0 | BY107: 0 | BZ107: 0 | CA107: 0 | CC107: 0 | CD107: 0 | CE107: 0 | CF107: 0 | CG107: 3.42 | CH107: 3 | CI107: 0 | CK107: 0 | CL107: 0 | CN107: 0 | CO107: 0 | CP107: 422.2716 | CQ107: 0 | CS107: 0 | CT107: 0 | CU107: 0 | CV107: 1216.94 | CW107: 7504.67
B108: 202108 | C108: 21080 | D108: بنك مصر 1 | E108: مصطفى عبد الغنى مصطفى ابو العلا | F108: 0 | G108: دوام كامل | H108: فنى | I108: الثانية | J108: الثانية | K108: ميكانيكى | L108: الاميرية | M108: 26910101700415 | N108: 202108مصطفى عبد الغنى مصطفى ابو العلاالثانيةالثانيةميكانيكىالاميرية | O108: نعم | P108: 2249.01 | Q108: 2631.3417 | R108: 0 | S108: 3552.31 | T108: 394.7 | U108: 0 | V108: 0 | W108: 0 | Y108: 394.701255 | Z108: 300 | AB108: 0 | AC108: 0 | AD108: 0 | AE108: 0 | AF108: 694.7 | AG108: 74.42 | AH108: 83.09 | AI108: 106.52 | AJ108: 0 | AK108: 190 | AL108: 44.95 | AM108: 80.17 | AN108: 102.95 | AO108: 146.87 | AP108: 157.15 | AQ108: 168.15 | AS108: 112.4505 | AT108: 600 | AU108: 8 | AV108: 1874.72 | AW108: 10 | AX108: 0 | AY108: 473.4758 | AZ108: 0 | BB108: 0 | BC108: 9631.25 | BD108: 0 | BE108: 9631.25 | BF108: 0 | BG108: 0 | BJ108: 847 | BK108: 90 | BL108: 0 | BM108: 0 | BN108: =IF(data.f2026[[#This Row],[أيام الغياب]]=1,data.f2026[[#This Row],[الحافز]]*20%,IF(data.f2026[[#This Row],[أيام الغياب]]=2,data.f2026[[#This Row],[الحافز]]*100%,IF(data.f2026[[#This Row],[أيام الغياب]]>2,data.f2026[[#This Row],[الحافز]]*100%,""))) ->  | BO108: =IF(data.f2026[[#This Row],[عدد أيام الأجازات]]<=4,data.f2026[[#This Row],[الحافز]]*0,IF(data.f2026[[#This Row],[عدد أيام الأجازات]]=5,data.f2026[[#This Row],[الحافز]]*20%,IF(data.f2026[[#This Row],[عدد أيام الأجازات]]=6,data.f2026[[#This Row],[الحافز]]*40%,IF(data.f2026[[#This Row],[عدد أيام الأجازات]]=7,data.f2026[[#This Row],[الحافز]]*50%,IF(data.f2026[[#This Row],[عدد أيام الأجازات]]>7,data.f2026[[#This Row],[الحافز]]*100%,""))))) -> 0 | BP108: =IF(data.f2026[[#This Row],[أيام أجازات بعد السنوية]]<=2,data.f2026[[#This Row],[الحافز]]*0,IF(data.f2026[[#This Row],[أيام أجازات بعد السنوية]]=3,data.f2026[[#This Row],[الحافز]]*30%,IF(data.f2026[[#This Row],[أيام أجازات بعد السنوية]]=4,data.f2026[[#This Row],[الحافز]]*40%,IF(data.f2026[[#This Row],[أيام أجازات بعد السنوية]]=5,data.f2026[[#This Row],[الحافز]]*50%,IF(data.f2026[[#This Row],[أيام أجازات بعد السنوية]]>5,data.f2026[[#This Row],[الحافز]]*100%,""))))) -> 0 | BQ108: 0 | BR108: 0 | BS108: 0 | BT108: 3 | BU108: 0 | BV108: 0 | BW108: 0 | BX108: 0 | BY108: 0 | BZ108: 0 | CA108: 0 | CC108: 0 | CD108: 0 | CE108: 0 | CF108: 0 | CG108: 3.73 | CH108: 5 | CI108: 0 | CK108: 0 | CL108: 0 | CN108: 0 | CO108: 0 | CP108: 473.4758 | CQ108: 0 | CS108: 0 | CT108: 0 | CU108: 0 | CV108: 1422.21 | CW108: 8209.04
B109: 202109 | C109: 21362 | D109: بنك مصر 1 | E109: فرج ابراهيم فرج ابراهيم | F109: 0 | G109: دوام كامل | H109: فنى | I109: الثالثة | M109: 27108030104517 | N109: 202109فرج ابراهيم فرج ابراهيمالثالثة | P109: 2210.91 | Q109: 2586.77 | R109: 0 | S109: 3492.14 | T109: 388.02 | U109: 0 | V109: 0 | W109: 0 | Y109: 388.0155 | Z109: 300 | AB109: 0 | AC109: 0 | AD109: 0 | AE109: 0 | AF109: 688.02 | AG109: 72.78 | AH109: 81.24 | AI109: 97.47 | AJ109: 0 | AK109: 190 | AL109: 44.2 | AM109: 78.82 | AN109: 101.2 | AO109: 144.38 | AP109: 154.49 | AQ109: 165.3 | AS109: 110.5455 | AT109: 600 | AU109: 10 | AV109: 1850.43 | AW109: 10 | AX109: 0 | AY109: 465.4547 | AZ109: 410.14 | BB109: 0 | BC109: 9480.83 | BD109: 0 | BE109: 9890.97 | BF109: 0 | BG109: 0 | BJ109: 836 | BK109: 31.83 | BL109: 0 | BM109: 0 | BN109: =IF(data.f2026[[#This Row],[أيام الغياب]]=1,data.f2026[[#This Row],[الحافز]]*20%,IF(data.f2026[[#This Row],[أيام الغياب]]=2,data.f2026[[#This Row],[الحافز]]*100%,IF(data.f2026[[#This Row],[أيام الغياب]]>2,data.f2026[[#This Row],[الحافز]]*100%,""))) ->  | BO109: =IF(data.f2026[[#This Row],[عدد أيام الأجازات]]<=4,data.f2026[[#This Row],[الحافز]]*0,IF(data.f2026[[#This Row],[عدد أيام الأجازات]]=5,data.f2026[[#This Row],[الحافز]]*20%,IF(data.f2026[[#This Row],[عدد أيام الأجازات]]=6,data.f2026[[#This Row],[الحافز]]*40%,IF(data.f2026[[#This Row],[عدد أيام الأجازات]]=7,data.f2026[[#This Row],[الحافز]]*50%,IF(data.f2026[[#This Row],[عدد أيام الأجازات]]>7,data.f2026[[#This Row],[الحافز]]*100%,""))))) -> 0 | BP109: =IF(data.f2026[[#This Row],[أيام أجازات بعد السنوية]]<=2,data.f2026[[#This Row],[الحافز]]*0,IF(data.f2026[[#This Row],[أيام أجازات بعد السنوية]]=3,data.f2026[[#This Row],[الحافز]]*30%,IF(data.f2026[[#This Row],[أيام أجازات بعد السنوية]]=4,data.f2026[[#This Row],[الحافز]]*40%,IF(data.f2026[[#This Row],[أيام أجازات بعد السنوية]]=5,data.f2026[[#This Row],[الحافز]]*50%,IF(data.f2026[[#This Row],[أيام أجازات بعد السنوية]]>5,data.f2026[[#This Row],[الحافز]]*100%,""))))) -> 0 | BQ109: 0 | BR109: 0 | BS109: 0 | BT109: 3 | BU109: 0 | BV109: 0 | BW109: 0 | BX109: 0 | BY109: 0 | BZ109: 187.5 | CA109: 0 | CC109: 0 | CD109: 0 | CE109: 0 | CF109: 0 | CG109: 3.42 | CH109: 3 | CI109: 0 | CK109: 0 | CL109: 0 | CN109: 0 | CO109: 0 | CP109: 465.4547 | CQ109: 0 | CS109: 0 | CT109: 0 | CU109: 0 | CV109: 1530.2 | CW109: 8360.77
B110: 202110 | C110: 21448 | D110: بنك مصر 1 | E110: محمد عبد اللطيف عبد المعطى بدوى | F110: 0 | G110: دوام كامل | H110: فنى | I110: الثانية | J110: الثانية | K110: ميكانيكى | L110: الاميرية | M110: 27209230103971 | N110: 202110محمد عبد اللطيف عبد المعطى بدوىالثانيةالثانيةميكانيكى الاميرية | O110: نعم | P110: 2155.48 | Q110: 2521.9116 | R110: 0 | S110: 3404.58 | T110: 378.29 | U110: 0 | V110: 0 | W110: 0 | Y110: 378.28674 | Z110: 300 | AB110: 0 | AC110: 0 | AD110: 0 | AE110: 0 | AF110: 678.29 | AG110: 71.34 | AH110: 79.65 | AI110: 102.07 | AJ110: 0 | AK110: 190 | AL110: 43.09 | AM110: 76.84 | AN110: 98.66 | AO110: 140.76 | AP110: 150.61 | AQ110: 161.16 | AS110: 107.774 | AT110: 600 | AU110: 10 | AV110: 1831.95 | AW110: 10 | AX110: 0 | AY110: 453.7852 | AZ110: 0 | BB110: 0 | BC110: 9278.81 | BD110: 0 | BE110: 9278.81 | BF110: 0 | BG110: 0 | BJ110: 814 | BK110: 33.17 | BL110: 0 | BM110: 0 | BN110: =IF(data.f2026[[#This Row],[أيام الغياب]]=1,data.f2026[[#This Row],[الحافز]]*20%,IF(data.f2026[[#This Row],[أيام الغياب]]=2,data.f2026[[#This Row],[الحافز]]*100%,IF(data.f2026[[#This Row],[أيام الغياب]]>2,data.f2026[[#This Row],[الحافز]]*100%,""))) ->  | BO110: =IF(data.f2026[[#This Row],[عدد أيام الأجازات]]<=4,data.f2026[[#This Row],[الحافز]]*0,IF(data.f2026[[#This Row],[عدد أيام الأجازات]]=5,data.f2026[[#This Row],[الحافز]]*20%,IF(data.f2026[[#This Row],[عدد أيام الأجازات]]=6,data.f2026[[#This Row],[الحافز]]*40%,IF(data.f2026[[#This Row],[عدد أيام الأجازات]]=7,data.f2026[[#This Row],[الحافز]]*50%,IF(data.f2026[[#This Row],[عدد أيام الأجازات]]>7,data.f2026[[#This Row],[الحافز]]*100%,""))))) -> 0 | BP110: =IF(data.f2026[[#This Row],[أيام أجازات بعد السنوية]]<=2,data.f2026[[#This Row],[الحافز]]*0,IF(data.f2026[[#This Row],[أيام أجازات بعد السنوية]]=3,data.f2026[[#This Row],[الحافز]]*30%,IF(data.f2026[[#This Row],[أيام أجازات بعد السنوية]]=4,data.f2026[[#This Row],[الحافز]]*40%,IF(data.f2026[[#This Row],[أيام أجازات بعد السنوية]]=5,data.f2026[[#This Row],[الحافز]]*50%,IF(data.f2026[[#This Row],[أيام أجازات بعد السنوية]]>5,data.f2026[[#This Row],[الحافز]]*100%,""))))) -> 0 | BQ110: 0 | BR110: 0 | BS110: 0 | BT110: 3 | BU110: 0 | BV110: 0 | BW110: 0 | BX110: 0 | BY110: 0 | BZ110: 0 | CA110: 0 | CC110: 0 | CD110: 0 | CE110: 0 | CF110: 0 | CG110: 2.59 | CH110: 3 | CI110: 0 | CK110: 0 | CL110: 0 | CN110: 0 | CO110: 0 | CP110: 453.7852 | CQ110: 0 | CS110: 0 | CT110: 0 | CU110: 0 | CV110: 1309.55 | CW110: 7969.26
B111: 202112 | C111: 22153 | D111: بنك مصر 1 | E111: سامح محمد حسين عبد النبى | F111: 0 | G111: دوام كامل | H111: فنى | I111: الرابعة | J111: الرابعة | K111: حرفى ميكانيكى | L111: الاميرية | M111: 28807200102858 | N111: 202112سامح محمد حسين عبد النبىالرابعةالرابعةحرفى ميكانيكىالاميرية | O111: نعم | P111: 1060 | Q111: 1240.2 | R111: 0 | S111: 1674.27 | T111: 186.03 | U111: 0 | V111: 0 | W111: 0 | Y111: 186.03 | Z111: 300 | AB111: 0 | AC111: 0 | AD111: 0 | AE111: 0 | AF111: 486.03 | AG111: 35.33 | AH111: 39.36 | AI111: 65 | AJ111: 0 | AK111: 200 | AL111: 25.56 | AM111: 37.78 | AN111: 48.52 | AO111: 69.22 | AP111: 74.06 | AQ111: 80.65 | AS111: 53 | AT111: 600 | AU111: 8 | AV111: 1336.48 | AW111: 10 | AX111: 0 | AY111: 223.1579 | AZ111: 0 | BB111: 30 | BC111: 5156.17 | BD111: 1843.83 | BE111: 7030 | BF111: 0 | BG111: 0 | BJ111: 550 | BK111: 0 | BL111: 0 | BM111: 0 | BN111: =IF(data.f2026[[#This Row],[أيام الغياب]]=1,data.f2026[[#This Row],[الحافز]]*20%,IF(data.f2026[[#This Row],[أيام الغياب]]=2,data.f2026[[#This Row],[الحافز]]*100%,IF(data.f2026[[#This Row],[أيام الغياب]]>2,data.f2026[[#This Row],[الحافز]]*100%,""))) ->  | BO111: =IF(data.f2026[[#This Row],[عدد أيام الأجازات]]<=4,data.f2026[[#This Row],[الحافز]]*0,IF(data.f2026[[#This Row],[عدد أيام الأجازات]]=5,data.f2026[[#This Row],[الحافز]]*20%,IF(data.f2026[[#This Row],[عدد أيام الأجازات]]=6,data.f2026[[#This Row],[الحافز]]*40%,IF(data.f2026[[#This Row],[عدد أيام الأجازات]]=7,data.f2026[[#This Row],[الحافز]]*50%,IF(data.f2026[[#This Row],[عدد أيام الأجازات]]>7,data.f2026[[#This Row],[الحافز]]*100%,""))))) -> 0 | BP111: =IF(data.f2026[[#This Row],[أيام أجازات بعد السنوية]]<=2,data.f2026[[#This Row],[الحافز]]*0,IF(data.f2026[[#This Row],[أيام أجازات بعد السنوية]]=3,data.f2026[[#This Row],[الحافز]]*30%,IF(data.f2026[[#This Row],[أيام أجازات بعد السنوية]]=4,data.f2026[[#This Row],[الحافز]]*40%,IF(data.f2026[[#This Row],[أيام أجازات بعد السنوية]]=5,data.f2026[[#This Row],[الحافز]]*50%,IF(data.f2026[[#This Row],[أيام أجازات بعد السنوية]]>5,data.f2026[[#This Row],[الحافز]]*100%,""))))) -> 0 | BQ111: 0 | BR111: 0 | BS111: 0 | BT111: 3 | BU111: 0 | BV111: 0 | BW111: 0 | BX111: 0 | BY111: 0 | BZ111: 0 | CA111: 0 | CC111: 0 | CD111: 0 | CE111: 0 | CF111: 0 | CG111: 3.01 | CH111: 3 | CI111: 0 | CK111: 0 | CL111: 0 | CN111: 0 | CO111: 0 | CP111: 223.1579 | CQ111: 0 | CS111: 0 | CT111: 0 | CU111: 0 | CV111: 782.17 | CW111: 6247.83
B112: 202113 | C112: 21705 | D112: بنك مصر 1 | E112: اشرف عبد المحسن محمد متولى | F112: 0 | G112: دوام كامل | H112: فنى | I112: الثالثة | J112: الثالثة | K112: حرفى كهربائى | L112: الاميرية | M112: 27212201701472 | N112: 202113اشرف عبد المحسن محمد متولىالثالثةالثالثةحرفى كهربائىالاميرية | O112: نعم | P112: 1997.75 | Q112: 2337.3675 | R112: 0 | S112: 3155.45 | T112: 350.61 | U112: 0 | V112: 0 | W112: 0 | Y112: 350.605125 | Z112: 300 | AB112: 0 | AC112: 0 | AD112: 0 | AE112: 0 | AF112: 650.61 | AG112: 70.75 | AH112: 78.97 | AI112: 94.26 | AJ112: 0 | AK112: 200 | AL112: 39.93 | AM112: 71.21 | AN112: 91.44 | AO112: 130.46 | AP112: 139.59 | AQ112: 149.36 | AS112: 99.8875 | AT112: 600 | AU112: 10 | AV112: 1775.86 | AW112: 10 | AX112: 0 | AY112: 420.5789 | AZ112: 0 | BB112: 0 | BC112: 8700.48 | BD112: 0 | BE112: 8700.48 | BF112: 0 | BG112: 0 | BJ112: 770 | BK112: 0 | BL112: 0 | BM112: 0 | BN112: =IF(data.f2026[[#This Row],[أيام الغياب]]=1,data.f2026[[#This Row],[الحافز]]*20%,IF(data.f2026[[#This Row],[أيام الغياب]]=2,data.f2026[[#This Row],[الحافز]]*100%,IF(data.f2026[[#This Row],[أيام الغياب]]>2,data.f2026[[#This Row],[الحافز]]*100%,""))) ->  | BO112: =IF(data.f2026[[#This Row],[عدد أيام الأجازات]]<=4,data.f2026[[#This Row],[الحافز]]*0,IF(data.f2026[[#This Row],[عدد أيام الأجازات]]=5,data.f2026[[#This Row],[الحافز]]*20%,IF(data.f2026[[#This Row],[عدد أيام الأجازات]]=6,data.f2026[[#This Row],[الحافز]]*40%,IF(data.f2026[[#This Row],[عدد أيام الأجازات]]=7,data.f2026[[#This Row],[الحافز]]*50%,IF(data.f2026[[#This Row],[عدد أيام الأجازات]]>7,data.f2026[[#This Row],[الحافز]]*100%,""))))) -> 0 | BP112: =IF(data.f2026[[#This Row],[أيام أجازات بعد السنوية]]<=2,data.f2026[[#This Row],[الحافز]]*0,IF(data.f2026[[#This Row],[أيام أجازات بعد السنوية]]=3,data.f2026[[#This Row],[الحافز]]*30%,IF(data.f2026[[#This Row],[أيام أجازات بعد السنوية]]=4,data.f2026[[#This Row],[الحافز]]*40%,IF(data.f2026[[#This Row],[أيام أجازات بعد السنوية]]=5,data.f2026[[#This Row],[الحافز]]*50%,IF(data.f2026[[#This Row],[أيام أجازات بعد السنوية]]>5,data.f2026[[#This Row],[الحافز]]*100%,""))))) -> 0 | BQ112: 4.52 | BR112: 0 | BS112: 0 | BT112: 3 | BU112: 1300 | BV112: 0 | BW112: 0 | BX112: 0 | BY112: 0 | BZ112: 0 | CA112: 0 | CC112: 0 | CD112: 0 | CE112: 0 | CF112: 0 | CG112: 3.37 | CH112: 3 | CI112: 0 | CK112: 0 | CL112: 0 | CN112: 0 | CO112: 0 | CP112: 420.5789 | CQ112: 0 | CS112: 0 | CT112: 0 | CU112: 0 | CV112: 2504.47 | CW112: 6196.01
B113: 202114 | C113: 21978 | D113: بنك مصر 1 | E113: على حسن ذكى عبد الرحمن | F113: 0 | G113: دوام كامل | H113: فنى | I113: الاولى | J113: الأولى | K113: حرفى لحام اكسجين | L113: فرع الاميرية | M113: 26901201400894 | N113: 202114على حسن ذكى عبد الرحمنالاولىالأولىحرفى لحام اكسجينفرع الاميرية | O113: نعم | P113: 2312.92 | Q113: 2706.1164 | R113: 0 | S113: 3653.26 | T113: 405.92 | U113: 0 | V113: 0 | W113: 0 | Y113: 405.91746 | Z113: 300 | AB113: 0 | AC113: 0 | AD113: 0 | AE113: 0 | AF113: 705.92 | AG113: 75.74 | AH113: 84.82 | AI113: 102.04 | AJ113: 0 | AK113: 190 | AL113: 46.23 | AM113: 82.45 | AN113: 105.87 | AO113: 151.04 | AP113: 161.62 | AQ113: 172.93 | AS113: 115.646 | AT113: 600 | AU113: 10 | AV113: 1898.39 | AW113: 10 | AX113: 0 | AY113: 486.9305 | AZ113: 0 | BB113: 0 | BC113: 9866.54 | BD113: 0 | BE113: 9866.54 | BF113: 0 | BG113: 0 | BJ113: 869 | BK113: 106.17 | BL113: 0 | BM113: 0 | BN113: =IF(data.f2026[[#This Row],[أيام الغياب]]=1,data.f2026[[#This Row],[الحافز]]*20%,IF(data.f2026[[#This Row],[أيام الغياب]]=2,data.f2026[[#This Row],[الحافز]]*100%,IF(data.f2026[[#This Row],[أيام الغياب]]>2,data.f2026[[#This Row],[الحافز]]*100%,""))) ->  | BO113: =IF(data.f2026[[#This Row],[عدد أيام الأجازات]]<=4,data.f2026[[#This Row],[الحافز]]*0,IF(data.f2026[[#This Row],[عدد أيام الأجازات]]=5,data.f2026[[#This Row],[الحافز]]*20%,IF(data.f2026[[#This Row],[عدد أيام الأجازات]]=6,data.f2026[[#This Row],[الحافز]]*40%,IF(data.f2026[[#This Row],[عدد أيام الأجازات]]=7,data.f2026[[#This Row],[الحافز]]*50%,IF(data.f2026[[#This Row],[عدد أيام الأجازات]]>7,data.f2026[[#This Row],[الحافز]]*100%,""))))) -> 0 | BP113: =IF(data.f2026[[#This Row],[أيام أجازات بعد السنوية]]<=2,data.f2026[[#This Row],[الحافز]]*0,IF(data.f2026[[#This Row],[أيام أجازات بعد السنوية]]=3,data.f2026[[#This Row],[الحافز]]*30%,IF(data.f2026[[#This Row],[أيام أجازات بعد السنوية]]=4,data.f2026[[#This Row],[الحافز]]*40%,IF(data.f2026[[#This Row],[أيام أجازات بعد السنوية]]=5,data.f2026[[#This Row],[الحافز]]*50%,IF(data.f2026[[#This Row],[أيام أجازات بعد السنوية]]>5,data.f2026[[#This Row],[الحافز]]*100%,""))))) -> 0 | BQ113: 0 | BR113: 0 | BS113: 0 | BT113: 3 | BU113: 0 | BV113: 0 | BW113: 0 | BX113: 0 | BY113: 0 | BZ113: 0 | CA113: 0 | CC113: 0 | CD113: 0 | CE113: 0 | CF113: 0 | CG113: 3.82 | CH113: 3 | CI113: 0 | CK113: 0 | CL113: 0 | CN113: 0 | CO113: 0 | CP113: 486.9305 | CQ113: 0 | CS113: 0 | CT113: 0 | CU113: 0 | CV113: 1471.92 | CW113: 8394.62
B114: 202115 | C114: 21910 | D114: بنك مصر 1 | E114: عبد العليم سعد ابراهيم بليف | F114: 0 | G114: دوام كامل | H114: فنى | I114: الاولى | J114: الأولى | K114: فنى ميكانيكى سيارات | L114: فرع جسر السويس | M114: 26802021700697 | N114: 202115عبد العليم سعد ابراهيم بليفالاولىالأولىفنى ميكانيكى سياراتفرع جسر السويس | O114: نعم | P114: 2233.1 | Q114: 2612.727 | R114: 0 | S114: 3527.18 | T114: 391.91 | U114: 0 | V114: 0 | W114: 0 | Y114: 391.90905 | Z114: 300 | AB114: 0 | AC114: 0 | AD114: 0 | AE114: 0 | AF114: 691.91 | AG114: 73.27 | AH114: 82.02 | AI114: 98.55 | AJ114: 0 | AK114: 190 | AL114: 44.64 | AM114: 79.6 | AN114: 102.22 | AO114: 145.84 | AP114: 156.04 | AQ114: 166.96 | AS114: 111.655 | AT114: 600 | AU114: 10 | AV114: 1860.8 | AW114: 10 | AX114: 0 | AY114: 470.1263 | AZ114: 0 | BB114: 0 | BC114: 9564.65 | BD114: 0 | BE114: 9564.65 | BF114: 0 | BG114: 0 | BJ114: 847 | BK114: 33.25 | BL114: 0 | BM114: 0 | BN114: =IF(data.f2026[[#This Row],[أيام الغياب]]=1,data.f2026[[#This Row],[الحافز]]*20%,IF(data.f2026[[#This Row],[أيام الغياب]]=2,data.f2026[[#This Row],[الحافز]]*100%,IF(data.f2026[[#This Row],[أيام الغياب]]>2,data.f2026[[#This Row],[الحافز]]*100%,""))) ->  | BO114: =IF(data.f2026[[#This Row],[عدد أيام الأجازات]]<=4,data.f2026[[#This Row],[الحافز]]*0,IF(data.f2026[[#This Row],[عدد أيام الأجازات]]=5,data.f2026[[#This Row],[الحافز]]*20%,IF(data.f2026[[#This Row],[عدد أيام الأجازات]]=6,data.f2026[[#This Row],[الحافز]]*40%,IF(data.f2026[[#This Row],[عدد أيام الأجازات]]=7,data.f2026[[#This Row],[الحافز]]*50%,IF(data.f2026[[#This Row],[عدد أيام الأجازات]]>7,data.f2026[[#This Row],[الحافز]]*100%,""))))) -> 0 | BP114: =IF(data.f2026[[#This Row],[أيام أجازات بعد السنوية]]<=2,data.f2026[[#This Row],[الحافز]]*0,IF(data.f2026[[#This Row],[أيام أجازات بعد السنوية]]=3,data.f2026[[#This Row],[الحافز]]*30%,IF(data.f2026[[#This Row],[أيام أجازات بعد السنوية]]=4,data.f2026[[#This Row],[الحافز]]*40%,IF(data.f2026[[#This Row],[أيام أجازات بعد السنوية]]=5,data.f2026[[#This Row],[الحافز]]*50%,IF(data.f2026[[#This Row],[أيام أجازات بعد السنوية]]>5,data.f2026[[#This Row],[الحافز]]*100%,""))))) -> 0 | BQ114: 0 | BR114: 0 | BS114: 0 | BT114: 3 | BU114: 0 | BV114: 0 | BW114: 0 | BX114: 0 | BY114: 0 | BZ114: 0 | CA114: 0 | CC114: 0 | CD114: 0 | CE114: 0 | CF114: 0 | CG114: 3.44 | CH114: 3 | CI114: 0 | CK114: 0 | CL114: 0 | CN114: 0 | CO114: 0 | CP114: 470.1263 | CQ114: 0 | CS114: 0 | CT114: 0 | CU114: 0 | CV114: 1359.82 | CW114: 8204.83
B115: 202117 | C115: 1136 | D115: بنك مصر 2 | E115: احمد لبيب احمد الغول | F115: 0 | G115: دوام كامل | H115: فنى | I115: الرابعة | J115: الرابعة | K115: حرفى عامل كاوتش | L115: الاميرية | M115: 27709281700813 | N115: 202117احمد لبيب احمد الغولالرابعةالرابعةحرفى عامل كاوتشالاميرية | O115: نعم | P115: 862.29 | Q115: 1008.8793 | R115: 0 | S115: 1361.99 | T115: 151.33 | U115: 0 | V115: 0 | W115: 0 | Y115: 151.331895 | Z115: 300 | AB115: 0 | AD115: 0 | AE115: 0 | AF115: 451.33 | AG115: 28.79 | AH115: 32.31 | AI115: 65 | AJ115: 0 | AK115: 200 | AL115: 34.78 | AM115: 31.96 | AN115: 39.47 | AO115: 56.31 | AP115: 72.28 | AQ115: 93.59 | AS115: 63.771 | AT115: 600 | AU115: 10 | AV115: 1328.26 | AW115: 10 | AX115: 0 | AY115: 181.5347 | AZ115: 0 | BB115: 210 | BC115: 4493.32 | BD115: 2506.68 | BE115: 7210 | BF115: 0 | BG115: 0 | BJ115: 574.4244043 | BK115: 0 | BL115: 0 | BM115: 0 | BN115: =IF(data.f2026[[#This Row],[أيام الغياب]]=1,data.f2026[[#This Row],[الحافز]]*20%,IF(data.f2026[[#This Row],[أيام الغياب]]=2,data.f2026[[#This Row],[الحافز]]*100%,IF(data.f2026[[#This Row],[أيام الغياب]]>2,data.f2026[[#This Row],[الحافز]]*100%,""))) ->  | BO115: =IF(data.f2026[[#This Row],[عدد أيام الأجازات]]<=4,data.f2026[[#This Row],[الحافز]]*0,IF(data.f2026[[#This Row],[عدد أيام الأجازات]]=5,data.f2026[[#This Row],[الحافز]]*20%,IF(data.f2026[[#This Row],[عدد أيام الأجازات]]=6,data.f2026[[#This Row],[الحافز]]*40%,IF(data.f2026[[#This Row],[عدد أيام الأجازات]]=7,data.f2026[[#This Row],[الحافز]]*50%,IF(data.f2026[[#This Row],[عدد أيام الأجازات]]>7,data.f2026[[#This Row],[الحافز]]*100%,""))))) -> 0 | BP115: =IF(data.f2026[[#This Row],[أيام أجازات بعد السنوية]]<=2,data.f2026[[#This Row],[الحافز]]*0,IF(data.f2026[[#This Row],[أيام أجازات بعد السنوية]]=3,data.f2026[[#This Row],[الحافز]]*30%,IF(data.f2026[[#This Row],[أيام أجازات بعد السنوية]]=4,data.f2026[[#This Row],[الحافز]]*40%,IF(data.f2026[[#This Row],[أيام أجازات بعد السنوية]]=5,data.f2026[[#This Row],[الحافز]]*50%,IF(data.f2026[[#This Row],[أيام أجازات بعد السنوية]]>5,data.f2026[[#This Row],[الحافز]]*100%,""))))) -> 0 | BQ115: 0 | BR115: 0 | BT115: 3 | BU115: 0 | BX115: 0 | CC115: 0 | CE115: 0 | CG115: 3 | CH115: 3 | CI115: 0 | CL115: 0 | CN115: 0 | CO115: 0 | CP115: 181.5347 | CQ115: 0 | CS115: 0 | CT115: 0 | CU115: 0 | CV115: 764.96 | CW115: 6445.04
B116: 202120 | C116: 4388 | D116: بنك مصر 1 | E116: هشام مجدي عبدالحميد حافظ | F116: مروه | G116: دوام كامل | H116: ادارى | I116: الثالثة | J116: الثالثة | K116: خراط | L116: الاميرية | M116: 28902011405435 | N116: 202120هشام مجدي عبدالحميد حافظمروه الثالثةالثالثةخراطالاميرية | O116: نعم | P116: 905.04 | Q116: 1058.8968 | R116: 0 | S116: 1429.51 | T116: 158.83 | U116: 0 | V116: 0 | W116: 0 | Y116: 0 | Z116: 300 | AB116: 0 | AD116: 0 | AE116: 0 | AF116: 300 | AG116: 0 | AH116: 0 | AI116: 0 | AJ116: 340.07 | AK116: 0 | AL116: 32.79 | AM116: 32.26 | AN116: 41.43 | AO116: 59.1 | AP116: 69.67 | AQ116: 90.79 | AS116: 59.496 | AT116: 600 | AU116: 8 | AV116: 1333.61 | AW116: 10 | AX116: 0 | AY116: 190.5347 | AZ116: 0 | BB116: 0 | BC116: 4481.38 | BD116: 2518.62 | BE116: 7000 | BF116: 0 | BG116: 0 | BJ116: 522.7266064 | BK116: 0 | BL116: 0 | BM116: 0 | BN116: =IF(data.f2026[[#This Row],[أيام الغياب]]=1,data.f2026[[#This Row],[الحافز]]*20%,IF(data.f2026[[#This Row],[أيام الغياب]]=2,data.f2026[[#This Row],[الحافز]]*100%,IF(data.f2026[[#This Row],[أيام الغياب]]>2,data.f2026[[#This Row],[الحافز]]*100%,""))) ->  | BO116: =IF(data.f2026[[#This Row],[عدد أيام الأجازات]]<=4,data.f2026[[#This Row],[الحافز]]*0,IF(data.f2026[[#This Row],[عدد أيام الأجازات]]=5,data.f2026[[#This Row],[الحافز]]*20%,IF(data.f2026[[#This Row],[عدد أيام الأجازات]]=6,data.f2026[[#This Row],[الحافز]]*40%,IF(data.f2026[[#This Row],[عدد أيام الأجازات]]=7,data.f2026[[#This Row],[الحافز]]*50%,IF(data.f2026[[#This Row],[عدد أيام الأجازات]]>7,data.f2026[[#This Row],[الحافز]]*100%,""))))) -> 0 | BP116: =IF(data.f2026[[#This Row],[أيام أجازات بعد السنوية]]<=2,data.f2026[[#This Row],[الحافز]]*0,IF(data.f2026[[#This Row],[أيام أجازات بعد السنوية]]=3,data.f2026[[#This Row],[الحافز]]*30%,IF(data.f2026[[#This Row],[أيام أجازات بعد السنوية]]=4,data.f2026[[#This Row],[الحافز]]*40%,IF(data.f2026[[#This Row],[أيام أجازات بعد السنوية]]=5,data.f2026[[#This Row],[الحافز]]*50%,IF(data.f2026[[#This Row],[أيام أجازات بعد السنوية]]>5,data.f2026[[#This Row],[الحافز]]*100%,""))))) -> 0 | BQ116: 0 | BR116: 0 | BT116: 3 | BU116: 0 | BX116: 0 | CB116: 1571.68 | CC116: 0 | CE116: 0 | CG116: 2.55 | CH116: 3 | CI116: 0 | CL116: 0 | CN116: 0 | CO116: 0 | CP116: 190.5347 | CQ116: 0 | CS116: 0 | CT116: 0 | CU116: 0 | CV116: 2293.49 | CW116: 4706.51
B117: 202121 | C117: 1082 | D117: بنك مصر 2 | E117: طارق محمد عبد الرحمن عبد العزيز | F117: 0 | G117: دوام كامل | H117: فنى | I117: الثانية | J117: الثانية | K117: فنى كهربائى | L117: الادارة العامة | M117: 28103200103831 | N117: 202121طارق محمد عبد الرحمن عبد العزيز الثانيةالثانيةفنى كهربائىالادارة العامة | O117: نعم | P117: 1137.36 | Q117: 1330.7112 | R117: 0 | S117: 1796.46 | T117: 199.61 | U117: 0 | V117: 0 | W117: 0 | Y117: 199.60668 | Z117: 300 | AB117: 0 | AD117: 0 | AE117: 0 | AF117: 499.61 | AG117: 40.59 | AH117: 45.02 | AI117: 65 | AJ117: 0 | AK117: 190 | AL117: 22.74 | AM117: 40.55 | AN117: 52.06 | AO117: 74.7 | AP117: 79.47 | AQ117: 85.04 | AS117: 56.868 | AT117: 600 | AU117: 4 | AV117: 1356.04 | AW117: 10 | AX117: 0 | AY117: 240.1 | AZ117: 0 | BB117: 0 | BC117: 5432.53 | BD117: 1567.47 | BE117: 7000 | BF117: 0 | BG117: 0 | BJ117: 565.9807764 | BK117: 0 | BL117: 0 | BM117: 0 | BN117: =IF(data.f2026[[#This Row],[أيام الغياب]]=1,data.f2026[[#This Row],[الحافز]]*20%,IF(data.f2026[[#This Row],[أيام الغياب]]=2,data.f2026[[#This Row],[الحافز]]*100%,IF(data.f2026[[#This Row],[أيام الغياب]]>2,data.f2026[[#This Row],[الحافز]]*100%,""))) ->  | BO117: =IF(data.f2026[[#This Row],[عدد أيام الأجازات]]<=4,data.f2026[[#This Row],[الحافز]]*0,IF(data.f2026[[#This Row],[عدد أيام الأجازات]]=5,data.f2026[[#This Row],[الحافز]]*20%,IF(data.f2026[[#This Row],[عدد أيام الأجازات]]=6,data.f2026[[#This Row],[الحافز]]*40%,IF(data.f2026[[#This Row],[عدد أيام الأجازات]]=7,data.f2026[[#This Row],[الحافز]]*50%,IF(data.f2026[[#This Row],[عدد أيام الأجازات]]>7,data.f2026[[#This Row],[الحافز]]*100%,""))))) -> 0 | BP117: =IF(data.f2026[[#This Row],[أيام أجازات بعد السنوية]]<=2,data.f2026[[#This Row],[الحافز]]*0,IF(data.f2026[[#This Row],[أيام أجازات بعد السنوية]]=3,data.f2026[[#This Row],[الحافز]]*30%,IF(data.f2026[[#This Row],[أيام أجازات بعد السنوية]]=4,data.f2026[[#This Row],[الحافز]]*40%,IF(data.f2026[[#This Row],[أيام أجازات بعد السنوية]]=5,data.f2026[[#This Row],[الحافز]]*50%,IF(data.f2026[[#This Row],[أيام أجازات بعد السنوية]]>5,data.f2026[[#This Row],[الحافز]]*100%,""))))) -> 0 | BQ117: 0 | BR117: 0 | BT117: 3 | BU117: 0 | BX117: 0 | CC117: 0 | CE117: 0 | CG117: 2.6 | CH117: 3 | CI117: 0 | CL117: 0 | CN117: 0 | CO117: 0 | CP117: 240.1 | CQ117: 0 | CS117: 0 | CT117: 0 | CU117: 0 | CV117: 814.68 | CW117: 6185.32
B118: 202126 | C118: 11111 | D118: البنك الاهلى | E118: مصطفى عبد الرحمن ابراهيم شلبى | F118: 0 | G118: دوام كامل | H118: فنى | I118: الثالثة | J118: الثالثة | K118: حرفى ميكانيكى | L118: الاميرية | M118: 27505180102198 | N118: 202126مصطفى عبد الرحمن ابراهيم شلبىالثالثةالثالثةحرفى ميكانيكى الاميرية | O118: نعم | P118: 1979.8 | Q118: 2316.366 | R118: 0 | S118: 3127.09 | T118: 347.45 | U118: 0 | V118: 0 | W118: 0 | Y118: 347.4549 | Z118: 300 | AB118: 0 | AC118: 0 | AD118: 0 | AE118: 0 | AF118: 647.45 | AG118: 70.23 | AH118: 78.36 | AI118: 93.46 | AJ118: 0 | AK118: 200 | AL118: 39.58 | AM118: 70.57 | AN118: 90.62 | AO118: 129.29 | AP118: 138.34 | AQ118: 148.02 | AS118: 98.99001 | AT118: 600 | AU118: 6 | AV118: 1763.46 | AW118: 10 | AX118: 0 | AY118: 416.8 | AZ118: 0 | BB118: 0 | BC118: 8628.62 | BD118: 0 | BE118: 8628.62 | BF118: 0 | BG118: 0 | BJ118: 759 | BK118: 0 | BL118: 0 | BM118: 0 | BN118: =IF(data.f2026[[#This Row],[أيام الغياب]]=1,data.f2026[[#This Row],[الحافز]]*20%,IF(data.f2026[[#This Row],[أيام الغياب]]=2,data.f2026[[#This Row],[الحافز]]*100%,IF(data.f2026[[#This Row],[أيام الغياب]]>2,data.f2026[[#This Row],[الحافز]]*100%,""))) ->  | BO118: =IF(data.f2026[[#This Row],[عدد أيام الأجازات]]<=4,data.f2026[[#This Row],[الحافز]]*0,IF(data.f2026[[#This Row],[عدد أيام الأجازات]]=5,data.f2026[[#This Row],[الحافز]]*20%,IF(data.f2026[[#This Row],[عدد أيام الأجازات]]=6,data.f2026[[#This Row],[الحافز]]*40%,IF(data.f2026[[#This Row],[عدد أيام الأجازات]]=7,data.f2026[[#This Row],[الحافز]]*50%,IF(data.f2026[[#This Row],[عدد أيام الأجازات]]>7,data.f2026[[#This Row],[الحافز]]*100%,""))))) -> 0 | BP118: =IF(data.f2026[[#This Row],[أيام أجازات بعد السنوية]]<=2,data.f2026[[#This Row],[الحافز]]*0,IF(data.f2026[[#This Row],[أيام أجازات بعد السنوية]]=3,data.f2026[[#This Row],[الحافز]]*30%,IF(data.f2026[[#This Row],[أيام أجازات بعد السنوية]]=4,data.f2026[[#This Row],[الحافز]]*40%,IF(data.f2026[[#This Row],[أيام أجازات بعد السنوية]]=5,data.f2026[[#This Row],[الحافز]]*50%,IF(data.f2026[[#This Row],[أيام أجازات بعد السنوية]]>5,data.f2026[[#This Row],[الحافز]]*100%,""))))) -> 0 | BQ118: 0 | BR118: 0 | BS118: 0 | BT118: 3 | BU118: 0 | BV118: 0 | BW118: 0 | BX118: 0 | BY118: 0 | BZ118: 0 | CA118: 0 | CC118: 0 | CD118: 0 | CE118: 0 | CF118: 0 | CG118: 3.36 | CH118: 3 | CI118: 0 | CK118: 0 | CL118: 0 | CN118: 0 | CO118: 0 | CP118: 416.8 | CQ118: 0 | CS118: 0 | CT118: 0 | CU118: 0 | CV118: 1185.16 | CW118: 7443.46
B119: 203001 | C119: 31360 | D119: بنك مصر 1 | E119: عصام معوض محمد | F119: 0 | G119: دوام كامل | H119: فنى | I119: عقد مؤقت | M119: 27809010108212 | N119: 203001عصام معوض محمدعقد مؤقت | P119: 428.24 | Q119: 428.24 | R119: 0 | S119: 578.12 | T119: 64.24 | U119: 0 | V119: 0 | W119: 0 | Y119: 64.236 | Z119: 300 | AB119: 0 | AD119: 0 | AE119: 0 | AF119: 364.24 | AG119: 0 | AH119: 0 | AI119: 65 | AJ119: 261.64 | AK119: 0 | AL119: 0 | AM119: 0 | AN119: 0 | AO119: 0 | AP119: 0 | AQ119: 0 | AS119: 0 | AT119: 600 | AU119: 10 | AV119: 936.64 | AW119: 10 | AX119: 0 | AY119: 90.4 | AZ119: 0 | BB119: 0 | BC119: 2471.88 | BD119: 4528.12 | BE119: 7000 | BF119: 0 | BG119: 0 | BJ119: 595.6676172 | BK119: 0 | BL119: 0 | BM119: 0 | BN119: =IF(data.f2026[[#This Row],[أيام الغياب]]=1,data.f2026[[#This Row],[الحافز]]*20%,IF(data.f2026[[#This Row],[أيام الغياب]]=2,data.f2026[[#This Row],[الحافز]]*100%,IF(data.f2026[[#This Row],[أيام الغياب]]>2,data.f2026[[#This Row],[الحافز]]*100%,""))) ->  | BO119: =IF(data.f2026[[#This Row],[عدد أيام الأجازات]]<=4,data.f2026[[#This Row],[الحافز]]*0,IF(data.f2026[[#This Row],[عدد أيام الأجازات]]=5,data.f2026[[#This Row],[الحافز]]*20%,IF(data.f2026[[#This Row],[عدد أيام الأجازات]]=6,data.f2026[[#This Row],[الحافز]]*40%,IF(data.f2026[[#This Row],[عدد أيام الأجازات]]=7,data.f2026[[#This Row],[الحافز]]*50%,IF(data.f2026[[#This Row],[عدد أيام الأجازات]]>7,data.f2026[[#This Row],[الحافز]]*100%,""))))) -> 0 | BP119: =IF(data.f2026[[#This Row],[أيام أجازات بعد السنوية]]<=2,data.f2026[[#This Row],[الحافز]]*0,IF(data.f2026[[#This Row],[أيام أجازات بعد السنوية]]=3,data.f2026[[#This Row],[الحافز]]*30%,IF(data.f2026[[#This Row],[أيام أجازات بعد السنوية]]=4,data.f2026[[#This Row],[الحافز]]*40%,IF(data.f2026[[#This Row],[أيام أجازات بعد السنوية]]=5,data.f2026[[#This Row],[الحافز]]*50%,IF(data.f2026[[#This Row],[أيام أجازات بعد السنوية]]>5,data.f2026[[#This Row],[الحافز]]*100%,""))))) -> 0 | BQ119: 26.69 | BR119: 0 | BT119: 3 | BU119: 0 | BX119: 0 | CC119: 0 | CE119: 0 | CG119: 1.95 | CH119: 3 | CI119: 0 | CL119: 0 | CN119: 0 | CO119: 0 | CP119: 90.4 | CQ119: 0 | CS119: 0 | CT119: 0 | CU119: 0 | CV119: 720.71 | CW119: 6279.29
B120: 207001 | C120: 50029 | D120: البنك الاهلى | E120: اشرف محمد طلبه عطية | F120: 0 | G120: دوام كامل | H120: فنى | I120: الاولى | J120: الأولى | K120: فنى كهربائى سيارات | L120: فرع بورسعيد | M120: 26602220300151 | N120: 207001اشرف محمد طلبه عطية الاولىالأولىفنى كهربائى سياراتفرع بورسعيد | O120: نعم | P120: 2158.46 | Q120: 2525.3982 | R120: 0 | S120: 3409.29 | T120: 378.81 | U120: 0 | V120: 0 | W120: 0 | Y120: 378.80973 | Z120: 300 | AB120: 0 | AD120: 0 | AE120: 0 | AF120: 678.81 | AG120: 0 | AH120: 0 | AI120: 0 | AJ120: 453.02 | AK120: 0 | AL120: 43.15 | AM120: 76.95 | AN120: 98.8 | AO120: 140.96 | AP120: 150.82 | AQ120: 161.38 | AS120: 107.923 | AT120: 600 | AU120: 10 | AV120: 1843 | AW120: 10 | AX120: 0 | AY120: 454.4126 | AZ120: 0 | BB120: 0 | BC120: 9299.72 | BD120: 0 | BE120: 9299.72 | BF120: 0 | BG120: 0 | BJ120: 822.7889893 | BK120: 44.92 | BL120: 0 | BM120: 0 | BN120: =IF(data.f2026[[#This Row],[أيام الغياب]]=1,data.f2026[[#This Row],[الحافز]]*20%,IF(data.f2026[[#This Row],[أيام الغياب]]=2,data.f2026[[#This Row],[الحافز]]*100%,IF(data.f2026[[#This Row],[أيام الغياب]]>2,data.f2026[[#This Row],[الحافز]]*100%,""))) ->  | BO120: =IF(data.f2026[[#This Row],[عدد أيام الأجازات]]<=4,data.f2026[[#This Row],[الحافز]]*0,IF(data.f2026[[#This Row],[عدد أيام الأجازات]]=5,data.f2026[[#This Row],[الحافز]]*20%,IF(data.f2026[[#This Row],[عدد أيام الأجازات]]=6,data.f2026[[#This Row],[الحافز]]*40%,IF(data.f2026[[#This Row],[عدد أيام الأجازات]]=7,data.f2026[[#This Row],[الحافز]]*50%,IF(data.f2026[[#This Row],[عدد أيام الأجازات]]>7,data.f2026[[#This Row],[الحافز]]*100%,""))))) -> 0 | BP120: =IF(data.f2026[[#This Row],[أيام أجازات بعد السنوية]]<=2,data.f2026[[#This Row],[الحافز]]*0,IF(data.f2026[[#This Row],[أيام أجازات بعد السنوية]]=3,data.f2026[[#This Row],[الحافز]]*30%,IF(data.f2026[[#This Row],[أيام أجازات بعد السنوية]]=4,data.f2026[[#This Row],[الحافز]]*40%,IF(data.f2026[[#This Row],[أيام أجازات بعد السنوية]]=5,data.f2026[[#This Row],[الحافز]]*50%,IF(data.f2026[[#This Row],[أيام أجازات بعد السنوية]]>5,data.f2026[[#This Row],[الحافز]]*100%,""))))) -> 0 | BQ120: 0 | BR120: 0 | BT120: 3 | BU120: 0 | BX120: 0 | CC120: 0 | CE120: 0 | CG120: 3.83 | CH120: 5 | CI120: 0 | CL120: 0 | CM120: 533.06 | CN120: 0 | CO120: 0 | CP120: 454.4126 | CQ120: 0 | CS120: 0 | CT120: 0 | CU120: 0 | CV120: 1867.01 | CW120: 7432.71
B121: 207003 | C121: 50700 | D121: البنك الاهلى | E121: محمد محمد احمد محمد | F121: 0 | G121: دوام كامل | H121: فنى | I121: الخامسة | J121: الخامسة | K121: حرفى نشحيم | L121: بور سعيد | M121: 27111302401517 | N121: 207003محمد محمد احمد محمدالخامسةالخامسةحرفى نشحيمبور سعيد | O121: نعم | P121: 919.47 | Q121: 1075.7799 | R121: 0 | S121: 1452.3 | T121: 161.37 | U121: 0 | V121: 0 | W121: 0 | Y121: 161.366985 | Z121: 300 | AB121: 0 | AD121: 0 | AE121: 0 | AF121: 461.37 | AG121: 0 | AH121: 0 | AI121: 0 | AJ121: 1263 | AK121: 0 | AL121: 0 | AM121: 0 | AN121: 0 | AO121: 0 | AP121: 0 | AQ121: 0 | AS121: 58.053 | AT121: 0 | AU121: 0 | AV121: 1321.05 | AW121: 10 | AX121: 0 | AY121: 193.5726 | AZ121: 0 | BB121: 0 | BC121: 4675.44 | BD121: 2324.56 | BE121: 7000 | BF121: 0 | BG121: 0 | BJ121: 523.1292236 | BK121: 0 | BL121: 0 | BM121: 0 | BN121: =IF(data.f2026[[#This Row],[أيام الغياب]]=1,data.f2026[[#This Row],[الحافز]]*20%,IF(data.f2026[[#This Row],[أيام الغياب]]=2,data.f2026[[#This Row],[الحافز]]*100%,IF(data.f2026[[#This Row],[أيام الغياب]]>2,data.f2026[[#This Row],[الحافز]]*100%,""))) ->  | BO121: =IF(data.f2026[[#This Row],[عدد أيام الأجازات]]<=4,data.f2026[[#This Row],[الحافز]]*0,IF(data.f2026[[#This Row],[عدد أيام الأجازات]]=5,data.f2026[[#This Row],[الحافز]]*20%,IF(data.f2026[[#This Row],[عدد أيام الأجازات]]=6,data.f2026[[#This Row],[الحافز]]*40%,IF(data.f2026[[#This Row],[عدد أيام الأجازات]]=7,data.f2026[[#This Row],[الحافز]]*50%,IF(data.f2026[[#This Row],[عدد أيام الأجازات]]>7,data.f2026[[#This Row],[الحافز]]*100%,""))))) -> 0 | BP121: =IF(data.f2026[[#This Row],[أيام أجازات بعد السنوية]]<=2,data.f2026[[#This Row],[الحافز]]*0,IF(data.f2026[[#This Row],[أيام أجازات بعد السنوية]]=3,data.f2026[[#This Row],[الحافز]]*30%,IF(data.f2026[[#This Row],[أيام أجازات بعد السنوية]]=4,data.f2026[[#This Row],[الحافز]]*40%,IF(data.f2026[[#This Row],[أيام أجازات بعد السنوية]]=5,data.f2026[[#This Row],[الحافز]]*50%,IF(data.f2026[[#This Row],[أيام أجازات بعد السنوية]]>5,data.f2026[[#This Row],[الحافز]]*100%,""))))) -> 0 | BQ121: 0 | BR121: 0 | BT121: 3 | BU121: 0 | BX121: 0 | CC121: 0 | CE121: 0 | CG121: 2.64 | CH121: 3 | CI121: 0 | CL121: 0 | CM121: 232.64 | CN121: 0 | CO121: 0 | CP121: 193.5726 | CQ121: 0 | CS121: 0 | CT121: 0 | CU121: 0 | CV121: 957.98 | CW121: 6042.02
B122: 207004 | C122: 50353 | D122: البنك الاهلى | E122: محمد محمد عبدالحكيم | F122: 0 | G122: دوام كامل | H122: فنى | I122: الخامسة | J122: الخامسة | K122: حرفى ميكانيكى | L122: بور سعيد | M122: 27504141200061 | N122: 207004محمد محمد عبدالحكيم الخامسةالخامسةحرفى ميكانيكىبور سعيد | O122: نعم | P122: 919.47 | Q122: 1075.7799 | R122: 0 | S122: 1452.3 | T122: 161.37 | U122: 0 | V122: 0 | W122: 0 | Y122: 161.366985 | Z122: 300 | AB122: 0 | AD122: 0 | AE122: 0 | AF122: 461.37 | AG122: 0 | AH122: 0 | AI122: 0 | AJ122: 332.23 | AK122: 0 | AL122: 32.11 | AM122: 32.78 | AN122: 42.09 | AO122: 60.04 | AP122: 64.35 | AQ122: 89.85 | AS122: 58.053 | AT122: 600 | AU122: 10 | AV122: 1321.5 | AW122: 10 | AX122: 0 | AY122: 193.5726 | AZ122: 0 | BB122: 0 | BC122: 4675.89 | BD122: 2324.11 | BE122: 7000 | BF122: 0 | BG122: 0 | BJ122: 523.1292236 | BK122: 0 | BL122: 0 | BM122: 0 | BN122: =IF(data.f2026[[#This Row],[أيام الغياب]]=1,data.f2026[[#This Row],[الحافز]]*20%,IF(data.f2026[[#This Row],[أيام الغياب]]=2,data.f2026[[#This Row],[الحافز]]*100%,IF(data.f2026[[#This Row],[أيام الغياب]]>2,data.f2026[[#This Row],[الحافز]]*100%,""))) ->  | BO122: =IF(data.f2026[[#This Row],[عدد أيام الأجازات]]<=4,data.f2026[[#This Row],[الحافز]]*0,IF(data.f2026[[#This Row],[عدد أيام الأجازات]]=5,data.f2026[[#This Row],[الحافز]]*20%,IF(data.f2026[[#This Row],[عدد أيام الأجازات]]=6,data.f2026[[#This Row],[الحافز]]*40%,IF(data.f2026[[#This Row],[عدد أيام الأجازات]]=7,data.f2026[[#This Row],[الحافز]]*50%,IF(data.f2026[[#This Row],[عدد أيام الأجازات]]>7,data.f2026[[#This Row],[الحافز]]*100%,""))))) -> 0 | BP122: =IF(data.f2026[[#This Row],[أيام أجازات بعد السنوية]]<=2,data.f2026[[#This Row],[الحافز]]*0,IF(data.f2026[[#This Row],[أيام أجازات بعد السنوية]]=3,data.f2026[[#This Row],[الحافز]]*30%,IF(data.f2026[[#This Row],[أيام أجازات بعد السنوية]]=4,data.f2026[[#This Row],[الحافز]]*40%,IF(data.f2026[[#This Row],[أيام أجازات بعد السنوية]]=5,data.f2026[[#This Row],[الحافز]]*50%,IF(data.f2026[[#This Row],[أيام أجازات بعد السنوية]]>5,data.f2026[[#This Row],[الحافز]]*100%,""))))) -> 0 | BQ122: 0 | BR122: 0 | BT122: 3 | BU122: 0 | BX122: 0 | CC122: 0 | CE122: 0 | CG122: 2.63 | CH122: 3 | CI122: 0 | CL122: 0 | CM122: 232.64 | CN122: 0 | CO122: 0 | CP122: 193.5726 | CQ122: 0 | CS122: 0 | CT122: 0 | CU122: 0 | CV122: 957.97 | CW122: 6042.03
B123: 208002 | C123: 26203 | D123: بنك مصر 1 | E123: أمين محمد السيد محمد | F123: 0 | G123: دوام كامل | H123: فنى | I123: الخامسة | J123: الخامسة | K123: حرفى سمكرى | L123: المنصورة | M123: 28002181202791 | N123: 208002أمين محمد السيد محمدالخامسةالخامسةحرفى سمكرىالمنصورة | O123: نعم | P123: 811.1433 | Q123: 949.037661 | R123: 0 | S123: 1281.2 | T123: 142.36 | U123: 0 | V123: 0 | W123: 0 | Y123: 142.3556492 | Z123: 300 | AB123: 0 | AD123: 0 | AE123: 0 | AF123: 442.36 | AG123: 28.18 | AH123: 29.63299 | AI123: 65 | AJ123: 0 | AK123: 200 | AL123: 37.16507 | AM123: 75 | AN123: 37.12904 | AO123: 53.65 | AP123: 75.4 | AQ123: 96.9 | AS123: 68.88567 | AT123: 600 | AU123: 10 | AV123: 1376.94 | AW123: 10 | AX123: 0 | AY123: 170.767 | AZ123: 0 | BB123: 0 | BC123: 4372.66 | BD123: 2627.34 | BE123: 7000 | BF123: 0 | BG123: 0 | BJ123: 530.8060742 | BK123: 0 | BL123: 0 | BM123: 0 | BN123: =IF(data.f2026[[#This Row],[أيام الغياب]]=1,data.f2026[[#This Row],[الحافز]]*20%,IF(data.f2026[[#This Row],[أيام الغياب]]=2,data.f2026[[#This Row],[الحافز]]*100%,IF(data.f2026[[#This Row],[أيام الغياب]]>2,data.f2026[[#This Row],[الحافز]]*100%,""))) ->  | BO123: =IF(data.f2026[[#This Row],[عدد أيام الأجازات]]<=4,data.f2026[[#This Row],[الحافز]]*0,IF(data.f2026[[#This Row],[عدد أيام الأجازات]]=5,data.f2026[[#This Row],[الحافز]]*20%,IF(data.f2026[[#This Row],[عدد أيام الأجازات]]=6,data.f2026[[#This Row],[الحافز]]*40%,IF(data.f2026[[#This Row],[عدد أيام الأجازات]]=7,data.f2026[[#This Row],[الحافز]]*50%,IF(data.f2026[[#This Row],[عدد أيام الأجازات]]>7,data.f2026[[#This Row],[الحافز]]*100%,""))))) -> 0 | BP123: =IF(data.f2026[[#This Row],[أيام أجازات بعد السنوية]]<=2,data.f2026[[#This Row],[الحافز]]*0,IF(data.f2026[[#This Row],[أيام أجازات بعد السنوية]]=3,data.f2026[[#This Row],[الحافز]]*30%,IF(data.f2026[[#This Row],[أيام أجازات بعد السنوية]]=4,data.f2026[[#This Row],[الحافز]]*40%,IF(data.f2026[[#This Row],[أيام أجازات بعد السنوية]]=5,data.f2026[[#This Row],[الحافز]]*50%,IF(data.f2026[[#This Row],[أيام أجازات بعد السنوية]]>5,data.f2026[[#This Row],[الحافز]]*100%,""))))) -> 0 | BQ123: 0 | BR123: 0 | BT123: 3 | BU123: 0 | BX123: 0 | CC123: 0 | CE123: 0 | CG123: 2.66 | CH123: 5 | CI123: 0 | CL123: 0 | CN123: 0 | CO123: 0 | CP123: 170.767 | CQ123: 0 | CS123: 0 | CT123: 0 | CU123: 0 | CV123: 712.23 | CW123: 6287.77
B124: 208003 | C124: 26211 | D124: بنك مصر 1 | E124: احمد حسين امين عطيه | F124: 0 | G124: دوام كامل | H124: فنى | I124: الثانية | J124: الثانية | K124: فنى لحام | L124: فرع المنصورة | M124: 28811141202531 | N124: 208003احمد حسين امين عطيهالثانيةالثانيةفنى لحام فرع المنصورة | O124: نعم | P124: 985.1562 | Q124: 1152.632754 | R124: 0 | S124: 1556.05 | T124: 172.89 | U124: 0 | V124: 0 | W124: 0 | Y124: 172.8949131 | Z124: 300 | AB124: 0 | AD124: 0 | AE124: 0 | AF124: 472.89 | AG124: 34.04053 | AH124: 38.11461 | AI124: 65 | AJ124: 0 | AK124: 190 | AL124: 29.04842 | AM124: 35.12014 | AN124: 45.09425 | AO124: 64.33447 | AP124: 68.83788 | AQ124: 85.5 | AS124: 51.48438 | AT124: 600 | AU124: 4 | AV124: 1310.57 | AW124: 10 | AX124: 0 | AY124: 207.4013 | AZ124: 0 | BB124: 0 | BC124: 4882.43 | BD124: 2117.57 | BE124: 7000 | BF124: 0 | BG124: 0 | BJ124: 530.3848193 | BK124: 0 | BL124: 0 | BM124: 0 | BN124: =IF(data.f2026[[#This Row],[أيام الغياب]]=1,data.f2026[[#This Row],[الحافز]]*20%,IF(data.f2026[[#This Row],[أيام الغياب]]=2,data.f2026[[#This Row],[الحافز]]*100%,IF(data.f2026[[#This Row],[أيام الغياب]]>2,data.f2026[[#This Row],[الحافز]]*100%,""))) ->  | BO124: =IF(data.f2026[[#This Row],[عدد أيام الأجازات]]<=4,data.f2026[[#This Row],[الحافز]]*0,IF(data.f2026[[#This Row],[عدد أيام الأجازات]]=5,data.f2026[[#This Row],[الحافز]]*20%,IF(data.f2026[[#This Row],[عدد أيام الأجازات]]=6,data.f2026[[#This Row],[الحافز]]*40%,IF(data.f2026[[#This Row],[عدد أيام الأجازات]]=7,data.f2026[[#This Row],[الحافز]]*50%,IF(data.f2026[[#This Row],[عدد أيام الأجازات]]>7,data.f2026[[#This Row],[الحافز]]*100%,""))))) -> 0 | BP124: =IF(data.f2026[[#This Row],[أيام أجازات بعد السنوية]]<=2,data.f2026[[#This Row],[الحافز]]*0,IF(data.f2026[[#This Row],[أيام أجازات بعد السنوية]]=3,data.f2026[[#This Row],[الحافز]]*30%,IF(data.f2026[[#This Row],[أيام أجازات بعد السنوية]]=4,data.f2026[[#This Row],[الحافز]]*40%,IF(data.f2026[[#This Row],[أيام أجازات بعد السنوية]]=5,data.f2026[[#This Row],[الحافز]]*50%,IF(data.f2026[[#This Row],[أيام أجازات بعد السنوية]]>5,data.f2026[[#This Row],[الحافز]]*100%,""))))) -> 0 | BQ124: 0 | BR124: 0 | BT124: 3 | BU124: 0 | BX124: 0 | CC124: 0 | CE124: 0 | CG124: 2.69 | CH124: 5 | CI124: 0 | CL124: 0 | CN124: 0 | CO124: 0 | CP124: 207.4013 | CQ124: 0 | CS124: 0 | CT124: 0 | CU124: 0 | CV124: 748.48 | CW124: 6251.52
B125: 208004 | C125: 26229 | D125: بنك مصر 1 | E125: السيد احمد عيد احمد شمس | F125: 0 | G125: دوام كامل | H125: فنى | I125: الثالثة | J125: الثالثة | K125: تباع | L125: فرع كفر الزيات | M125: 26906061200557 | N125: 208004السيد احمد عيد احمد شمسالثالثةالثالثةتباعفرع كفر الزيات | O125: نعم | P125: 2095.108 | Q125: 2451.27636 | R125: 0 | S125: 3309.22 | T125: 367.69 | U125: 0 | V125: 0 | W125: 0 | Y125: 367.691454 | Z125: 300 | AB125: 0 | AD125: 0 | AE125: 0 | AF125: 667.69 | AG125: 72.7148 | AH125: 81.37761 | AI125: 97.73365 | AJ125: 0 | AK125: 200 | AL125: 41.88177 | AM125: 74.68916 | AN125: 95.90088 | AO125: 0 | AP125: 0 | AQ125: 156.6436 | AS125: 104.7554 | AT125: 600 | AU125: 10 | AV125: 1535.7 | AW125: 10 | AX125: 0 | AY125: 441.0754 | AZ125: 0 | BB125: 0 | BC125: 8782.65 | BD125: 0 | BE125: 8782.65 | BF125: 0 | BG125: 0 | BJ125: 758.874585 | BK125: 54.75 | BL125: 0 | BM125: 0 | BN125: =IF(data.f2026[[#This Row],[أيام الغياب]]=1,data.f2026[[#This Row],[الحافز]]*20%,IF(data.f2026[[#This Row],[أيام الغياب]]=2,data.f2026[[#This Row],[الحافز]]*100%,IF(data.f2026[[#This Row],[أيام الغياب]]>2,data.f2026[[#This Row],[الحافز]]*100%,""))) ->  | BO125: =IF(data.f2026[[#This Row],[عدد أيام الأجازات]]<=4,data.f2026[[#This Row],[الحافز]]*0,IF(data.f2026[[#This Row],[عدد أيام الأجازات]]=5,data.f2026[[#This Row],[الحافز]]*20%,IF(data.f2026[[#This Row],[عدد أيام الأجازات]]=6,data.f2026[[#This Row],[الحافز]]*40%,IF(data.f2026[[#This Row],[عدد أيام الأجازات]]=7,data.f2026[[#This Row],[الحافز]]*50%,IF(data.f2026[[#This Row],[عدد أيام الأجازات]]>7,data.f2026[[#This Row],[الحافز]]*100%,""))))) -> 0 | BP125: =IF(data.f2026[[#This Row],[أيام أجازات بعد السنوية]]<=2,data.f2026[[#This Row],[الحافز]]*0,IF(data.f2026[[#This Row],[أيام أجازات بعد السنوية]]=3,data.f2026[[#This Row],[الحافز]]*30%,IF(data.f2026[[#This Row],[أيام أجازات بعد السنوية]]=4,data.f2026[[#This Row],[الحافز]]*40%,IF(data.f2026[[#This Row],[أيام أجازات بعد السنوية]]=5,data.f2026[[#This Row],[الحافز]]*50%,IF(data.f2026[[#This Row],[أيام أجازات بعد السنوية]]>5,data.f2026[[#This Row],[الحافز]]*100%,""))))) -> 0 | BQ125: 0 | BR125: 0 | BT125: 3 | BU125: 0 | BX125: 0 | CC125: 0 | CE125: 0 | CG125: 3.59 | CH125: 5 | CI125: 0 | CL125: 0 | CN125: 0 | CO125: 0 | CP125: 441.0754 | CQ125: 0 | CS125: 0 | CT125: 0 | CU125: 0 | CV125: 1266.29 | CW125: 7516.36
B126: 208005 | C126: 26259 | D126: بنك مصر 1 | E126: رجب إبراهيم عبدالعزيز | F126: 0 | G126: دوام كامل | H126: فنى | I126: الثالثة | J126: الثالثة | K126: حرفى ميكانيكى | L126: الاميرية | M126: 26710071200618 | N126: 208005رجب إبراهيم عبدالعزيزالثالثةالثالثةحرفى ميكانيكى الاميرية | O126: نعم | P126: 1365.885 | Q126: 1598.08545 | R126: 0 | S126: 2157.42 | T126: 239.71 | U126: 0 | V126: 0 | W126: 0 | Y126: 239.7128175 | Z126: 300 | AB126: 0 | AD126: 0 | AE126: 0 | AF126: 539.71 | AG126: 47.60003 | AH126: 53.03458 | AI126: 65 | AJ126: 0 | AK126: 200 | AL126: 27.3044 | AM126: 48.69284 | AN126: 62.5216 | AO126: 89.19749 | AP126: 95.44131 | AQ126: 102.1222 | AS126: 68.29423 | AT126: 600 | AU126: 10 | AV126: 1469.21 | AW126: 10 | AX126: 0 | AY126: 287.5546 | AZ126: 0 | BB126: 0 | BC126: 6301.69 | BD126: 698.31 | BE126: 7000 | BF126: 0 | BG126: 0 | BJ126: 546.2226172 | BK126: 0 | BL126: 0 | BM126: 0 | BN126: =IF(data.f2026[[#This Row],[أيام الغياب]]=1,data.f2026[[#This Row],[الحافز]]*20%,IF(data.f2026[[#This Row],[أيام الغياب]]=2,data.f2026[[#This Row],[الحافز]]*100%,IF(data.f2026[[#This Row],[أيام الغياب]]>2,data.f2026[[#This Row],[الحافز]]*100%,""))) ->  | BO126: =IF(data.f2026[[#This Row],[عدد أيام الأجازات]]<=4,data.f2026[[#This Row],[الحافز]]*0,IF(data.f2026[[#This Row],[عدد أيام الأجازات]]=5,data.f2026[[#This Row],[الحافز]]*20%,IF(data.f2026[[#This Row],[عدد أيام الأجازات]]=6,data.f2026[[#This Row],[الحافز]]*40%,IF(data.f2026[[#This Row],[عدد أيام الأجازات]]=7,data.f2026[[#This Row],[الحافز]]*50%,IF(data.f2026[[#This Row],[عدد أيام الأجازات]]>7,data.f2026[[#This Row],[الحافز]]*100%,""))))) -> 0 | BP126: =IF(data.f2026[[#This Row],[أيام أجازات بعد السنوية]]<=2,data.f2026[[#This Row],[الحافز]]*0,IF(data.f2026[[#This Row],[أيام أجازات بعد السنوية]]=3,data.f2026[[#This Row],[الحافز]]*30%,IF(data.f2026[[#This Row],[أيام أجازات بعد السنوية]]=4,data.f2026[[#This Row],[الحافز]]*40%,IF(data.f2026[[#This Row],[أيام أجازات بعد السنوية]]=5,data.f2026[[#This Row],[الحافز]]*50%,IF(data.f2026[[#This Row],[أيام أجازات بعد السنوية]]>5,data.f2026[[#This Row],[الحافز]]*100%,""))))) -> 0 | BQ126: 0 | BR126: 0 | BT126: 3 | BU126: 0 | BX126: 0 | CC126: 0 | CE126: 0 | CG126: 3.23 | CH126: 5 | CI126: 0 | CL126: 0 | CN126: 0 | CO126: 0 | CP126: 287.5546 | CQ126: 0 | CS126: 0 | CT126: 0 | CU126: 0 | CV126: 845.01 | CW126: 6154.99
B127: 208006 | C127: 26262 | D127: بنك مصر 1 | E127: احمد عبده حماد صلاح | F127: 0 | G127: دوام كامل | H127: فنى | I127: الثالثة | J127: الثالثة | K127: حرفى حداد | L127: فرع المنيا | M127: 27901011251471 | N127: 208006احمد عبده حماد صلاحالثالثةالثالثة حرفى حداد فرع المنيا | O127: نعم | P127: 1369.857 | Q127: 1602.73269 | R127: 0 | S127: 2163.69 | T127: 240.41 | U127: 240.4099121 | V127: 0 | W127: 0 | Y127: 240.4099035 | Z127: 300 | AB127: 0 | AD127: 0 | AE127: 0 | AF127: 540.41 | AG127: 48.54 | AH127: 54 | AI127: 65 | AJ127: 0 | AK127: 200 | AL127: 27.3838 | AM127: 48.83445 | AN127: 62.70343 | AO127: 89.4569 | AP127: 95.71889 | AQ127: 102.4192 | AS127: 68.49284 | AT127: 600 | AU127: 4 | AV127: 1466.55 | AW127: 10 | AX127: 0 | AY127: 288.3909 | AZ127: 0 | BB127: 0 | BC127: 6552.59 | BD127: 447.41 | BE127: 7000 | BF127: 0 | BG127: 0 | BJ127: 547.0498193 | BK127: 0 | BL127: 0 | BM127: 0 | BN127: =IF(data.f2026[[#This Row],[أيام الغياب]]=1,data.f2026[[#This Row],[الحافز]]*20%,IF(data.f2026[[#This Row],[أيام الغياب]]=2,data.f2026[[#This Row],[الحافز]]*100%,IF(data.f2026[[#This Row],[أيام الغياب]]>2,data.f2026[[#This Row],[الحافز]]*100%,""))) ->  | BO127: =IF(data.f2026[[#This Row],[عدد أيام الأجازات]]<=4,data.f2026[[#This Row],[الحافز]]*0,IF(data.f2026[[#This Row],[عدد أيام الأجازات]]=5,data.f2026[[#This Row],[الحافز]]*20%,IF(data.f2026[[#This Row],[عدد أيام الأجازات]]=6,data.f2026[[#This Row],[الحافز]]*40%,IF(data.f2026[[#This Row],[عدد أيام الأجازات]]=7,data.f2026[[#This Row],[الحافز]]*50%,IF(data.f2026[[#This Row],[عدد أيام الأجازات]]>7,data.f2026[[#This Row],[الحافز]]*100%,""))))) -> 0 | BP127: =IF(data.f2026[[#This Row],[أيام أجازات بعد السنوية]]<=2,data.f2026[[#This Row],[الحافز]]*0,IF(data.f2026[[#This Row],[أيام أجازات بعد السنوية]]=3,data.f2026[[#This Row],[الحافز]]*30%,IF(data.f2026[[#This Row],[أيام أجازات بعد السنوية]]=4,data.f2026[[#This Row],[الحافز]]*40%,IF(data.f2026[[#This Row],[أيام أجازات بعد السنوية]]=5,data.f2026[[#This Row],[الحافز]]*50%,IF(data.f2026[[#This Row],[أيام أجازات بعد السنوية]]>5,data.f2026[[#This Row],[الحافز]]*100%,""))))) -> 0 | BQ127: 0 | BR127: 0 | BT127: 3 | BU127: 0 | BX127: 0 | CC127: 0 | CE127: 0 | CG127: 2.98 | CH127: 5 | CI127: 0 | CL127: 0 | CN127: 0 | CO127: 0 | CP127: 288.3909 | CQ127: 0 | CS127: 0 | CT127: 0 | CU127: 0 | CV127: 846.42 | CW127: 6153.58
B128: 208008 | C128: 26290 | D128: بنك مصر 1 | E128: جمال محمد أحمد لطفي | F128: 0 | G128: دوام كامل | H128: فنى | I128: الاولى | J128: الأولى | K128: حرفى نقاش | L128: فرع المنصورة | M128: 26610041200198 | N128: 208008جمال محمد أحمد لطفيالاولىالأولىحرفى نقاش فرع المنصورة | O128: نعم | P128: 2267.445 | Q128: 2652.91065 | R128: 0 | S128: 3581.43 | T128: 397.94 | U128: 0 | V128: 0 | W128: 0 | Y128: 397.9365975 | Z128: 300 | AB128: 0 | AD128: 0 | AE128: 0 | AF128: 697.94 | AG128: 79.0128 | AH128: 88.1357 | AI128: 105.5677 | AJ128: 0 | AK128: 190 | AL128: 45.32683 | AM128: 80.83284 | AN128: 103.7894 | AO128: 148.0728 | AP128: 158.4379 | AQ128: 169.5286 | AS128: 113.3722 | AT128: 600 | AU128: 8 | AV128: 1890.08 | AW128: 10 | AX128: 0 | AY128: 477.3568 | AZ128: 0 | BB128: 0 | BC128: 9707.66 | BD128: 0 | BE128: 9707.66 | BF128: 0 | BG128: 0 | BJ128: 846.3839893 | BK128: 304.62 | BL128: 0 | BM128: 0 | BN128: =IF(data.f2026[[#This Row],[أيام الغياب]]=1,data.f2026[[#This Row],[الحافز]]*20%,IF(data.f2026[[#This Row],[أيام الغياب]]=2,data.f2026[[#This Row],[الحافز]]*100%,IF(data.f2026[[#This Row],[أيام الغياب]]>2,data.f2026[[#This Row],[الحافز]]*100%,""))) ->  | BO128: =IF(data.f2026[[#This Row],[عدد أيام الأجازات]]<=4,data.f2026[[#This Row],[الحافز]]*0,IF(data.f2026[[#This Row],[عدد أيام الأجازات]]=5,data.f2026[[#This Row],[الحافز]]*20%,IF(data.f2026[[#This Row],[عدد أيام الأجازات]]=6,data.f2026[[#This Row],[الحافز]]*40%,IF(data.f2026[[#This Row],[عدد أيام الأجازات]]=7,data.f2026[[#This Row],[الحافز]]*50%,IF(data.f2026[[#This Row],[عدد أيام الأجازات]]>7,data.f2026[[#This Row],[الحافز]]*100%,""))))) -> 0 | BP128: =IF(data.f2026[[#This Row],[أيام أجازات بعد السنوية]]<=2,data.f2026[[#This Row],[الحافز]]*0,IF(data.f2026[[#This Row],[أيام أجازات بعد السنوية]]=3,data.f2026[[#This Row],[الحافز]]*30%,IF(data.f2026[[#This Row],[أيام أجازات بعد السنوية]]=4,data.f2026[[#This Row],[الحافز]]*40%,IF(data.f2026[[#This Row],[أيام أجازات بعد السنوية]]=5,data.f2026[[#This Row],[الحافز]]*50%,IF(data.f2026[[#This Row],[أيام أجازات بعد السنوية]]>5,data.f2026[[#This Row],[الحافز]]*100%,""))))) -> 0 | BQ128: 0 | BR128: 0 | BT128: 3 | BU128: 0 | BX128: 0 | CC128: 0 | CE128: 0 | CG128: 4.63 | CH128: 5 | CI128: 0 | CL128: 0 | CN128: 0 | CO128: 0 | CP128: 477.3568 | CQ128: 0 | CS128: 0 | CT128: 0 | CU128: 0 | CV128: 1640.99 | CW128: 8066.67
B129: 208009 | C129: 26303 | D129: بنك مصر 1 | E129: ميمي فضل حسن فضل | F129: 0 | G129: دوام كامل | H129: فنى | I129: الثالثة | J129: الثالثة | K129: حرفي كهربائي | L129: فرع الزقازيق | M129: 27012251200157 | N129: 208009ميمي فضل حسن فضلالثالثةالثالثةحرفي كهربائي فرع الزقازيق | O129: نعم | P129: 1589.159 | Q129: 1859.31603 | R129: 0 | S129: 2510.08 | T129: 278.9 | U129: 0 | V129: 0 | W129: 0 | Y129: 278.8974045 | Z129: 300 | AB129: 0 | AD129: 0 | AE129: 0 | AF129: 578.9 | AG129: 55.26344 | AH129: 61.64103 | AI129: 74.00755 | AJ129: 0 | AK129: 200 | AL129: 31.76772 | AM129: 56.65242 | AN129: 72.74171 | AO129: 103.7782 | AP129: 111.0426 | AQ129: 118.8156 | AS129: 79.45796 | AT129: 600 | AU129: 10 | AV129: 1575.17 | AW129: 10 | AX129: 0 | AY129: 334.5598 | AZ129: 0 | BB129: 0 | BC129: 7146.93 | BD129: 0 | BE129: 7146.93 | BF129: 0 | BG129: 0 | BJ129: 620.7508936 | BL129: 0 | BM129: 0 | BN129: =IF(data.f2026[[#This Row],[أيام الغياب]]=1,data.f2026[[#This Row],[الحافز]]*20%,IF(data.f2026[[#This Row],[أيام الغياب]]=2,data.f2026[[#This Row],[الحافز]]*100%,IF(data.f2026[[#This Row],[أيام الغياب]]>2,data.f2026[[#This Row],[الحافز]]*100%,""))) ->  | BO129: =IF(data.f2026[[#This Row],[عدد أيام الأجازات]]<=4,data.f2026[[#This Row],[الحافز]]*0,IF(data.f2026[[#This Row],[عدد أيام الأجازات]]=5,data.f2026[[#This Row],[الحافز]]*20%,IF(data.f2026[[#This Row],[عدد أيام الأجازات]]=6,data.f2026[[#This Row],[الحافز]]*40%,IF(data.f2026[[#This Row],[عدد أيام الأجازات]]=7,data.f2026[[#This Row],[الحافز]]*50%,IF(data.f2026[[#This Row],[عدد أيام الأجازات]]>7,data.f2026[[#This Row],[الحافز]]*100%,""))))) -> 0 | BP129: =IF(data.f2026[[#This Row],[أيام أجازات بعد السنوية]]<=2,data.f2026[[#This Row],[الحافز]]*0,IF(data.f2026[[#This Row],[أيام أجازات بعد السنوية]]=3,data.f2026[[#This Row],[الحافز]]*30%,IF(data.f2026[[#This Row],[أيام أجازات بعد السنوية]]=4,data.f2026[[#This Row],[الحافز]]*40%,IF(data.f2026[[#This Row],[أيام أجازات بعد السنوية]]=5,data.f2026[[#This Row],[الحافز]]*50%,IF(data.f2026[[#This Row],[أيام أجازات بعد السنوية]]>5,data.f2026[[#This Row],[الحافز]]*100%,""))))) -> 0 | BQ129: 0 | BR129: 0 | BT129: 3 | BU129: 0 | BX129: 0 | CC129: 0 | CE129: 0 | CG129: 0 | CH129: 5 | CI129: 0 | CL129: 0 | CN129: 0 | CO129: 0 | CP129: 334.5598 | CQ129: 0 | CS129: 0 | CT129: 0 | CU129: 0 | CV129: 963.31 | CW129: 6183.62
B130: 208010 | C130: 23758 | D130: بنك مصر 1 | E130: صبيح ابو المعاطى عبد الرحمن | F130: 0 | G130: دوام كامل | H130: فنى | I130: الرابعة | J130: الرابعة | K130: حرفى ميكانيكى | L130: الاميرية | M130: 28001010112739 | N130: 208010صبيح ابو المعاطى عبد الرحمنالرابعةالرابعةحرفى ميكانيكىالاميرية | O130: نعم | P130: 1011.168 | Q130: 1183.06656 | R130: 0 | S130: 1597.14 | T130: 177.46 | U130: 177.4600372 | V130: 0 | W130: 0 | Y130: 177.459984 | Z130: 300 | AB130: 0 | AD130: 0 | AE130: 0 | AF130: 477.46 | AG130: 35.32719 | AH130: 39.35801 | AI130: 65 | AJ130: 0 | AK130: 200 | AL130: 27.83511 | AM130: 36.04745 | AN130: 46.28493 | AO130: 66.03317 | AP130: 70.65549 | AQ130: 83.8 | AS130: 50.55842 | AT130: 600 | AU130: 10 | AV130: 1330.9 | AW130: 10 | AX130: 0 | AY130: 212.8775 | AZ130: 0 | BB130: 0 | BC130: 5166.36 | BD130: 1833.64 | BE130: 7000 | BF130: 0 | BG130: 0 | BJ130: 530.0372021 | BK130: 0 | BL130: 0 | BM130: 0 | BN130: =IF(data.f2026[[#This Row],[أيام الغياب]]=1,data.f2026[[#This Row],[الحافز]]*20%,IF(data.f2026[[#This Row],[أيام الغياب]]=2,data.f2026[[#This Row],[الحافز]]*100%,IF(data.f2026[[#This Row],[أيام الغياب]]>2,data.f2026[[#This Row],[الحافز]]*100%,""))) ->  | BO130: =IF(data.f2026[[#This Row],[عدد أيام الأجازات]]<=4,data.f2026[[#This Row],[الحافز]]*0,IF(data.f2026[[#This Row],[عدد أيام الأجازات]]=5,data.f2026[[#This Row],[الحافز]]*20%,IF(data.f2026[[#This Row],[عدد أيام الأجازات]]=6,data.f2026[[#This Row],[الحافز]]*40%,IF(data.f2026[[#This Row],[عدد أيام الأجازات]]=7,data.f2026[[#This Row],[الحافز]]*50%,IF(data.f2026[[#This Row],[عدد أيام الأجازات]]>7,data.f2026[[#This Row],[الحافز]]*100%,""))))) -> 0 | BP130: =IF(data.f2026[[#This Row],[أيام أجازات بعد السنوية]]<=2,data.f2026[[#This Row],[الحافز]]*0,IF(data.f2026[[#This Row],[أيام أجازات بعد السنوية]]=3,data.f2026[[#This Row],[الحافز]]*30%,IF(data.f2026[[#This Row],[أيام أجازات بعد السنوية]]=4,data.f2026[[#This Row],[الحافز]]*40%,IF(data.f2026[[#This Row],[أيام أجازات بعد السنوية]]=5,data.f2026[[#This Row],[الحافز]]*50%,IF(data.f2026[[#This Row],[أيام أجازات بعد السنوية]]>5,data.f2026[[#This Row],[الحافز]]*100%,""))))) -> 0 | BQ130: 0 | BR130: 0 | BT130: 3 | BU130: 0 | BX130: 0 | CC130: 0 | CE130: 0 | CG130: 3.39 | CH130: 5 | CI130: 0 | CL130: 0 | CN130: 0 | CO130: 0 | CP130: 212.8775 | CQ130: 0 | CS130: 0 | CT130: 0 | CU130: 0 | CV130: 754.3 | CW130: 6245.7
B131: 209001 | C131: 21590 | D131: بنك مصر 1 | E131: هشام عبد الودود احمد السيد | F131: 0 | G131: دوام كامل | H131: فنى | I131: الثالثة | M131: 27309010105334 | N131: 209001هشام عبد الودود احمد السيدالثالثة | P131: 2170.52 | Q131: 2539.51 | R131: 0 | S131: 3428.34 | T131: 380.93 | U131: 0 | V131: 0 | W131: 0 | Y131: 380.9265 | Z131: 300 | AB131: 0 | AC131: 0 | AD131: 0 | AE131: 0 | AF131: 680.93 | AG131: 71.46 | AH131: 79.77 | AI131: 95.68 | AJ131: 0 | AK131: 190 | AL131: 43.39 | AM131: 77.38 | AN131: 99.35 | AO131: 141.74 | AP131: 151.66 | AQ131: 162.28 | AS131: 108.526 | AT131: 600 | AU131: 10 | AV131: 1831.24 | AW131: 10 | AX131: 0 | AY131: 456.9516 | AZ131: 402.65 | BB131: 0 | BC131: 9327.9 | BD131: 0 | BE131: 9730.55 | BF131: 0 | BG131: 0 | BJ131: 825 | BK131: 32.58 | BL131: 0 | BM131: 0 | BN131: =IF(data.f2026[[#This Row],[أيام الغياب]]=1,data.f2026[[#This Row],[الحافز]]*20%,IF(data.f2026[[#This Row],[أيام الغياب]]=2,data.f2026[[#This Row],[الحافز]]*100%,IF(data.f2026[[#This Row],[أيام الغياب]]>2,data.f2026[[#This Row],[الحافز]]*100%,""))) ->  | BO131: =IF(data.f2026[[#This Row],[عدد أيام الأجازات]]<=4,data.f2026[[#This Row],[الحافز]]*0,IF(data.f2026[[#This Row],[عدد أيام الأجازات]]=5,data.f2026[[#This Row],[الحافز]]*20%,IF(data.f2026[[#This Row],[عدد أيام الأجازات]]=6,data.f2026[[#This Row],[الحافز]]*40%,IF(data.f2026[[#This Row],[عدد أيام الأجازات]]=7,data.f2026[[#This Row],[الحافز]]*50%,IF(data.f2026[[#This Row],[عدد أيام الأجازات]]>7,data.f2026[[#This Row],[الحافز]]*100%,""))))) -> 0 | BP131: =IF(data.f2026[[#This Row],[أيام أجازات بعد السنوية]]<=2,data.f2026[[#This Row],[الحافز]]*0,IF(data.f2026[[#This Row],[أيام أجازات بعد السنوية]]=3,data.f2026[[#This Row],[الحافز]]*30%,IF(data.f2026[[#This Row],[أيام أجازات بعد السنوية]]=4,data.f2026[[#This Row],[الحافز]]*40%,IF(data.f2026[[#This Row],[أيام أجازات بعد السنوية]]=5,data.f2026[[#This Row],[الحافز]]*50%,IF(data.f2026[[#This Row],[أيام أجازات بعد السنوية]]>5,data.f2026[[#This Row],[الحافز]]*100%,""))))) -> 0 | BQ131: 0 | BR131: 0 | BS131: 150 | BT131: 3 | BU131: 0 | BV131: 0 | BW131: 0 | BX131: 0 | BY131: 0 | BZ131: 0 | CA131: 0 | CC131: 0 | CD131: 0 | CE131: 0 | CF131: 0 | CG131: 3.41 | CH131: 3 | CI131: 0 | CK131: 0 | CL131: 0 | CN131: 0 | CO131: 0 | CP131: 456.9516 | CQ131: 0 | CS131: 0 | CT131: 0 | CU131: 0 | CV131: 1473.94 | CW131: 8256.61
B132: 209002 | C132: 21831 | D132: بنك مصر 1 | E132: احمد شحاتة عبادى احمد | F132: 0 | G132: دوام كامل | H132: فنى | I132: الثالثة | M132: 27401120107875 | N132: 209002احمد شحاتة عبادى احمدالثالثة | P132: 2098.89 | Q132: 2455.71 | R132: 0 | S132: 3315.21 | T132: 368.36 | U132: 0 | V132: 0 | W132: 0 | Y132: 368.3565 | Z132: 300 | AB132: 0 | AC132: 0 | AD132: 0 | AE132: 0 | AF132: 668.36 | AG132: 69.11 | AH132: 77.13 | AI132: 92.56 | AJ132: 0 | AK132: 190 | AL132: 41.96 | AM132: 74.82 | AN132: 96.07 | AO132: 137.09 | AP132: 146.66 | AQ132: 156.93 | AS132: 104.9445 | AT132: 600 | AU132: 10 | AV132: 1797.27 | AW132: 10 | AX132: 0 | AY132: 441.8716 | AZ132: 389.37 | BB132: 0 | BC132: =ROUND(SUM(Q132:W132,AF132,AV132,AW132:AY132),2) -> 9056.78 | BD132: 0 | BE132: 9446.15 | BF132: 0 | BG132: 0 | BJ132: 792 | BK132: 0 | BL132: 0 | BM132: 0 | BN132: =IF(data.f2026[[#This Row],[أيام الغياب]]=1,data.f2026[[#This Row],[الحافز]]*20%,IF(data.f2026[[#This Row],[أيام الغياب]]=2,data.f2026[[#This Row],[الحافز]]*100%,IF(data.f2026[[#This Row],[أيام الغياب]]>2,data.f2026[[#This Row],[الحافز]]*100%,""))) ->  | BO132: =IF(data.f2026[[#This Row],[عدد أيام الأجازات]]<=4,data.f2026[[#This Row],[الحافز]]*0,IF(data.f2026[[#This Row],[عدد أيام الأجازات]]=5,data.f2026[[#This Row],[الحافز]]*20%,IF(data.f2026[[#This Row],[عدد أيام الأجازات]]=6,data.f2026[[#This Row],[الحافز]]*40%,IF(data.f2026[[#This Row],[عدد أيام الأجازات]]=7,data.f2026[[#This Row],[الحافز]]*50%,IF(data.f2026[[#This Row],[عدد أيام الأجازات]]>7,data.f2026[[#This Row],[الحافز]]*100%,""))))) -> 0 | BP132: =IF(data.f2026[[#This Row],[أيام أجازات بعد السنوية]]<=2,data.f2026[[#This Row],[الحافز]]*0,IF(data.f2026[[#This Row],[أيام أجازات بعد السنوية]]=3,data.f2026[[#This Row],[الحافز]]*30%,IF(data.f2026[[#This Row],[أيام أجازات بعد السنوية]]=4,data.f2026[[#This Row],[الحافز]]*40%,IF(data.f2026[[#This Row],[أيام أجازات بعد السنوية]]=5,data.f2026[[#This Row],[الحافز]]*50%,IF(data.f2026[[#This Row],[أيام أجازات بعد السنوية]]>5,data.f2026[[#This Row],[الحافز]]*100%,""))))) -> 0 | BQ132: 0 | BR132: 0 | BS132: 0 | BT132: 3 | BU132: 0 | BV132: 0 | BW132: 0 | BX132: 0 | BY132: 0 | BZ132: 0 | CA132: 0 | CC132: 0 | CD132: 0 | CE132: 0 | CF132: 0 | CG132: 3.52 | CH132: 3 | CI132: 0 | CK132: 0 | CL132: 0 | CN132: 0 | CO132: 0 | CP132: =AY132 -> 441.8716 | CQ132: 0 | CS132: 0 | CT132: 0 | CU132: =ROUND(IF($G132=CU$3,$BE132-SUM(BK132:CR132,0),0),2) -> 0 | CV132: =ROUND(SUM(BJ132:CU132),2) -> 1243.39 | CW132: =BE132-CV132 -> 8202.76
